Workbook

Sheet Preface and Contents
E2: 2018 Annual Technology Baseline (ATB)
E4: NREL annually documents a realistic and timely set of input assumptions (e.g., technology cost, fuel costs), and a diverse set of potential futures (standard scenarios) to inform electric sector analysis in the United States. The products of this work, including assessments of current and projected technology cost and performance for both renewable and conventional electricity generation technologies, as well as market projections of more than a dozen scenarios produced with NREL's Regional Energy Deployment Systems (ReEDS) model, are applied consistently in NREL's analyses throughout the following year. This annual process is supported by the Office of Strategic Programs of the U.S. Department of Energy’s Office of Energy Efficiency and Renewable Energy (EERE). The specific products from this effort including the following:
E6: * An Annual Technology Baseline (ATB) workbook documenting detailed cost and performance data (both current and projected) for both renewable and conventional technologies.
E7: * An ATB web application describing each of the technologies and providing additional context for their treatment in the workbook.
E8: * A Standard Scenarios Annual Report describing the identified scenarios, associated assumptions (including technology cost and performance assumptions from the ATB), and modeled results using the most recent version of the ReEDS model.
E10: These products can be accessed at atb.nrel.gov.
E12: New to this Edition
E14: Three options representing market conditions for project financing: - R&D - based on macro-economic indicators from AEO (2018) for the year 2016 as a source for debt rates and return on equity rates. Includes dynamic effects of R&D on technology cost, technology performance, and financial performance. Excludes economic dynamics such as background changes to inflation, interest, and return on equity. Excludes policies such as tax credits and tariffs. Financing presented as a time series. - R&D + Market – based on macro-economic indicators from AEO (2018) as a source for debt rates and return on equity rates. Includes dynamics from R&D Only case. Adds in economic dynamics and policies - ReEDs - Mirrors the ReEDs 2018 assumptions
E16: Contents
E17: Financial Definitions
E18: Wind: Land-based
E19: Wind: Offshore
E20: Solar: PV: Utility
E21: Solar: PV: Commercial
E22: Solar: PV: Residential
E23: Solar: CSP
E24: Geothermal
E25: Hydropower
E26: Natural Gas
E27: Coal
E28: Nuclear
E29: Biopower
E31: Recommended Citation
E32: NREL (National Renewable Energy Laboratory). 2018. 2018 Annual Technology Baseline. Golden, CO: National Renewable Energy Laboratory. http://www.nrel.gov/analysis/data_tech_baseline.html.
E34: Online
B35: atb.nrel.gov | E35: 2018 Annual Technology Baseline (ATB)
B36: www.nrel.gov/analysis/reeds | E36: Regional Energy Deployment Systems
E38: Contact
E39: atb.nrel.gov/electricity/contact
E41: DISCLAIMER AGREEMENT
E42: These detailed electricity generation technology cost and performance data ("Data") are provided by the National Renewable Energy Laboratory ("NREL"), which is operated by the Alliance for Sustainable Energy LLC ("Alliance") for the U.S. Department of Energy (the "DOE").
E44: It is recognized that disclosure of these Data are provided under the following conditions and warnings: (1) these Data have been prepared for reference purposes only; (2) these Data consist of forecasts, estimates, or assumptions made on a best-efforts basis, based upon expectations of current and future conditions at the time they were developed; and (3) these Data were prepared with existing information and are subject to change without notice.
E46: The user understands that DOE/NREL/ALLIANCE are not obligated to provide the user with any support, consulting, training or assistance of any kind with regard to the use of the Data or to provide the user with any updates, revisions or new versions thereof. DOE, NREL, and ALLIANCE do not guarantee or endorse any results generated by use of the Data, and user is entirely responsible for the results and any reliance on the results or the Data in general.
E48: USER AGREES TO INDEMNIFY DOE/NREL/ALLIANCE AND ITS SUBSIDIARIES, AFFILIATES, OFFICERS, AGENTS, AND EMPLOYEES AGAINST ANY CLAIM OR DEMAND, INCLUDING REASONABLE ATTORNEYS' FEES, RELATED TO USER’S USE OF THE DATA. THE DATA ARE PROVIDED BY DOE/NREL/ALLIANCE "AS IS," AND ANY EXPRESS OR IMPLIED WARRANTIES, INCLUDING BUT NOT LIMITED TO THE IMPLIED WARRANTIES OF MERCHANTABILITY AND FITNESS FOR A PARTICULAR PURPOSE ARE DISCLAIMED. IN NO EVENT SHALL DOE/NREL/ALLIANCE BE LIABLE FOR ANY SPECIAL, INDIRECT OR CONSEQUENTIAL DAMAGES OR ANY DAMAGES WHATSOEVER, INCLUDING BUT NOT LIMITED TO CLAIMS ASSOCIATED WITH THE LOSS OF DATA OR PROFITS, THAT MAY RESULT FROM AN ACTION IN CONTRACT, NEGLIGENCE OR OTHER TORTIOUS CLAIM THAT ARISES OUT OF OR IN CONNECTION WITH THE ACCESS, USE OR PERFORMANCE OF THE DATA.

Sheet Financial Definitions
B2: Electricity Generation Technology LCOE equation for Standard Scenarios – ReEDS Model Inputs and Annual Technology Baseline presentation of technology assumptions.
B3: Note: Costs associated with a given year are for systems that come online in that year. For example, the overnight capital cost (OCC) for a technology in 2020 represents the OCC of a system that begins commercial operation in 2020. The capacity factor for a technology in 2020 represents the expected annualized lifetime energy production for a system that begins commercial operation in 2020.
B5: Levelized Cost of Energy ($/MWh) | C5: LCOE = ((FCR * CAPEX + FOM)*1000/(CF * 8760)) + VOM + Fuel
C6: LCOE = ((CRF * ProFinFactor * ConFinFactor * (OCC * CapRegMult + GCC) + FOM) * 1000 / (CF * 8760)) + VOM + Fuel
B8: Fixed Charge Rate | C8: FCR = CRF * ProFinFactor | D8: Amount of revenue per dollar of investment required that must be collected annually from customers to pay the carrying charges on that investment.
B10: CAPEX | C10: CAPEX = ConFinFActor * (OCC * CapRegMult + GCC) | D10: Capital expenditures required to achieve commercial operation of the generation plant
B12: Capital Recovery Factor | C12: CRF = WACC / (1 - (1 / (1 + WACC)^t)) note: WACC real | D12: *ReEDS uses: CRF = (WACC - 1) / (1 - (1 / WACC)^t)
C13: WACC = ((1+((1-DF)*((1+RROE)*(1+i)-1)) + (DF*((1+IR)*(1+i)-1)*(1-TR))) / (1+i)) - 1 | D13: but uses a WACC that is equal to 1 + the WACC rate, and returns a CRF that is 1+CRF
C14: DF = debt fraction | D14: *ReEDS uses: WACC = (1 + ((1 - DF)*(RROE*i - 1)) + (DF*(IR*i - 1)*(1-TR))) / i
C15: RROE = rate of return on equity (real) = 10.24% | D15: but uses RROE, i, and IR that are equal to 1 + the rates, and returns a WACC that is 1+WACC
C16: i = inflation rate = 2.5%
C17: IR = interest rate (real) = 5.4%
B19: Project Finance factor | C19: ProFinFactor = (1 - TR * PVD) / (1 - TR)
C20: TR = combined state/federal tax rate
C21: PVD = present value of depreciation = summation from y=1 to y=M+1 of (FDy * fy)
C22: M = # years in MACRS depreciation schedule
C23: FDy = fraction of capital depreciated in year y
C24: fy = depreciation factor in year y | D24: fy = 1/dy
C25: d = nominal discount rate (8.9%) | D25: d = WACC * i
C26: i = inflation rate
B28: Construction Finance Factor | C28: ConFinFactor = summation from y=0 to y=C-1 of (FCy * AIy)
C29: FCy = fraction of capital spent in year y
C30: AIy =1 + (1 - TR) * ((1 + IDC)(year+0.5) - 1) | D30: *ReEDS uses: AIy =1 + (1 - TR) * (IDC(year+0.5) - 1)
C31: IDC = interest during construction | D31: but uses an IDC that is equal to 1 + the interest rate
C32: y = year index, starting at 0
C33: C = construction duration (years)
B35: Overnight Capital Cost | C35: OCC = input in $/kW
B37: Capital Regional Multiplier | C37: CapRegMult = 1 for ATB | D37: CapRegMult = 1 for ATB
B39: Grid Connection Costs | C39: GCC = GF + OnSpurCost + Off SpurCost
C40: GF | D40: grid feature = 0 for ATB
C41: OnSpurCost | D41: Onshore Spur Line Costs = 0 for ATB
C42: Off SpurCost | D42: Offshore (underwater) Spur Line Costs
B44: Fixed Operating Expenses | C44: FOM = input in $/kW
B46: * 1000 | C46: conversion factor from $/kW inputs to $/MWh output
B48: Capacity Factor | C48: CF = input as %
B50: * 8760 | C50: conversion factor for hours per year
B52: Variable Operating Expenses | C52: VOM = input in $/MWh
B54: Fuel | C54: Fuel = input in $/MWh
B56: Overnight LCOE | C56: =((OCC*CRF*(1-TR*PVD))/(8760*CF*(1-TR))+FOM/(8760*CF))*1000)+VOM | D56: This is similar to the LCOE used in the TCDB (Transparent Cost database)
B58: Definitions:
B59: AI | C59: Accumulated Interest | D59: Accumulated interest is a function of the interest during construction and the tax rate.
B60: C | C60: Construction Duration | D60: Number of years in construction period
B61: CapRegMult | C61: Capital Regional Multiplier | D61: Capital cost multipliers to account for regional variations that affect plant costs, e.g. labor rates, etc. Separate multipliers are applied to land-based and offshore wind plants, PV, CSP, coal, gas, nuclear, etc. No multipliers for geothermal or hydropower due to site specific nature of plant cost estimates.
B62: CF | C62: Capacity Factor (%) | D62: Generally defined as the ratio of actual annual output to output at rated capacity for an entire year.
B63: ConFinFactor | C63: Construction Finance Factor | D63: Portion of all-in capital cost associated with construction period financing. ConFinFactor is a function of C, FC, and IDC.
B64: CRF | C64: Capital Recovery Factor | D64: The ratio of a constant annuity to the present value of receiving that annuity for a given length of time. (Default in ReEDS is 8.89% real); CRF is a function of WACC and t.
B65: d | C65: nominal discount rate (8.9%) | D65: The discount rate is a function of the WACC and inflation.
B66: DF | C66: Debt Fraction | D66: Fraction of capital financed with debt. 1-DF is assumed financed with equity. (50% for all technologies in ReEDS)
B67: EMRP | C67: Expected Market Risk Premium | D67: The market risk premium is the difference between the expected return on a market portfolio and the risk-free rate.
B68: f | C68: Depreciation Factor | D68: The depreciation factor is a function of the discount rate.
B69: FC | C69: Capital Fraction | D69: Fraction of capital spent in each year of construction, 1 to C.
B70: FD | C70: Depreciation Fraction | D70: Fraction of capital depreciated in each year, 1 to M.
B71: FOM | C71: Fixed Operation and Maintenance Expenses ($/MW-year) | D71: Annual expenditures to operate and maintain equipment that are not incurred on a per-unit-energy basis.
B72: Fuel | C72: fuel cost ($/MWh) | D72: Fuel costs are converted to $/MWh from various units.
B73: GCC | C73: Grid Connection Costs | D73: Distance-based costs of spur lines over land, offshore wind plant export cable costs and construction-period transit costs
B74: GF | C74: Grid Feature | D74: Point of interconnection at the high voltage transmission network, including substation, transmission lines, load center, or BA center. (Default in ReEDS is $0/kW for substation and load center and $14/kW for others)
B75: i | C75: Inflation Rate | D75: Assumed inflation rate based on historical data. (2.5% in ReEDS)
B76: ICC | C76: Installed Capital Cost ($/MW) | D76: Total capital expenditure to achieve commercial operation up to the plant gate. This intermediate value is used only in presentation of technology cost assumptions with historic market data. It is not required to calculate LCOE.
B77: IDC | C77: Interest During Construction | D77: Interest rate for financing project during construction period.
B78: IR | C78: Interest Rate (real) | D78: Assumed interest rate on debt. (5.4% for all technologies in ReEDS, 8% nominal)
B79: M | C79: Depreciation period (years) | D79: Number of years in MACRS depreciation schedule.
B80: OCC | C80: Overnight Capital Cost ($/MW) | D80: Capital expenditures excluding construction period financing. Includes onsite electrical equipment (e.g., switchyard), a nominal-distance spur line (<1 mi), and necessary upgrades at a transmission substation.
B81: OffDist | C81: Offshore Distance | D81: Total offshore distance covered by the offshore export cables
B82: OffSpurCost | C82: Offshore (underwater) Spur Line Costs | D82: Cost for offshore (underwater) export cables from the offshore wind plant to land; OffSpurCost is a function of OffDist and OffDistFactor.
B83: OffDistFactor | C83: Offshore Distance Factor | D83: Incremental capital expenditure for offshore wind plant export cable length between landfall and offshore wind plant site.
B84: OnDist | C84: Onshore Distance | D84: Total onshore distance covered by the onshore transmission spur lines
B85: OnRegTransMult | C85: Onshore Regional Transmission Multiplier | D85: Transmission cost multipliers to account for regional variations that affect onshore transmission line costs, e.g. labor rates, terrain, siting, etc.
B86: OnSpurCost | C86: Onshore Spur Line Costs | D86: Cost for onshore transmission lines from the plant gate to the grid feature; OnSpurCost is a function of OnDist, OnTransCost, and OnRegTransMult.
B87: OnTransCost | C87: Onshore Transmission Costs (for spur line) | D87: Base onshore transmission line costs (Default in ReEDS is $3922/MW-mile)
B88: ProFinFactor | C88: Project Finance factor | D88: Technology-specific financial multiplier to account for any applicable differences in depreciation schedule, and tax policies. ProFinFactor is a function of TR, WACC, i, M, and FD
B89: PVD | C89: Present Value of Depreciation | D89: PVD is a function of FD, f and y.
B90: RROE | C90: Rate of Return on Equity (real) | D90: Assumed rate of return on the share of assets financed with equity. (10% for all technologies in ReEDS, 13% nominal)
B91: t | C91: Economic Lifetime (years) | D91: Length of time for paying off assets (20 years for all technologies in ReEDS)
B92: TR | C92: Tax Rate | D92: Combined state and federal tax rate (40%)
B93: VOM | C93: Variable Operation and Maintenance Expenses ($/MWh) | D93: Operating and maintenance costs incurred on a per-unit-energy basis.
B94: WACC | C94: Weighted Average Cost of Capital (real) | D94: The average expected rate that is paid to finance assets. (Default in ReEDS is 6.2% real); WACC is a function of DF, RROE, IR, i, and TR.
B95: y | C95: year index, starting at 0
B97: Notes:
B98: CapRegMult = 1 | C98: ATB assumes that all plants represent typical equipment costs and do not include regionally specific labor or material cost increments.
B99: GCC = 0 | C99: ATB assumes that base plant cost includes small spur line to connect with grid for all technologies in overnight capital cost. An exception is made for offshore wind plants where the export cable and construction-period transit costs based on a 30 km distance from shore are represented in GCC. Specific transmission lines based on geographically determined distances between ReEDS regions and existing transmission features for wind and solar are not included in ATB.
B100: Inputs in ATB are in $/kW, in ReEDS they are $/MW

Sheet Land-Based Wind
A1: Land-Based Wind Inputs | L1: https://atb.nrel.gov/electricity/2017/index.html?t=lw
T3: Inputs
J4: Take me to: | T4: Calculated
B10: X | G10: Current Costs
H12: Techno-Economic Cost and Performance Parameters | J12: Net Capacity Factor (%) | K12: TRG 1 | L12: =L167 -> 0.476608554 | O12: Basis Year: | Q12: 2016
K13: TRG 2 | L13: =L170 -> 0.4651066637
K14: TRG 3 | L14: =L173 -> 0.4532743609 | O14: Land-Based Wind Techno-Resource Groups (TRG)
K15: TRG 4 | L15: =L176 -> 0.4389629858 | O15: Techno-Resource Group (TRG) | P15: Wind Speed Range (m/s) | Q15: Weighted Average Wind Speed (m/s) | R15: Weighted Average CAPEX ($/kW) | S15: Weighted Average OPEX ($/kW/yr) | T15: Weighted Average Net CF (%) | U15: Potential Wind Plant Capacity (GW) | V15: Potential Wind Plant Energy (TWh)
K16: TRG 5 | L16: =L179 -> 0.4116860434
K17: TRG 6 | L17: =L182 -> 0.3688891214 | O17: TRG1 | P17: 8.2 - 13.5 | Q17: 8.74395513 | R17: 1572.652722 | S17: 51 | T17: 0.473521712 | U17: 99.795 | V17: 413.9546694
K18: TRG 7 | L18: =L185 -> 0.3135972322 | O18: TRG2 | P18: 8.0 - 10.9 | Q18: 8.352409416 | R18: 1592.053935 | S18: 51 | T18: 0.4619642272 | U18: 200.08998 | V18: 809.7254578
K19: TRG 8 | L19: =L188 -> 0.2504514272 | O19: TRG3 | P19: 7.7 - 11.1 | Q19: 8.157716613 | R19: 1598.919076 | S19: 51 | T19: 0.4496939365 | U19: 400.00164 | V19: 1575.734014
K20: TRG 9 | L20: =L191 -> 0.1874230031 | O20: TRG4 | P20: 7.5 - 13.1 | Q20: 7.929743215 | R20: 1605.166697 | S20: 51 | T20: 0.4352229703 | U20: 800.10894 | V20: 3050.457915
K21: TRG 10 | L21: =L194 -> 0.1145815861 | O21: TRG5 | P21: 6.9 - 11.1 | Q21: 7.512173639 | R21: 1615.720396 | S21: 51 | T21: 0.4073064995 | U21: 1599.68424 | V21: 5707.681264
O22: TRG6 | P22: 6.1 - 9.4 | Q22: 6.909267637 | R22: 1641.985248 | S22: 51 | T22: 0.36366572 | U22: 1600.20318 | V22: 5097.786004
J23: Annual Energy Production (kWh/kW) | K23: TRG 1 | L23: =(L12)*8760 -> 4175.090933 | O23: TRG7 | P23: 5.4 - 8.3 | Q23: 6.18657122 | R23: 1677.874701 | S23: 51 | T23: 0.3081779447 | U23: 1600.07226 | V23: 4319.617148
K24: TRG 2 | L24: =(L13)*8760 -> 4074.334374 | O24: TRG8 | P24: 4.7 - 6.9 | Q24: 5.476750039 | R24: 1707.966532 | S24: 51 | T24: 0.2456560194 | U24: 1600.03692 | V24: 3443.194218
K25: TRG 3 | L25: 3970.683402 | O25: TRG9 | P25: 4.0 - 6.0 | Q25: 4.792356022 | R25: 1713.146077 | S25: 51 | T25: 0.1825154944 | U25: 1599.63966 | V25: 2557.561045
K26: TRG 4 | L26: 3845.315756 | O26: TRG10 | P26: 1.0 - 5.3 | Q26: 4.017447322 | R26: 1713.14985 | S26: 51 | T26: 0.1110495503 | U26: 1147.51176 | V26: 1116.292625
K27: TRG 5 | L27: 3606.36974 | O27: Total | U27: =ROUNDUP(10647.14358,0) -> 10648 | V27: 28092.00436
K28: TRG 6 | L28: 3231.468704
K29: TRG 7 | L29: 2747.111754 | O29: Financial Assumptions (2016)
K30: TRG 8 | L30: 2193.954502 | O30: Inflation Rate | S30: =L389 -> 0.025
K31: TRG 9 | L31: 1641.825507 | O31: Capital Recovery Period (Years) | S31: 30
K32: TRG 10 | L32: 1003.734695 | O32: Interest Rate Nominal - Mid | S32: =L391 -> 0.0373
O33: Calculated Interest Rate Real - Mid | S33: =L394 -> 0.012
J34: CAPEX ($/kW) | K34: TRG 1 | L34: =$S$42 * (L56 + L102) -> 1528.782679 | O34: Interest During Construction - Nominal | S34: =S32 -> 0.0373
K35: TRG 2 | L35: =$S$42 * (L57 + L103) -> 1548.810284 | O35: Rate of Return on Equity Nominal - Mid | S35: =L398 -> 0.0903
K36: TRG 3 | L36: =$S$42 * (L58 + L104) -> 1559.254828 | O36: Calculated Rate of Return on Equity Real - Mid | S36: =L401 -> 0.06370731707
K37: TRG 4 | L37: 1567.411076 | O37: Debt Fraction - Mid | S37: =L404 -> 0.6
K38: TRG 5 | L38: 1584.710696 | O38: Tax Rate (Federal and State) | S38: =L406 -> 0.2574
K39: TRG 6 | L39: 1622.356773 | O39: WACC Nominal - Mid | S39: =L408 -> 0.052739388
K40: TRG 7 | L40: 1668.587438 | O40: WACC Real - Mid | S40: =L411 -> 0.02706281756
K41: TRG 8 | L41: 1705.056756 | O41: Depreciation Period | S41: 5
K42: TRG 9 | L42: 1734.742353 | O42: Construction Finance Factor | S42: =SUMPRODUCT(P51:P53,Q51:Q53) -> 1.022291175
K43: TRG 10 | L43: 1751.107599 | O43: Present Value of Depreciation | S43: =SUMPRODUCT(O56:T56,O58:T58) -> 0.8684887286
O44: Project Finance Factor | S44: =(1 - S38 * S43) / (1 - S38) -> 1.045584435
J45: Construction Financing Cost ($/kW) | K45: TRG 1 | L45: =(L56+L102)*($S$42-1) -> 33.33527935 | O45: Capital Recovery Factor (CRF) Nominal - Mid | S45: =L414 -> 0.06709677801
K46: TRG 2 | L46: =(L57+L103)*($S$42-1) -> 33.77198353 | O46: Capital Recovery Factor (CRF) Real - Mid | S46: =L417 -> 0.04910140114
K47: TRG 3 | L47: =(L58+L104)*($S$42-1) -> 33.999728
K48: TRG 4 | L48: 34.17757591 | O48: Construction Duration yrs | Q48: 3
K49: TRG 5 | L49: 34.55479608 | O49: Year | P49: Capital | Q49: Accumulated
K50: TRG 6 | L50: 35.37567305 | O50: Index | P50: Fraction | Q50: Interest
K51: TRG 7 | L51: 36.38373793 | O51: 0 | P51: 0.8 | Q51: =1+(1-S38)*((1+S34)^(O51+0.5)-1) -> 1.013722697
K52: TRG 8 | L52: 37.17895553 | O52: 1 | P52: 0.1 | Q52: =1+(1-S38)*((1+S34)^(O52+0.5)-1) -> 1.041933534
K53: TRG 9 | L53: 37.82625335 | O53: 2 | P53: 0.1 | Q53: =1+(1-S38)*((1+S34)^(O53+0.5)-1) -> 1.071196635
K54: TRG 10 | L54: 38.18309939
N55: MACRS yr | O55: 1 | P55: 2 | Q55: 3 | R55: 4 | S55: 5 | T55: 6
J56: Overnight Capital Cost (OCC) ($/kW) | K56: TRG 1 | L56: =L295 -> 1495.4474 | N56: Depreciation | O56: 0.2 | P56: 0.32 | Q56: 0.192 | R56: 0.1152 | S56: 0.1152 | T56: 0.0576
K57: TRG 2 | L57: =L298 -> 1515.0383 | N57: Fraction
K58: TRG 3 | L58: =L301 -> 1525.2551 | N58: Depreciation | O58: =1/((1+S40)*(1+S30))^O55 -> 0.9499027123 | P58: =1/((1+S40)*(1+S30))^P55 -> 0.9023151628 | Q58: =1/((1+S40)*(1+S30))^Q55 -> 0.8571116205 | R58: =1/((1+S40)*(1+S30))^R55 -> 0.8141726531 | S58: =1/((1+S40)*(1+S30))^S55 -> 0.7733848114 | T58: =1/((1+S40)*(1+S30))^T55 -> 0.73464033
K59: TRG 4 | L59: =L304 -> 1533.2335 | N59: Factor
K60: TRG 5 | L60: =L307 -> 1550.1559
K61: TRG 6 | L61: =L310 -> 1586.9811
K62: TRG 7 | L62: =L313 -> 1632.2037
K63: TRG 8 | L63: =L316 -> 1667.8778
K64: TRG 9 | L64: =L319 -> 1696.9161
K65: TRG 10 | L65: =L322 -> 1712.9245
J67: Fixed Operation and Maintenance Expenses ($/kW-year) | K67: TRG 1 | L67: =L327 -> 51.3309867
K68: TRG 2 | L68: =L330 -> 51.3309867
K69: TRG 3 | L69: =L333 -> 51.3309867
K70: TRG 4 | L70: =L336 -> 51.3309867
K71: TRG 5 | L71: =L339 -> 51.3309867
K72: TRG 6 | L72: =L342 -> 51.3309867
K73: TRG 7 | L73: =L345 -> 51.3309867
K74: TRG 8 | L74: =L348 -> 51.3309867
K75: TRG 9 | L75: =L351 -> 51.3309867
K76: TRG 10 | L76: =L354 -> 51.3309867
J78: Variable Operation and Maintenance Expenses ($/MWh) | K78: TRG 1 | L78: =L359 -> 0
K79: TRG 2 | L79: =L362 -> 0
K80: TRG 3 | L80: =L365 -> 0
K81: TRG 4 | L81: =L368 -> 0
K82: TRG 5 | L82: =L371 -> 0
K83: TRG 6 | L83: =L374 -> 0
K84: TRG 7 | L84: =L377 -> 0
K85: TRG 8 | L85: =L380 -> 0
K86: TRG 9 | L86: =L383 -> 0
K87: TRG 10 | L87: =L386 -> 0
H90: Finance | J90: Weighted Average Cost of Capital (WACC) (Nominal) (%) | K90: TRG 1 | L90: =L423 -> 0.052739388
K91: TRG 2 | L91: =L426 -> 0.052739388
K92: TRG 3 | L92: =L429 -> 0.052739388
K93: TRG 4 | L93: =L432 -> 0.052739388
K94: TRG 5 | L94: =L435 -> 0.052739388
K95: TRG 6 | L95: =L438 -> 0.052739388
K96: TRG 7 | L96: =L441 -> 0.052739388
K97: TRG 8 | L97: =L444 -> 0.052739388
K98: TRG 9 | L98: =L447 -> 0.052739388
K99: TRG 10 | L99: =L450 -> 0.052739388
H102: Grid Connection Costs | J102: Grid Connection Costs (GCC) ($/kW) | K102: TRG 1 | L102: =L113+L124 -> 0
K103: TRG 2 | L103: =L114+L125 -> 0
K104: TRG 3 | L104: 0
K105: TRG 4 | L105: 0
K106: TRG 5 | L106: 0
K107: TRG 6 | L107: 0
K108: TRG 7 | L108: 0
K109: TRG 8 | L109: 0
K110: TRG 9 | L110: 0
K111: TRG 10 | L111: 0
J113: Grid Feature Costs ($/kW) | K113: TRG 1 | L113: 0
K114: TRG 2 | L114: 0
K115: TRG 3 | L115: 0
K116: TRG 4 | L116: 0
K117: TRG 5 | L117: 0
K118: TRG 6 | L118: 0
K119: TRG 7 | L119: 0
K120: TRG 8 | L120: 0
K121: TRG 9 | L121: 0
K122: TRG 10 | L122: 0
J124: Onshore Spur Line Costs ($/kW) | K124: TRG 1 | L124: 0
K125: TRG 2 | L125: 0
K126: TRG 3 | L126: 0
K127: TRG 4 | L127: 0
K128: TRG 5 | L128: 0
K129: TRG 6 | L129: 0
K130: TRG 7 | L130: 0
K131: TRG 8 | L131: 0
K132: TRG 9 | L132: 0
K133: TRG 10 | L133: 0
H136: LCOE | J136: Levelized Cost of Energy ($/MWh) | K136: TRG 1 | L136: =L489 -> 36.94557907
K137: TRG 2 | L137: =L492 -> 38.19015063
K138: TRG 3 | L138: =L495 -> 39.36415261
K139: TRG 4 | L139: =L498 -> 40.79032501
K140: TRG 5 | L140: =L501 -> 43.81589513
K141: TRG 6 | L141: =L504 -> 49.68351202
K142: TRG 7 | L142: =L507 -> 59.57640361
K143: TRG 8 | L143: =L510 -> 75.71634368
K144: TRG 9 | L144: =L513 -> 102.396202
K145: TRG 10 | L145: =L516 -> 168.588804
J147: Overnight Levelized Cost of Energy ($/MWh) | K147: TRG 1 | L147: =(((L56*$S$46*(1-$S$38*$S$43))/(8760*L12*(1-$S$38))+L67/(8760*L12))*1000)+L78 -> 30.68358293 | M147: * this is similar to the LCOE used in the TCDB (Transparent Cost Database)
K148: TRG 2 | L148: 31.6892349
K149: TRG 3 | L149: 32.64855265
K150: TRG 4 | L150: 33.81950474
K151: TRG 5 | L151: 36.30117657
K152: TRG 6 | L152: 41.09773919
K153: TRG 7 | L153: 49.18903308
K154: TRG 8 | L154: 62.42575541
K155: TRG 9 | L155: 84.32691718
K156: TRG 10 | L156: 138.7537466
H159: ***Note: For future projections, low, mid, and high refer to the resulting low, mid, and high LCOE projections.
J161: High
D162: X | G162: Future Projections
L163: Basis Year
L164: 2016 | M164: 2017 | N164: 2018 | O164: 2019 | P164: 2020 | Q164: 2021 | R164: 2022 | S164: 2023 | T164: 2024 | U164: 2025 | V164: 2026 | W164: 2027 | X164: 2028 | Y164: 2029 | Z164: 2030 | AA164: 2031 | AB164: 2032 | AC164: 2033 | AD164: 2034 | AE164: 2035 | AF164: 2036 | AG164: 2037 | AH164: 2038 | AI164: 2039 | AJ164: 2040 | AK164: 2041 | AL164: 2042 | AM164: 2043 | AN164: 2044 | AO164: 2045 | AP164: 2046 | AQ164: 2047 | AR164: 2048 | AS164: 2049 | AT164: 2050
H165: Techno-Economic Cost and Performance Parameters | J165: Net Capacity Factor (%) | K165: TRG 1 - Low | L165: 0.476608554 | M165: 0.485319535 | N165: 0.4909624326 | O165: 0.4964346538 | P165: 0.5017361986 | Q165: 0.5068670669 | R165: 0.5118272587 | S165: 0.5166167741 | T165: 0.5212356131 | U165: 0.5256837756 | V165: 0.5299612616 | W165: 0.5340680712 | X165: 0.5380042044 | Y165: 0.541769661 | Z165: 0.5453644413 | AA165: 0.548788545 | AB165: 0.5520419724 | AC165: 0.5551247232 | AD165: 0.5580367977 | AE165: 0.5607781956 | AF165: 0.5633489172 | AG165: 0.5657489622 | AH165: 0.5679783308 | AI165: 0.570037023 | AJ165: 0.5719250387 | AK165: 0.5736423779 | AL165: 0.5751890407 | AM165: 0.5765650271 | AN165: 0.577770337 | AO165: 0.5788049704 | AP165: 0.5796689274 | AQ165: 0.580362208 | AR165: 0.580884812 | AS165: 0.5812367397 | AT165: 0.5814179909
K166: TRG 1 - Mid | L166: 0.476608554 | M166: 0.4796375804 | N166: 0.4826087905 | O166: 0.4855221842 | P166: 0.4883777617 | Q166: 0.4911755228 | R166: 0.4939154677 | S166: 0.4965975962 | T166: 0.4992219085 | U166: 0.5017884044 | V166: 0.5042970841 | W166: 0.5067479475 | X166: 0.5091409945 | Y166: 0.5114762253 | Z166: 0.5137536397 | AA166: 0.5159732379 | AB166: 0.5181350198 | AC166: 0.5202389853 | AD166: 0.5222851346 | AE166: 0.5242734675 | AF166: 0.5262039842 | AG166: 0.5280766846 | AH166: 0.5298915686 | AI166: 0.5316486364 | AJ166: 0.5333478879 | AK166: 0.534989323 | AL166: 0.5365729419 | AM166: 0.5380987445 | AN166: 0.5395667307 | AO166: 0.5409769007 | AP166: 0.5423292544 | AQ166: 0.5436237917 | AR166: 0.5448605128 | AS166: 0.5460394176 | AT166: 0.5471605061
K167: TRG 1 - Constant | L167: 0.476608554 | M167: 0.473521712 | N167: 0.473521712 | O167: 0.473521712 | P167: 0.473521712 | Q167: 0.473521712 | R167: 0.473521712 | S167: 0.473521712 | T167: 0.473521712 | U167: 0.473521712 | V167: 0.473521712 | W167: 0.473521712 | X167: 0.473521712 | Y167: 0.473521712 | Z167: 0.473521712 | AA167: 0.473521712 | AB167: 0.473521712 | AC167: 0.473521712 | AD167: 0.473521712 | AE167: 0.473521712 | AF167: 0.473521712 | AG167: 0.473521712 | AH167: 0.473521712 | AI167: 0.473521712 | AJ167: 0.473521712 | AK167: 0.473521712 | AL167: 0.473521712 | AM167: 0.473521712 | AN167: 0.473521712 | AO167: 0.473521712 | AP167: 0.473521712 | AQ167: 0.473521712 | AR167: 0.473521712 | AS167: 0.473521712 | AT167: 0.473521712
K168: TRG 2 - Low | L168: 0.4651066637 | M168: 0.4739745305 | N168: 0.4797190574 | O168: 0.485289834 | P168: 0.4906868603 | Q168: 0.4959101362 | R168: 0.5009596617 | S168: 0.5058354368 | T168: 0.5105374617 | U168: 0.5150657361 | V168: 0.5194202602 | W168: 0.523601034 | X168: 0.5276080573 | Y168: 0.5314413304 | Z168: 0.535100853 | AA168: 0.5385866253 | AB168: 0.5418986473 | AC168: 0.5450369189 | AD168: 0.5480014401 | AE168: 0.550792211 | AF168: 0.5534092316 | AG168: 0.5558525017 | AH168: 0.5581220216 | AI168: 0.560217791 | AJ168: 0.5621398101 | AK168: 0.5638880789 | AL168: 0.5654625973 | AM168: 0.5668633653 | AN168: 0.568090383 | AO168: 0.5691436503 | AP168: 0.5700231673 | AQ168: 0.5707289339 | AR168: 0.5712609501 | AS168: 0.571619216 | AT168: 0.5718037315
K169: TRG 2 - Mid | L169: 0.4651066637 | M169: 0.4681902432 | N169: 0.4712149651 | O169: 0.4741808295 | P169: 0.4770878362 | Q169: 0.4799359854 | R169: 0.482725277 | S169: 0.485455711 | T169: 0.4881272875 | U169: 0.4907400064 | V169: 0.4932938676 | W169: 0.4957888714 | X169: 0.4982250175 | Y169: 0.5006023061 | Z169: 0.502920737 | AA169: 0.5051803104 | AB169: 0.5073810263 | AC169: 0.5095228845 | AD169: 0.5116058852 | AE169: 0.5136300282 | AF169: 0.5155953138 | AG169: 0.5175017417 | AH169: 0.519349312 | AI169: 0.5211380248 | AJ169: 0.52286788 | AK169: 0.5245388776 | AL169: 0.5261510177 | AM169: 0.5277043001 | AN169: 0.529198725 | AO169: 0.5306342923 | AP169: 0.532011002 | AQ169: 0.5333288542 | AR169: 0.5345878488 | AS169: 0.5357879858 | AT169: 0.5369292652
K170: TRG 2 - Constant | L170: 0.4651066637 | M170: 0.4619642272 | N170: 0.4619642272 | O170: 0.4619642272 | P170: 0.4619642272 | Q170: 0.4619642272 | R170: 0.4619642272 | S170: 0.4619642272 | T170: 0.4619642272 | U170: 0.4619642272 | V170: 0.4619642272 | W170: 0.4619642272 | X170: 0.4619642272 | Y170: 0.4619642272 | Z170: 0.4619642272 | AA170: 0.4619642272 | AB170: 0.4619642272 | AC170: 0.4619642272 | AD170: 0.4619642272 | AE170: 0.4619642272 | AF170: 0.4619642272 | AG170: 0.4619642272 | AH170: 0.4619642272 | AI170: 0.4619642272 | AJ170: 0.4619642272 | AK170: 0.4619642272 | AL170: 0.4619642272 | AM170: 0.4619642272 | AN170: 0.4619642272 | AO170: 0.4619642272 | AP170: 0.4619642272 | AQ170: 0.4619642272 | AR170: 0.4619642272 | AS170: 0.4619642272 | AT170: 0.4619642272
K171: TRG 3 - Low | L171: 0.4532743609 | M171: 0.4633782173 | N171: 0.4699234076 | O171: 0.4762706305 | P171: 0.482419886 | Q171: 0.488371174 | R171: 0.4941244947 | S171: 0.4996798479 | T171: 0.5050372337 | U171: 0.5101966521 | V171: 0.5151581031 | W171: 0.5199215866 | X171: 0.5244871028 | Y171: 0.5288546515 | Z171: 0.5330242328 | AA171: 0.5369958467 | AB171: 0.5407694932 | AC171: 0.5443451723 | AD171: 0.5477228839 | AE171: 0.5509026282 | AF171: 0.553884405 | AG171: 0.5566682144 | AH171: 0.5592540564 | AI171: 0.561641931 | AJ171: 0.5638318382 | AK171: 0.565823778 | AL171: 0.5676177503 | AM171: 0.5692137552 | AN171: 0.5706117928 | AO171: 0.5718118629 | AP171: 0.5728139655 | AQ171: 0.5736181008 | AR171: 0.5742242687 | AS171: 0.5746324691 | AT171: 0.5748427022
K172: TRG 3 - Mid | L172: 0.4532743609 | M172: 0.456787725 | N172: 0.460234028 | O172: 0.4636132699 | P172: 0.4669254508 | Q172: 0.4701705707 | R172: 0.4733486295 | S172: 0.4764596272 | T172: 0.4795035639 | U172: 0.4824804395 | V172: 0.485390254 | W172: 0.4882330075 | X172: 0.4910087 | Y172: 0.4937173313 | Z172: 0.4963589017 | AA172: 0.4989334109 | AB172: 0.5014408592 | AC172: 0.5038812463 | AD172: 0.5062545724 | AE172: 0.5085608374 | AF172: 0.5108000414 | AG172: 0.5129721844 | AH172: 0.5150772662 | AI172: 0.517115287 | AJ172: 0.5190862468 | AK172: 0.5209901455 | AL172: 0.5228269831 | AM172: 0.5245967597 | AN172: 0.5262994753 | AO172: 0.5279351297 | AP172: 0.5295037231 | AQ172: 0.5310052555 | AR172: 0.5324397268 | AS172: 0.533807137 | AT172: 0.5351074862
K173: TRG 3 - Constant | L173: 0.4532743609 | M173: 0.4496939365 | N173: 0.4496939365 | O173: 0.4496939365 | P173: 0.4496939365 | Q173: 0.4496939365 | R173: 0.4496939365 | S173: 0.4496939365 | T173: 0.4496939365 | U173: 0.4496939365 | V173: 0.4496939365 | W173: 0.4496939365 | X173: 0.4496939365 | Y173: 0.4496939365 | Z173: 0.4496939365 | AA173: 0.4496939365 | AB173: 0.4496939365 | AC173: 0.4496939365 | AD173: 0.4496939365 | AE173: 0.4496939365 | AF173: 0.4496939365 | AG173: 0.4496939365 | AH173: 0.4496939365 | AI173: 0.4496939365 | AJ173: 0.4496939365 | AK173: 0.4496939365 | AL173: 0.4496939365 | AM173: 0.4496939365 | AN173: 0.4496939365 | AO173: 0.4496939365 | AP173: 0.4496939365 | AQ173: 0.4496939365 | AR173: 0.4496939365 | AS173: 0.4496939365 | AT173: 0.4496939365
K174: TRG 4 - Low | L174: 0.4389629858 | M174: 0.4495172039 | N174: 0.4563541345 | O174: 0.4629842737 | P174: 0.4694076214 | Q174: 0.4756241776 | R174: 0.4816339424 | S174: 0.4874369157 | T174: 0.4930330975 | U174: 0.4984224879 | V174: 0.5036050868 | W174: 0.5085808943 | X174: 0.5133499103 | Y174: 0.5179121348 | Z174: 0.5222675679 | AA174: 0.5264162095 | AB174: 0.5303580596 | AC174: 0.5340931183 | AD174: 0.5376213855 | AE174: 0.5409428613 | AF174: 0.5440575455 | AG174: 0.5469654384 | AH174: 0.5496665397 | AI174: 0.5521608496 | AJ174: 0.554448368 | AK174: 0.556529095 | AL174: 0.5584030305 | AM174: 0.5600701746 | AN174: 0.5615305271 | AO174: 0.5627840883 | AP174: 0.5638308579 | AQ174: 0.5646708361 | AR174: 0.5653040228 | AS174: 0.5657304181 | AT174: 0.5659500219
K175: TRG 4 - Mid | L175: 0.4389629858 | M175: 0.4426329519 | N175: 0.4462328678 | O175: 0.4497627335 | P175: 0.4532225491 | Q175: 0.4566123144 | R175: 0.4599320296 | S175: 0.4631816945 | T175: 0.4663613093 | U175: 0.4694708739 | V175: 0.4725103883 | W175: 0.4754798526 | X175: 0.4783792666 | Y175: 0.4812086305 | Z175: 0.4839679441 | AA175: 0.4866572076 | AB175: 0.4892764209 | AC175: 0.4918255841 | AD175: 0.494304697 | AE175: 0.4967137597 | AF175: 0.4990527723 | AG175: 0.5013217347 | AH175: 0.5035206469 | AI175: 0.5056495089 | AJ175: 0.5077083207 | AK175: 0.5096970823 | AL175: 0.5116157937 | AM175: 0.513464455 | AN175: 0.5152430661 | AO175: 0.516951627 | AP175: 0.5185901377 | AQ175: 0.5201585982 | AR175: 0.5216570085 | AS175: 0.5230853687 | AT175: 0.5244436786
K176: TRG 4 - Constant | L176: 0.4389629858 | M176: 0.4352229703 | N176: 0.4352229703 | O176: 0.4352229703 | P176: 0.4352229703 | Q176: 0.4352229703 | R176: 0.4352229703 | S176: 0.4352229703 | T176: 0.4352229703 | U176: 0.4352229703 | V176: 0.4352229703 | W176: 0.4352229703 | X176: 0.4352229703 | Y176: 0.4352229703 | Z176: 0.4352229703 | AA176: 0.4352229703 | AB176: 0.4352229703 | AC176: 0.4352229703 | AD176: 0.4352229703 | AE176: 0.4352229703 | AF176: 0.4352229703 | AG176: 0.4352229703 | AH176: 0.4352229703 | AI176: 0.4352229703 | AJ176: 0.4352229703 | AK176: 0.4352229703 | AL176: 0.4352229703 | AM176: 0.4352229703 | AN176: 0.4352229703 | AO176: 0.4352229703 | AP176: 0.4352229703 | AQ176: 0.4352229703 | AR176: 0.4352229703 | AS176: 0.4352229703 | AT176: 0.4352229703
K177: TRG 5 - Low | L177: 0.4116860434 | M177: 0.4240449923 | N177: 0.4320510119 | O177: 0.4398148794 | P177: 0.447336595 | Q177: 0.4546161585 | R177: 0.4616535701 | S177: 0.4684488296 | T177: 0.4750019371 | U177: 0.4813128926 | V177: 0.4873816961 | W177: 0.4932083476 | X177: 0.498792847 | Y177: 0.5041351945 | Z177: 0.5092353899 | AA177: 0.5140934333 | AB177: 0.5187093247 | AC177: 0.5230830641 | AD177: 0.5272146515 | AE177: 0.5311040869 | AF177: 0.5347513703 | AG177: 0.5381565016 | AH177: 0.541319481 | AI177: 0.5442403083 | AJ177: 0.5469189836 | AK177: 0.549355507 | AL177: 0.5515498782 | AM177: 0.5535020975 | AN177: 0.5552121648 | AO177: 0.5566800801 | AP177: 0.5579058433 | AQ177: 0.5588894546 | AR177: 0.5596309138 | AS177: 0.560130221 | AT177: 0.5603873762
K178: TRG 5 - Mid | L178: 0.4116860434 | M178: 0.4159835596 | N178: 0.4201990474 | O178: 0.4243325066 | P178: 0.4283839373 | Q178: 0.4323533396 | R178: 0.4362407133 | S178: 0.4400460585 | T178: 0.4437693753 | U178: 0.4474106635 | V178: 0.4509699232 | W178: 0.4544471545 | X178: 0.4578423572 | Y178: 0.4611555315 | Z178: 0.4643866772 | AA178: 0.4675357945 | AB178: 0.4706028832 | AC178: 0.4735879434 | AD178: 0.4764909752 | AE178: 0.4793119784 | AF178: 0.4820509532 | AG178: 0.4847078994 | AH178: 0.4872828172 | AI178: 0.4897757064 | AJ178: 0.4921865672 | AK178: 0.4945153994 | AL178: 0.4967622032 | AM178: 0.4989269785 | AN178: 0.5010097252 | AO178: 0.5030104435 | AP178: 0.5049291332 | AQ178: 0.5067657945 | AR178: 0.5085204272 | AS178: 0.5101930315 | AT178: 0.5117836073
K179: TRG 5 - Constant | L179: 0.4116860434 | M179: 0.4073064995 | N179: 0.4073064995 | O179: 0.4073064995 | P179: 0.4073064995 | Q179: 0.4073064995 | R179: 0.4073064995 | S179: 0.4073064995 | T179: 0.4073064995 | U179: 0.4073064995 | V179: 0.4073064995 | W179: 0.4073064995 | X179: 0.4073064995 | Y179: 0.4073064995 | Z179: 0.4073064995 | AA179: 0.4073064995 | AB179: 0.4073064995 | AC179: 0.4073064995 | AD179: 0.4073064995 | AE179: 0.4073064995 | AF179: 0.4073064995 | AG179: 0.4073064995 | AH179: 0.4073064995 | AI179: 0.4073064995 | AJ179: 0.4073064995 | AK179: 0.4073064995 | AL179: 0.4073064995 | AM179: 0.4073064995 | AN179: 0.4073064995 | AO179: 0.4073064995 | AP179: 0.4073064995 | AQ179: 0.4073064995 | AR179: 0.4073064995 | AS179: 0.4073064995 | AT179: 0.4073064995
K180: TRG 6 - Low | L180: 0.3688891214 | M180: 0.3836294123 | N180: 0.3931780445 | O180: 0.4024378665 | P180: 0.4114088782 | Q180: 0.4200910796 | R180: 0.4284844709 | S180: 0.4365890518 | T180: 0.4444048226 | U180: 0.451931783 | V180: 0.4591699333 | W180: 0.4661192732 | X180: 0.472779803 | Y180: 0.4791515225 | Z180: 0.4852344317 | AA180: 0.4910285307 | AB180: 0.4965338194 | AC180: 0.5017502979 | AD180: 0.5066779662 | AE180: 0.5113168241 | AF180: 0.5156668719 | AG180: 0.5197281094 | AH180: 0.5235005367 | AI180: 0.5269841537 | AJ180: 0.5301789604 | AK180: 0.5330849569 | AL180: 0.5357021432 | AM180: 0.5380305192 | AN180: 0.540070085 | AO180: 0.5418208405 | AP180: 0.5432827858 | AQ180: 0.5444559208 | AR180: 0.5453402456 | AS180: 0.5459357601 | AT180: 0.5462424644
K181: TRG 6 - Mid | L181: 0.3688891214 | M181: 0.3740146899 | N181: 0.3790424246 | O181: 0.3839723253 | P181: 0.3888043922 | Q181: 0.3935386252 | R181: 0.3981750243 | S181: 0.4027135895 | T181: 0.4071543209 | U181: 0.4114972183 | V181: 0.4157422819 | W181: 0.4198895116 | X181: 0.4239389074 | Y181: 0.4278904694 | Z181: 0.4317441975 | AA181: 0.4355000916 | AB181: 0.4391581519 | AC181: 0.4427183784 | AD181: 0.4461807709 | AE181: 0.4495453295 | AF181: 0.4528120543 | AG181: 0.4559809452 | AH181: 0.4590520022 | AI181: 0.4620252254 | AJ181: 0.4649006146 | AK181: 0.46767817 | AL181: 0.4703578915 | AM181: 0.4729397791 | AN181: 0.4754238328 | AO181: 0.4778100526 | AP181: 0.4800984386 | AQ181: 0.4822889907 | AR181: 0.4843817089 | AS181: 0.4863765932 | AT181: 0.4882736436
K182: TRG 6 - Constant | L182: 0.3688891214 | M182: 0.36366572 | N182: 0.36366572 | O182: 0.36366572 | P182: 0.36366572 | Q182: 0.36366572 | R182: 0.36366572 | S182: 0.36366572 | T182: 0.36366572 | U182: 0.36366572 | V182: 0.36366572 | W182: 0.36366572 | X182: 0.36366572 | Y182: 0.36366572 | Z182: 0.36366572 | AA182: 0.36366572 | AB182: 0.36366572 | AC182: 0.36366572 | AD182: 0.36366572 | AE182: 0.36366572 | AF182: 0.36366572 | AG182: 0.36366572 | AH182: 0.36366572 | AI182: 0.36366572 | AJ182: 0.36366572 | AK182: 0.36366572 | AL182: 0.36366572 | AM182: 0.36366572 | AN182: 0.36366572 | AO182: 0.36366572 | AP182: 0.36366572 | AQ182: 0.36366572 | AR182: 0.36366572 | AS182: 0.36366572 | AT182: 0.36366572
K183: TRG 7 - Low | L183: 0.3135972322 | M183: 0.3288903081 | N183: 0.3387970297 | O183: 0.3484041102 | P183: 0.3577115495 | Q183: 0.3667193478 | R183: 0.3754275049 | S183: 0.383836021 | T183: 0.3919448959 | U183: 0.3997541297 | V183: 0.4072637224 | W183: 0.4144736741 | X183: 0.4213839846 | Y183: 0.427994654 | Z183: 0.4343056823 | AA183: 0.4403170695 | AB183: 0.4460288156 | AC183: 0.4514409206 | AD183: 0.4565533844 | AE183: 0.4613662072 | AF183: 0.4658793889 | AG183: 0.4700929294 | AH183: 0.4740068289 | AI183: 0.4776210873 | AJ183: 0.4809357045 | AK183: 0.4839506806 | AL183: 0.4866660157 | AM183: 0.4890817096 | AN183: 0.4911977624 | AO183: 0.4930141742 | AP183: 0.4945309448 | AQ183: 0.4957480743 | AR183: 0.4966655627 | AS183: 0.49728341 | AT183: 0.4976016162
K184: TRG 7 - Mid | L184: 0.3135972322 | M184: 0.3189150179 | N184: 0.3241313008 | O184: 0.329246081 | P184: 0.3342593583 | Q184: 0.3391711327 | R184: 0.3439814044 | S184: 0.3486901733 | T184: 0.3532974393 | U184: 0.3578032026 | V184: 0.362207463 | W184: 0.3665102206 | X184: 0.3707114754 | Y184: 0.3748112274 | Z184: 0.3788094766 | AA184: 0.382706223 | AB184: 0.3865014665 | AC184: 0.3901952073 | AD184: 0.3937874452 | AE184: 0.3972781803 | AF184: 0.4006674126 | AG184: 0.4039551421 | AH184: 0.4071413688 | AI184: 0.4102260927 | AJ184: 0.4132093137 | AK184: 0.416091032 | AL184: 0.4188712474 | AM184: 0.42154996 | AN184: 0.4241271699 | AO184: 0.4266028769 | AP184: 0.428977081 | AQ184: 0.4312497824 | AR184: 0.433420981 | AS184: 0.4354906767 | AT184: 0.4374588697
K185: TRG 7 - Constant | L185: 0.3135972322 | M185: 0.3081779447 | N185: 0.3081779447 | O185: 0.3081779447 | P185: 0.3081779447 | Q185: 0.3081779447 | R185: 0.3081779447 | S185: 0.3081779447 | T185: 0.3081779447 | U185: 0.3081779447 | V185: 0.3081779447 | W185: 0.3081779447 | X185: 0.3081779447 | Y185: 0.3081779447 | Z185: 0.3081779447 | AA185: 0.3081779447 | AB185: 0.3081779447 | AC185: 0.3081779447 | AD185: 0.3081779447 | AE185: 0.3081779447 | AF185: 0.3081779447 | AG185: 0.3081779447 | AH185: 0.3081779447 | AI185: 0.3081779447 | AJ185: 0.3081779447 | AK185: 0.3081779447 | AL185: 0.3081779447 | AM185: 0.3081779447 | AN185: 0.3081779447 | AO185: 0.3081779447 | AP185: 0.3081779447 | AQ185: 0.3081779447 | AR185: 0.3081779447 | AS185: 0.3081779447 | AT185: 0.3081779447
K186: TRG 8 - Low | L186: 0.2504514272 | M186: 0.263983932 | N186: 0.2727501709 | O186: 0.281251264 | P186: 0.2894872114 | Q186: 0.2974580129 | R186: 0.3051636687 | S186: 0.3126041786 | T186: 0.3197795428 | U186: 0.3266897612 | V186: 0.3333348338 | W186: 0.3397147606 | X186: 0.3458295416 | Y186: 0.3516791768 | Z186: 0.3572636663 | AA186: 0.3625830099 | AB186: 0.3676372077 | AC186: 0.3724262598 | AD186: 0.3769501661 | AE186: 0.3812089266 | AF186: 0.3852025413 | AG186: 0.3889310101 | AH186: 0.3923943333 | AI186: 0.3955925106 | AJ186: 0.3985255421 | AK186: 0.4011934278 | AL186: 0.4035961678 | AM186: 0.4057337619 | AN186: 0.4076062103 | AO186: 0.4092135129 | AP186: 0.4105556697 | AQ186: 0.4116326807 | AR186: 0.4124445459 | AS186: 0.4129912653 | AT186: 0.4132728389
K187: TRG 8 - Mid | L187: 0.2504514272 | M187: 0.2551570182 | N187: 0.2597727917 | O187: 0.2642987475 | P187: 0.2687348858 | Q187: 0.2730812064 | R187: 0.2773377095 | S187: 0.281504395 | T187: 0.2855812629 | U187: 0.2895683131 | V187: 0.2934655458 | W187: 0.2972729609 | X187: 0.3009905584 | Y187: 0.3046183383 | Z187: 0.3081563007 | AA187: 0.3116044454 | AB187: 0.3149627725 | AC187: 0.318231282 | AD187: 0.321409974 | AE187: 0.3244988483 | AF187: 0.327497905 | AG187: 0.3304071442 | AH187: 0.3332265658 | AI187: 0.3359561697 | AJ187: 0.3385959561 | AK187: 0.3411459249 | AL187: 0.343606076 | AM187: 0.3459764096 | AN187: 0.3482569256 | AO187: 0.350447624 | AP187: 0.3525485048 | AQ187: 0.354559568 | AR187: 0.3564808136 | AS187: 0.3583122416 | AT187: 0.3600538521
K188: TRG 8 - Constant | L188: 0.2504514272 | M188: 0.2456560194 | N188: 0.2456560194 | O188: 0.2456560194 | P188: 0.2456560194 | Q188: 0.2456560194 | R188: 0.2456560194 | S188: 0.2456560194 | T188: 0.2456560194 | U188: 0.2456560194 | V188: 0.2456560194 | W188: 0.2456560194 | X188: 0.2456560194 | Y188: 0.2456560194 | Z188: 0.2456560194 | AA188: 0.2456560194 | AB188: 0.2456560194 | AC188: 0.2456560194 | AD188: 0.2456560194 | AE188: 0.2456560194 | AF188: 0.2456560194 | AG188: 0.2456560194 | AH188: 0.2456560194 | AI188: 0.2456560194 | AJ188: 0.2456560194 | AK188: 0.2456560194 | AL188: 0.2456560194 | AM188: 0.2456560194 | AN188: 0.2456560194 | AO188: 0.2456560194 | AP188: 0.2456560194 | AQ188: 0.2456560194 | AR188: 0.2456560194 | AS188: 0.2456560194 | AT188: 0.2456560194
K189: TRG 9 - Low | L189: 0.1874230031 | M189: 0.2012718539 | N189: 0.210243019 | O189: 0.21894284 | P189: 0.2273713169 | Q189: 0.2355284499 | R189: 0.2434142388 | S189: 0.2510286837 | T189: 0.2583717845 | U189: 0.2654435413 | V189: 0.2722439541 | W189: 0.2787730228 | X189: 0.2850307475 | Y189: 0.2910171281 | Z189: 0.2967321648 | AA189: 0.3021758574 | AB189: 0.3073482059 | AC189: 0.3122492104 | AD189: 0.3168788709 | AE189: 0.3212371873 | AF189: 0.3253241597 | AG189: 0.3291397881 | AH189: 0.3326840724 | AI189: 0.3359570127 | AJ189: 0.338958609 | AK189: 0.3416888612 | AL189: 0.3441477694 | AM189: 0.3463353336 | AN189: 0.3482515537 | AO189: 0.3498964298 | AP189: 0.3512699618 | AQ189: 0.3523721498 | AR189: 0.3532029938 | AS189: 0.3537624937 | AT189: 0.3540506496
K190: TRG 9 - Mid | L190: 0.1874230031 | M190: 0.1922385956 | N190: 0.1969622708 | O190: 0.2015940288 | P190: 0.2061338695 | Q190: 0.210581793 | R190: 0.2149377993 | S190: 0.2192018883 | T190: 0.2233740601 | U190: 0.2274543146 | V190: 0.2314426519 | W190: 0.235339072 | X190: 0.2391435748 | Y190: 0.2428561604 | Z190: 0.2464768288 | AA190: 0.2500055799 | AB190: 0.2534424138 | AC190: 0.2567873304 | AD190: 0.2600403298 | AE190: 0.263201412 | AF190: 0.2662705769 | AG190: 0.2692478246 | AH190: 0.2721331551 | AI190: 0.2749265683 | AJ190: 0.2776280643 | AK190: 0.280237643 | AL190: 0.2827553045 | AM190: 0.2851810488 | AN190: 0.2875148758 | AO190: 0.2897567856 | AP190: 0.2919067782 | AQ190: 0.2939648535 | AR190: 0.2959310116 | AS190: 0.2978052524 | AT190: 0.299587576
K191: TRG 9 - Constant | L191: 0.1874230031 | M191: 0.1825154944 | N191: 0.1825154944 | O191: 0.1825154944 | P191: 0.1825154944 | Q191: 0.1825154944 | R191: 0.1825154944 | S191: 0.1825154944 | T191: 0.1825154944 | U191: 0.1825154944 | V191: 0.1825154944 | W191: 0.1825154944 | X191: 0.1825154944 | Y191: 0.1825154944 | Z191: 0.1825154944 | AA191: 0.1825154944 | AB191: 0.1825154944 | AC191: 0.1825154944 | AD191: 0.1825154944 | AE191: 0.1825154944 | AF191: 0.1825154944 | AG191: 0.1825154944 | AH191: 0.1825154944 | AI191: 0.1825154944 | AJ191: 0.1825154944 | AK191: 0.1825154944 | AL191: 0.1825154944 | AM191: 0.1825154944 | AN191: 0.1825154944 | AO191: 0.1825154944 | AP191: 0.1825154944 | AQ191: 0.1825154944 | AR191: 0.1825154944 | AS191: 0.1825154944 | AT191: 0.1825154944
K192: TRG 10 - Low | L192: 0.1145815861 | M192: 0.1245488912 | N192: 0.1310056247 | O192: 0.1372670663 | P192: 0.143333216 | Q192: 0.1492040737 | R192: 0.1548796395 | S192: 0.1603599134 | T192: 0.1656448953 | U192: 0.1707345854 | V192: 0.1756289834 | W192: 0.1803280896 | X192: 0.1848319038 | Y192: 0.1891404261 | Z192: 0.1932536565 | AA192: 0.1971715949 | AB192: 0.2008942414 | AC192: 0.204421596 | AD192: 0.2077536587 | AE192: 0.2108904294 | AF192: 0.2138319082 | AG192: 0.216578095 | AH192: 0.21912899 | AI192: 0.221484593 | AJ192: 0.223644904 | AK192: 0.2256099232 | AL192: 0.2273796504 | AM192: 0.2289540857 | AN192: 0.230333229 | AO192: 0.2315170804 | AP192: 0.2325056399 | AQ192: 0.2332989075 | AR192: 0.2338968831 | AS192: 0.2342995668 | AT192: 0.2345069586
K193: TRG 10 - Mid | L193: 0.1145815861 | M193: 0.1180474679 | N193: 0.1214471949 | O193: 0.1247807672 | P193: 0.1280481847 | Q193: 0.1312494474 | R193: 0.1343845555 | S193: 0.1374535088 | T193: 0.1404563073 | U193: 0.1433929511 | V193: 0.1462634402 | W193: 0.1490677745 | X193: 0.1518059541 | Y193: 0.1544779789 | Z193: 0.157083849 | AA193: 0.1596235644 | AB193: 0.162097125 | AC193: 0.1645045309 | AD193: 0.166845782 | AE193: 0.1691208784 | AF193: 0.17132982 | AG193: 0.173472607 | AH193: 0.1755492391 | AI193: 0.1775597165 | AJ193: 0.1795040392 | AK193: 0.1813822071 | AL193: 0.1831942203 | AM193: 0.1849400788 | AN193: 0.1866197825 | AO193: 0.1882333315 | AP193: 0.1897807257 | AQ193: 0.1912619652 | AR193: 0.1926770499 | AS193: 0.1940259799 | AT193: 0.1953087552
K194: TRG 10 - Constant | L194: 0.1145815861 | M194: 0.1110495503 | N194: 0.1110495503 | O194: 0.1110495503 | P194: 0.1110495503 | Q194: 0.1110495503 | R194: 0.1110495503 | S194: 0.1110495503 | T194: 0.1110495503 | U194: 0.1110495503 | V194: 0.1110495503 | W194: 0.1110495503 | X194: 0.1110495503 | Y194: 0.1110495503 | Z194: 0.1110495503 | AA194: 0.1110495503 | AB194: 0.1110495503 | AC194: 0.1110495503 | AD194: 0.1110495503 | AE194: 0.1110495503 | AF194: 0.1110495503 | AG194: 0.1110495503 | AH194: 0.1110495503 | AI194: 0.1110495503 | AJ194: 0.1110495503 | AK194: 0.1110495503 | AL194: 0.1110495503 | AM194: 0.1110495503 | AN194: 0.1110495503 | AO194: 0.1110495503 | AP194: 0.1110495503 | AQ194: 0.1110495503 | AR194: 0.1110495503 | AS194: 0.1110495503 | AT194: 0.1110495503
L196: 2016 | M196: 2017 | N196: 2018 | O196: 2019 | P196: 2020 | Q196: 2021 | R196: 2022 | S196: 2023 | T196: 2024 | U196: 2025 | V196: 2026 | W196: 2027 | X196: 2028 | Y196: 2029 | Z196: 2030 | AA196: 2031 | AB196: 2032 | AC196: 2033 | AD196: 2034 | AE196: 2035 | AF196: 2036 | AG196: 2037 | AH196: 2038 | AI196: 2039 | AJ196: 2040 | AK196: 2041 | AL196: 2042 | AM196: 2043 | AN196: 2044 | AO196: 2045 | AP196: 2046 | AQ196: 2047 | AR196: 2048 | AS196: 2049 | AT196: 2050
J197: Annual Energy Production (kWh/kW) | K197: TRG 1 - Low | L197: =(L165)*8760 -> 4175.090933 | M197: 4251.399126 | N197: 4300.83091 | O197: 4348.767568 | P197: 4395.2091 | Q197: 4440.155506 | R197: 4483.606787 | S197: 4525.562942 | T197: 4566.023971 | U197: 4604.989874 | V197: 4642.460652 | W197: 4678.436304 | X197: 4712.91683 | Y197: 4745.902231 | Z197: 4777.392506 | AA197: 4807.387655 | AB197: 4835.887678 | AC197: 4862.892576 | AD197: 4888.402348 | AE197: 4912.416994 | AF197: 4934.936514 | AG197: 4955.960909 | AH197: 4975.490178 | AI197: 4993.524321 | AJ197: 5010.063339 | AK197: 5025.107231 | AL197: 5038.655997 | AM197: 5050.709637 | AN197: 5061.268152 | AO197: 5070.331541 | AP197: 5077.899804 | AQ197: 5083.972942 | AR197: 5088.550954 | AS197: 5091.63384 | AT197: 5093.2216
K198: TRG 1 - Mid | L198: =(L166)*8760 -> 4175.090933 | M198: 4201.625204 | N198: 4227.653004 | O198: 4253.174334 | P198: 4278.189192 | Q198: 4302.69758 | R198: 4326.699497 | S198: 4350.194943 | T198: 4373.183918 | U198: 4395.666423 | V198: 4417.642457 | W198: 4439.11202 | X198: 4460.075112 | Y198: 4480.531733 | Z198: 4500.481884 | AA198: 4519.925564 | AB198: 4538.862773 | AC198: 4557.293511 | AD198: 4575.217779 | AE198: 4592.635576 | AF198: 4609.546902 | AG198: 4625.951757 | AH198: 4641.850141 | AI198: 4657.242055 | AJ198: 4672.127498 | AK198: 4686.50647 | AL198: 4700.378971 | AM198: 4713.745002 | AN198: 4726.604561 | AO198: 4738.95765 | AP198: 4750.804268 | AQ198: 4762.144416 | AR198: 4772.978092 | AS198: 4783.305298 | AT198: 4793.126033
K199: TRG 1 - Constant | L199: =(L167)*8760 -> 4175.090933 | M199: 4148.050197 | N199: 4148.050197 | O199: 4148.050197 | P199: 4148.050197 | Q199: 4148.050197 | R199: 4148.050197 | S199: 4148.050197 | T199: 4148.050197 | U199: 4148.050197 | V199: 4148.050197 | W199: 4148.050197 | X199: 4148.050197 | Y199: 4148.050197 | Z199: 4148.050197 | AA199: 4148.050197 | AB199: 4148.050197 | AC199: 4148.050197 | AD199: 4148.050197 | AE199: 4148.050197 | AF199: 4148.050197 | AG199: 4148.050197 | AH199: 4148.050197 | AI199: 4148.050197 | AJ199: 4148.050197 | AK199: 4148.050197 | AL199: 4148.050197 | AM199: 4148.050197 | AN199: 4148.050197 | AO199: 4148.050197 | AP199: 4148.050197 | AQ199: 4148.050197 | AR199: 4148.050197 | AS199: 4148.050197 | AT199: 4148.050197
K200: TRG 2 - Low | L200: =(L168)*8760 -> 4074.334374 | M200: 4152.016887 | N200: 4202.338943 | O200: 4251.138946 | P200: 4298.416896 | Q200: 4344.172793 | R200: 4388.406636 | S200: 4431.118427 | T200: 4472.308164 | U200: 4511.975848 | V200: 4550.121479 | W200: 4586.745057 | X200: 4621.846582 | Y200: 4655.426054 | Z200: 4687.483473 | AA200: 4718.018838 | AB200: 4747.03215 | AC200: 4774.52341 | AD200: 4800.492616 | AE200: 4824.939769 | AF200: 4847.864869 | AG200: 4869.267915 | AH200: 4889.148909 | AI200: 4907.507849 | AJ200: 4924.344737 | AK200: 4939.659571 | AL200: 4953.452352 | AM200: 4965.72308 | AN200: 4976.471755 | AO200: 4985.698377 | AP200: 4993.402945 | AQ200: 4999.585461 | AR200: 5004.245923 | AS200: 5007.384332 | AT200: 5009.000688
K201: TRG 2 - Mid | L201: =(L169)*8760 -> 4074.334374 | M201: 4101.346531 | N201: 4127.843095 | O201: 4153.824066 | P201: 4179.289445 | Q201: 4204.239232 | R201: 4228.673427 | S201: 4252.592029 | T201: 4275.995038 | U201: 4298.882456 | V201: 4321.254281 | W201: 4343.110513 | X201: 4364.451153 | Y201: 4385.276201 | Z201: 4405.585656 | AA201: 4425.379519 | AB201: 4444.65779 | AC201: 4463.420468 | AD201: 4481.667554 | AE201: 4499.399047 | AF201: 4516.614948 | AG201: 4533.315257 | AH201: 4549.499973 | AI201: 4565.169097 | AJ201: 4580.322629 | AK201: 4594.960568 | AL201: 4609.082915 | AM201: 4622.689669 | AN201: 4635.780831 | AO201: 4648.356401 | AP201: 4660.416378 | AQ201: 4671.960763 | AR201: 4682.989555 | AS201: 4693.502755 | AT201: 4703.500363
K202: TRG 2 - Constant | L202: =(L170)*8760 -> 4074.334374 | M202: 4046.806631 | N202: 4046.806631 | O202: 4046.806631 | P202: 4046.806631 | Q202: 4046.806631 | R202: 4046.806631 | S202: 4046.806631 | T202: 4046.806631 | U202: 4046.806631 | V202: 4046.806631 | W202: 4046.806631 | X202: 4046.806631 | Y202: 4046.806631 | Z202: 4046.806631 | AA202: 4046.806631 | AB202: 4046.806631 | AC202: 4046.806631 | AD202: 4046.806631 | AE202: 4046.806631 | AF202: 4046.806631 | AG202: 4046.806631 | AH202: 4046.806631 | AI202: 4046.806631 | AJ202: 4046.806631 | AK202: 4046.806631 | AL202: 4046.806631 | AM202: 4046.806631 | AN202: 4046.806631 | AO202: 4046.806631 | AP202: 4046.806631 | AQ202: 4046.806631 | AR202: 4046.806631 | AS202: 4046.806631 | AT202: 4046.806631
K203: TRG 3 - Low | L203: =(L171)*8760 -> 3970.683402 | M203: 4059.193184 | N203: 4116.529051 | O203: 4172.130723 | P203: 4225.998201 | Q203: 4278.131484 | R203: 4328.530573 | S203: 4377.195467 | T203: 4424.126167 | U203: 4469.322672 | V203: 4512.784983 | W203: 4554.513099 | X203: 4594.50702 | Y203: 4632.766747 | Z203: 4669.292279 | AA203: 4704.083617 | AB203: 4737.140761 | AC203: 4768.463709 | AD203: 4798.052463 | AE203: 4825.907023 | AF203: 4852.027388 | AG203: 4876.413559 | AH203: 4899.065534 | AI203: 4919.983316 | AJ203: 4939.166903 | AK203: 4956.616295 | AL203: 4972.331493 | AM203: 4986.312496 | AN203: 4998.559305 | AO203: 5009.071919 | AP203: 5017.850338 | AQ203: 5024.894563 | AR203: 5030.204594 | AS203: 5033.78043 | AT203: 5035.622071
K204: TRG 3 - Mid | L204: =(L172)*8760 -> 3970.683402 | M204: 4001.460471 | N204: 4031.650085 | O204: 4061.252245 | P204: 4090.266949 | Q204: 4118.694199 | R204: 4146.533994 | S204: 4173.786334 | T204: 4200.451219 | U204: 4226.52865 | V204: 4252.018625 | W204: 4276.921146 | X204: 4301.236212 | Y204: 4324.963823 | Z204: 4348.103979 | AA204: 4370.65668 | AB204: 4392.621926 | AC204: 4413.999718 | AD204: 4434.790054 | AE204: 4454.992936 | AF204: 4474.608363 | AG204: 4493.636335 | AH204: 4512.076852 | AI204: 4529.929915 | AJ204: 4547.195522 | AK204: 4563.873675 | AL204: 4579.964372 | AM204: 4595.467615 | AN204: 4610.383403 | AO204: 4624.711736 | AP204: 4638.452615 | AQ204: 4651.606038 | AR204: 4664.172007 | AS204: 4676.15052 | AT204: 4687.541579
K205: TRG 3 - Constant | L205: =(L173)*8760 -> 3970.683402 | M205: 3939.318883 | N205: 3939.318883 | O205: 3939.318883 | P205: 3939.318883 | Q205: 3939.318883 | R205: 3939.318883 | S205: 3939.318883 | T205: 3939.318883 | U205: 3939.318883 | V205: 3939.318883 | W205: 3939.318883 | X205: 3939.318883 | Y205: 3939.318883 | Z205: 3939.318883 | AA205: 3939.318883 | AB205: 3939.318883 | AC205: 3939.318883 | AD205: 3939.318883 | AE205: 3939.318883 | AF205: 3939.318883 | AG205: 3939.318883 | AH205: 3939.318883 | AI205: 3939.318883 | AJ205: 3939.318883 | AK205: 3939.318883 | AL205: 3939.318883 | AM205: 3939.318883 | AN205: 3939.318883 | AO205: 3939.318883 | AP205: 3939.318883 | AQ205: 3939.318883 | AR205: 3939.318883 | AS205: 3939.318883 | AT205: 3939.318883
K206: TRG 4 - Low | L206: =(L174)*8760 -> 3845.315756 | M206: 3937.770706 | N206: 3997.662218 | O206: 4055.742237 | P206: 4112.010763 | Q206: 4166.467796 | R206: 4219.113335 | S206: 4269.947381 | T206: 4318.969934 | U206: 4366.180994 | V206: 4411.580561 | W206: 4455.168634 | X206: 4496.945214 | Y206: 4536.910301 | Z206: 4575.063895 | AA206: 4611.405995 | AB206: 4645.936602 | AC206: 4678.655716 | AD206: 4709.563337 | AE206: 4738.659465 | AF206: 4765.944099 | AG206: 4791.41724 | AH206: 4815.078888 | AI206: 4836.929043 | AJ206: 4856.967704 | AK206: 4875.194872 | AL206: 4891.610547 | AM206: 4906.214729 | AN206: 4919.007418 | AO206: 4929.988613 | AP206: 4939.158315 | AQ206: 4946.516524 | AR206: 4952.06324 | AS206: 4955.798462 | AT206: 4957.722192
K207: TRG 4 - Mid | L207: =(L175)*8760 -> 3845.315756 | M207: 3877.464659 | N207: 3908.999922 | O207: 3939.921546 | P207: 3970.22953 | Q207: 3999.923874 | R207: 4029.004579 | S207: 4057.471644 | T207: 4085.32507 | U207: 4112.564856 | V207: 4139.191002 | W207: 4165.203508 | X207: 4190.602376 | Y207: 4215.387603 | Z207: 4239.559191 | AA207: 4263.117139 | AB207: 4286.061447 | AC207: 4308.392116 | AD207: 4330.109146 | AE207: 4351.212535 | AF207: 4371.702285 | AG207: 4391.578396 | AH207: 4410.840866 | AI207: 4429.489698 | AJ207: 4447.524889 | AK207: 4464.946441 | AL207: 4481.754353 | AM207: 4497.948626 | AN207: 4513.529259 | AO207: 4528.496252 | AP207: 4542.849606 | AQ207: 4556.58932 | AR207: 4569.715395 | AS207: 4582.22783 | AT207: 4594.126625
K208: TRG 4 - Constant | L208: =(L176)*8760 -> 3845.315756 | M208: 3812.553219 | N208: 3812.553219 | O208: 3812.553219 | P208: 3812.553219 | Q208: 3812.553219 | R208: 3812.553219 | S208: 3812.553219 | T208: 3812.553219 | U208: 3812.553219 | V208: 3812.553219 | W208: 3812.553219 | X208: 3812.553219 | Y208: 3812.553219 | Z208: 3812.553219 | AA208: 3812.553219 | AB208: 3812.553219 | AC208: 3812.553219 | AD208: 3812.553219 | AE208: 3812.553219 | AF208: 3812.553219 | AG208: 3812.553219 | AH208: 3812.553219 | AI208: 3812.553219 | AJ208: 3812.553219 | AK208: 3812.553219 | AL208: 3812.553219 | AM208: 3812.553219 | AN208: 3812.553219 | AO208: 3812.553219 | AP208: 3812.553219 | AQ208: 3812.553219 | AR208: 3812.553219 | AS208: 3812.553219 | AT208: 3812.553219
K209: TRG 5 - Low | L209: =(L177)*8760 -> 3606.36974 | M209: 3714.634132 | N209: 3784.766864 | O209: 3852.778344 | P209: 3918.668572 | Q209: 3982.437549 | R209: 4044.085274 | S209: 4103.611747 | T209: 4161.016969 | U209: 4216.300939 | V209: 4269.463658 | W209: 4320.505125 | X209: 4369.42534 | Y209: 4416.224304 | Z209: 4460.902016 | AA209: 4503.458476 | AB209: 4543.893685 | AC209: 4582.207642 | AD209: 4618.400347 | AE209: 4652.471801 | AF209: 4684.422004 | AG209: 4714.250954 | AH209: 4741.958653 | AI209: 4767.545101 | AJ209: 4791.010297 | AK209: 4812.354241 | AL209: 4831.576933 | AM209: 4848.678374 | AN209: 4863.658564 | AO209: 4876.517501 | AP209: 4887.255188 | AQ209: 4895.871622 | AR209: 4902.366805 | AS209: 4906.740736 | AT209: 4908.993416
K210: TRG 5 - Mid | L210: =(L178)*8760 -> 3606.36974 | M210: 3644.015982 | N210: 3680.943655 | O210: 3717.152758 | P210: 3752.643291 | Q210: 3787.415255 | R210: 3821.468648 | S210: 3854.803473 | T210: 3887.419727 | U210: 3919.317412 | V210: 3950.496528 | W210: 3980.957073 | X210: 4010.699049 | Y210: 4039.722456 | Z210: 4068.027292 | AA210: 4095.613559 | AB210: 4122.481257 | AC210: 4148.630385 | AD210: 4174.060943 | AE210: 4198.772931 | AF210: 4222.76635 | AG210: 4246.041199 | AH210: 4268.597479 | AI210: 4290.435188 | AJ210: 4311.554329 | AK210: 4331.954899 | AL210: 4351.6369 | AM210: 4370.600331 | AN210: 4388.845193 | AO210: 4406.371485 | AP210: 4423.179207 | AQ210: 4439.26836 | AR210: 4454.638943 | AS210: 4469.290956 | AT210: 4483.2244
K211: TRG 5 - Constant | L211: =(L179)*8760 -> 3606.36974 | M211: 3568.004936 | N211: 3568.004936 | O211: 3568.004936 | P211: 3568.004936 | Q211: 3568.004936 | R211: 3568.004936 | S211: 3568.004936 | T211: 3568.004936 | U211: 3568.004936 | V211: 3568.004936 | W211: 3568.004936 | X211: 3568.004936 | Y211: 3568.004936 | Z211: 3568.004936 | AA211: 3568.004936 | AB211: 3568.004936 | AC211: 3568.004936 | AD211: 3568.004936 | AE211: 3568.004936 | AF211: 3568.004936 | AG211: 3568.004936 | AH211: 3568.004936 | AI211: 3568.004936 | AJ211: 3568.004936 | AK211: 3568.004936 | AL211: 3568.004936 | AM211: 3568.004936 | AN211: 3568.004936 | AO211: 3568.004936 | AP211: 3568.004936 | AQ211: 3568.004936 | AR211: 3568.004936 | AS211: 3568.004936 | AT211: 3568.004936
K212: TRG 6 - Low | L212: =(L180)*8760 -> 3231.468704 | M212: 3360.593652 | N212: 3444.23967 | O212: 3525.35571 | P212: 3603.941773 | Q212: 3679.997858 | R212: 3753.523965 | S212: 3824.520094 | T212: 3892.986246 | U212: 3958.922419 | V212: 4022.328615 | W212: 4083.204834 | X212: 4141.551074 | Y212: 4197.367337 | Z212: 4250.653622 | AA212: 4301.409929 | AB212: 4349.636258 | AC212: 4395.33261 | AD212: 4438.498983 | AE212: 4479.13538 | AF212: 4517.241798 | AG212: 4552.818238 | AH212: 4585.864701 | AI212: 4616.381186 | AJ212: 4644.367693 | AK212: 4669.824223 | AL212: 4692.750774 | AM212: 4713.147348 | AN212: 4731.013944 | AO212: 4746.350563 | AP212: 4759.157203 | AQ212: 4769.433866 | AR212: 4777.180551 | AS212: 4782.397258 | AT212: 4785.083988
K213: TRG 6 - Mid | L213: =(L181)*8760 -> 3231.468704 | M213: 3276.368684 | N213: 3320.411639 | O213: 3363.59757 | P213: 3405.926476 | Q213: 3447.398357 | R213: 3488.013213 | S213: 3527.771044 | T213: 3566.671851 | U213: 3604.715633 | V213: 3641.90239 | W213: 3678.232122 | X213: 3713.704829 | Y213: 3748.320512 | Z213: 3782.07917 | AA213: 3814.980803 | AB213: 3847.025411 | AC213: 3878.212994 | AD213: 3908.543553 | AE213: 3938.017087 | AF213: 3966.633596 | AG213: 3994.39308 | AH213: 4021.295539 | AI213: 4047.340974 | AJ213: 4072.529384 | AK213: 4096.860769 | AL213: 4120.335129 | AM213: 4142.952465 | AN213: 4164.712775 | AO213: 4185.616061 | AP213: 4205.662322 | AQ213: 4224.851558 | AR213: 4243.18377 | AS213: 4260.658956 | AT213: 4277.277118
K214: TRG 6 - Constant | L214: =(L182)*8760 -> 3231.468704 | M214: 3185.711707 | N214: 3185.711707 | O214: 3185.711707 | P214: 3185.711707 | Q214: 3185.711707 | R214: 3185.711707 | S214: 3185.711707 | T214: 3185.711707 | U214: 3185.711707 | V214: 3185.711707 | W214: 3185.711707 | X214: 3185.711707 | Y214: 3185.711707 | Z214: 3185.711707 | AA214: 3185.711707 | AB214: 3185.711707 | AC214: 3185.711707 | AD214: 3185.711707 | AE214: 3185.711707 | AF214: 3185.711707 | AG214: 3185.711707 | AH214: 3185.711707 | AI214: 3185.711707 | AJ214: 3185.711707 | AK214: 3185.711707 | AL214: 3185.711707 | AM214: 3185.711707 | AN214: 3185.711707 | AO214: 3185.711707 | AP214: 3185.711707 | AQ214: 3185.711707 | AR214: 3185.711707 | AS214: 3185.711707 | AT214: 3185.711707
K215: TRG 7 - Low | L215: =(L183)*8760 -> 2747.111754 | M215: 2881.079099 | N215: 2967.86198 | O215: 3052.020005 | P215: 3133.553174 | Q215: 3212.461486 | R215: 3288.744943 | S215: 3362.403544 | T215: 3433.437288 | U215: 3501.846176 | V215: 3567.630209 | W215: 3630.789385 | X215: 3691.323705 | Y215: 3749.233169 | Z215: 3804.517777 | AA215: 3857.177529 | AB215: 3907.212424 | AC215: 3954.622464 | AD215: 3999.407648 | AE215: 4041.567975 | AF215: 4081.103447 | AG215: 4118.014062 | AH215: 4152.299821 | AI215: 4183.960724 | AJ215: 4212.996771 | AK215: 4239.407962 | AL215: 4263.194297 | AM215: 4284.355776 | AN215: 4302.892399 | AO215: 4318.804166 | AP215: 4332.091076 | AQ215: 4342.753131 | AR215: 4350.790329 | AS215: 4356.202671 | AT215: 4358.990158
K216: TRG 7 - Mid | L216: =(L184)*8760 -> 2747.111754 | M216: 2793.695557 | N216: 2839.390195 | O216: 2884.195669 | P216: 2928.111978 | Q216: 2971.139123 | R216: 3013.277103 | S216: 3054.525918 | T216: 3094.885569 | U216: 3134.356055 | V216: 3172.937376 | W216: 3210.629533 | X216: 3247.432525 | Y216: 3283.346352 | Z216: 3318.371015 | AA216: 3352.506513 | AB216: 3385.752847 | AC216: 3418.110016 | AD216: 3449.57802 | AE216: 3480.15686 | AF216: 3509.846535 | AG216: 3538.647045 | AH216: 3566.558391 | AI216: 3593.580572 | AJ216: 3619.713588 | AK216: 3644.95744 | AL216: 3669.312127 | AM216: 3692.77765 | AN216: 3715.354008 | AO216: 3737.041201 | AP216: 3757.83923 | AQ216: 3777.748094 | AR216: 3796.767793 | AS216: 3814.898328 | AT216: 3832.139698
K217: TRG 7 - Constant | L217: =(L185)*8760 -> 2747.111754 | M217: 2699.638795 | N217: 2699.638795 | O217: 2699.638795 | P217: 2699.638795 | Q217: 2699.638795 | R217: 2699.638795 | S217: 2699.638795 | T217: 2699.638795 | U217: 2699.638795 | V217: 2699.638795 | W217: 2699.638795 | X217: 2699.638795 | Y217: 2699.638795 | Z217: 2699.638795 | AA217: 2699.638795 | AB217: 2699.638795 | AC217: 2699.638795 | AD217: 2699.638795 | AE217: 2699.638795 | AF217: 2699.638795 | AG217: 2699.638795 | AH217: 2699.638795 | AI217: 2699.638795 | AJ217: 2699.638795 | AK217: 2699.638795 | AL217: 2699.638795 | AM217: 2699.638795 | AN217: 2699.638795 | AO217: 2699.638795 | AP217: 2699.638795 | AQ217: 2699.638795 | AR217: 2699.638795 | AS217: 2699.638795 | AT217: 2699.638795
K218: TRG 8 - Low | L218: =(L186)*8760 -> 2193.954502 | M218: 2312.499244 | N218: 2389.291497 | O218: 2463.761073 | P218: 2535.907972 | Q218: 2605.732193 | R218: 2673.233738 | S218: 2738.412605 | T218: 2801.268795 | U218: 2861.802308 | V218: 2920.013144 | W218: 2975.901303 | X218: 3029.466784 | Y218: 3080.709589 | Z218: 3129.629716 | AA218: 3176.227167 | AB218: 3220.50194 | AC218: 3262.454036 | AD218: 3302.083455 | AE218: 3339.390197 | AF218: 3374.374261 | AG218: 3407.035649 | AH218: 3437.374359 | AI218: 3465.390393 | AJ218: 3491.083749 | AK218: 3514.454428 | AL218: 3535.50243 | AM218: 3554.227755 | AN218: 3570.630402 | AO218: 3584.710373 | AP218: 3596.467666 | AQ218: 3605.902283 | AR218: 3613.014222 | AS218: 3617.803484 | AT218: 3620.270069
K219: TRG 8 - Mid | L219: =(L187)*8760 -> 2193.954502 | M219: 2235.17548 | N219: 2275.609655 | O219: 2315.257028 | P219: 2354.117599 | Q219: 2392.191368 | R219: 2429.478335 | S219: 2465.9785 | T219: 2501.691863 | U219: 2536.618423 | V219: 2570.758182 | W219: 2604.111138 | X219: 2636.677292 | Y219: 2668.456644 | Z219: 2699.449194 | AA219: 2729.654941 | AB219: 2759.073887 | AC219: 2787.706031 | AD219: 2815.551372 | AE219: 2842.609911 | AF219: 2868.881648 | AG219: 2894.366583 | AH219: 2919.064716 | AI219: 2942.976047 | AJ219: 2966.100575 | AK219: 2988.438302 | AL219: 3009.989226 | AM219: 3030.753348 | AN219: 3050.730668 | AO219: 3069.921186 | AP219: 3088.324902 | AQ219: 3105.941816 | AR219: 3122.771927 | AS219: 3138.815237 | AT219: 3154.071744
K220: TRG 8 - Constant | L220: =(L188)*8760 -> 2193.954502 | M220: 2151.94673 | N220: 2151.94673 | O220: 2151.94673 | P220: 2151.94673 | Q220: 2151.94673 | R220: 2151.94673 | S220: 2151.94673 | T220: 2151.94673 | U220: 2151.94673 | V220: 2151.94673 | W220: 2151.94673 | X220: 2151.94673 | Y220: 2151.94673 | Z220: 2151.94673 | AA220: 2151.94673 | AB220: 2151.94673 | AC220: 2151.94673 | AD220: 2151.94673 | AE220: 2151.94673 | AF220: 2151.94673 | AG220: 2151.94673 | AH220: 2151.94673 | AI220: 2151.94673 | AJ220: 2151.94673 | AK220: 2151.94673 | AL220: 2151.94673 | AM220: 2151.94673 | AN220: 2151.94673 | AO220: 2151.94673 | AP220: 2151.94673 | AQ220: 2151.94673 | AR220: 2151.94673 | AS220: 2151.94673 | AT220: 2151.94673
K221: TRG 9 - Low | L221: =(L189)*8760 -> 1641.825507 | M221: 1763.14144 | N221: 1841.728846 | O221: 1917.939278 | P221: 1991.772736 | Q221: 2063.229221 | R221: 2132.308732 | S221: 2199.011269 | T221: 2263.336832 | U221: 2325.285422 | V221: 2384.857038 | W221: 2442.05168 | X221: 2496.869348 | Y221: 2549.310043 | Z221: 2599.373763 | AA221: 2647.06051 | AB221: 2692.370284 | AC221: 2735.303083 | AD221: 2775.858909 | AE221: 2814.037761 | AF221: 2849.839639 | AG221: 2883.264544 | AH221: 2914.312475 | AI221: 2942.983432 | AJ221: 2969.277415 | AK221: 2993.194424 | AL221: 3014.73446 | AM221: 3033.897522 | AN221: 3050.68361 | AO221: 3065.092725 | AP221: 3077.124865 | AQ221: 3086.780032 | AR221: 3094.058225 | AS221: 3098.959445 | AT221: 3101.483691
K222: TRG 9 - Mid | L222: =(L190)*8760 -> 1641.825507 | M222: 1684.010097 | N222: 1725.389492 | O222: 1765.963692 | P222: 1805.732697 | Q222: 1844.696507 | R222: 1882.855121 | S222: 1920.208541 | T222: 1956.756766 | U222: 1992.499796 | V222: 2027.437631 | W222: 2061.570271 | X222: 2094.897715 | Y222: 2127.419965 | Z222: 2159.13702 | AA222: 2190.04888 | AB222: 2220.155545 | AC222: 2249.457014 | AD222: 2277.953289 | AE222: 2305.644369 | AF222: 2332.530254 | AG222: 2358.610944 | AH222: 2383.886439 | AI222: 2408.356738 | AJ222: 2432.021843 | AK222: 2454.881753 | AL222: 2476.936468 | AM222: 2498.185988 | AN222: 2518.630312 | AO222: 2538.269442 | AP222: 2557.103377 | AQ222: 2575.132117 | AR222: 2592.355662 | AS222: 2608.774011 | AT222: 2624.387166
... 335 more rows

Sheet Offshore Wind
A1: Offshore Wind Inputs | L1: https://atb.nrel.gov/electricity/2017/index.html?t=ow
T3: Inputs
J4: Take me to: | T4: Calculated
B10: X | G10: Current Costs
H12: Techno-Economic Cost and Performance Parameters | J12: Net Capacity Factor (%) | K12: TRG 1 - Offshore Fixed | L12: =L248 -> 0.453713307 | O12: Basis Year: | Q12: 2016
K13: TRG 2 - Offshore Fixed | L13: =L251 -> 0.4298552685
K14: TRG 3 - Offshore Fixed | L14: =L254 -> 0.4188731048 | O14: Offshore Wind Techno-Resource Groups (TRG)
K15: TRG 4 - Offshore Fixed | L15: =L257 -> 0.4060931816 | O15: TRG | Q15: LCOE Range ($/MWh) | R15: Wind Speed Range (m/s) | S15: Weighted Average Wind Speed (m/s) | T15: Weighted Water Depth (m) | U15: Weighted Distance Site to Cable Landfall (km) | V15: Weighted Average CAPEX ($/kW) | W15: Weighted Average OPEX ($/kW/yr) | X15: Weighted Average Net CF (%) | Y15: Potential Wind Plant Capacity (GW) | Z15: Potential Wind Plant Energy (TWh)
K16: TRG 5 - Offshore Fixed | L16: =L260 -> 0.3685137506 | O16: Fixed-Bottom | P16: TRG 1 | Q16: LCOE <= 104 | R16: 8.5 - 9.0 | S16: 8.612760188 | T16: 13.35123828 | U16: 5.581137979 | V16: 3800.145782 | W16: 137.1614768 | X16: =L248 -> 0.453713307 | Y16: 12.49126972 | Z16: 48.52452621
K17: TRG 6 - Offshore Floating | L17: =L263 -> 0.5052971841 | P17: TRG 2 | Q17: LCOE <= 113 | R17: 8.0 - 8.5 | S17: 8.439396108 | T17: 16.01184865 | U17: 8.776756937 | V17: 3889.866832 | W17: 142.6483137 | X17: =L251 -> 0.4298552685 | Y17: 24.98253944 | Z17: 94.15286983
K18: TRG 7 - Offshore Floating | L18: =L266 -> 0.4984933186 | P18: TRG 3 | Q18: LCOE <= 119 | R18: 8.0 - 8.5 | S18: 8.347430581 | T18: 18.60071337 | U18: 14.94434475 | V18: 4026.873286 | W18: 144.7683379 | X18: =L254 -> 0.4188731048 | Y18: 49.96507889 | Z18: 182.0082662
K19: TRG 8 - Offshore Floating | L19: =L269 -> 0.4870937807 | P19: TRG 4 | Q19: LCOE <= 135 | R19: 8.0 - 8.5 | S19: 8.312053617 | T19: 25.63068703 | U19: 35.56791869 | V19: 4555.794007 | W19: 151.6499494 | X19: =L257 -> 0.4060931816 | Y19: 320 | Z19: 1131.291118
K20: TRG 9 - Offshore Floating | L20: =L272 -> 0.475451496 | P20: TRG 5 | Q20: LCOE <= 170 | R20: 7.5 - 8.0 | S20: 7.87131557 | T20: 35.58455267 | U20: 72.31642695 | V20: 5332.835314 | W20: 159.1364205 | X20: =L260 -> 0.3685137506 | Y20: 320 | Z20: 1023.32834
K21: TRG 10 - Offshore Floating | L21: =L275 -> 0.4486443348 | O21: Floating | P21: TRG 6 | Q21: LCOE <= 122 | R21: 9.5 - 10 | S21: 9.695769674 | T21: 130.2815378 | U21: 23.58940317 | V21: 5961.007748 | W21: 105.6258373 | X21: =L263 -> 0.5052971841 | Y21: 12.49126972 | Z21: 54.99282088
K22: TRG 11 - Offshore Floating | L22: =L278 -> 0.4176468415 | P22: TRG 7 | Q22: LCOE <= 128 | R22: 9.5 - 10 | S22: 9.6795547 | T22: 144.921048 | U22: 39.99755051 | V22: 6217.226521 | W22: 107.5587174 | X22: =L266 -> 0.4984933186 | Y22: 24.98253944 | Z22: 107.6368838
K23: TRG 12 - Offshore Floating | L23: =L281 -> 0.3746788266 | P23: TRG 8 | Q23: LCOE <= 135 | R23: 9.5 - 10 | S23: 9.468606074 | T23: 139.3788592 | U23: 49.74945175 | V23: 6377.09293 | W23: 111.3448661 | X23: =L269 -> 0.4870937807 | Y23: 49.96507889 | Z23: 212.3111635
K24: TRG 13 - Offshore Floating | L24: =L284 -> 0.3535685761 | P24: TRG 9 | Q24: LCOE <= 146 | R24: 9.0 - 9.5 | S24: 9.42057817 | T24: 135.5475179 | U24: 70.42621598 | V24: 6687.121064 | W24: 122.4121588 | X24: =L272 -> 0.475451496 | Y24: 99.93015778 | Z24: 413.9412981
K25: TRG 14 - Offshore Floating | L25: =L287 -> 0.3255579556 | P25: TRG 10 | Q25: LCOE <= 161 | R25: 9.0 - 9.5 | S25: 9.090636822 | T25: 139.6626904 | U25: 93.76275064 | V25: 6931.377453 | W25: 129.0072658 | X25: =L275 -> 0.4486443348 | Y25: 199.8603156 | Z25: 780.8058478
K26: TRG 15 - Offshore Floating | L26: =L290 -> 0.3130546097 | P26: TRG 11 | Q26: LCOE <= 180 | R26: 8.5 - 9.0 | S26: 8.702809292 | T26: 322.9476203 | U26: 117.7679161 | V26: 7211.106079 | W26: 133.6115832 | X26: =L278 -> 0.4176468415 | Y26: 199.8603156 | Z26: 726.8045418
P27: TRG 12 | Q27: LCOE <= 201 | R27: 8.0 - 8.5 | S27: 8.133205068 | T27: 403.5639146 | U27: 123.3720829 | V27: 7223.824464 | W27: 135.081329 | X27: =L281 -> 0.3746788266 | Y27: 199.8603156 | Z27: 651.0194693
J28: Annual Energy Production (kWh/kW) | K28: TRG 1 - Offshore Fixed | L28: =(L12)*8760 -> 3974.528569 | P28: TRG 13 | Q28: LCOE <= 218 | R28: 7.5 - 8.0 | S28: 7.774459751 | T28: 473.7989147 | U28: 138.1098489 | V28: 7410.515309 | W28: 136.1152314 | X28: =L284 -> 0.3535685761 | Y28: 199.8603156 | Z28: 614.5910627
K29: TRG 2 - Offshore Fixed | L29: 3765.532152 | P29: TRG 14 | Q29: LCOE <= 240 | R29: 7.0 - 7.5 | S29: 7.434080106 | T29: 615.190406 | U29: 129.5688784 | V29: 7606.110944 | W29: 131.3727646 | X29: =L287 -> 0.3255579556 | Y29: 199.8603156 | Z29: 565.6306895
K30: TRG 3 - Offshore Fixed | L30: 3669.328398 | P30: TRG 15 | Q30: LCOE <= 268 | R30: 7.5 - 8.0 | S30: 7.461690666 | T30: 797.4204188 | U30: 199.0658125 | V30: 8203.624935 | W30: 138.1465311 | X30: =L290 -> 0.3130546097 | Y30: 143.3997764 | Z30: 390.2620324
K31: TRG 4 - Offshore Fixed | L31: 3557.376271 | O31: Total | Y31: 2057.509288 | Z31: 6997.30093
K32: TRG 5 - Offshore Fixed | L32: 3228.180456
K33: TRG 6 - Offshore Floating | L33: 4426.403333
K34: TRG 7 - Offshore Floating | L34: 4366.801471 | O34: Financial Assumptions (2016):
K35: TRG 8 - Offshore Floating | L35: 4266.941519 | O35: Inflation Rate | S35: =L577 -> 0.025
K36: TRG 9 - Offshore Floating | L36: 4164.955105 | O36: Capital Recovery Period (Years) | S36: 30
K37: TRG 10 - Offshore Floating | L37: 3930.124373 | O37: Interest Rate Nominal - Mid | S37: =L579 -> 0.0373
K38: TRG 11 - Offshore Floating | L38: 3658.586331 | O38: Calculated Interest Rate Real - Mid | S38: =L582 -> 0.012
K39: TRG 12 - Offshore Floating | L39: 3282.186521 | O39: Interest During Construction - Nominal | S39: =L584 -> 0.0373
K40: TRG 13 - Offshore Floating | L40: 3097.260726 | O40: Rate of Return on Equity Nominal - Mid | S40: =L586 -> 0.1603
K41: TRG 14 - Offshore Floating | L41: 2851.887691 | O41: Calculated Rate of Return on Equity Real - Mid | S41: =L589 -> 0.132
K42: TRG 15 - Offshore Floating | L42: 2742.358381 | O42: Debt Fraction - Mid | S42: =L592 -> 0.6
O43: Tax Rate (Federal and State) | S43: =L594 -> 0.2574
J44: CAPEX ($/kW) | K44: TRG 1 - Offshore Fixed | L44: =$S$47 * (L76 + L142) -> 3800.145782 | O44: WACC Nominal - Mid | S44: =L596 -> 0.080739388
K45: TRG 2 - Offshore Fixed | L45: =$S$47 * (L77 + L143) -> 3889.866832 | O45: WACC Real - Mid | S45: =L599 -> 0.05437989073
K46: TRG 3 - Offshore Fixed | L46: 4026.873286 | O46: Depreciation Period | S46: 5
K47: TRG 4 - Offshore Fixed | L47: 4555.794007 | O47: Construction Finance Factor | S47: =SUMPRODUCT(P56:P58,Q56:Q58) -> 1.036501819
K48: TRG 5 - Offshore Fixed | L48: 5332.835314 | O48: Present Value of Depreciation | S48: =SUMPRODUCT(O76:T76,O78:T78) -> 0.8098631625
K49: TRG 6 - Offshore Floating | L49: 5961.007748 | O49: Project Finance Factor | S49: =(1 - S43 * S48) / (1 - S43) -> 1.065905228
K50: TRG 7 - Offshore Floating | L50: 6217.226521 | O50: Capital Recovery Factor (CRF) Nominal - Mid | S50: =L602 -> 0.08944782892
K51: TRG 8 - Offshore Floating | L51: 6377.09293 | O51: Capital Recovery Factor (CRF) Real - Mid | S51: =L605 -> 0.06833485969
K52: TRG 9 - Offshore Floating | L52: 6687.121064
K53: TRG 10 - Offshore Floating | L53: 6931.377453 | O53: Construction Duration yrs | Q53: 3
K54: TRG 11 - Offshore Floating | L54: 7211.106079 | O54: Year | P54: Capital | Q54: Accumulated
K55: TRG 12 - Offshore Floating | L55: 7223.824464 | O55: Index | P55: Fraction | Q55: Interest
K56: TRG 13 - Offshore Floating | L56: 7410.515309 | O56: 0 | P56: 0.4 | Q56: =1+(1-S43)*((1+S39)^(O56+0.5)-1) -> 1.013722697
K57: TRG 14 - Offshore Floating | L57: 7606.110944 | O57: 1 | P57: 0.4 | Q57: =1+(1-S43)*((1+S39)^(O57+0.5)-1) -> 1.041933534
K58: TRG 15 - Offshore Floating | L58: 8203.624935 | O58: 2 | P58: 0.2 | Q58: =1+(1-S43)*((1+S39)^(O58+0.5)-1) -> 1.071196635
J60: Construction Financing Cost ($/kW) | K60: TRG 1 - Offshore Fixed | L60: =(L76+L142)*($S$47-1) -> 133.8272956
K61: TRG 2 - Offshore Fixed | L61: 136.9869442
K62: TRG 3 - Offshore Fixed | L62: 141.8118126
K63: TRG 4 - Offshore Fixed | L63: 160.4384743
K64: TRG 5 - Offshore Fixed | L64: 187.8030394
K65: TRG 6 - Offshore Floating | L65: 209.9249849
K66: TRG 7 - Offshore Floating | L66: 218.948077
K67: TRG 8 - Offshore Floating | L67: 224.5779898
K68: TRG 9 - Offshore Floating | L68: 235.4960516
K69: TRG 10 - Offshore Floating | L69: 244.0978722
K70: TRG 11 - Offshore Floating | L70: 253.9488957
K71: TRG 12 - Offshore Floating | L71: 254.3967909
K72: TRG 13 - Offshore Floating | L72: 260.9713626
K73: TRG 14 - Offshore Floating | L73: 267.8595286
K74: TRG 15 - Offshore Floating | L74: 288.9017954
N75: MACRS yr | O75: 1 | P75: 2 | Q75: 3 | R75: 4 | S75: 5 | T75: 6
J76: Overnight Capital Cost (OCC) ($/kW) | K76: TRG 1 - Offshore Fixed | L76: =L436 -> 3438.756133 | N76: Depreciation | O76: 0.2 | P76: 0.32 | Q76: 0.192 | R76: 0.1152 | S76: 0.1152 | T76: 0.0576
K77: TRG 2 - Offshore Fixed | L77: =L439 -> 3479.398221 | N77: Fraction
K78: TRG 3 - Offshore Fixed | L78: =L442 -> 3529.375185 | N78: Depreciation | O78: =1/((1+S45)*(1+S35))^O75 -> 0.9252924536 | P78: =1/((1+S45)*(1+S35))^P75 -> 0.8561661246 | Q78: =1/((1+S45)*(1+S35))^Q75 -> 0.7922040541 | R78: =1/((1+S45)*(1+S35))^R75 -> 0.733020433 | S78: =1/((1+S45)*(1+S35))^S75 -> 0.678258275 | T78: =1/((1+S45)*(1+S35))^T75 -> 0.6275872634
K79: TRG 4 - Offshore Fixed | L79: =L445 -> 3807.123397 | N79: Factor
K80: TRG 5 - Offshore Fixed | L80: =L448 -> 4258.010115
K81: TRG 6 - Offshore Floating | L81: =L451 -> 5272.460323
K82: TRG 7 - Offshore Floating | L82: =L454 -> 5341.470102
K83: TRG 8 - Offshore Floating | L83: =L457 -> 5422.987695
K84: TRG 9 - Offshore Floating | L84: =L460 -> 5559.900546
K85: TRG 10 - Offshore Floating | L85: =L463 -> 5649.086813
K86: TRG 11 - Offshore Floating | L86: =L466 -> 5808.494308
K87: TRG 12 - Offshore Floating | L87: =L469 -> 5839.510055
K88: TRG 13 - Offshore Floating | L88: =L472 -> 5959.705915
K89: TRG 14 - Offshore Floating | L89: =L475 -> 6134.913483
K90: TRG 15 - Offshore Floating | L90: =L478 -> 6458.364503
J92: Fixed Operation and Maintenance Expenses ($/kW-year) | K92: TRG 1 - Offshore Fixed | L92: =L484 -> 137.1614768
K93: TRG 2 - Offshore Fixed | L93: =L487 -> 142.6483137
K94: TRG 3 - Offshore Fixed | L94: =L490 -> 144.7683379
K95: TRG 4 - Offshore Fixed | L95: =L493 -> 151.6499494
K96: TRG 5 - Offshore Fixed | L96: =L496 -> 159.1364205
K97: TRG 6 - Offshore Floating | L97: =L499 -> 105.6258373
K98: TRG 7 - Offshore Floating | L98: =L502 -> 107.5587174
K99: TRG 8 - Offshore Floating | L99: =L505 -> 111.3448661
K100: TRG 9 - Offshore Floating | L100: =L508 -> 122.4121588
K101: TRG 10 - Offshore Floating | L101: =L511 -> 129.0072658
K102: TRG 11 - Offshore Floating | L102: =L514 -> 133.6115832
K103: TRG 12 - Offshore Floating | L103: =L517 -> 135.081329
K104: TRG 13 - Offshore Floating | L104: =L520 -> 136.1152314
K105: TRG 14 - Offshore Floating | L105: =L523 -> 131.3727646
K106: TRG 15 - Offshore Floating | L106: =L526 -> 138.1465311
J108: Variable Operation and Maintenance Expenses ($/MWh) | K108: TRG 1 - Offshore Fixed | L108: =L530 -> 0
K109: TRG 2 - Offshore Fixed | L109: 0
K110: TRG 3 - Offshore Fixed | L110: 0
K111: TRG 4 - Offshore Fixed | L111: 0
K112: TRG 5 - Offshore Fixed | L112: 0
K113: TRG 6 - Offshore Floating | L113: 0
K114: TRG 7 - Offshore Floating | L114: 0
K115: TRG 8 - Offshore Floating | L115: 0
K116: TRG 9 - Offshore Floating | L116: 0
K117: TRG 10 - Offshore Floating | L117: 0
K118: TRG 11 - Offshore Floating | L118: 0
K119: TRG 12 - Offshore Floating | L119: 0
K120: TRG 13 - Offshore Floating | L120: 0
K121: TRG 14 - Offshore Floating | L121: 0
K122: TRG 15 - Offshore Floating | L122: 0
H125: Finance | J125: Weighted Average Cost of Capital (WACC) (Nominal) (%) | K125: TRG 1 - Offshore Fixed | L125: =L611 -> 0.080739388
K126: TRG 2 - Offshore Fixed | L126: =L614 -> 0.080739388
K127: TRG 3 - Offshore Fixed | L127: =L617 -> 0.080739388
K128: TRG 4 - Offshore Fixed | L128: =L620 -> 0.080739388
K129: TRG 5 - Offshore Fixed | L129: =L623 -> 0.080739388
K130: TRG 6 - Offshore Floating | L130: =L626 -> 0.080739388
K131: TRG 7 - Offshore Floating | L131: =L629 -> 0.080739388
K132: TRG 8 - Offshore Floating | L132: =L632 -> 0.080739388
K133: TRG 9 - Offshore Floating | L133: =L635 -> 0.080739388
K134: TRG 10 - Offshore Floating | L134: =L638 -> 0.080739388
K135: TRG 11 - Offshore Floating | L135: =L641 -> 0.080739388
K136: TRG 12 - Offshore Floating | L136: =L644 -> 0.080739388
K137: TRG 13 - Offshore Floating | L137: =L647 -> 0.080739388
K138: TRG 14 - Offshore Floating | L138: =L650 -> 0.080739388
K139: TRG 15 - Offshore Floating | L139: =L653 -> 0.080739388
H142: Grid Connection Costs | J142: Grid Connection Costs (GCC) ($/kW) | K142: TRG 1 - Offshore Fixed | L142: =L158+L174+L190 -> 227.5623539
K143: TRG 2 - Offshore Fixed | L143: =L159+L175+L191 -> 273.4816665
K144: TRG 3 - Offshore Fixed | L144: 355.6862891
K145: TRG 4 - Offshore Fixed | L145: 588.2321356
K146: TRG 5 - Offshore Fixed | L146: 887.0221598
K147: TRG 6 - Offshore Floating | L147: 478.6224401
K148: TRG 7 - Offshore Floating | L148: 656.8083418
K149: TRG 8 - Offshore Floating | L149: 729.527245
K150: TRG 9 - Offshore Floating | L150: 891.7244655
K151: TRG 10 - Offshore Floating | L151: 1038.192768
K152: TRG 11 - Offshore Floating | L152: 1148.662875
K153: TRG 12 - Offshore Floating | L153: 1129.917618
K154: TRG 13 - Offshore Floating | L154: 1189.838032
K155: TRG 14 - Offshore Floating | L155: 1203.337932
K156: TRG 15 - Offshore Floating | L156: 1456.358636
J158: Grid Feature Costs ($/kW) | K158: TRG 1 - Offshore Fixed | L158: 0
K159: TRG 2 - Offshore Fixed | L159: 0
K160: TRG 3 - Offshore Fixed | L160: 0
K161: TRG 4 - Offshore Fixed | L161: 0
K162: TRG 5 - Offshore Fixed | L162: 0
K163: TRG 6 - Offshore Floating | L163: 0
K164: TRG 7 - Offshore Floating | L164: 0
K165: TRG 8 - Offshore Floating | L165: 0
K166: TRG 9 - Offshore Floating | L166: 0
K167: TRG 10 - Offshore Floating | L167: 0
K168: TRG 11 - Offshore Floating | L168: 0
K169: TRG 12 - Offshore Floating | L169: 0
K170: TRG 13 - Offshore Floating | L170: 0
K171: TRG 14 - Offshore Floating | L171: 0
K172: TRG 15 - Offshore Floating | L172: 0
J174: Onshore Spur Line Costs ($/kW) | K174: TRG 1 - Offshore Fixed | L174: 0
K175: TRG 2 - Offshore Fixed | L175: 0
K176: TRG 3 - Offshore Fixed | L176: 0
K177: TRG 4 - Offshore Fixed | L177: 0
K178: TRG 5 - Offshore Fixed | L178: 0
K179: TRG 6 - Offshore Floating | L179: 0
K180: TRG 7 - Offshore Floating | L180: 0
K181: TRG 8 - Offshore Floating | L181: 0
K182: TRG 9 - Offshore Floating | L182: 0
K183: TRG 10 - Offshore Floating | L183: 0
K184: TRG 11 - Offshore Floating | L184: 0
K185: TRG 12 - Offshore Floating | L185: 0
K186: TRG 13 - Offshore Floating | L186: 0
K187: TRG 14 - Offshore Floating | L187: 0
K188: TRG 15 - Offshore Floating | L188: 0
J190: Offshore Spur Line Costs ($/kW) | K190: TRG 1 - Offshore Fixed | L190: =L706 -> 227.5623539
K191: TRG 2 - Offshore Fixed | L191: =L709 -> 273.4816665
K192: TRG 3 - Offshore Fixed | L192: =L712 -> 355.6862891
K193: TRG 4 - Offshore Fixed | L193: =L715 -> 588.2321356
K194: TRG 5 - Offshore Fixed | L194: =L718 -> 887.0221598
K195: TRG 6 - Offshore Floating | L195: =L721 -> 478.6224401
K196: TRG 7 - Offshore Floating | L196: =L724 -> 656.8083418
K197: TRG 8 - Offshore Floating | L197: =L727 -> 729.527245
K198: TRG 9 - Offshore Floating | L198: =L730 -> 891.7244655
K199: TRG 10 - Offshore Floating | L199: =L733 -> 1038.192768
K200: TRG 11 - Offshore Floating | L200: =L736 -> 1148.662875
K201: TRG 12 - Offshore Floating | L201: =L739 -> 1129.917618
K202: TRG 13 - Offshore Floating | L202: =L742 -> 1189.838032
K203: TRG 14 - Offshore Floating | L203: =L745 -> 1203.337932
K204: TRG 15 - Offshore Floating | L204: =L748 -> 1456.358636
H208: LCOE | J208: Levelized Cost of Energy ($/MWh) | K208: TRG 1 - Offshore Fixed | L208: =(($S$51 * $S$49 * $S$47 * (L76 * 1 + L142) +L92) * 1000 / (L12 * 8760)) + L108 + 0 -> 104.1528141
K209: TRG 2 - Offshore Fixed | L209: 113.1261931
K210: TRG 3 - Offshore Fixed | L210: 119.3896094
K211: TRG 4 - Offshore Fixed | L211: 135.9111441
K212: TRG 5 - Offshore Fixed | L212: 169.6225067
K213: TRG 6 - Offshore Floating | L213: 121.9537772
K214: TRG 7 - Offshore Floating | L214: 128.3346808
K215: TRG 8 - Offshore Floating | L215: 134.9544272
K216: TRG 9 - Offshore Floating | L216: 146.338173
K217: TRG 10 - Offshore Floating | L217: 161.2870822
K218: TRG 11 - Offshore Floating | L218: 180.0853006
K219: TRG 12 - Offshore Floating | L219: 201.4674512
K220: TRG 13 - Offshore Floating | L220: 218.2205482
... 606 more rows

Sheet Solar - Utility PV
A1: Solar Utility PV Inputs | L1: https://atb.nrel.gov/electricity/2017/index.html?t=su
T3: Inputs
J4: Take me to: | T4: Calculated
B10: X | G10: Current Costs
H12: Techno-Economic Cost and Performance Parameters | J12: Net Capacity Factor (%) | K12: Utility PV - Seattle | L12: 0.1492916024 | O12: Basis Year: | Q12: 2016
K13: Utility PV - Chicago | L13: 0.1770462727
K14: Utility PV - Kansas City | L14: 0.1968873903 | O14: Utility Scale Solar Photovoltaic
K15: Utility PV - Los Angeles | L15: 0.2173618549 | O15: Representative plant is Single Axis tracking with capacity of 100 MW
K16: Utility PV - Daggett, CA | L16: 0.2657307953 | O16: Overnight Capital Cost, Fixed O&M, and Variable O&M costs represent $/kW DC;
O17: Capacity factor includes a conversion to AC. Therefore LCOE reflects $/MWh AC.
J18: Annual Energy Production (kWh/kW) | K18: Utility PV - Seattle | L18: =L12*8760 -> 1307.794437 | O18: Capacity factors chosen here to reflect range across the continental U.S. in ReEDS.
K19: Utility PV - Chicago | L19: =L13*8760 -> 1550.925349
K20: Utility PV - Kansas City | L20: =L14*8760 -> 1724.733539
K21: Utility PV - Los Angeles | L21: =L15*8760 -> 1904.089849
K22: Utility PV - Daggett, CA | L22: =L16*8760 -> 2327.801766
S23: Available
J24: CAPEX ($/kW) | K24: Utility PV - Seattle | L24: =L30+L36 -> 1777.990972 | S24: Capacity
K25: Utility PV - Chicago | L25: =L31+L37 -> 1777.990972 | S25: (GW)
K26: Utility PV - Kansas City | L26: =L32+L38 -> 1777.990972 | S26: 176965
K27: Utility PV - Los Angeles | L27: =L33+L39 -> 1777.990972
K28: Utility PV - Daggett, CA | L28: =L34+L40 -> 1777.990972
O29: Utility PV - Seattle | P29: Utility PV - Seattle | Q29: ATB values reflect annual average capacity factor over life of plant including estimated degradation, starting at 0.75% per year, reducing to 0.3% and 0.5% annual degradation by 2050 for the low- and mid-cases.
J30: Construction Financing Cost ($/kW) | K30: Utility PV - Seattle | L30: =(L36+L62)*($S$48-1) -> 24.06854665 | O30: Utility PV - Chicago | P30: Utility PV - Chicago
K31: Utility PV - Chicago | L31: =(L37+L63)*($S$48-1) -> 24.06854665 | O31: Utility PV - Kansas City | P31: Utility PV - Kansas City
K32: Utility PV - Kansas City | L32: =(L38+L64)*($S$48-1) -> 24.06854665 | O32: Utility PV - Los Angeles | P32: Utility PV - Los Angeles
K33: Utility PV - Los Angeles | L33: =(L39+L65)*($S$48-1) -> 24.06854665 | O33: Utility PV - Daggett, CA | P33: Utility PV - Daggett, CA
K34: Utility PV - Daggett, CA | L34: =(L40+L66)*($S$48-1) -> 24.06854665
O35: Financial Assumptions:
J36: Overnight Capital Cost ($/kW) | K36: Utility PV - Seattle | L36: =$L$168 -> 1753.922426 | O36: Inflation Rate | S36: =L219 -> 0.025
K37: Utility PV - Chicago | L37: =$L$171 -> 1753.922426 | O37: Capital Recovery Period (Years) | S37: 30
K38: Utility PV - Kansas City | L38: =$L$180 -> 1753.922426 | O38: Interest Rate Nominal - Mid | S38: =L221 -> 0.0373
K39: Utility PV - Los Angeles | L39: =$L$180 -> 1753.922426 | O39: Calculated Interest Rate Real - Mid | S39: =L224 -> 0.012
K40: Utility PV - Daggett, CA | L40: =$L$180 -> 1753.922426 | O40: Interest During Construction - Nominal | S40: =L226 -> 0.0373
O41: Rate of Return on Equity Nominal - Mid | S41: =L228 -> 0.0903
J42: Fixed Operation and Maintenance Expenses ($/kW-yr) | K42: Utility PV - Seattle | L42: =L184 -> 14.0313794 | O42: Calculated Rate of Return on Equity Real - Mid | S42: =L231 -> 0.06370731707
K43: Utility PV - Chicago | L43: =L42 -> 14.0313794 | O43: Debt Fraction - Mid | S43: =L235 -> 0.6
K44: Utility PV - Kansas City | L44: =L43 -> 14.0313794 | O44: Tax Rate (Federal and State) | S44: =L236 -> 0.2574
K45: Utility PV - Los Angeles | L45: =L44 -> 14.0313794 | O45: WACC Nominal - Mid | S45: =L238 -> 0.052739388
K46: Utility PV - Daggett, CA | L46: =L45 -> 14.0313794 | O46: WACC Real - Mid | S46: =L241 -> 0.02706281756
O47: Depreciation Period | S47: 5
J48: Variable Operation and Maintenance Expenses ($/MWh) | K48: Utility PV - Seattle | L48: 0 | O48: Construction Finance Factor | S48: =SUMPRODUCT(P67:P69,Q67:Q69) -> 1.013722697
K49: Utility PV - Chicago | L49: 0 | O49: Present Value of Depreciation | S49: =SUMPRODUCT(O74:T74,O76:T76) -> 0.8684887286
K50: Utility PV - Kansas City | L50: 0 | O50: Project Finance Factor | S50: =(1 - S49 * S44) / (1 - S44) -> 1.045584435
K51: Utility PV - Los Angeles | L51: 0 | O51: Capital Recovery Factor (CRF) Nominal - Mid | S51: =L245 -> 0.06709677801
K52: Utility PV - Daggett, CA | L52: 0 | O52: Capital Recovery Factor (CRF) Real - Mid | S52: =L248 -> 0.04910140114
H55: Finance | J55: Weighted Average Cost of Capital (WACC) (Nominal) (%) | K55: Utility PV - Seattle | L55: =$S$45 -> 0.052739388
K56: Utility PV - Chicago | L56: =L55 -> 0.052739388
K57: Utility PV - Kansas City | L57: =L56 -> 0.052739388
K58: Utility PV - Los Angeles | L58: =L57 -> 0.052739388
K59: Utility PV - Daggett, CA | L59: =L58 -> 0.052739388
H62: Grid Connection Costs | J62: Grid Connection Costs (GCC) ($/kW) | K62: Utility PV - Seattle | L62: =L68+L74 -> 0 | O62: Construction Duration yrs | Q62: 1
K63: Utility PV - Chicago | L63: =L69+L75 -> 0 | O63: Year | P63: Capital | Q63: Accumulated
K64: Utility PV - Kansas City | L64: =L70+L76 -> 0 | O64: Index | P64: Fraction | Q64: Interest
K65: Utility PV - Los Angeles | L65: =L71+L77 -> 0
K66: Utility PV - Daggett, CA | L66: =L72+L78 -> 0
O67: 0 | P67: 1 | Q67: =1+(1-S44)*((1+S40)^(O67+0.5)-1) -> 1.013722697
J68: Grid Feature Costs ($/kW) | K68: Utility PV - Seattle | L68: 0 | O68: 1 | P68: 0 | Q68: =1+(1-S44)*((1+S40)^(O68+0.5)-1) -> 1.041933534
K69: Utility PV - Chicago | L69: 0 | O69: 2 | P69: 0 | Q69: =1+(1-S44)*((1+S40)^(O69+0.5)-1) -> 1.071196635
K70: Utility PV - Kansas City | L70: 0
K71: Utility PV - Los Angeles | L71: 0
K72: Utility PV - Daggett, CA | L72: 0
N73: MACRS yr | O73: 1 | P73: 2 | Q73: 3 | R73: 4 | S73: 5 | T73: 6
J74: Onshore Spur Line Costs ($/kW) | K74: Utility PV - Seattle | L74: 0 | N74: Depreciation | O74: 0.2 | P74: 0.32 | Q74: 0.192 | R74: 0.1152 | S74: 0.1152 | T74: 0.0576
K75: Utility PV - Chicago | L75: 0 | N75: Fraction
K76: Utility PV - Kansas City | L76: 0 | N76: Depreciation | O76: =1/((1+S46)*(1+S36))^O73 -> 0.9499027123 | P76: =1/((1+S46)*(1+S36))^P73 -> 0.9023151628 | Q76: =1/((1+S46)*(1+S36))^Q73 -> 0.8571116205 | R76: =1/((1+S46)*(1+S36))^R73 -> 0.8141726531 | S76: =1/((1+S46)*(1+S36))^S73 -> 0.7733848114 | T76: =1/((1+S46)*(1+S36))^T73 -> 0.73464033
K77: Utility PV - Los Angeles | L77: 0
K78: Utility PV - Daggett, CA | L78: 0
N79: Factor
H81: LCOE | J81: Levelized Cost of Energy ($/MWh) | K81: Utility PV - Seattle | L81: =(($S$52 * $S$50 * $S$48 * (L36 * 1 + L62) +L42) * 1000 / (L12 * 8760)) + L48 + 0 -> 80.52705363
K82: Utility PV - Chicago | L82: =(($S$52 * $S$50 * $S$48 * (L37 * 1 + L63) +L43) * 1000 / (L13 * 8760)) + L49 + 0 -> 67.90322488
K83: Utility PV - Kansas City | L83: 61.06034953
K84: Utility PV - Los Angeles | L84: 55.30875175
K85: Utility PV - Daggett, CA | L85: 45.2413235
J87: Overnight Levelized Cost of Energy ($/MWh) | K87: Utility PV - Seattle | L87: =(((L36*$S$60*(1-$S$48*$S$55))/(8760*L12*(1-$S$48))+L42/(8760*L12))*1000)+L48 -> 10.72904044 | M87: * this is similar to the LCOE used in the TCDB (Transparent Cost Database)
K88: Utility PV - Chicago | L88: =(((L37*$S$60*(1-$S$48*$S$55))/(8760*L13*(1-$S$48))+L43/(8760*L13))*1000)+L49 -> 9.047101728
K89: Utility PV - Kansas City | L89: =(((L38*$S$60*(1-$S$48*$S$55))/(8760*L14*(1-$S$48))+L44/(8760*L14))*1000)+L50 -> 8.135389662
K90: Utility PV - Los Angeles | L90: =(((L39*$S$60*(1-$S$48*$S$55))/(8760*L15*(1-$S$48))+L45/(8760*L15))*1000)+L51 -> 7.369074214
K91: Utility PV - Daggett, CA | L91: =(((L40*$S$60*(1-$S$48*$S$55))/(8760*L16*(1-$S$48))+L46/(8760*L16))*1000)+L52 -> 6.027738104
H93: ***Note: For future projections, low, mid, and high refer to the resulting low, mid, and high LCOE projections.
D96: X | G96: Future Projections
L97: Basis Year
L98: 2016 | M98: 2017 | N98: 2018 | O98: 2019 | P98: 2020 | Q98: 2021 | R98: 2022 | S98: 2023 | T98: 2024 | U98: 2025 | V98: 2026 | W98: 2027 | X98: 2028 | Y98: 2029 | Z98: 2030 | AA98: 2031 | AB98: 2032 | AC98: 2033 | AD98: 2034 | AE98: 2035 | AF98: 2036 | AG98: 2037 | AH98: 2038 | AI98: 2039 | AJ98: 2040 | AK98: 2041 | AL98: 2042 | AM98: 2043 | AN98: 2044 | AO98: 2045 | AP98: 2046 | AQ98: 2047 | AR98: 2048 | AS98: 2049 | AT98: 2050
H99: Techno-Economic Cost and Performance Parameters | J99: Net Capacity Factor (%) | K99: Utility PV - Seattle - Low | L99: 0.1492916024 | M99: 0.149461908 | N99: 0.1496322136 | O99: 0.1498025192 | P99: 0.1499728248 | Q99: 0.1501431303 | R99: 0.1503134359 | S99: 0.1504837415 | T99: 0.1506540471 | U99: 0.1508243527 | V99: 0.1509946583 | W99: 0.1511649639 | X99: 0.1513352695 | Y99: 0.1515055751 | Z99: 0.1516758807 | AA99: 0.1518461863 | AB99: 0.1520164919 | AC99: 0.1521867975 | AD99: 0.1523571031 | AE99: 0.1525274087 | AF99: 0.1526977143 | AG99: 0.1528680199 | AH99: 0.1530383255 | AI99: 0.1532086311 | AJ99: 0.1533789367 | AK99: 0.1535492422 | AL99: 0.1537195478 | AM99: 0.1538898534 | AN99: 0.154060159 | AO99: 0.1542304646 | AP99: 0.1544007702 | AQ99: 0.1545710758 | AR99: 0.1547413814 | AS99: 0.154911687 | AT99: 0.1550819926
K100: Utility PV - Seattle - Mid | L100: 0.1492916024 | M100: 0.1493851427 | N100: 0.149478683 | O100: 0.1495722233 | P100: 0.1496657636 | Q100: 0.1497593039 | R100: 0.1498528442 | S100: 0.1499463845 | T100: 0.1500399248 | U100: 0.1501334651 | V100: 0.1502270054 | W100: 0.1503205457 | X100: 0.150414086 | Y100: 0.1505076263 | Z100: 0.1506011666 | AA100: 0.1506947069 | AB100: 0.1507882472 | AC100: 0.1508817875 | AD100: 0.1509753278 | AE100: 0.1510688681 | AF100: 0.1511624084 | AG100: 0.1512559487 | AH100: 0.151349489 | AI100: 0.1514430293 | AJ100: 0.1515365696 | AK100: 0.1516301099 | AL100: 0.1517236502 | AM100: 0.1518171905 | AN100: 0.1519107308 | AO100: 0.1520042711 | AP100: 0.1520978114 | AQ100: 0.1521913517 | AR100: 0.152284892 | AS100: 0.1523784323 | AT100: 0.1524719726
K101: Utility PV - Seattle - Constant | L101: 0.1492916024 | M101: 0.1492916024 | N101: 0.1492916024 | O101: 0.1492916024 | P101: 0.1492916024 | Q101: 0.1492916024 | R101: 0.1492916024 | S101: 0.1492916024 | T101: 0.1492916024 | U101: 0.1492916024 | V101: 0.1492916024 | W101: 0.1492916024 | X101: 0.1492916024 | Y101: 0.1492916024 | Z101: 0.1492916024 | AA101: 0.1492916024 | AB101: 0.1492916024 | AC101: 0.1492916024 | AD101: 0.1492916024 | AE101: 0.1492916024 | AF101: 0.1492916024 | AG101: 0.1492916024 | AH101: 0.1492916024 | AI101: 0.1492916024 | AJ101: 0.1492916024 | AK101: 0.1492916024 | AL101: 0.1492916024 | AM101: 0.1492916024 | AN101: 0.1492916024 | AO101: 0.1492916024 | AP101: 0.1492916024 | AQ101: 0.1492916024 | AR101: 0.1492916024 | AS101: 0.1492916024 | AT101: 0.1492916024
K102: Utility PV - Chicago - Low | L102: 0.1770462727 | M102: 0.1772482397 | N102: 0.1774502066 | O102: 0.1776521736 | P102: 0.1778541405 | Q102: 0.1780561075 | R102: 0.1782580745 | S102: 0.1784600414 | T102: 0.1786620084 | U102: 0.1788639753 | V102: 0.1790659423 | W102: 0.1792679093 | X102: 0.1794698762 | Y102: 0.1796718432 | Z102: 0.1798738101 | AA102: 0.1800757771 | AB102: 0.180277744 | AC102: 0.180479711 | AD102: 0.180681678 | AE102: 0.1808836449 | AF102: 0.1810856119 | AG102: 0.1812875788 | AH102: 0.1814895458 | AI102: 0.1816915128 | AJ102: 0.1818934797 | AK102: 0.1820954467 | AL102: 0.1822974136 | AM102: 0.1824993806 | AN102: 0.1827013475 | AO102: 0.1829033145 | AP102: 0.1831052815 | AQ102: 0.1833072484 | AR102: 0.1835092154 | AS102: 0.1837111823 | AT102: 0.1839131493
K103: Utility PV - Chicago - Mid | L103: 0.1770462727 | M103: 0.177157203 | N103: 0.1772681333 | O103: 0.1773790636 | P103: 0.1774899939 | Q103: 0.1776009242 | R103: 0.1777118545 | S103: 0.1778227848 | T103: 0.1779337151 | U103: 0.1780446454 | V103: 0.1781555757 | W103: 0.178266506 | X103: 0.1783774363 | Y103: 0.1784883666 | Z103: 0.1785992969 | AA103: 0.1787102272 | AB103: 0.1788211574 | AC103: 0.1789320877 | AD103: 0.179043018 | AE103: 0.1791539483 | AF103: 0.1792648786 | AG103: 0.1793758089 | AH103: 0.1794867392 | AI103: 0.1795976695 | AJ103: 0.1797085998 | AK103: 0.1798195301 | AL103: 0.1799304604 | AM103: 0.1800413907 | AN103: 0.180152321 | AO103: 0.1802632513 | AP103: 0.1803741816 | AQ103: 0.1804851119 | AR103: 0.1805960422 | AS103: 0.1807069725 | AT103: 0.1808179028
K104: Utility PV - Chicago - Constant | L104: 0.1770462727 | M104: 0.1770462727 | N104: 0.1770462727 | O104: 0.1770462727 | P104: 0.1770462727 | Q104: 0.1770462727 | R104: 0.1770462727 | S104: 0.1770462727 | T104: 0.1770462727 | U104: 0.1770462727 | V104: 0.1770462727 | W104: 0.1770462727 | X104: 0.1770462727 | Y104: 0.1770462727 | Z104: 0.1770462727 | AA104: 0.1770462727 | AB104: 0.1770462727 | AC104: 0.1770462727 | AD104: 0.1770462727 | AE104: 0.1770462727 | AF104: 0.1770462727 | AG104: 0.1770462727 | AH104: 0.1770462727 | AI104: 0.1770462727 | AJ104: 0.1770462727 | AK104: 0.1770462727 | AL104: 0.1770462727 | AM104: 0.1770462727 | AN104: 0.1770462727 | AO104: 0.1770462727 | AP104: 0.1770462727 | AQ104: 0.1770462727 | AR104: 0.1770462727 | AS104: 0.1770462727 | AT104: 0.1770462727
K105: Utility PV - Kansas City - Low | L105: 0.1968873903 | M105: 0.1971119912 | N105: 0.1973365921 | O105: 0.1975611929 | P105: 0.1977857938 | Q105: 0.1980103947 | R105: 0.1982349956 | S105: 0.1984595964 | T105: 0.1986841973 | U105: 0.1989087982 | V105: 0.1991333991 | W105: 0.1993579999 | X105: 0.1995826008 | Y105: 0.1998072017 | Z105: 0.2000318025 | AA105: 0.2002564034 | AB105: 0.2004810043 | AC105: 0.2007056052 | AD105: 0.200930206 | AE105: 0.2011548069 | AF105: 0.2013794078 | AG105: 0.2016040087 | AH105: 0.2018286095 | AI105: 0.2020532104 | AJ105: 0.2022778113 | AK105: 0.2025024121 | AL105: 0.202727013 | AM105: 0.2029516139 | AN105: 0.2031762148 | AO105: 0.2034008156 | AP105: 0.2036254165 | AQ105: 0.2038500174 | AR105: 0.2040746183 | AS105: 0.2042992191 | AT105: 0.20452382
K106: Utility PV - Kansas City - Mid | L106: 0.1968873903 | M106: 0.1970107523 | N106: 0.1971341143 | O106: 0.1972574762 | P106: 0.1973808382 | Q106: 0.1975042002 | R106: 0.1976275621 | S106: 0.1977509241 | T106: 0.1978742861 | U106: 0.197997648 | V106: 0.19812101 | W106: 0.198244372 | X106: 0.1983677339 | Y106: 0.1984910959 | Z106: 0.1986144579 | AA106: 0.1987378198 | AB106: 0.1988611818 | AC106: 0.1989845438 | AD106: 0.1991079057 | AE106: 0.1992312677 | AF106: 0.1993546297 | AG106: 0.1994779916 | AH106: 0.1996013536 | AI106: 0.1997247156 | AJ106: 0.1998480775 | AK106: 0.1999714395 | AL106: 0.2000948015 | AM106: 0.2002181634 | AN106: 0.2003415254 | AO106: 0.2004648874 | AP106: 0.2005882493 | AQ106: 0.2007116113 | AR106: 0.2008349733 | AS106: 0.2009583352 | AT106: 0.2010816972
K107: Utility PV - Kansas City - Constant | L107: 0.1968873903 | M107: 0.1968873903 | N107: 0.1968873903 | O107: 0.1968873903 | P107: 0.1968873903 | Q107: 0.1968873903 | R107: 0.1968873903 | S107: 0.1968873903 | T107: 0.1968873903 | U107: 0.1968873903 | V107: 0.1968873903 | W107: 0.1968873903 | X107: 0.1968873903 | Y107: 0.1968873903 | Z107: 0.1968873903 | AA107: 0.1968873903 | AB107: 0.1968873903 | AC107: 0.1968873903 | AD107: 0.1968873903 | AE107: 0.1968873903 | AF107: 0.1968873903 | AG107: 0.1968873903 | AH107: 0.1968873903 | AI107: 0.1968873903 | AJ107: 0.1968873903 | AK107: 0.1968873903 | AL107: 0.1968873903 | AM107: 0.1968873903 | AN107: 0.1968873903 | AO107: 0.1968873903 | AP107: 0.1968873903 | AQ107: 0.1968873903 | AR107: 0.1968873903 | AS107: 0.1968873903 | AT107: 0.1968873903
K108: Utility PV - Los Angeles - Low | L108: 0.2173618549 | M108: 0.2176098122 | N108: 0.2178577694 | O108: 0.2181057267 | P108: 0.218353684 | Q108: 0.2186016413 | R108: 0.2188495986 | S108: 0.2190975559 | T108: 0.2193455131 | U108: 0.2195934704 | V108: 0.2198414277 | W108: 0.220089385 | X108: 0.2203373423 | Y108: 0.2205852996 | Z108: 0.2208332568 | AA108: 0.2210812141 | AB108: 0.2213291714 | AC108: 0.2215771287 | AD108: 0.221825086 | AE108: 0.2220730433 | AF108: 0.2223210005 | AG108: 0.2225689578 | AH108: 0.2228169151 | AI108: 0.2230648724 | AJ108: 0.2233128297 | AK108: 0.223560787 | AL108: 0.2238087442 | AM108: 0.2240567015 | AN108: 0.2243046588 | AO108: 0.2245526161 | AP108: 0.2248005734 | AQ108: 0.2250485306 | AR108: 0.2252964879 | AS108: 0.2255444452 | AT108: 0.2257924025
K109: Utility PV - Los Angeles - Mid | L109: 0.2173618549 | M109: 0.2174980454 | N109: 0.2176342358 | O109: 0.2177704263 | P109: 0.2179066168 | Q109: 0.2180428072 | R109: 0.2181789977 | S109: 0.2183151882 | T109: 0.2184513786 | U109: 0.2185875691 | V109: 0.2187237596 | W109: 0.21885995 | X109: 0.2189961405 | Y109: 0.219132331 | Z109: 0.2192685214 | AA109: 0.2194047119 | AB109: 0.2195409024 | AC109: 0.2196770929 | AD109: 0.2198132833 | AE109: 0.2199494738 | AF109: 0.2200856643 | AG109: 0.2202218547 | AH109: 0.2203580452 | AI109: 0.2204942357 | AJ109: 0.2206304261 | AK109: 0.2207666166 | AL109: 0.2209028071 | AM109: 0.2210389975 | AN109: 0.221175188 | AO109: 0.2213113785 | AP109: 0.2214475689 | AQ109: 0.2215837594 | AR109: 0.2217199499 | AS109: 0.2218561404 | AT109: 0.2219923308
K110: Utility PV - Los Angeles - Constant | L110: 0.2173618549 | M110: 0.2173618549 | N110: 0.2173618549 | O110: 0.2173618549 | P110: 0.2173618549 | Q110: 0.2173618549 | R110: 0.2173618549 | S110: 0.2173618549 | T110: 0.2173618549 | U110: 0.2173618549 | V110: 0.2173618549 | W110: 0.2173618549 | X110: 0.2173618549 | Y110: 0.2173618549 | Z110: 0.2173618549 | AA110: 0.2173618549 | AB110: 0.2173618549 | AC110: 0.2173618549 | AD110: 0.2173618549 | AE110: 0.2173618549 | AF110: 0.2173618549 | AG110: 0.2173618549 | AH110: 0.2173618549 | AI110: 0.2173618549 | AJ110: 0.2173618549 | AK110: 0.2173618549 | AL110: 0.2173618549 | AM110: 0.2173618549 | AN110: 0.2173618549 | AO110: 0.2173618549 | AP110: 0.2173618549 | AQ110: 0.2173618549 | AR110: 0.2173618549 | AS110: 0.2173618549 | AT110: 0.2173618549
K111: Utility PV - Daggett, CA - Low | L111: 0.2657307953 | M111: 0.2660339298 | N111: 0.2663370643 | O111: 0.2666401989 | P111: 0.2669433334 | Q111: 0.267246468 | R111: 0.2675496025 | S111: 0.267852737 | T111: 0.2681558716 | U111: 0.2684590061 | V111: 0.2687621407 | W111: 0.2690652752 | X111: 0.2693684097 | Y111: 0.2696715443 | Z111: 0.2699746788 | AA111: 0.2702778134 | AB111: 0.2705809479 | AC111: 0.2708840824 | AD111: 0.271187217 | AE111: 0.2714903515 | AF111: 0.2717934861 | AG111: 0.2720966206 | AH111: 0.2723997551 | AI111: 0.2727028897 | AJ111: 0.2730060242 | AK111: 0.2733091588 | AL111: 0.2736122933 | AM111: 0.2739154278 | AN111: 0.2742185624 | AO111: 0.2745216969 | AP111: 0.2748248315 | AQ111: 0.275127966 | AR111: 0.2754311005 | AS111: 0.2757342351 | AT111: 0.2760373696
K112: Utility PV - Daggett, CA - Mid | L112: 0.2657307953 | M112: 0.2658972918 | N112: 0.2660637884 | O112: 0.2662302849 | P112: 0.2663967815 | Q112: 0.2665632781 | R112: 0.2667297746 | S112: 0.2668962712 | T112: 0.2670627677 | U112: 0.2672292643 | V112: 0.2673957609 | W112: 0.2675622574 | X112: 0.267728754 | Y112: 0.2678952506 | Z112: 0.2680617471 | AA112: 0.2682282437 | AB112: 0.2683947402 | AC112: 0.2685612368 | AD112: 0.2687277334 | AE112: 0.2688942299 | AF112: 0.2690607265 | AG112: 0.2692272231 | AH112: 0.2693937196 | AI112: 0.2695602162 | AJ112: 0.2697267127 | AK112: 0.2698932093 | AL112: 0.2700597059 | AM112: 0.2702262024 | AN112: 0.270392699 | AO112: 0.2705591956 | AP112: 0.2707256921 | AQ112: 0.2708921887 | AR112: 0.2710586852 | AS112: 0.2712251818 | AT112: 0.2713916784
K113: Utility PV - Daggett, CA - Constant | L113: 0.2657307953 | M113: 0.2657307953 | N113: 0.2657307953 | O113: 0.2657307953 | P113: 0.2657307953 | Q113: 0.2657307953 | R113: 0.2657307953 | S113: 0.2657307953 | T113: 0.2657307953 | U113: 0.2657307953 | V113: 0.2657307953 | W113: 0.2657307953 | X113: 0.2657307953 | Y113: 0.2657307953 | Z113: 0.2657307953 | AA113: 0.2657307953 | AB113: 0.2657307953 | AC113: 0.2657307953 | AD113: 0.2657307953 | AE113: 0.2657307953 | AF113: 0.2657307953 | AG113: 0.2657307953 | AH113: 0.2657307953 | AI113: 0.2657307953 | AJ113: 0.2657307953 | AK113: 0.2657307953 | AL113: 0.2657307953 | AM113: 0.2657307953 | AN113: 0.2657307953 | AO113: 0.2657307953 | AP113: 0.2657307953 | AQ113: 0.2657307953 | AR113: 0.2657307953 | AS113: 0.2657307953 | AT113: 0.2657307953
L115: 2016 | M115: 2017 | N115: 2018 | O115: 2019 | P115: 2020 | Q115: 2021 | R115: 2022 | S115: 2023 | T115: 2024 | U115: 2025 | V115: 2026 | W115: 2027 | X115: 2028 | Y115: 2029 | Z115: 2030 | AA115: 2031 | AB115: 2032 | AC115: 2033 | AD115: 2034 | AE115: 2035 | AF115: 2036 | AG115: 2037 | AH115: 2038 | AI115: 2039 | AJ115: 2040 | AK115: 2041 | AL115: 2042 | AM115: 2043 | AN115: 2044 | AO115: 2045 | AP115: 2046 | AQ115: 2047 | AR115: 2048 | AS115: 2049 | AT115: 2050
J116: Annual Energy Production (kWh/kW) | K116: Utility PV - Seattle - Low | L116: =L99*8760 -> 1307.794437 | M116: =M99*8760 -> 1309.286314 | N116: 1310.778191 | O116: 1312.270068 | P116: 1313.761945 | Q116: 1315.253822 | R116: 1316.745699 | S116: 1318.237576 | T116: 1319.729453 | U116: 1321.22133 | V116: 1322.713207 | W116: 1324.205084 | X116: 1325.696961 | Y116: 1327.188838 | Z116: 1328.680715 | AA116: 1330.172592 | AB116: 1331.664469 | AC116: 1333.156346 | AD116: 1334.648223 | AE116: 1336.1401 | AF116: 1337.631977 | AG116: 1339.123854 | AH116: 1340.615731 | AI116: 1342.107608 | AJ116: 1343.599485 | AK116: 1345.091362 | AL116: 1346.583239 | AM116: 1348.075116 | AN116: 1349.566993 | AO116: 1351.05887 | AP116: 1352.550747 | AQ116: 1354.042624 | AR116: 1355.534501 | AS116: 1357.026378 | AT116: 1358.518255
K117: Utility PV - Seattle - Mid | L117: =L100*8760 -> 1307.794437 | M117: 1308.61385 | N117: 1309.433263 | O117: 1310.252676 | P117: 1311.072089 | Q117: 1311.891502 | R117: 1312.710915 | S117: 1313.530328 | T117: 1314.349741 | U117: 1315.169154 | V117: 1315.988567 | W117: 1316.80798 | X117: 1317.627393 | Y117: 1318.446806 | Z117: 1319.266219 | AA117: 1320.085632 | AB117: 1320.905045 | AC117: 1321.724458 | AD117: 1322.543871 | AE117: 1323.363284 | AF117: 1324.182697 | AG117: 1325.002111 | AH117: 1325.821524 | AI117: 1326.640937 | AJ117: 1327.46035 | AK117: 1328.279763 | AL117: 1329.099176 | AM117: 1329.918589 | AN117: 1330.738002 | AO117: 1331.557415 | AP117: 1332.376828 | AQ117: 1333.196241 | AR117: 1334.015654 | AS117: 1334.835067 | AT117: 1335.65448
K118: Utility PV - Seattle - Constant | L118: =L101*8760 -> 1307.794437 | M118: 1307.794437 | N118: 1307.794437 | O118: 1307.794437 | P118: 1307.794437 | Q118: 1307.794437 | R118: 1307.794437 | S118: 1307.794437 | T118: 1307.794437 | U118: 1307.794437 | V118: 1307.794437 | W118: 1307.794437 | X118: 1307.794437 | Y118: 1307.794437 | Z118: 1307.794437 | AA118: 1307.794437 | AB118: 1307.794437 | AC118: 1307.794437 | AD118: 1307.794437 | AE118: 1307.794437 | AF118: 1307.794437 | AG118: 1307.794437 | AH118: 1307.794437 | AI118: 1307.794437 | AJ118: 1307.794437 | AK118: 1307.794437 | AL118: 1307.794437 | AM118: 1307.794437 | AN118: 1307.794437 | AO118: 1307.794437 | AP118: 1307.794437 | AQ118: 1307.794437 | AR118: 1307.794437 | AS118: 1307.794437 | AT118: 1307.794437
K119: Utility PV - Chicago - Low | L119: =L102*8760 -> 1550.925349 | M119: 1552.69458 | N119: 1554.46381 | O119: 1556.233041 | P119: 1558.002271 | Q119: 1559.771502 | R119: 1561.540732 | S119: 1563.309963 | T119: 1565.079193 | U119: 1566.848424 | V119: 1568.617655 | W119: 1570.386885 | X119: 1572.156116 | Y119: 1573.925346 | Z119: 1575.694577 | AA119: 1577.463807 | AB119: 1579.233038 | AC119: 1581.002268 | AD119: 1582.771499 | AE119: 1584.54073 | AF119: 1586.30996 | AG119: 1588.079191 | AH119: 1589.848421 | AI119: 1591.617652 | AJ119: 1593.386882 | AK119: 1595.156113 | AL119: 1596.925343 | AM119: 1598.694574 | AN119: 1600.463805 | AO119: 1602.233035 | AP119: 1604.002266 | AQ119: 1605.771496 | AR119: 1607.540727 | AS119: 1609.309957 | AT119: 1611.079188
K120: Utility PV - Chicago - Mid | L120: =L103*8760 -> 1550.925349 | M120: 1551.897098 | N120: 1552.868848 | O120: 1553.840597 | P120: 1554.812347 | Q120: 1555.784096 | R120: 1556.755845 | S120: 1557.727595 | T120: 1558.699344 | U120: 1559.671093 | V120: 1560.642843 | W120: 1561.614592 | X120: 1562.586342 | Y120: 1563.558091 | Z120: 1564.52984 | AA120: 1565.50159 | AB120: 1566.473339 | AC120: 1567.445089 | AD120: 1568.416838 | AE120: 1569.388587 | AF120: 1570.360337 | AG120: 1571.332086 | AH120: 1572.303836 | AI120: 1573.275585 | AJ120: 1574.247334 | AK120: 1575.219084 | AL120: 1576.190833 | AM120: 1577.162583 | AN120: 1578.134332 | AO120: 1579.106081 | AP120: 1580.077831 | AQ120: 1581.04958 | AR120: 1582.02133 | AS120: 1582.993079 | AT120: 1583.964828
K121: Utility PV - Chicago - Constant | L121: =L104*8760 -> 1550.925349 | M121: 1550.925349 | N121: 1550.925349 | O121: 1550.925349 | P121: 1550.925349 | Q121: 1550.925349 | R121: 1550.925349 | S121: 1550.925349 | T121: 1550.925349 | U121: 1550.925349 | V121: 1550.925349 | W121: 1550.925349 | X121: 1550.925349 | Y121: 1550.925349 | Z121: 1550.925349 | AA121: 1550.925349 | AB121: 1550.925349 | AC121: 1550.925349 | AD121: 1550.925349 | AE121: 1550.925349 | AF121: 1550.925349 | AG121: 1550.925349 | AH121: 1550.925349 | AI121: 1550.925349 | AJ121: 1550.925349 | AK121: 1550.925349 | AL121: 1550.925349 | AM121: 1550.925349 | AN121: 1550.925349 | AO121: 1550.925349 | AP121: 1550.925349 | AQ121: 1550.925349 | AR121: 1550.925349 | AS121: 1550.925349 | AT121: 1550.925349
K122: Utility PV - Kansas City - Low | L122: =L105*8760 -> 1724.733539 | M122: 1726.701043 | N122: 1728.668547 | O122: 1730.63605 | P122: 1732.603554 | Q122: 1734.571058 | R122: 1736.538561 | S122: 1738.506065 | T122: 1740.473568 | U122: 1742.441072 | V122: 1744.408576 | W122: 1746.376079 | X122: 1748.343583 | Y122: 1750.311087 | Z122: 1752.27859 | AA122: 1754.246094 | AB122: 1756.213598 | AC122: 1758.181101 | AD122: 1760.148605 | AE122: 1762.116109 | AF122: 1764.083612 | AG122: 1766.051116 | AH122: 1768.018619 | AI122: 1769.986123 | AJ122: 1771.953627 | AK122: 1773.92113 | AL122: 1775.888634 | AM122: 1777.856138 | AN122: 1779.823641 | AO122: 1781.791145 | AP122: 1783.758649 | AQ122: 1785.726152 | AR122: 1787.693656 | AS122: 1789.66116 | AT122: 1791.628663
K123: Utility PV - Kansas City - Mid | L123: =L106*8760 -> 1724.733539 | M123: 1725.81419 | N123: 1726.894841 | O123: 1727.975492 | P123: 1729.056143 | Q123: 1730.136793 | R123: 1731.217444 | S123: 1732.298095 | T123: 1733.378746 | U123: 1734.459397 | V123: 1735.540048 | W123: 1736.620698 | X123: 1737.701349 | Y123: 1738.782 | Z123: 1739.862651 | AA123: 1740.943302 | AB123: 1742.023953 | AC123: 1743.104603 | AD123: 1744.185254 | AE123: 1745.265905 | AF123: 1746.346556 | AG123: 1747.427207 | AH123: 1748.507858 | AI123: 1749.588508 | AJ123: 1750.669159 | AK123: 1751.74981 | AL123: 1752.830461 | AM123: 1753.911112 | AN123: 1754.991763 | AO123: 1756.072413 | AP123: 1757.153064 | AQ123: 1758.233715 | AR123: 1759.314366 | AS123: 1760.395017 | AT123: 1761.475668
K124: Utility PV - Kansas City - Constant | L124: =L107*8760 -> 1724.733539 | M124: 1724.733539 | N124: 1724.733539 | O124: 1724.733539 | P124: 1724.733539 | Q124: 1724.733539 | R124: 1724.733539 | S124: 1724.733539 | T124: 1724.733539 | U124: 1724.733539 | V124: 1724.733539 | W124: 1724.733539 | X124: 1724.733539 | Y124: 1724.733539 | Z124: 1724.733539 | AA124: 1724.733539 | AB124: 1724.733539 | AC124: 1724.733539 | AD124: 1724.733539 | AE124: 1724.733539 | AF124: 1724.733539 | AG124: 1724.733539 | AH124: 1724.733539 | AI124: 1724.733539 | AJ124: 1724.733539 | AK124: 1724.733539 | AL124: 1724.733539 | AM124: 1724.733539 | AN124: 1724.733539 | AO124: 1724.733539 | AP124: 1724.733539 | AQ124: 1724.733539 | AR124: 1724.733539 | AS124: 1724.733539 | AT124: 1724.733539
K125: Utility PV - Los Angeles - Low | L125: =L108*8760 -> 1904.089849 | M125: 1906.261955 | N125: 1908.43406 | O125: 1910.606166 | P125: 1912.778272 | Q125: 1914.950378 | R125: 1917.122484 | S125: 1919.294589 | T125: 1921.466695 | U125: 1923.638801 | V125: 1925.810907 | W125: 1927.983013 | X125: 1930.155118 | Y125: 1932.327224 | Z125: 1934.49933 | AA125: 1936.671436 | AB125: 1938.843542 | AC125: 1941.015647 | AD125: 1943.187753 | AE125: 1945.359859 | AF125: 1947.531965 | AG125: 1949.704071 | AH125: 1951.876176 | AI125: 1954.048282 | AJ125: 1956.220388 | AK125: 1958.392494 | AL125: 1960.564599 | AM125: 1962.736705 | AN125: 1964.908811 | AO125: 1967.080917 | AP125: 1969.253023 | AQ125: 1971.425128 | AR125: 1973.597234 | AS125: 1975.76934 | AT125: 1977.941446
K126: Utility PV - Los Angeles - Mid | L126: =L109*8760 -> 1904.089849 | M126: 1905.282877 | N126: 1906.475906 | O126: 1907.668934 | P126: 1908.861963 | Q126: 1910.054991 | R126: 1911.24802 | S126: 1912.441048 | T126: 1913.634077 | U126: 1914.827105 | V126: 1916.020134 | W126: 1917.213162 | X126: 1918.406191 | Y126: 1919.599219 | Z126: 1920.792248 | AA126: 1921.985276 | AB126: 1923.178305 | AC126: 1924.371333 | AD126: 1925.564362 | AE126: 1926.75739 | AF126: 1927.950419 | AG126: 1929.143447 | AH126: 1930.336476 | AI126: 1931.529504 | AJ126: 1932.722533 | AK126: 1933.915561 | AL126: 1935.10859 | AM126: 1936.301618 | AN126: 1937.494647 | AO126: 1938.687675 | AP126: 1939.880704 | AQ126: 1941.073732 | AR126: 1942.266761 | AS126: 1943.459789 | AT126: 1944.652818
K127: Utility PV - Los Angeles - Constant | L127: =L110*8760 -> 1904.089849 | M127: 1904.089849 | N127: 1904.089849 | O127: 1904.089849 | P127: 1904.089849 | Q127: 1904.089849 | R127: 1904.089849 | S127: 1904.089849 | T127: 1904.089849 | U127: 1904.089849 | V127: 1904.089849 | W127: 1904.089849 | X127: 1904.089849 | Y127: 1904.089849 | Z127: 1904.089849 | AA127: 1904.089849 | AB127: 1904.089849 | AC127: 1904.089849 | AD127: 1904.089849 | AE127: 1904.089849 | AF127: 1904.089849 | AG127: 1904.089849 | AH127: 1904.089849 | AI127: 1904.089849 | AJ127: 1904.089849 | AK127: 1904.089849 | AL127: 1904.089849 | AM127: 1904.089849 | AN127: 1904.089849 | AO127: 1904.089849 | AP127: 1904.089849 | AQ127: 1904.089849 | AR127: 1904.089849 | AS127: 1904.089849 | AT127: 1904.089849
K128: Utility PV - Daggett, CA - Low | L128: =L111*8760 -> 2327.801766 | M128: 2330.457225 | N128: 2333.112684 | O128: 2335.768142 | P128: 2338.423601 | Q128: 2341.079059 | R128: 2343.734518 | S128: 2346.389976 | T128: 2349.045435 | U128: 2351.700894 | V128: 2354.356352 | W128: 2357.011811 | X128: 2359.667269 | Y128: 2362.322728 | Z128: 2364.978186 | AA128: 2367.633645 | AB128: 2370.289104 | AC128: 2372.944562 | AD128: 2375.600021 | AE128: 2378.255479 | AF128: 2380.910938 | AG128: 2383.566396 | AH128: 2386.221855 | AI128: 2388.877314 | AJ128: 2391.532772 | AK128: 2394.188231 | AL128: 2396.843689 | AM128: 2399.499148 | AN128: 2402.154606 | AO128: 2404.810065 | AP128: 2407.465524 | AQ128: 2410.120982 | AR128: 2412.776441 | AS128: 2415.431899 | AT128: 2418.087358
K129: Utility PV - Daggett, CA - Mid | L129: =L112*8760 -> 2327.801766 | M129: 2329.260276 | N129: 2330.718786 | O129: 2332.177296 | P129: 2333.635806 | Q129: 2335.094316 | R129: 2336.552826 | S129: 2338.011336 | T129: 2339.469845 | U129: 2340.928355 | V129: 2342.386865 | W129: 2343.845375 | X129: 2345.303885 | Y129: 2346.762395 | Z129: 2348.220905 | AA129: 2349.679415 | AB129: 2351.137925 | AC129: 2352.596434 | AD129: 2354.054944 | AE129: 2355.513454 | AF129: 2356.971964 | AG129: 2358.430474 | AH129: 2359.888984 | AI129: 2361.347494 | AJ129: 2362.806004 | AK129: 2364.264514 | AL129: 2365.723023 | AM129: 2367.181533 | AN129: 2368.640043 | AO129: 2370.098553 | AP129: 2371.557063 | AQ129: 2373.015573 | AR129: 2374.474083 | AS129: 2375.932593 | AT129: 2377.391102
K130: Utility PV - Daggett, CA - Constant | L130: =L113*8760 -> 2327.801766 | M130: 2327.801766 | N130: 2327.801766 | O130: 2327.801766 | P130: 2327.801766 | Q130: 2327.801766 | R130: 2327.801766 | S130: 2327.801766 | T130: 2327.801766 | U130: 2327.801766 | V130: 2327.801766 | W130: 2327.801766 | X130: 2327.801766 | Y130: 2327.801766 | Z130: 2327.801766 | AA130: 2327.801766 | AB130: 2327.801766 | AC130: 2327.801766 | AD130: 2327.801766 | AE130: 2327.801766 | AF130: 2327.801766 | AG130: 2327.801766 | AH130: 2327.801766 | AI130: 2327.801766 | AJ130: 2327.801766 | AK130: 2327.801766 | AL130: 2327.801766 | AM130: 2327.801766 | AN130: 2327.801766 | AO130: 2327.801766 | AP130: 2327.801766 | AQ130: 2327.801766 | AR130: 2327.801766 | AS130: 2327.801766 | AT130: 2327.801766
L132: 2016 | M132: 2017 | N132: 2018 | O132: 2019 | P132: 2020 | Q132: 2021 | R132: 2022 | S132: 2023 | T132: 2024 | U132: 2025 | V132: 2026 | W132: 2027 | X132: 2028 | Y132: 2029 | Z132: 2030 | AA132: 2031 | AB132: 2032 | AC132: 2033 | AD132: 2034 | AE132: 2035 | AF132: 2036 | AG132: 2037 | AH132: 2038 | AI132: 2039 | AJ132: 2040 | AK132: 2041 | AL132: 2042 | AM132: 2043 | AN132: 2044 | AO132: 2045 | AP132: 2046 | AQ132: 2047 | AR132: 2048 | AS132: 2049 | AT132: 2050
J133: CAPEX ($/kW) | K133: Utility PV - Seattle - Low | L133: =L150+L167 -> 1777.990972 | M133: =M150+M167 -> 1211.917965 | N133: 940.5077225 | O133: 893.3459176 | P133: 851.7232024 | Q133: 816.3140501 | R133: 793.1940021 | S133: 770.0739542 | T133: 746.9539062 | U133: 723.8338582 | V133: 700.7138103 | W133: 677.5937623 | X133: 654.4737143 | Y133: 631.3536664 | Z133: 608.2336184 | AA133: 598.0963914 | AB133: 587.9591645 | AC133: 577.8219375 | AD133: 569.5838444 | AE133: 553.1638789 | AF133: 540.2280709 | AG133: 527.2922628 | AH133: 514.3564548 | AI133: 501.4206467 | AJ133: 488.4848387 | AK133: 481.3431388 | AL133: 469.1315013 | AM133: 454.6370124 | AN133: 440.1425236 | AO133: 439.8341431 | AP133: 413.3090654 | AQ133: 400.9700959 | AR133: 388.6311265 | AS133: 376.2921571 | AT133: 371.5884068
K134: Utility PV - Seattle - Mid | L134: =L151+L168 -> 1777.990972 | M134: 1211.917965 | N134: 1064.643981 | O134: 1024.468736 | P134: 964.2058693 | Q134: 913.9868136 | R134: 903.667766 | S134: 893.3487183 | T134: 883.0296707 | U134: 872.710623 | V134: 862.3915754 | W134: 852.0725278 | X134: 841.7534801 | Y134: 831.4344325 | Z134: 821.1153849 | AA134: 814.019326 | AB134: 806.9232671 | AC134: 799.8272082 | AD134: 792.7311493 | AE134: 785.6350905 | AF134: 778.5390316 | AG134: 771.4429727 | AH134: 764.3469138 | AI134: 757.2508549 | AJ134: 750.154796 | AK134: 742.0450145 | AL134: 733.9352329 | AM134: 725.8254513 | AN134: 717.7156697 | AO134: 709.6058882 | AP134: 701.4961066 | AQ134: 693.386325 | AR134: 685.2765434 | AS134: 677.1667618 | AT134: 669.0569803
K135: Utility PV - Seattle - Constant | L135: =L152+L169 -> 1777.990972 | M135: 1211.917965 | N135: 1110.545695 | O135: 1120.682922 | P135: 1151.094603 | Q135: 1171.369057 | R135: 1171.369057 | S135: 1171.369057 | T135: 1171.369057 | U135: 1171.369057 | V135: 1171.369057 | W135: 1171.369057 | X135: 1171.369057 | Y135: 1171.369057 | Z135: 1171.369057 | AA135: 1171.369057 | AB135: 1171.369057 | AC135: 1171.369057 | AD135: 1171.369057 | AE135: 1171.369057 | AF135: 1171.369057 | AG135: 1171.369057 | AH135: 1171.369057 | AI135: 1171.369057 | AJ135: 1171.369057 | AK135: 1171.369057 | AL135: 1171.369057 | AM135: 1171.369057 | AN135: 1171.369057 | AO135: 1171.369057 | AP135: 1171.369057 | AQ135: 1171.369057 | AR135: 1171.369057 | AS135: 1171.369057 | AT135: 1171.369057
K136: Utility PV - Chicago - Low | L136: =L153+L170 -> 1777.990972 | M136: 1211.917965 | N136: 940.5077225 | O136: 893.3459176 | P136: 851.7232024 | Q136: 816.3140501 | R136: 793.1940021 | S136: 770.0739542 | T136: 746.9539062 | U136: 723.8338582 | V136: 700.7138103 | W136: 677.5937623 | X136: 654.4737143 | Y136: 631.3536664 | Z136: 608.2336184 | AA136: 598.0963914 | AB136: 587.9591645 | AC136: 577.8219375 | AD136: 569.5838444 | AE136: 553.1638789 | AF136: 540.2280709 | AG136: 527.2922628 | AH136: 514.3564548 | AI136: 501.4206467 | AJ136: 488.4848387 | AK136: 481.3431388 | AL136: 469.1315013 | AM136: 454.6370124 | AN136: 440.1425236 | AO136: 439.8341431 | AP136: 413.3090654 | AQ136: 400.9700959 | AR136: 388.6311265 | AS136: 376.2921571 | AT136: 371.5884068
K137: Utility PV - Chicago - Mid | L137: =L154+L171 -> 1777.990972 | M137: 1211.917965 | N137: 1064.643981 | O137: 1024.468736 | P137: 964.2058693 | Q137: 913.9868136 | R137: 903.667766 | S137: 893.3487183 | T137: 883.0296707 | U137: 872.710623 | V137: 862.3915754 | W137: 852.0725278 | X137: 841.7534801 | Y137: 831.4344325 | Z137: 821.1153849 | AA137: 814.019326 | AB137: 806.9232671 | AC137: 799.8272082 | AD137: 792.7311493 | AE137: 785.6350905 | AF137: 778.5390316 | AG137: 771.4429727 | AH137: 764.3469138 | AI137: 757.2508549 | AJ137: 750.154796 | AK137: 742.0450145 | AL137: 733.9352329 | AM137: 725.8254513 | AN137: 717.7156697 | AO137: 709.6058882 | AP137: 701.4961066 | AQ137: 693.386325 | AR137: 685.2765434 | AS137: 677.1667618 | AT137: 669.0569803
K138: Utility PV - Chicago - Constant | L138: =L155+L172 -> 1777.990972 | M138: 1211.917965 | N138: 1110.545695 | O138: 1120.682922 | P138: 1151.094603 | Q138: 1171.369057 | R138: 1171.369057 | S138: 1171.369057 | T138: 1171.369057 | U138: 1171.369057 | V138: 1171.369057 | W138: 1171.369057 | X138: 1171.369057 | Y138: 1171.369057 | Z138: 1171.369057 | AA138: 1171.369057 | AB138: 1171.369057 | AC138: 1171.369057 | AD138: 1171.369057 | AE138: 1171.369057 | AF138: 1171.369057 | AG138: 1171.369057 | AH138: 1171.369057 | AI138: 1171.369057 | AJ138: 1171.369057 | AK138: 1171.369057 | AL138: 1171.369057 | AM138: 1171.369057 | AN138: 1171.369057 | AO138: 1171.369057 | AP138: 1171.369057 | AQ138: 1171.369057 | AR138: 1171.369057 | AS138: 1171.369057 | AT138: 1171.369057
K139: Utility PV - Kansas City - Low | L139: =L156+L173 -> 1777.990972 | M139: 1211.917965 | N139: 940.5077225 | O139: 893.3459176 | P139: 851.7232024 | Q139: 816.3140501 | R139: 793.1940021 | S139: 770.0739542 | T139: 746.9539062 | U139: 723.8338582 | V139: 700.7138103 | W139: 677.5937623 | X139: 654.4737143 | Y139: 631.3536664 | Z139: 608.2336184 | AA139: 598.0963914 | AB139: 587.9591645 | AC139: 577.8219375 | AD139: 569.5838444 | AE139: 553.1638789 | AF139: 540.2280709 | AG139: 527.2922628 | AH139: 514.3564548 | AI139: 501.4206467 | AJ139: 488.4848387 | AK139: 481.3431388 | AL139: 469.1315013 | AM139: 454.6370124 | AN139: 440.1425236 | AO139: 439.8341431 | AP139: 413.3090654 | AQ139: 400.9700959 | AR139: 388.6311265 | AS139: 376.2921571 | AT139: 371.5884068
K140: Utility PV - Kansas City - Mid | L140: =L157+L174 -> 1777.990972 | M140: 1211.917965 | N140: 1064.643981 | O140: 1024.468736 | P140: 964.2058693 | Q140: 913.9868136 | R140: 903.667766 | S140: 893.3487183 | T140: 883.0296707 | U140: 872.710623 | V140: 862.3915754 | W140: 852.0725278 | X140: 841.7534801 | Y140: 831.4344325 | Z140: 821.1153849 | AA140: 814.019326 | AB140: 806.9232671 | AC140: 799.8272082 | AD140: 792.7311493 | AE140: 785.6350905 | AF140: 778.5390316 | AG140: 771.4429727 | AH140: 764.3469138 | AI140: 757.2508549 | AJ140: 750.154796 | AK140: 742.0450145 | AL140: 733.9352329 | AM140: 725.8254513 | AN140: 717.7156697 | AO140: 709.6058882 | AP140: 701.4961066 | AQ140: 693.386325 | AR140: 685.2765434 | AS140: 677.1667618 | AT140: 669.0569803
K141: Utility PV - Kansas City - Constant | L141: =L158+L175 -> 1777.990972 | M141: 1211.917965 | N141: 1110.545695 | O141: 1120.682922 | P141: 1151.094603 | Q141: 1171.369057 | R141: 1171.369057 | S141: 1171.369057 | T141: 1171.369057 | U141: 1171.369057 | V141: 1171.369057 | W141: 1171.369057 | X141: 1171.369057 | Y141: 1171.369057 | Z141: 1171.369057 | AA141: 1171.369057 | AB141: 1171.369057 | AC141: 1171.369057 | AD141: 1171.369057 | AE141: 1171.369057 | AF141: 1171.369057 | AG141: 1171.369057 | AH141: 1171.369057 | AI141: 1171.369057 | AJ141: 1171.369057 | AK141: 1171.369057 | AL141: 1171.369057 | AM141: 1171.369057 | AN141: 1171.369057 | AO141: 1171.369057 | AP141: 1171.369057 | AQ141: 1171.369057 | AR141: 1171.369057 | AS141: 1171.369057 | AT141: 1171.369057
K142: Utility PV - Los Angeles - Low | L142: =L159+L176 -> 1777.990972 | M142: 1211.917965 | N142: 940.5077225 | O142: 893.3459176 | P142: 851.7232024 | Q142: 816.3140501 | R142: 793.1940021 | S142: 770.0739542 | T142: 746.9539062 | U142: 723.8338582 | V142: 700.7138103 | W142: 677.5937623 | X142: 654.4737143 | Y142: 631.3536664 | Z142: 608.2336184 | AA142: 598.0963914 | AB142: 587.9591645 | AC142: 577.8219375 | AD142: 569.5838444 | AE142: 553.1638789 | AF142: 540.2280709 | AG142: 527.2922628 | AH142: 514.3564548 | AI142: 501.4206467 | AJ142: 488.4848387 | AK142: 481.3431388 | AL142: 469.1315013 | AM142: 454.6370124 | AN142: 440.1425236 | AO142: 439.8341431 | AP142: 413.3090654 | AQ142: 400.9700959 | AR142: 388.6311265 | AS142: 376.2921571 | AT142: 371.5884068
K143: Utility PV - Los Angeles - Mid | L143: =L160+L177 -> 1777.990972 | M143: 1211.917965 | N143: 1064.643981 | O143: 1024.468736 | P143: 964.2058693 | Q143: 913.9868136 | R143: 903.667766 | S143: 893.3487183 | T143: 883.0296707 | U143: 872.710623 | V143: 862.3915754 | W143: 852.0725278 | X143: 841.7534801 | Y143: 831.4344325 | Z143: 821.1153849 | AA143: 814.019326 | AB143: 806.9232671 | AC143: 799.8272082 | AD143: 792.7311493 | AE143: 785.6350905 | AF143: 778.5390316 | AG143: 771.4429727 | AH143: 764.3469138 | AI143: 757.2508549 | AJ143: 750.154796 | AK143: 742.0450145 | AL143: 733.9352329 | AM143: 725.8254513 | AN143: 717.7156697 | AO143: 709.6058882 | AP143: 701.4961066 | AQ143: 693.386325 | AR143: 685.2765434 | AS143: 677.1667618 | AT143: 669.0569803
K144: Utility PV - Los Angeles - Constant | L144: =L161+L178 -> 1777.990972 | M144: 1211.917965 | N144: 1110.545695 | O144: 1120.682922 | P144: 1151.094603 | Q144: 1171.369057 | R144: 1171.369057 | S144: 1171.369057 | T144: 1171.369057 | U144: 1171.369057 | V144: 1171.369057 | W144: 1171.369057 | X144: 1171.369057 | Y144: 1171.369057 | Z144: 1171.369057 | AA144: 1171.369057 | AB144: 1171.369057 | AC144: 1171.369057 | AD144: 1171.369057 | AE144: 1171.369057 | AF144: 1171.369057 | AG144: 1171.369057 | AH144: 1171.369057 | AI144: 1171.369057 | AJ144: 1171.369057 | AK144: 1171.369057 | AL144: 1171.369057 | AM144: 1171.369057 | AN144: 1171.369057 | AO144: 1171.369057 | AP144: 1171.369057 | AQ144: 1171.369057 | AR144: 1171.369057 | AS144: 1171.369057 | AT144: 1171.369057
K145: Utility PV - Daggett, CA - Low | L145: =L162+L179 -> 1777.990972 | M145: 1211.917965 | N145: 940.5077225 | O145: 893.3459176 | P145: 851.7232024 | Q145: 816.3140501 | R145: 793.1940021 | S145: 770.0739542 | T145: 746.9539062 | U145: 723.8338582 | V145: 700.7138103 | W145: 677.5937623 | X145: 654.4737143 | Y145: 631.3536664 | Z145: 608.2336184 | AA145: 598.0963914 | AB145: 587.9591645 | AC145: 577.8219375 | AD145: 569.5838444 | AE145: 553.1638789 | AF145: 540.2280709 | AG145: 527.2922628 | AH145: 514.3564548 | AI145: 501.4206467 | AJ145: 488.4848387 | AK145: 481.3431388 | AL145: 469.1315013 | AM145: 454.6370124 | AN145: 440.1425236 | AO145: 439.8341431 | AP145: 413.3090654 | AQ145: 400.9700959 | AR145: 388.6311265 | AS145: 376.2921571 | AT145: 371.5884068
K146: Utility PV - Daggett, CA - Mid | L146: =L163+L180 -> 1777.990972 | M146: 1211.917965 | N146: 1064.643981 | O146: 1024.468736 | P146: 964.2058693 | Q146: 913.9868136 | R146: 903.667766 | S146: 893.3487183 | T146: 883.0296707 | U146: 872.710623 | V146: 862.3915754 | W146: 852.0725278 | X146: 841.7534801 | Y146: 831.4344325 | Z146: 821.1153849 | AA146: 814.019326 | AB146: 806.9232671 | AC146: 799.8272082 | AD146: 792.7311493 | AE146: 785.6350905 | AF146: 778.5390316 | AG146: 771.4429727 | AH146: 764.3469138 | AI146: 757.2508549 | AJ146: 750.154796 | AK146: 742.0450145 | AL146: 733.9352329 | AM146: 725.8254513 | AN146: 717.7156697 | AO146: 709.6058882 | AP146: 701.4961066 | AQ146: 693.386325 | AR146: 685.2765434 | AS146: 677.1667618 | AT146: 669.0569803
K147: Utility PV - Daggett, CA - Constant | L147: =L164+L181 -> 1777.990972 | M147: 1211.917965 | N147: 1110.545695 | O147: 1120.682922 | P147: 1151.094603 | Q147: 1171.369057 | R147: 1171.369057 | S147: 1171.369057 | T147: 1171.369057 | U147: 1171.369057 | V147: 1171.369057 | W147: 1171.369057 | X147: 1171.369057 | Y147: 1171.369057 | Z147: 1171.369057 | AA147: 1171.369057 | AB147: 1171.369057 | AC147: 1171.369057 | AD147: 1171.369057 | AE147: 1171.369057 | AF147: 1171.369057 | AG147: 1171.369057 | AH147: 1171.369057 | AI147: 1171.369057 | AJ147: 1171.369057 | AK147: 1171.369057 | AL147: 1171.369057 | AM147: 1171.369057 | AN147: 1171.369057 | AO147: 1171.369057 | AP147: 1171.369057 | AQ147: 1171.369057 | AR147: 1171.369057 | AS147: 1171.369057 | AT147: 1171.369057
L149: 2016 | M149: 2017 | N149: 2018 | O149: 2019 | P149: 2020 | Q149: 2021 | R149: 2022 | S149: 2023 | T149: 2024 | U149: 2025 | V149: 2026 | W149: 2027 | X149: 2028 | Y149: 2029 | Z149: 2030 | AA149: 2031 | AB149: 2032 | AC149: 2033 | AD149: 2034 | AE149: 2035 | AF149: 2036 | AG149: 2037 | AH149: 2038 | AI149: 2039 | AJ149: 2040 | AK149: 2041 | AL149: 2042 | AM149: 2043 | AN149: 2044 | AO149: 2045 | AP149: 2046 | AQ149: 2047 | AR149: 2048 | AS149: 2049 | AT149: 2050
J150: Construction Financing Cost ($/kW) | K150: Utility PV - Seattle - Low | L150: =($S$48-1)*(L167+L269) -> 24.06854665 | M150: =($S$48-1)*(M167+M269) -> 16.40565365 | N150: 12.73159107 | O150: 12.09316483 | P150: 11.52972087 | Q150: 11.05038951 | R150: 10.73741495 | S150: 10.42444038 | T150: 10.11146581 | U150: 9.798491248 | V150: 9.485516682 | W150: 9.172542116 | X150: 8.85956755 | Y150: 8.546592984 | Z150: 8.233618418 | AA150: 8.096391445 | AB150: 7.959164471 | AC150: 7.821937497 | AD150: 7.710418974 | AE150: 7.488142983 | AF150: 7.313031802 | AG150: 7.137920621 | AH150: 6.962809439 | AI150: 6.787698258 | AJ150: 6.612587077 | AK150: 6.515910357 | AL150: 6.350602223 | AM150: 6.154391283 | AN150: 5.958180343 | AO150: 5.954005816 | AP150: 5.594937587 | AQ150: 5.42790577 | AR150: 5.260873954 | AS150: 5.093842138 | AT150: 5.030167781
K151: Utility PV - Seattle - Mid | L151: =($S$48-1)*(L168+L270) -> 24.06854665 | M151: 16.40565365 | N151: 14.41201542 | O151: 13.86816578 | P151: 13.05239132 | Q151: 12.37257928 | R151: 12.23289101 | S151: 12.09320274 | T151: 11.95351447 | U151: 11.8138262 | V151: 11.67413794 | W151: 11.53444967 | X151: 11.3947614 | Y151: 11.25507313 | Z151: 11.11538486 | AA151: 11.01932598 | AB151: 10.9232671 | AC151: 10.82720822 | AD151: 10.73114934 | AE151: 10.63509046 | AF151: 10.53903158 | AG151: 10.44297269 | AH151: 10.34691381 | AI151: 10.25085493 | AJ151: 10.15479605 | AK151: 10.04501447 | AL151: 9.935232892 | AM151: 9.825451313 | AN151: 9.715669734 | AO151: 9.605888155 | AP151: 9.496106576 | AQ151: 9.386324997 | AR151: 9.276543418 | AS151: 9.166761839 | AT151: 9.05698026
K152: Utility PV - Seattle - Constant | L152: =($S$48-1)*(L169+L271) -> 24.06854665 | M152: 16.40565365 | N152: 15.03338391 | O152: 15.17061088 | P152: 15.5822918 | Q152: 15.85674575 | R152: 15.85674575 | S152: 15.85674575 | T152: 15.85674575 | U152: 15.85674575 | V152: 15.85674575 | W152: 15.85674575 | X152: 15.85674575 | Y152: 15.85674575 | Z152: 15.85674575 | AA152: 15.85674575 | AB152: 15.85674575 | AC152: 15.85674575 | AD152: 15.85674575 | AE152: 15.85674575 | AF152: 15.85674575 | AG152: 15.85674575 | AH152: 15.85674575 | AI152: 15.85674575 | AJ152: 15.85674575 | AK152: 15.85674575 | AL152: 15.85674575 | AM152: 15.85674575 | AN152: 15.85674575 | AO152: 15.85674575 | AP152: 15.85674575 | AQ152: 15.85674575 | AR152: 15.85674575 | AS152: 15.85674575 | AT152: 15.85674575
K153: Utility PV - Chicago - Low | L153: =($S$48-1)*(L170+L272) -> 24.06854665 | M153: 16.40565365 | N153: 12.73159107 | O153: 12.09316483 | P153: 11.52972087 | Q153: 11.05038951 | R153: 10.73741495 | S153: 10.42444038 | T153: 10.11146581 | U153: 9.798491248 | V153: 9.485516682 | W153: 9.172542116 | X153: 8.85956755 | Y153: 8.546592984 | Z153: 8.233618418 | AA153: 8.096391445 | AB153: 7.959164471 | AC153: 7.821937497 | AD153: 7.710418974 | AE153: 7.488142983 | AF153: 7.313031802 | AG153: 7.137920621 | AH153: 6.962809439 | AI153: 6.787698258 | AJ153: 6.612587077 | AK153: 6.515910357 | AL153: 6.350602223 | AM153: 6.154391283 | AN153: 5.958180343 | AO153: 5.954005816 | AP153: 5.594937587 | AQ153: 5.42790577 | AR153: 5.260873954 | AS153: 5.093842138 | AT153: 5.030167781
K154: Utility PV - Chicago - Mid | L154: =($S$48-1)*(L171+L273) -> 24.06854665 | M154: 16.40565365 | N154: 14.41201542 | O154: 13.86816578 | P154: 13.05239132 | Q154: 12.37257928 | R154: 12.23289101 | S154: 12.09320274 | T154: 11.95351447 | U154: 11.8138262 | V154: 11.67413794 | W154: 11.53444967 | X154: 11.3947614 | Y154: 11.25507313 | Z154: 11.11538486 | AA154: 11.01932598 | AB154: 10.9232671 | AC154: 10.82720822 | AD154: 10.73114934 | AE154: 10.63509046 | AF154: 10.53903158 | AG154: 10.44297269 | AH154: 10.34691381 | AI154: 10.25085493 | AJ154: 10.15479605 | AK154: 10.04501447 | AL154: 9.935232892 | AM154: 9.825451313 | AN154: 9.715669734 | AO154: 9.605888155 | AP154: 9.496106576 | AQ154: 9.386324997 | AR154: 9.276543418 | AS154: 9.166761839 | AT154: 9.05698026
K155: Utility PV - Chicago - Constant | L155: =($S$48-1)*(L172+L274) -> 24.06854665 | M155: 16.40565365 | N155: 15.03338391 | O155: 15.17061088 | P155: 15.5822918 | Q155: 15.85674575 | R155: 15.85674575 | S155: 15.85674575 | T155: 15.85674575 | U155: 15.85674575 | V155: 15.85674575 | W155: 15.85674575 | X155: 15.85674575 | Y155: 15.85674575 | Z155: 15.85674575 | AA155: 15.85674575 | AB155: 15.85674575 | AC155: 15.85674575 | AD155: 15.85674575 | AE155: 15.85674575 | AF155: 15.85674575 | AG155: 15.85674575 | AH155: 15.85674575 | AI155: 15.85674575 | AJ155: 15.85674575 | AK155: 15.85674575 | AL155: 15.85674575 | AM155: 15.85674575 | AN155: 15.85674575 | AO155: 15.85674575 | AP155: 15.85674575 | AQ155: 15.85674575 | AR155: 15.85674575 | AS155: 15.85674575 | AT155: 15.85674575
K156: Utility PV - Kansas City - Low | L156: =($S$48-1)*(L173+L275) -> 24.06854665 | M156: 16.40565365 | N156: 12.73159107 | O156: 12.09316483 | P156: 11.52972087 | Q156: 11.05038951 | R156: 10.73741495 | S156: 10.42444038 | T156: 10.11146581 | U156: 9.798491248 | V156: 9.485516682 | W156: 9.172542116 | X156: 8.85956755 | Y156: 8.546592984 | Z156: 8.233618418 | AA156: 8.096391445 | AB156: 7.959164471 | AC156: 7.821937497 | AD156: 7.710418974 | AE156: 7.488142983 | AF156: 7.313031802 | AG156: 7.137920621 | AH156: 6.962809439 | AI156: 6.787698258 | AJ156: 6.612587077 | AK156: 6.515910357 | AL156: 6.350602223 | AM156: 6.154391283 | AN156: 5.958180343 | AO156: 5.954005816 | AP156: 5.594937587 | AQ156: 5.42790577 | AR156: 5.260873954 | AS156: 5.093842138 | AT156: 5.030167781
K157: Utility PV - Kansas City - Mid | L157: =($S$48-1)*(L174+L276) -> 24.06854665 | M157: 16.40565365 | N157: 14.41201542 | O157: 13.86816578 | P157: 13.05239132 | Q157: 12.37257928 | R157: 12.23289101 | S157: 12.09320274 | T157: 11.95351447 | U157: 11.8138262 | V157: 11.67413794 | W157: 11.53444967 | X157: 11.3947614 | Y157: 11.25507313 | Z157: 11.11538486 | AA157: 11.01932598 | AB157: 10.9232671 | AC157: 10.82720822 | AD157: 10.73114934 | AE157: 10.63509046 | AF157: 10.53903158 | AG157: 10.44297269 | AH157: 10.34691381 | AI157: 10.25085493 | AJ157: 10.15479605 | AK157: 10.04501447 | AL157: 9.935232892 | AM157: 9.825451313 | AN157: 9.715669734 | AO157: 9.605888155 | AP157: 9.496106576 | AQ157: 9.386324997 | AR157: 9.276543418 | AS157: 9.166761839 | AT157: 9.05698026
K158: Utility PV - Kansas City - Constant | L158: =($S$48-1)*(L175+L277) -> 24.06854665 | M158: 16.40565365 | N158: 15.03338391 | O158: 15.17061088 | P158: 15.5822918 | Q158: 15.85674575 | R158: 15.85674575 | S158: 15.85674575 | T158: 15.85674575 | U158: 15.85674575 | V158: 15.85674575 | W158: 15.85674575 | X158: 15.85674575 | Y158: 15.85674575 | Z158: 15.85674575 | AA158: 15.85674575 | AB158: 15.85674575 | AC158: 15.85674575 | AD158: 15.85674575 | AE158: 15.85674575 | AF158: 15.85674575 | AG158: 15.85674575 | AH158: 15.85674575 | AI158: 15.85674575 | AJ158: 15.85674575 | AK158: 15.85674575 | AL158: 15.85674575 | AM158: 15.85674575 | AN158: 15.85674575 | AO158: 15.85674575 | AP158: 15.85674575 | AQ158: 15.85674575 | AR158: 15.85674575 | AS158: 15.85674575 | AT158: 15.85674575
K159: Utility PV - Los Angeles - Low | L159: =($S$48-1)*(L176+L278) -> 24.06854665 | M159: 16.40565365 | N159: 12.73159107 | O159: 12.09316483 | P159: 11.52972087 | Q159: 11.05038951 | R159: 10.73741495 | S159: 10.42444038 | T159: 10.11146581 | U159: 9.798491248 | V159: 9.485516682 | W159: 9.172542116 | X159: 8.85956755 | Y159: 8.546592984 | Z159: 8.233618418 | AA159: 8.096391445 | AB159: 7.959164471 | AC159: 7.821937497 | AD159: 7.710418974 | AE159: 7.488142983 | AF159: 7.313031802 | AG159: 7.137920621 | AH159: 6.962809439 | AI159: 6.787698258 | AJ159: 6.612587077 | AK159: 6.515910357 | AL159: 6.350602223 | AM159: 6.154391283 | AN159: 5.958180343 | AO159: 5.954005816 | AP159: 5.594937587 | AQ159: 5.42790577 | AR159: 5.260873954 | AS159: 5.093842138 | AT159: 5.030167781
K160: Utility PV - Los Angeles - Mid | L160: =($S$48-1)*(L177+L279) -> 24.06854665 | M160: 16.40565365 | N160: 14.41201542 | O160: 13.86816578 | P160: 13.05239132 | Q160: 12.37257928 | R160: 12.23289101 | S160: 12.09320274 | T160: 11.95351447 | U160: 11.8138262 | V160: 11.67413794 | W160: 11.53444967 | X160: 11.3947614 | Y160: 11.25507313 | Z160: 11.11538486 | AA160: 11.01932598 | AB160: 10.9232671 | AC160: 10.82720822 | AD160: 10.73114934 | AE160: 10.63509046 | AF160: 10.53903158 | AG160: 10.44297269 | AH160: 10.34691381 | AI160: 10.25085493 | AJ160: 10.15479605 | AK160: 10.04501447 | AL160: 9.935232892 | AM160: 9.825451313 | AN160: 9.715669734 | AO160: 9.605888155 | AP160: 9.496106576 | AQ160: 9.386324997 | AR160: 9.276543418 | AS160: 9.166761839 | AT160: 9.05698026
K161: Utility PV - Los Angeles - Constant | L161: =($S$48-1)*(L178+L280) -> 24.06854665 | M161: 16.40565365 | N161: 15.03338391 | O161: 15.17061088 | P161: 15.5822918 | Q161: 15.85674575 | R161: 15.85674575 | S161: 15.85674575 | T161: 15.85674575 | U161: 15.85674575 | V161: 15.85674575 | W161: 15.85674575 | X161: 15.85674575 | Y161: 15.85674575 | Z161: 15.85674575 | AA161: 15.85674575 | AB161: 15.85674575 | AC161: 15.85674575 | AD161: 15.85674575 | AE161: 15.85674575 | AF161: 15.85674575 | AG161: 15.85674575 | AH161: 15.85674575 | AI161: 15.85674575 | AJ161: 15.85674575 | AK161: 15.85674575 | AL161: 15.85674575 | AM161: 15.85674575 | AN161: 15.85674575 | AO161: 15.85674575 | AP161: 15.85674575 | AQ161: 15.85674575 | AR161: 15.85674575 | AS161: 15.85674575 | AT161: 15.85674575
K162: Utility PV - Daggett, CA - Low | L162: =($S$48-1)*(L179+L281) -> 24.06854665 | M162: 16.40565365 | N162: 12.73159107 | O162: 12.09316483 | P162: 11.52972087 | Q162: 11.05038951 | R162: 10.73741495 | S162: 10.42444038 | T162: 10.11146581 | U162: 9.798491248 | V162: 9.485516682 | W162: 9.172542116 | X162: 8.85956755 | Y162: 8.546592984 | Z162: 8.233618418 | AA162: 8.096391445 | AB162: 7.959164471 | AC162: 7.821937497 | AD162: 7.710418974 | AE162: 7.488142983 | AF162: 7.313031802 | AG162: 7.137920621 | AH162: 6.962809439 | AI162: 6.787698258 | AJ162: 6.612587077 | AK162: 6.515910357 | AL162: 6.350602223 | AM162: 6.154391283 | AN162: 5.958180343 | AO162: 5.954005816 | AP162: 5.594937587 | AQ162: 5.42790577 | AR162: 5.260873954 | AS162: 5.093842138 | AT162: 5.030167781
K163: Utility PV - Daggett, CA - Mid | L163: =($S$48-1)*(L180+L282) -> 24.06854665 | M163: 16.40565365 | N163: 14.41201542 | O163: 13.86816578 | P163: 13.05239132 | Q163: 12.37257928 | R163: 12.23289101 | S163: 12.09320274 | T163: 11.95351447 | U163: 11.8138262 | V163: 11.67413794 | W163: 11.53444967 | X163: 11.3947614 | Y163: 11.25507313 | Z163: 11.11538486 | AA163: 11.01932598 | AB163: 10.9232671 | AC163: 10.82720822 | AD163: 10.73114934 | AE163: 10.63509046 | AF163: 10.53903158 | AG163: 10.44297269 | AH163: 10.34691381 | AI163: 10.25085493 | AJ163: 10.15479605 | AK163: 10.04501447 | AL163: 9.935232892 | AM163: 9.825451313 | AN163: 9.715669734 | AO163: 9.605888155 | AP163: 9.496106576 | AQ163: 9.386324997 | AR163: 9.276543418 | AS163: 9.166761839 | AT163: 9.05698026
K164: Utility PV - Daggett, CA - Constant | L164: =($S$48-1)*(L181+L283) -> 24.06854665 | M164: 16.40565365 | N164: 15.03338391 | O164: 15.17061088 | P164: 15.5822918 | Q164: 15.85674575 | R164: 15.85674575 | S164: 15.85674575 | T164: 15.85674575 | U164: 15.85674575 | V164: 15.85674575 | W164: 15.85674575 | X164: 15.85674575 | Y164: 15.85674575 | Z164: 15.85674575 | AA164: 15.85674575 | AB164: 15.85674575 | AC164: 15.85674575 | AD164: 15.85674575 | AE164: 15.85674575 | AF164: 15.85674575 | AG164: 15.85674575 | AH164: 15.85674575 | AI164: 15.85674575 | AJ164: 15.85674575 | AK164: 15.85674575 | AL164: 15.85674575 | AM164: 15.85674575 | AN164: 15.85674575 | AO164: 15.85674575 | AP164: 15.85674575 | AQ164: 15.85674575 | AR164: 15.85674575 | AS164: 15.85674575 | AT164: 15.85674575
L166: 2016 | M166: 2017 | N166: 2018 | O166: 2019 | P166: 2020 | Q166: 2021 | R166: 2022 | S166: 2023 | T166: 2024 | U166: 2025 | V166: 2026 | W166: 2027 | X166: 2028 | Y166: 2029 | Z166: 2030 | AA166: 2031 | AB166: 2032 | AC166: 2033 | AD166: 2034 | AE166: 2035 | AF166: 2036 | AG166: 2037 | AH166: 2038 | AI166: 2039 | AJ166: 2040 | AK166: 2041 | AL166: 2042 | AM166: 2043 | AN166: 2044 | AO166: 2045 | AP166: 2046 | AQ166: 2047 | AR166: 2048 | AS166: 2049 | AT166: 2050
J167: Overnight Capital Cost ($/kW) | K167: Utility PV - Seattle - Low | L167: ='PV OCC'!C21+1000*'Solar - Utility PV'!L$335 -> 1753.922426 | M167: ='PV OCC'!D21+1000*'Solar - Utility PV'!M$335 -> 1195.512312 | N167: ='PV OCC'!E21+1000*'Solar - Utility PV'!N$335 -> 927.7761314 | O167: ='PV OCC'!F21+1000*'Solar - Utility PV'!O$335 -> 881.2527527 | P167: ='PV OCC'!G21+1000*'Solar - Utility PV'!P$335 -> 840.1934816 | Q167: ='PV OCC'!H21+1000*'Solar - Utility PV'!Q$335 -> 805.2636606 | R167: ='PV OCC'!I21+1000*'Solar - Utility PV'!R$335 -> 782.4565872 | S167: ='PV OCC'!J21+1000*'Solar - Utility PV'!S$335 -> 759.6495138 | T167: ='PV OCC'!K21+1000*'Solar - Utility PV'!T$335 -> 736.8424404 | U167: ='PV OCC'!L21+1000*'Solar - Utility PV'!U$335 -> 714.035367 | V167: ='PV OCC'!M21+1000*'Solar - Utility PV'!V$335 -> 691.2282936 | W167: ='PV OCC'!N21+1000*'Solar - Utility PV'!W$335 -> 668.4212202 | X167: ='PV OCC'!O21+1000*'Solar - Utility PV'!X$335 -> 645.6141468 | Y167: ='PV OCC'!P21+1000*'Solar - Utility PV'!Y$335 -> 622.8070734 | Z167: ='PV OCC'!Q21+1000*'Solar - Utility PV'!Z$335 -> 600 | AA167: ='PV OCC'!R21+1000*'Solar - Utility PV'!AA$335 -> 590 | AB167: ='PV OCC'!S21+1000*'Solar - Utility PV'!AB$335 -> 580 | AC167: ='PV OCC'!T21+1000*'Solar - Utility PV'!AC$335 -> 570 | AD167: ='PV OCC'!U21+1000*'Solar - Utility PV'!AD$335 -> 561.8734254 | AE167: ='PV OCC'!V21+1000*'Solar - Utility PV'!AE$335 -> 545.6757359 | AF167: ='PV OCC'!W21+1000*'Solar - Utility PV'!AF$335 -> 532.9150391 | AG167: ='PV OCC'!X21+1000*'Solar - Utility PV'!AG$335 -> 520.1543422 | AH167: ='PV OCC'!Y21+1000*'Solar - Utility PV'!AH$335 -> 507.3936453 | AI167: ='PV OCC'!Z21+1000*'Solar - Utility PV'!AI$335 -> 494.6329485 | AJ167: ='PV OCC'!AA21+1000*'Solar - Utility PV'!AJ$335 -> 481.8722516 | AK167: ='PV OCC'!AB21+1000*'Solar - Utility PV'!AK$335 -> 474.8272285 | AL167: ='PV OCC'!AC21+1000*'Solar - Utility PV'!AL$335 -> 462.780899 | AM167: ='PV OCC'!AD21+1000*'Solar - Utility PV'!AM$335 -> 448.4826212 | AN167: ='PV OCC'!AE21+1000*'Solar - Utility PV'!AN$335 -> 434.1843433 | AO167: ='PV OCC'!AF21+1000*'Solar - Utility PV'!AO$335 -> 433.8801373 | AP167: ='PV OCC'!AG21+1000*'Solar - Utility PV'!AP$335 -> 407.7141278 | AQ167: ='PV OCC'!AH21+1000*'Solar - Utility PV'!AQ$335 -> 395.5421902 | AR167: ='PV OCC'!AI21+1000*'Solar - Utility PV'!AR$335 -> 383.3702526 | AS167: ='PV OCC'!AJ21+1000*'Solar - Utility PV'!AS$335 -> 371.1983149 | AT167: ='PV OCC'!AK21+1000*'Solar - Utility PV'!AT$335 -> 366.5582391
K168: Utility PV - Seattle - Mid | L168: ='PV OCC'!C22+1000*'Solar - Utility PV'!L$335 -> 1753.922426 | M168: ='PV OCC'!D22+1000*'Solar - Utility PV'!M$335 -> 1195.512312 | N168: ='PV OCC'!E22+1000*'Solar - Utility PV'!N$335 -> 1050.231965 | O168: ='PV OCC'!F22+1000*'Solar - Utility PV'!O$335 -> 1010.60057 | P168: ='PV OCC'!G22+1000*'Solar - Utility PV'!P$335 -> 951.153478 | Q168: ='PV OCC'!H22+1000*'Solar - Utility PV'!Q$335 -> 901.6142343 | R168: ='PV OCC'!I22+1000*'Solar - Utility PV'!R$335 -> 891.4348749 | S168: ='PV OCC'!J22+1000*'Solar - Utility PV'!S$335 -> 881.2555156 | T168: ='PV OCC'!K22+1000*'Solar - Utility PV'!T$335 -> 871.0761562 | U168: ='PV OCC'!L22+1000*'Solar - Utility PV'!U$335 -> 860.8967968 | V168: ='PV OCC'!M22+1000*'Solar - Utility PV'!V$335 -> 850.7174375 | W168: ='PV OCC'!N22+1000*'Solar - Utility PV'!W$335 -> 840.5380781 | X168: ='PV OCC'!O22+1000*'Solar - Utility PV'!X$335 -> 830.3587187 | Y168: ='PV OCC'!P22+1000*'Solar - Utility PV'!Y$335 -> 820.1793594 | Z168: ='PV OCC'!Q22+1000*'Solar - Utility PV'!Z$335 -> 810 | AA168: ='PV OCC'!R22+1000*'Solar - Utility PV'!AA$335 -> 803 | AB168: ='PV OCC'!S22+1000*'Solar - Utility PV'!AB$335 -> 796 | AC168: ='PV OCC'!T22+1000*'Solar - Utility PV'!AC$335 -> 789 | AD168: ='PV OCC'!U22+1000*'Solar - Utility PV'!AD$335 -> 782 | AE168: ='PV OCC'!V22+1000*'Solar - Utility PV'!AE$335 -> 775 | AF168: ='PV OCC'!W22+1000*'Solar - Utility PV'!AF$335 -> 768 | AG168: ='PV OCC'!X22+1000*'Solar - Utility PV'!AG$335 -> 761 | AH168: ='PV OCC'!Y22+1000*'Solar - Utility PV'!AH$335 -> 754 | AI168: ='PV OCC'!Z22+1000*'Solar - Utility PV'!AI$335 -> 747 | AJ168: ='PV OCC'!AA22+1000*'Solar - Utility PV'!AJ$335 -> 740 | AK168: ='PV OCC'!AB22+1000*'Solar - Utility PV'!AK$335 -> 732 | AL168: ='PV OCC'!AC22+1000*'Solar - Utility PV'!AL$335 -> 724 | AM168: ='PV OCC'!AD22+1000*'Solar - Utility PV'!AM$335 -> 716 | AN168: ='PV OCC'!AE22+1000*'Solar - Utility PV'!AN$335 -> 708 | AO168: ='PV OCC'!AF22+1000*'Solar - Utility PV'!AO$335 -> 700 | AP168: ='PV OCC'!AG22+1000*'Solar - Utility PV'!AP$335 -> 692 | AQ168: ='PV OCC'!AH22+1000*'Solar - Utility PV'!AQ$335 -> 684 | AR168: ='PV OCC'!AI22+1000*'Solar - Utility PV'!AR$335 -> 676 | AS168: ='PV OCC'!AJ22+1000*'Solar - Utility PV'!AS$335 -> 668 | AT168: ='PV OCC'!AK22+1000*'Solar - Utility PV'!AT$335 -> 660
K169: Utility PV - Seattle - Constant | L169: ='PV OCC'!C23+1000*'Solar - Utility PV'!L$335 -> 1753.922426 | M169: ='PV OCC'!D23+1000*'Solar - Utility PV'!M$335 -> 1195.512312 | N169: ='PV OCC'!E23+1000*'Solar - Utility PV'!N$335 -> 1095.512312 | O169: ='PV OCC'!F23+1000*'Solar - Utility PV'!O$335 -> 1105.512312 | P169: ='PV OCC'!G23+1000*'Solar - Utility PV'!P$335 -> 1135.512312 | Q169: ='PV OCC'!H23+1000*'Solar - Utility PV'!Q$335 -> 1155.512312 | R169: ='PV OCC'!I23+1000*'Solar - Utility PV'!R$335 -> 1155.512312 | S169: ='PV OCC'!J23+1000*'Solar - Utility PV'!S$335 -> 1155.512312 | T169: ='PV OCC'!K23+1000*'Solar - Utility PV'!T$335 -> 1155.512312 | U169: ='PV OCC'!L23+1000*'Solar - Utility PV'!U$335 -> 1155.512312 | V169: ='PV OCC'!M23+1000*'Solar - Utility PV'!V$335 -> 1155.512312 | W169: ='PV OCC'!N23+1000*'Solar - Utility PV'!W$335 -> 1155.512312 | X169: ='PV OCC'!O23+1000*'Solar - Utility PV'!X$335 -> 1155.512312 | Y169: ='PV OCC'!P23+1000*'Solar - Utility PV'!Y$335 -> 1155.512312 | Z169: ='PV OCC'!Q23+1000*'Solar - Utility PV'!Z$335 -> 1155.512312 | AA169: ='PV OCC'!R23+1000*'Solar - Utility PV'!AA$335 -> 1155.512312 | AB169: ='PV OCC'!S23+1000*'Solar - Utility PV'!AB$335 -> 1155.512312 | AC169: ='PV OCC'!T23+1000*'Solar - Utility PV'!AC$335 -> 1155.512312 | AD169: ='PV OCC'!U23+1000*'Solar - Utility PV'!AD$335 -> 1155.512312 | AE169: ='PV OCC'!V23+1000*'Solar - Utility PV'!AE$335 -> 1155.512312 | AF169: ='PV OCC'!W23+1000*'Solar - Utility PV'!AF$335 -> 1155.512312 | AG169: ='PV OCC'!X23+1000*'Solar - Utility PV'!AG$335 -> 1155.512312 | AH169: ='PV OCC'!Y23+1000*'Solar - Utility PV'!AH$335 -> 1155.512312 | AI169: ='PV OCC'!Z23+1000*'Solar - Utility PV'!AI$335 -> 1155.512312 | AJ169: ='PV OCC'!AA23+1000*'Solar - Utility PV'!AJ$335 -> 1155.512312 | AK169: ='PV OCC'!AB23+1000*'Solar - Utility PV'!AK$335 -> 1155.512312 | AL169: ='PV OCC'!AC23+1000*'Solar - Utility PV'!AL$335 -> 1155.512312 | AM169: ='PV OCC'!AD23+1000*'Solar - Utility PV'!AM$335 -> 1155.512312 | AN169: ='PV OCC'!AE23+1000*'Solar - Utility PV'!AN$335 -> 1155.512312 | AO169: ='PV OCC'!AF23+1000*'Solar - Utility PV'!AO$335 -> 1155.512312 | AP169: ='PV OCC'!AG23+1000*'Solar - Utility PV'!AP$335 -> 1155.512312 | AQ169: ='PV OCC'!AH23+1000*'Solar - Utility PV'!AQ$335 -> 1155.512312 | AR169: ='PV OCC'!AI23+1000*'Solar - Utility PV'!AR$335 -> 1155.512312 | AS169: ='PV OCC'!AJ23+1000*'Solar - Utility PV'!AS$335 -> 1155.512312 | AT169: ='PV OCC'!AK23+1000*'Solar - Utility PV'!AT$335 -> 1155.512312
K170: Utility PV - Chicago - Low | L170: ='PV OCC'!C24+1000*'Solar - Utility PV'!L$335 -> 1753.922426 | M170: ='PV OCC'!D24+1000*'Solar - Utility PV'!M$335 -> 1195.512312 | N170: ='PV OCC'!E24+1000*'Solar - Utility PV'!N$335 -> 927.7761314 | O170: ='PV OCC'!F24+1000*'Solar - Utility PV'!O$335 -> 881.2527527 | P170: ='PV OCC'!G24+1000*'Solar - Utility PV'!P$335 -> 840.1934816 | Q170: ='PV OCC'!H24+1000*'Solar - Utility PV'!Q$335 -> 805.2636606 | R170: ='PV OCC'!I24+1000*'Solar - Utility PV'!R$335 -> 782.4565872 | S170: ='PV OCC'!J24+1000*'Solar - Utility PV'!S$335 -> 759.6495138 | T170: ='PV OCC'!K24+1000*'Solar - Utility PV'!T$335 -> 736.8424404 | U170: ='PV OCC'!L24+1000*'Solar - Utility PV'!U$335 -> 714.035367 | V170: ='PV OCC'!M24+1000*'Solar - Utility PV'!V$335 -> 691.2282936 | W170: ='PV OCC'!N24+1000*'Solar - Utility PV'!W$335 -> 668.4212202 | X170: ='PV OCC'!O24+1000*'Solar - Utility PV'!X$335 -> 645.6141468 | Y170: ='PV OCC'!P24+1000*'Solar - Utility PV'!Y$335 -> 622.8070734 | Z170: ='PV OCC'!Q24+1000*'Solar - Utility PV'!Z$335 -> 600 | AA170: ='PV OCC'!R24+1000*'Solar - Utility PV'!AA$335 -> 590 | AB170: ='PV OCC'!S24+1000*'Solar - Utility PV'!AB$335 -> 580 | AC170: ='PV OCC'!T24+1000*'Solar - Utility PV'!AC$335 -> 570 | AD170: ='PV OCC'!U24+1000*'Solar - Utility PV'!AD$335 -> 561.8734254 | AE170: ='PV OCC'!V24+1000*'Solar - Utility PV'!AE$335 -> 545.6757359 | AF170: ='PV OCC'!W24+1000*'Solar - Utility PV'!AF$335 -> 532.9150391 | AG170: ='PV OCC'!X24+1000*'Solar - Utility PV'!AG$335 -> 520.1543422 | AH170: ='PV OCC'!Y24+1000*'Solar - Utility PV'!AH$335 -> 507.3936453 | AI170: ='PV OCC'!Z24+1000*'Solar - Utility PV'!AI$335 -> 494.6329485 | AJ170: ='PV OCC'!AA24+1000*'Solar - Utility PV'!AJ$335 -> 481.8722516 | AK170: ='PV OCC'!AB24+1000*'Solar - Utility PV'!AK$335 -> 474.8272285 | AL170: ='PV OCC'!AC24+1000*'Solar - Utility PV'!AL$335 -> 462.780899 | AM170: ='PV OCC'!AD24+1000*'Solar - Utility PV'!AM$335 -> 448.4826212 | AN170: ='PV OCC'!AE24+1000*'Solar - Utility PV'!AN$335 -> 434.1843433 | AO170: ='PV OCC'!AF24+1000*'Solar - Utility PV'!AO$335 -> 433.8801373 | AP170: ='PV OCC'!AG24+1000*'Solar - Utility PV'!AP$335 -> 407.7141278 | AQ170: ='PV OCC'!AH24+1000*'Solar - Utility PV'!AQ$335 -> 395.5421902 | AR170: ='PV OCC'!AI24+1000*'Solar - Utility PV'!AR$335 -> 383.3702526 | AS170: ='PV OCC'!AJ24+1000*'Solar - Utility PV'!AS$335 -> 371.1983149 | AT170: ='PV OCC'!AK24+1000*'Solar - Utility PV'!AT$335 -> 366.5582391
K171: Utility PV - Chicago - Mid | L171: ='PV OCC'!C25+1000*'Solar - Utility PV'!L$335 -> 1753.922426 | M171: ='PV OCC'!D25+1000*'Solar - Utility PV'!M$335 -> 1195.512312 | N171: ='PV OCC'!E25+1000*'Solar - Utility PV'!N$335 -> 1050.231965 | O171: ='PV OCC'!F25+1000*'Solar - Utility PV'!O$335 -> 1010.60057 | P171: ='PV OCC'!G25+1000*'Solar - Utility PV'!P$335 -> 951.153478 | Q171: ='PV OCC'!H25+1000*'Solar - Utility PV'!Q$335 -> 901.6142343 | R171: ='PV OCC'!I25+1000*'Solar - Utility PV'!R$335 -> 891.4348749 | S171: ='PV OCC'!J25+1000*'Solar - Utility PV'!S$335 -> 881.2555156 | T171: ='PV OCC'!K25+1000*'Solar - Utility PV'!T$335 -> 871.0761562 | U171: ='PV OCC'!L25+1000*'Solar - Utility PV'!U$335 -> 860.8967968 | V171: ='PV OCC'!M25+1000*'Solar - Utility PV'!V$335 -> 850.7174375 | W171: ='PV OCC'!N25+1000*'Solar - Utility PV'!W$335 -> 840.5380781 | X171: ='PV OCC'!O25+1000*'Solar - Utility PV'!X$335 -> 830.3587187 | Y171: ='PV OCC'!P25+1000*'Solar - Utility PV'!Y$335 -> 820.1793594 | Z171: ='PV OCC'!Q25+1000*'Solar - Utility PV'!Z$335 -> 810 | AA171: ='PV OCC'!R25+1000*'Solar - Utility PV'!AA$335 -> 803 | AB171: ='PV OCC'!S25+1000*'Solar - Utility PV'!AB$335 -> 796 | AC171: ='PV OCC'!T25+1000*'Solar - Utility PV'!AC$335 -> 789 | AD171: ='PV OCC'!U25+1000*'Solar - Utility PV'!AD$335 -> 782 | AE171: ='PV OCC'!V25+1000*'Solar - Utility PV'!AE$335 -> 775 | AF171: ='PV OCC'!W25+1000*'Solar - Utility PV'!AF$335 -> 768 | AG171: ='PV OCC'!X25+1000*'Solar - Utility PV'!AG$335 -> 761 | AH171: ='PV OCC'!Y25+1000*'Solar - Utility PV'!AH$335 -> 754 | AI171: ='PV OCC'!Z25+1000*'Solar - Utility PV'!AI$335 -> 747 | AJ171: ='PV OCC'!AA25+1000*'Solar - Utility PV'!AJ$335 -> 740 | AK171: ='PV OCC'!AB25+1000*'Solar - Utility PV'!AK$335 -> 732 | AL171: ='PV OCC'!AC25+1000*'Solar - Utility PV'!AL$335 -> 724 | AM171: ='PV OCC'!AD25+1000*'Solar - Utility PV'!AM$335 -> 716 | AN171: ='PV OCC'!AE25+1000*'Solar - Utility PV'!AN$335 -> 708 | AO171: ='PV OCC'!AF25+1000*'Solar - Utility PV'!AO$335 -> 700 | AP171: ='PV OCC'!AG25+1000*'Solar - Utility PV'!AP$335 -> 692 | AQ171: ='PV OCC'!AH25+1000*'Solar - Utility PV'!AQ$335 -> 684 | AR171: ='PV OCC'!AI25+1000*'Solar - Utility PV'!AR$335 -> 676 | AS171: ='PV OCC'!AJ25+1000*'Solar - Utility PV'!AS$335 -> 668 | AT171: ='PV OCC'!AK25+1000*'Solar - Utility PV'!AT$335 -> 660
K172: Utility PV - Chicago - Constant | L172: ='PV OCC'!C26+1000*'Solar - Utility PV'!L$335 -> 1753.922426 | M172: ='PV OCC'!D26+1000*'Solar - Utility PV'!M$335 -> 1195.512312 | N172: ='PV OCC'!E26+1000*'Solar - Utility PV'!N$335 -> 1095.512312 | O172: ='PV OCC'!F26+1000*'Solar - Utility PV'!O$335 -> 1105.512312 | P172: ='PV OCC'!G26+1000*'Solar - Utility PV'!P$335 -> 1135.512312 | Q172: ='PV OCC'!H26+1000*'Solar - Utility PV'!Q$335 -> 1155.512312 | R172: ='PV OCC'!I26+1000*'Solar - Utility PV'!R$335 -> 1155.512312 | S172: ='PV OCC'!J26+1000*'Solar - Utility PV'!S$335 -> 1155.512312 | T172: ='PV OCC'!K26+1000*'Solar - Utility PV'!T$335 -> 1155.512312 | U172: ='PV OCC'!L26+1000*'Solar - Utility PV'!U$335 -> 1155.512312 | V172: ='PV OCC'!M26+1000*'Solar - Utility PV'!V$335 -> 1155.512312 | W172: ='PV OCC'!N26+1000*'Solar - Utility PV'!W$335 -> 1155.512312 | X172: ='PV OCC'!O26+1000*'Solar - Utility PV'!X$335 -> 1155.512312 | Y172: ='PV OCC'!P26+1000*'Solar - Utility PV'!Y$335 -> 1155.512312 | Z172: ='PV OCC'!Q26+1000*'Solar - Utility PV'!Z$335 -> 1155.512312 | AA172: ='PV OCC'!R26+1000*'Solar - Utility PV'!AA$335 -> 1155.512312 | AB172: ='PV OCC'!S26+1000*'Solar - Utility PV'!AB$335 -> 1155.512312 | AC172: ='PV OCC'!T26+1000*'Solar - Utility PV'!AC$335 -> 1155.512312 | AD172: ='PV OCC'!U26+1000*'Solar - Utility PV'!AD$335 -> 1155.512312 | AE172: ='PV OCC'!V26+1000*'Solar - Utility PV'!AE$335 -> 1155.512312 | AF172: ='PV OCC'!W26+1000*'Solar - Utility PV'!AF$335 -> 1155.512312 | AG172: ='PV OCC'!X26+1000*'Solar - Utility PV'!AG$335 -> 1155.512312 | AH172: ='PV OCC'!Y26+1000*'Solar - Utility PV'!AH$335 -> 1155.512312 | AI172: ='PV OCC'!Z26+1000*'Solar - Utility PV'!AI$335 -> 1155.512312 | AJ172: ='PV OCC'!AA26+1000*'Solar - Utility PV'!AJ$335 -> 1155.512312 | AK172: ='PV OCC'!AB26+1000*'Solar - Utility PV'!AK$335 -> 1155.512312 | AL172: ='PV OCC'!AC26+1000*'Solar - Utility PV'!AL$335 -> 1155.512312 | AM172: ='PV OCC'!AD26+1000*'Solar - Utility PV'!AM$335 -> 1155.512312 | AN172: ='PV OCC'!AE26+1000*'Solar - Utility PV'!AN$335 -> 1155.512312 | AO172: ='PV OCC'!AF26+1000*'Solar - Utility PV'!AO$335 -> 1155.512312 | AP172: ='PV OCC'!AG26+1000*'Solar - Utility PV'!AP$335 -> 1155.512312 | AQ172: ='PV OCC'!AH26+1000*'Solar - Utility PV'!AQ$335 -> 1155.512312 | AR172: ='PV OCC'!AI26+1000*'Solar - Utility PV'!AR$335 -> 1155.512312 | AS172: ='PV OCC'!AJ26+1000*'Solar - Utility PV'!AS$335 -> 1155.512312 | AT172: ='PV OCC'!AK26+1000*'Solar - Utility PV'!AT$335 -> 1155.512312
K173: Utility PV - Kansas City - Low | L173: ='PV OCC'!C27+1000*'Solar - Utility PV'!L$335 -> 1753.922426 | M173: ='PV OCC'!D27+1000*'Solar - Utility PV'!M$335 -> 1195.512312 | N173: ='PV OCC'!E27+1000*'Solar - Utility PV'!N$335 -> 927.7761314 | O173: ='PV OCC'!F27+1000*'Solar - Utility PV'!O$335 -> 881.2527527 | P173: ='PV OCC'!G27+1000*'Solar - Utility PV'!P$335 -> 840.1934816 | Q173: ='PV OCC'!H27+1000*'Solar - Utility PV'!Q$335 -> 805.2636606 | R173: ='PV OCC'!I27+1000*'Solar - Utility PV'!R$335 -> 782.4565872 | S173: ='PV OCC'!J27+1000*'Solar - Utility PV'!S$335 -> 759.6495138 | T173: ='PV OCC'!K27+1000*'Solar - Utility PV'!T$335 -> 736.8424404 | U173: ='PV OCC'!L27+1000*'Solar - Utility PV'!U$335 -> 714.035367 | V173: ='PV OCC'!M27+1000*'Solar - Utility PV'!V$335 -> 691.2282936 | W173: ='PV OCC'!N27+1000*'Solar - Utility PV'!W$335 -> 668.4212202 | X173: ='PV OCC'!O27+1000*'Solar - Utility PV'!X$335 -> 645.6141468 | Y173: ='PV OCC'!P27+1000*'Solar - Utility PV'!Y$335 -> 622.8070734 | Z173: ='PV OCC'!Q27+1000*'Solar - Utility PV'!Z$335 -> 600 | AA173: ='PV OCC'!R27+1000*'Solar - Utility PV'!AA$335 -> 590 | AB173: ='PV OCC'!S27+1000*'Solar - Utility PV'!AB$335 -> 580 | AC173: ='PV OCC'!T27+1000*'Solar - Utility PV'!AC$335 -> 570 | AD173: ='PV OCC'!U27+1000*'Solar - Utility PV'!AD$335 -> 561.8734254 | AE173: ='PV OCC'!V27+1000*'Solar - Utility PV'!AE$335 -> 545.6757359 | AF173: ='PV OCC'!W27+1000*'Solar - Utility PV'!AF$335 -> 532.9150391 | AG173: ='PV OCC'!X27+1000*'Solar - Utility PV'!AG$335 -> 520.1543422 | AH173: ='PV OCC'!Y27+1000*'Solar - Utility PV'!AH$335 -> 507.3936453 | AI173: ='PV OCC'!Z27+1000*'Solar - Utility PV'!AI$335 -> 494.6329485 | AJ173: ='PV OCC'!AA27+1000*'Solar - Utility PV'!AJ$335 -> 481.8722516 | AK173: ='PV OCC'!AB27+1000*'Solar - Utility PV'!AK$335 -> 474.8272285 | AL173: ='PV OCC'!AC27+1000*'Solar - Utility PV'!AL$335 -> 462.780899 | AM173: ='PV OCC'!AD27+1000*'Solar - Utility PV'!AM$335 -> 448.4826212 | AN173: ='PV OCC'!AE27+1000*'Solar - Utility PV'!AN$335 -> 434.1843433 | AO173: ='PV OCC'!AF27+1000*'Solar - Utility PV'!AO$335 -> 433.8801373 | AP173: ='PV OCC'!AG27+1000*'Solar - Utility PV'!AP$335 -> 407.7141278 | AQ173: ='PV OCC'!AH27+1000*'Solar - Utility PV'!AQ$335 -> 395.5421902 | AR173: ='PV OCC'!AI27+1000*'Solar - Utility PV'!AR$335 -> 383.3702526 | AS173: ='PV OCC'!AJ27+1000*'Solar - Utility PV'!AS$335 -> 371.1983149 | AT173: ='PV OCC'!AK27+1000*'Solar - Utility PV'!AT$335 -> 366.5582391
K174: Utility PV - Kansas City - Mid | L174: ='PV OCC'!C28+1000*'Solar - Utility PV'!L$335 -> 1753.922426 | M174: ='PV OCC'!D28+1000*'Solar - Utility PV'!M$335 -> 1195.512312 | N174: ='PV OCC'!E28+1000*'Solar - Utility PV'!N$335 -> 1050.231965 | O174: ='PV OCC'!F28+1000*'Solar - Utility PV'!O$335 -> 1010.60057 | P174: ='PV OCC'!G28+1000*'Solar - Utility PV'!P$335 -> 951.153478 | Q174: ='PV OCC'!H28+1000*'Solar - Utility PV'!Q$335 -> 901.6142343 | R174: ='PV OCC'!I28+1000*'Solar - Utility PV'!R$335 -> 891.4348749 | S174: ='PV OCC'!J28+1000*'Solar - Utility PV'!S$335 -> 881.2555156 | T174: ='PV OCC'!K28+1000*'Solar - Utility PV'!T$335 -> 871.0761562 | U174: ='PV OCC'!L28+1000*'Solar - Utility PV'!U$335 -> 860.8967968 | V174: ='PV OCC'!M28+1000*'Solar - Utility PV'!V$335 -> 850.7174375 | W174: ='PV OCC'!N28+1000*'Solar - Utility PV'!W$335 -> 840.5380781 | X174: ='PV OCC'!O28+1000*'Solar - Utility PV'!X$335 -> 830.3587187 | Y174: ='PV OCC'!P28+1000*'Solar - Utility PV'!Y$335 -> 820.1793594 | Z174: ='PV OCC'!Q28+1000*'Solar - Utility PV'!Z$335 -> 810 | AA174: ='PV OCC'!R28+1000*'Solar - Utility PV'!AA$335 -> 803 | AB174: ='PV OCC'!S28+1000*'Solar - Utility PV'!AB$335 -> 796 | AC174: ='PV OCC'!T28+1000*'Solar - Utility PV'!AC$335 -> 789 | AD174: ='PV OCC'!U28+1000*'Solar - Utility PV'!AD$335 -> 782 | AE174: ='PV OCC'!V28+1000*'Solar - Utility PV'!AE$335 -> 775 | AF174: ='PV OCC'!W28+1000*'Solar - Utility PV'!AF$335 -> 768 | AG174: ='PV OCC'!X28+1000*'Solar - Utility PV'!AG$335 -> 761 | AH174: ='PV OCC'!Y28+1000*'Solar - Utility PV'!AH$335 -> 754 | AI174: ='PV OCC'!Z28+1000*'Solar - Utility PV'!AI$335 -> 747 | AJ174: ='PV OCC'!AA28+1000*'Solar - Utility PV'!AJ$335 -> 740 | AK174: ='PV OCC'!AB28+1000*'Solar - Utility PV'!AK$335 -> 732 | AL174: ='PV OCC'!AC28+1000*'Solar - Utility PV'!AL$335 -> 724 | AM174: ='PV OCC'!AD28+1000*'Solar - Utility PV'!AM$335 -> 716 | AN174: ='PV OCC'!AE28+1000*'Solar - Utility PV'!AN$335 -> 708 | AO174: ='PV OCC'!AF28+1000*'Solar - Utility PV'!AO$335 -> 700 | AP174: ='PV OCC'!AG28+1000*'Solar - Utility PV'!AP$335 -> 692 | AQ174: ='PV OCC'!AH28+1000*'Solar - Utility PV'!AQ$335 -> 684 | AR174: ='PV OCC'!AI28+1000*'Solar - Utility PV'!AR$335 -> 676 | AS174: ='PV OCC'!AJ28+1000*'Solar - Utility PV'!AS$335 -> 668 | AT174: ='PV OCC'!AK28+1000*'Solar - Utility PV'!AT$335 -> 660
K175: Utility PV - Kansas City - Constant | L175: ='PV OCC'!C29+1000*'Solar - Utility PV'!L$335 -> 1753.922426 | M175: ='PV OCC'!D29+1000*'Solar - Utility PV'!M$335 -> 1195.512312 | N175: ='PV OCC'!E29+1000*'Solar - Utility PV'!N$335 -> 1095.512312 | O175: ='PV OCC'!F29+1000*'Solar - Utility PV'!O$335 -> 1105.512312 | P175: ='PV OCC'!G29+1000*'Solar - Utility PV'!P$335 -> 1135.512312 | Q175: ='PV OCC'!H29+1000*'Solar - Utility PV'!Q$335 -> 1155.512312 | R175: ='PV OCC'!I29+1000*'Solar - Utility PV'!R$335 -> 1155.512312 | S175: ='PV OCC'!J29+1000*'Solar - Utility PV'!S$335 -> 1155.512312 | T175: ='PV OCC'!K29+1000*'Solar - Utility PV'!T$335 -> 1155.512312 | U175: ='PV OCC'!L29+1000*'Solar - Utility PV'!U$335 -> 1155.512312 | V175: ='PV OCC'!M29+1000*'Solar - Utility PV'!V$335 -> 1155.512312 | W175: ='PV OCC'!N29+1000*'Solar - Utility PV'!W$335 -> 1155.512312 | X175: ='PV OCC'!O29+1000*'Solar - Utility PV'!X$335 -> 1155.512312 | Y175: ='PV OCC'!P29+1000*'Solar - Utility PV'!Y$335 -> 1155.512312 | Z175: ='PV OCC'!Q29+1000*'Solar - Utility PV'!Z$335 -> 1155.512312 | AA175: ='PV OCC'!R29+1000*'Solar - Utility PV'!AA$335 -> 1155.512312 | AB175: ='PV OCC'!S29+1000*'Solar - Utility PV'!AB$335 -> 1155.512312 | AC175: ='PV OCC'!T29+1000*'Solar - Utility PV'!AC$335 -> 1155.512312 | AD175: ='PV OCC'!U29+1000*'Solar - Utility PV'!AD$335 -> 1155.512312 | AE175: ='PV OCC'!V29+1000*'Solar - Utility PV'!AE$335 -> 1155.512312 | AF175: ='PV OCC'!W29+1000*'Solar - Utility PV'!AF$335 -> 1155.512312 | AG175: ='PV OCC'!X29+1000*'Solar - Utility PV'!AG$335 -> 1155.512312 | AH175: ='PV OCC'!Y29+1000*'Solar - Utility PV'!AH$335 -> 1155.512312 | AI175: ='PV OCC'!Z29+1000*'Solar - Utility PV'!AI$335 -> 1155.512312 | AJ175: ='PV OCC'!AA29+1000*'Solar - Utility PV'!AJ$335 -> 1155.512312 | AK175: ='PV OCC'!AB29+1000*'Solar - Utility PV'!AK$335 -> 1155.512312 | AL175: ='PV OCC'!AC29+1000*'Solar - Utility PV'!AL$335 -> 1155.512312 | AM175: ='PV OCC'!AD29+1000*'Solar - Utility PV'!AM$335 -> 1155.512312 | AN175: ='PV OCC'!AE29+1000*'Solar - Utility PV'!AN$335 -> 1155.512312 | AO175: ='PV OCC'!AF29+1000*'Solar - Utility PV'!AO$335 -> 1155.512312 | AP175: ='PV OCC'!AG29+1000*'Solar - Utility PV'!AP$335 -> 1155.512312 | AQ175: ='PV OCC'!AH29+1000*'Solar - Utility PV'!AQ$335 -> 1155.512312 | AR175: ='PV OCC'!AI29+1000*'Solar - Utility PV'!AR$335 -> 1155.512312 | AS175: ='PV OCC'!AJ29+1000*'Solar - Utility PV'!AS$335 -> 1155.512312 | AT175: ='PV OCC'!AK29+1000*'Solar - Utility PV'!AT$335 -> 1155.512312
K176: Utility PV - Los Angeles - Low | L176: ='PV OCC'!C30+1000*'Solar - Utility PV'!L$335 -> 1753.922426 | M176: ='PV OCC'!D30+1000*'Solar - Utility PV'!M$335 -> 1195.512312 | N176: ='PV OCC'!E30+1000*'Solar - Utility PV'!N$335 -> 927.7761314 | O176: ='PV OCC'!F30+1000*'Solar - Utility PV'!O$335 -> 881.2527527 | P176: ='PV OCC'!G30+1000*'Solar - Utility PV'!P$335 -> 840.1934816 | Q176: ='PV OCC'!H30+1000*'Solar - Utility PV'!Q$335 -> 805.2636606 | R176: ='PV OCC'!I30+1000*'Solar - Utility PV'!R$335 -> 782.4565872 | S176: ='PV OCC'!J30+1000*'Solar - Utility PV'!S$335 -> 759.6495138 | T176: ='PV OCC'!K30+1000*'Solar - Utility PV'!T$335 -> 736.8424404 | U176: ='PV OCC'!L30+1000*'Solar - Utility PV'!U$335 -> 714.035367 | V176: ='PV OCC'!M30+1000*'Solar - Utility PV'!V$335 -> 691.2282936 | W176: ='PV OCC'!N30+1000*'Solar - Utility PV'!W$335 -> 668.4212202 | X176: ='PV OCC'!O30+1000*'Solar - Utility PV'!X$335 -> 645.6141468 | Y176: ='PV OCC'!P30+1000*'Solar - Utility PV'!Y$335 -> 622.8070734 | Z176: ='PV OCC'!Q30+1000*'Solar - Utility PV'!Z$335 -> 600 | AA176: ='PV OCC'!R30+1000*'Solar - Utility PV'!AA$335 -> 590 | AB176: ='PV OCC'!S30+1000*'Solar - Utility PV'!AB$335 -> 580 | AC176: ='PV OCC'!T30+1000*'Solar - Utility PV'!AC$335 -> 570 | AD176: ='PV OCC'!U30+1000*'Solar - Utility PV'!AD$335 -> 561.8734254 | AE176: ='PV OCC'!V30+1000*'Solar - Utility PV'!AE$335 -> 545.6757359 | AF176: ='PV OCC'!W30+1000*'Solar - Utility PV'!AF$335 -> 532.9150391 | AG176: ='PV OCC'!X30+1000*'Solar - Utility PV'!AG$335 -> 520.1543422 | AH176: ='PV OCC'!Y30+1000*'Solar - Utility PV'!AH$335 -> 507.3936453 | AI176: ='PV OCC'!Z30+1000*'Solar - Utility PV'!AI$335 -> 494.6329485 | AJ176: ='PV OCC'!AA30+1000*'Solar - Utility PV'!AJ$335 -> 481.8722516 | AK176: ='PV OCC'!AB30+1000*'Solar - Utility PV'!AK$335 -> 474.8272285 | AL176: ='PV OCC'!AC30+1000*'Solar - Utility PV'!AL$335 -> 462.780899 | AM176: ='PV OCC'!AD30+1000*'Solar - Utility PV'!AM$335 -> 448.4826212 | AN176: ='PV OCC'!AE30+1000*'Solar - Utility PV'!AN$335 -> 434.1843433 | AO176: ='PV OCC'!AF30+1000*'Solar - Utility PV'!AO$335 -> 433.8801373 | AP176: ='PV OCC'!AG30+1000*'Solar - Utility PV'!AP$335 -> 407.7141278 | AQ176: ='PV OCC'!AH30+1000*'Solar - Utility PV'!AQ$335 -> 395.5421902 | AR176: ='PV OCC'!AI30+1000*'Solar - Utility PV'!AR$335 -> 383.3702526 | AS176: ='PV OCC'!AJ30+1000*'Solar - Utility PV'!AS$335 -> 371.1983149 | AT176: ='PV OCC'!AK30+1000*'Solar - Utility PV'!AT$335 -> 366.5582391
K177: Utility PV - Los Angeles - Mid | L177: ='PV OCC'!C31+1000*'Solar - Utility PV'!L$335 -> 1753.922426 | M177: ='PV OCC'!D31+1000*'Solar - Utility PV'!M$335 -> 1195.512312 | N177: ='PV OCC'!E31+1000*'Solar - Utility PV'!N$335 -> 1050.231965 | O177: ='PV OCC'!F31+1000*'Solar - Utility PV'!O$335 -> 1010.60057 | P177: ='PV OCC'!G31+1000*'Solar - Utility PV'!P$335 -> 951.153478 | Q177: ='PV OCC'!H31+1000*'Solar - Utility PV'!Q$335 -> 901.6142343 | R177: ='PV OCC'!I31+1000*'Solar - Utility PV'!R$335 -> 891.4348749 | S177: ='PV OCC'!J31+1000*'Solar - Utility PV'!S$335 -> 881.2555156 | T177: ='PV OCC'!K31+1000*'Solar - Utility PV'!T$335 -> 871.0761562 | U177: ='PV OCC'!L31+1000*'Solar - Utility PV'!U$335 -> 860.8967968 | V177: ='PV OCC'!M31+1000*'Solar - Utility PV'!V$335 -> 850.7174375 | W177: ='PV OCC'!N31+1000*'Solar - Utility PV'!W$335 -> 840.5380781 | X177: ='PV OCC'!O31+1000*'Solar - Utility PV'!X$335 -> 830.3587187 | Y177: ='PV OCC'!P31+1000*'Solar - Utility PV'!Y$335 -> 820.1793594 | Z177: ='PV OCC'!Q31+1000*'Solar - Utility PV'!Z$335 -> 810 | AA177: ='PV OCC'!R31+1000*'Solar - Utility PV'!AA$335 -> 803 | AB177: ='PV OCC'!S31+1000*'Solar - Utility PV'!AB$335 -> 796 | AC177: ='PV OCC'!T31+1000*'Solar - Utility PV'!AC$335 -> 789 | AD177: ='PV OCC'!U31+1000*'Solar - Utility PV'!AD$335 -> 782 | AE177: ='PV OCC'!V31+1000*'Solar - Utility PV'!AE$335 -> 775 | AF177: ='PV OCC'!W31+1000*'Solar - Utility PV'!AF$335 -> 768 | AG177: ='PV OCC'!X31+1000*'Solar - Utility PV'!AG$335 -> 761 | AH177: ='PV OCC'!Y31+1000*'Solar - Utility PV'!AH$335 -> 754 | AI177: ='PV OCC'!Z31+1000*'Solar - Utility PV'!AI$335 -> 747 | AJ177: ='PV OCC'!AA31+1000*'Solar - Utility PV'!AJ$335 -> 740 | AK177: ='PV OCC'!AB31+1000*'Solar - Utility PV'!AK$335 -> 732 | AL177: ='PV OCC'!AC31+1000*'Solar - Utility PV'!AL$335 -> 724 | AM177: ='PV OCC'!AD31+1000*'Solar - Utility PV'!AM$335 -> 716 | AN177: ='PV OCC'!AE31+1000*'Solar - Utility PV'!AN$335 -> 708 | AO177: ='PV OCC'!AF31+1000*'Solar - Utility PV'!AO$335 -> 700 | AP177: ='PV OCC'!AG31+1000*'Solar - Utility PV'!AP$335 -> 692 | AQ177: ='PV OCC'!AH31+1000*'Solar - Utility PV'!AQ$335 -> 684 | AR177: ='PV OCC'!AI31+1000*'Solar - Utility PV'!AR$335 -> 676 | AS177: ='PV OCC'!AJ31+1000*'Solar - Utility PV'!AS$335 -> 668 | AT177: ='PV OCC'!AK31+1000*'Solar - Utility PV'!AT$335 -> 660
K178: Utility PV - Los Angeles - Constant | L178: ='PV OCC'!C32+1000*'Solar - Utility PV'!L$335 -> 1753.922426 | M178: ='PV OCC'!D32+1000*'Solar - Utility PV'!M$335 -> 1195.512312 | N178: ='PV OCC'!E32+1000*'Solar - Utility PV'!N$335 -> 1095.512312 | O178: ='PV OCC'!F32+1000*'Solar - Utility PV'!O$335 -> 1105.512312 | P178: ='PV OCC'!G32+1000*'Solar - Utility PV'!P$335 -> 1135.512312 | Q178: ='PV OCC'!H32+1000*'Solar - Utility PV'!Q$335 -> 1155.512312 | R178: ='PV OCC'!I32+1000*'Solar - Utility PV'!R$335 -> 1155.512312 | S178: ='PV OCC'!J32+1000*'Solar - Utility PV'!S$335 -> 1155.512312 | T178: ='PV OCC'!K32+1000*'Solar - Utility PV'!T$335 -> 1155.512312 | U178: ='PV OCC'!L32+1000*'Solar - Utility PV'!U$335 -> 1155.512312 | V178: ='PV OCC'!M32+1000*'Solar - Utility PV'!V$335 -> 1155.512312 | W178: ='PV OCC'!N32+1000*'Solar - Utility PV'!W$335 -> 1155.512312 | X178: ='PV OCC'!O32+1000*'Solar - Utility PV'!X$335 -> 1155.512312 | Y178: ='PV OCC'!P32+1000*'Solar - Utility PV'!Y$335 -> 1155.512312 | Z178: ='PV OCC'!Q32+1000*'Solar - Utility PV'!Z$335 -> 1155.512312 | AA178: ='PV OCC'!R32+1000*'Solar - Utility PV'!AA$335 -> 1155.512312 | AB178: ='PV OCC'!S32+1000*'Solar - Utility PV'!AB$335 -> 1155.512312 | AC178: ='PV OCC'!T32+1000*'Solar - Utility PV'!AC$335 -> 1155.512312 | AD178: ='PV OCC'!U32+1000*'Solar - Utility PV'!AD$335 -> 1155.512312 | AE178: ='PV OCC'!V32+1000*'Solar - Utility PV'!AE$335 -> 1155.512312 | AF178: ='PV OCC'!W32+1000*'Solar - Utility PV'!AF$335 -> 1155.512312 | AG178: ='PV OCC'!X32+1000*'Solar - Utility PV'!AG$335 -> 1155.512312 | AH178: ='PV OCC'!Y32+1000*'Solar - Utility PV'!AH$335 -> 1155.512312 | AI178: ='PV OCC'!Z32+1000*'Solar - Utility PV'!AI$335 -> 1155.512312 | AJ178: ='PV OCC'!AA32+1000*'Solar - Utility PV'!AJ$335 -> 1155.512312 | AK178: ='PV OCC'!AB32+1000*'Solar - Utility PV'!AK$335 -> 1155.512312 | AL178: ='PV OCC'!AC32+1000*'Solar - Utility PV'!AL$335 -> 1155.512312 | AM178: ='PV OCC'!AD32+1000*'Solar - Utility PV'!AM$335 -> 1155.512312 | AN178: ='PV OCC'!AE32+1000*'Solar - Utility PV'!AN$335 -> 1155.512312 | AO178: ='PV OCC'!AF32+1000*'Solar - Utility PV'!AO$335 -> 1155.512312 | AP178: ='PV OCC'!AG32+1000*'Solar - Utility PV'!AP$335 -> 1155.512312 | AQ178: ='PV OCC'!AH32+1000*'Solar - Utility PV'!AQ$335 -> 1155.512312 | AR178: ='PV OCC'!AI32+1000*'Solar - Utility PV'!AR$335 -> 1155.512312 | AS178: ='PV OCC'!AJ32+1000*'Solar - Utility PV'!AS$335 -> 1155.512312 | AT178: ='PV OCC'!AK32+1000*'Solar - Utility PV'!AT$335 -> 1155.512312
K179: Utility PV - Daggett, CA - Low | L179: ='PV OCC'!C33+1000*'Solar - Utility PV'!L$335 -> 1753.922426 | M179: ='PV OCC'!D33+1000*'Solar - Utility PV'!M$335 -> 1195.512312 | N179: ='PV OCC'!E33+1000*'Solar - Utility PV'!N$335 -> 927.7761314 | O179: ='PV OCC'!F33+1000*'Solar - Utility PV'!O$335 -> 881.2527527 | P179: ='PV OCC'!G33+1000*'Solar - Utility PV'!P$335 -> 840.1934816 | Q179: ='PV OCC'!H33+1000*'Solar - Utility PV'!Q$335 -> 805.2636606 | R179: ='PV OCC'!I33+1000*'Solar - Utility PV'!R$335 -> 782.4565872 | S179: ='PV OCC'!J33+1000*'Solar - Utility PV'!S$335 -> 759.6495138 | T179: ='PV OCC'!K33+1000*'Solar - Utility PV'!T$335 -> 736.8424404 | U179: ='PV OCC'!L33+1000*'Solar - Utility PV'!U$335 -> 714.035367 | V179: ='PV OCC'!M33+1000*'Solar - Utility PV'!V$335 -> 691.2282936 | W179: ='PV OCC'!N33+1000*'Solar - Utility PV'!W$335 -> 668.4212202 | X179: ='PV OCC'!O33+1000*'Solar - Utility PV'!X$335 -> 645.6141468 | Y179: ='PV OCC'!P33+1000*'Solar - Utility PV'!Y$335 -> 622.8070734 | Z179: ='PV OCC'!Q33+1000*'Solar - Utility PV'!Z$335 -> 600 | AA179: ='PV OCC'!R33+1000*'Solar - Utility PV'!AA$335 -> 590 | AB179: ='PV OCC'!S33+1000*'Solar - Utility PV'!AB$335 -> 580 | AC179: ='PV OCC'!T33+1000*'Solar - Utility PV'!AC$335 -> 570 | AD179: ='PV OCC'!U33+1000*'Solar - Utility PV'!AD$335 -> 561.8734254 | AE179: ='PV OCC'!V33+1000*'Solar - Utility PV'!AE$335 -> 545.6757359 | AF179: ='PV OCC'!W33+1000*'Solar - Utility PV'!AF$335 -> 532.9150391 | AG179: ='PV OCC'!X33+1000*'Solar - Utility PV'!AG$335 -> 520.1543422 | AH179: ='PV OCC'!Y33+1000*'Solar - Utility PV'!AH$335 -> 507.3936453 | AI179: ='PV OCC'!Z33+1000*'Solar - Utility PV'!AI$335 -> 494.6329485 | AJ179: ='PV OCC'!AA33+1000*'Solar - Utility PV'!AJ$335 -> 481.8722516 | AK179: ='PV OCC'!AB33+1000*'Solar - Utility PV'!AK$335 -> 474.8272285 | AL179: ='PV OCC'!AC33+1000*'Solar - Utility PV'!AL$335 -> 462.780899 | AM179: ='PV OCC'!AD33+1000*'Solar - Utility PV'!AM$335 -> 448.4826212 | AN179: ='PV OCC'!AE33+1000*'Solar - Utility PV'!AN$335 -> 434.1843433 | AO179: ='PV OCC'!AF33+1000*'Solar - Utility PV'!AO$335 -> 433.8801373 | AP179: ='PV OCC'!AG33+1000*'Solar - Utility PV'!AP$335 -> 407.7141278 | AQ179: ='PV OCC'!AH33+1000*'Solar - Utility PV'!AQ$335 -> 395.5421902 | AR179: ='PV OCC'!AI33+1000*'Solar - Utility PV'!AR$335 -> 383.3702526 | AS179: ='PV OCC'!AJ33+1000*'Solar - Utility PV'!AS$335 -> 371.1983149 | AT179: ='PV OCC'!AK33+1000*'Solar - Utility PV'!AT$335 -> 366.5582391
K180: Utility PV - Daggett, CA - Mid | L180: ='PV OCC'!C34+1000*'Solar - Utility PV'!L$335 -> 1753.922426 | M180: ='PV OCC'!D34+1000*'Solar - Utility PV'!M$335 -> 1195.512312 | N180: ='PV OCC'!E34+1000*'Solar - Utility PV'!N$335 -> 1050.231965 | O180: ='PV OCC'!F34+1000*'Solar - Utility PV'!O$335 -> 1010.60057 | P180: ='PV OCC'!G34+1000*'Solar - Utility PV'!P$335 -> 951.153478 | Q180: ='PV OCC'!H34+1000*'Solar - Utility PV'!Q$335 -> 901.6142343 | R180: ='PV OCC'!I34+1000*'Solar - Utility PV'!R$335 -> 891.4348749 | S180: ='PV OCC'!J34+1000*'Solar - Utility PV'!S$335 -> 881.2555156 | T180: ='PV OCC'!K34+1000*'Solar - Utility PV'!T$335 -> 871.0761562 | U180: ='PV OCC'!L34+1000*'Solar - Utility PV'!U$335 -> 860.8967968 | V180: ='PV OCC'!M34+1000*'Solar - Utility PV'!V$335 -> 850.7174375 | W180: ='PV OCC'!N34+1000*'Solar - Utility PV'!W$335 -> 840.5380781 | X180: ='PV OCC'!O34+1000*'Solar - Utility PV'!X$335 -> 830.3587187 | Y180: ='PV OCC'!P34+1000*'Solar - Utility PV'!Y$335 -> 820.1793594 | Z180: ='PV OCC'!Q34+1000*'Solar - Utility PV'!Z$335 -> 810 | AA180: ='PV OCC'!R34+1000*'Solar - Utility PV'!AA$335 -> 803 | AB180: ='PV OCC'!S34+1000*'Solar - Utility PV'!AB$335 -> 796 | AC180: ='PV OCC'!T34+1000*'Solar - Utility PV'!AC$335 -> 789 | AD180: ='PV OCC'!U34+1000*'Solar - Utility PV'!AD$335 -> 782 | AE180: ='PV OCC'!V34+1000*'Solar - Utility PV'!AE$335 -> 775 | AF180: ='PV OCC'!W34+1000*'Solar - Utility PV'!AF$335 -> 768 | AG180: ='PV OCC'!X34+1000*'Solar - Utility PV'!AG$335 -> 761 | AH180: ='PV OCC'!Y34+1000*'Solar - Utility PV'!AH$335 -> 754 | AI180: ='PV OCC'!Z34+1000*'Solar - Utility PV'!AI$335 -> 747 | AJ180: ='PV OCC'!AA34+1000*'Solar - Utility PV'!AJ$335 -> 740 | AK180: ='PV OCC'!AB34+1000*'Solar - Utility PV'!AK$335 -> 732 | AL180: ='PV OCC'!AC34+1000*'Solar - Utility PV'!AL$335 -> 724 | AM180: ='PV OCC'!AD34+1000*'Solar - Utility PV'!AM$335 -> 716 | AN180: ='PV OCC'!AE34+1000*'Solar - Utility PV'!AN$335 -> 708 | AO180: ='PV OCC'!AF34+1000*'Solar - Utility PV'!AO$335 -> 700 | AP180: ='PV OCC'!AG34+1000*'Solar - Utility PV'!AP$335 -> 692 | AQ180: ='PV OCC'!AH34+1000*'Solar - Utility PV'!AQ$335 -> 684 | AR180: ='PV OCC'!AI34+1000*'Solar - Utility PV'!AR$335 -> 676 | AS180: ='PV OCC'!AJ34+1000*'Solar - Utility PV'!AS$335 -> 668 | AT180: ='PV OCC'!AK34+1000*'Solar - Utility PV'!AT$335 -> 660
K181: Utility PV - Daggett, CA - Constant | L181: ='PV OCC'!C35+1000*'Solar - Utility PV'!L$335 -> 1753.922426 | M181: ='PV OCC'!D35+1000*'Solar - Utility PV'!M$335 -> 1195.512312 | N181: ='PV OCC'!E35+1000*'Solar - Utility PV'!N$335 -> 1095.512312 | O181: ='PV OCC'!F35+1000*'Solar - Utility PV'!O$335 -> 1105.512312 | P181: ='PV OCC'!G35+1000*'Solar - Utility PV'!P$335 -> 1135.512312 | Q181: ='PV OCC'!H35+1000*'Solar - Utility PV'!Q$335 -> 1155.512312 | R181: ='PV OCC'!I35+1000*'Solar - Utility PV'!R$335 -> 1155.512312 | S181: ='PV OCC'!J35+1000*'Solar - Utility PV'!S$335 -> 1155.512312 | T181: ='PV OCC'!K35+1000*'Solar - Utility PV'!T$335 -> 1155.512312 | U181: ='PV OCC'!L35+1000*'Solar - Utility PV'!U$335 -> 1155.512312 | V181: ='PV OCC'!M35+1000*'Solar - Utility PV'!V$335 -> 1155.512312 | W181: ='PV OCC'!N35+1000*'Solar - Utility PV'!W$335 -> 1155.512312 | X181: ='PV OCC'!O35+1000*'Solar - Utility PV'!X$335 -> 1155.512312 | Y181: ='PV OCC'!P35+1000*'Solar - Utility PV'!Y$335 -> 1155.512312 | Z181: ='PV OCC'!Q35+1000*'Solar - Utility PV'!Z$335 -> 1155.512312 | AA181: ='PV OCC'!R35+1000*'Solar - Utility PV'!AA$335 -> 1155.512312 | AB181: ='PV OCC'!S35+1000*'Solar - Utility PV'!AB$335 -> 1155.512312 | AC181: ='PV OCC'!T35+1000*'Solar - Utility PV'!AC$335 -> 1155.512312 | AD181: ='PV OCC'!U35+1000*'Solar - Utility PV'!AD$335 -> 1155.512312 | AE181: ='PV OCC'!V35+1000*'Solar - Utility PV'!AE$335 -> 1155.512312 | AF181: ='PV OCC'!W35+1000*'Solar - Utility PV'!AF$335 -> 1155.512312 | AG181: ='PV OCC'!X35+1000*'Solar - Utility PV'!AG$335 -> 1155.512312 | AH181: ='PV OCC'!Y35+1000*'Solar - Utility PV'!AH$335 -> 1155.512312 | AI181: ='PV OCC'!Z35+1000*'Solar - Utility PV'!AI$335 -> 1155.512312 | AJ181: ='PV OCC'!AA35+1000*'Solar - Utility PV'!AJ$335 -> 1155.512312 | AK181: ='PV OCC'!AB35+1000*'Solar - Utility PV'!AK$335 -> 1155.512312 | AL181: ='PV OCC'!AC35+1000*'Solar - Utility PV'!AL$335 -> 1155.512312 | AM181: ='PV OCC'!AD35+1000*'Solar - Utility PV'!AM$335 -> 1155.512312 | AN181: ='PV OCC'!AE35+1000*'Solar - Utility PV'!AN$335 -> 1155.512312 | AO181: ='PV OCC'!AF35+1000*'Solar - Utility PV'!AO$335 -> 1155.512312 | AP181: ='PV OCC'!AG35+1000*'Solar - Utility PV'!AP$335 -> 1155.512312 | AQ181: ='PV OCC'!AH35+1000*'Solar - Utility PV'!AQ$335 -> 1155.512312 | AR181: ='PV OCC'!AI35+1000*'Solar - Utility PV'!AR$335 -> 1155.512312 | AS181: ='PV OCC'!AJ35+1000*'Solar - Utility PV'!AS$335 -> 1155.512312 | AT181: ='PV OCC'!AK35+1000*'Solar - Utility PV'!AT$335 -> 1155.512312
L183: 2016 | M183: 2017 | N183: 2018 | O183: 2019 | P183: 2020 | Q183: 2021 | R183: 2022 | S183: 2023 | T183: 2024 | U183: 2025 | V183: 2026 | W183: 2027 | X183: 2028 | Y183: 2029 | Z183: 2030 | AA183: 2031 | AB183: 2032 | AC183: 2033 | AD183: 2034 | AE183: 2035 | AF183: 2036 | AG183: 2037 | AH183: 2038 | AI183: 2039 | AJ183: 2040 | AK183: 2041 | AL183: 2042 | AM183: 2043 | AN183: 2044 | AO183: 2045 | AP183: 2046 | AQ183: 2047 | AR183: 2048 | AS183: 2049 | AT183: 2050
J184: Fixed Operation and Maintenance Expenses ($/kW-yr) | K184: Utility PV - Seattle - Low | L184: 14.0313794 | M184: 9.564098492 | N184: 8.222209051 | O184: 7.770022022 | P184: 7.201547853 | Q184: 6.762109285 | R184: 6.579652697 | S184: 6.39719611 | T184: 6.214739523 | U184: 6.032282936 | V184: 5.849826349 | W184: 5.667369762 | X184: 5.484913174 | Y184: 5.302456587 | Z184: 5.12 | AA184: 5.04 | AB184: 4.96 | AC184: 4.88 | AD184: 4.814987404 | AE184: 4.685405887 | AF184: 4.583320312 | AG184: 4.481234738 | AH184: 4.379149163 | AI184: 4.277063588 | AJ184: 4.174978013 | AK184: 4.118617828 | AL184: 4.022247192 | AM184: 3.907860969 | AN184: 3.793474746 | AO184: 3.791041098 | AP184: 3.581713022 | AQ184: 3.484337521 | AR184: 3.38696202 | AS184: 3.28958652 | AT184: 3.252465912
K185: Utility PV - Seattle - Mid | L185: 14.0313794 | M185: 9.564098492 | N185: 9.201855722 | O185: 8.804804563 | P185: 8.089227824 | Q185: 7.532913875 | R185: 7.451479 | S185: 7.370044125 | T185: 7.28860925 | U185: 7.207174375 | V185: 7.1257395 | W185: 7.044304625 | X185: 6.96286975 | Y185: 6.881434875 | Z185: 6.8 | AA185: 6.744 | AB185: 6.688 | AC185: 6.632 | AD185: 6.576 | AE185: 6.52 | AF185: 6.464 | AG185: 6.408 | AH185: 6.352 | AI185: 6.296 | AJ185: 6.24 | AK185: 6.176 | AL185: 6.112 | AM185: 6.048 | AN185: 5.984 | AO185: 5.92 | AP185: 5.856 | AQ185: 5.792 | AR185: 5.728 | AS185: 5.664 | AT185: 5.6
K186: Utility PV - Seattle - Constant | L186: 14.0313794 | M186: 9.564098492 | N186: 9.564098492 | O186: 9.564098492 | P186: 9.564098492 | Q186: 9.564098492 | R186: 9.564098492 | S186: 9.564098492 | T186: 9.564098492 | U186: 9.564098492 | V186: 9.564098492 | W186: 9.564098492 | X186: 9.564098492 | Y186: 9.564098492 | Z186: 9.564098492 | AA186: 9.564098492 | AB186: 9.564098492 | AC186: 9.564098492 | AD186: 9.564098492 | AE186: 9.564098492 | AF186: 9.564098492 | AG186: 9.564098492 | AH186: 9.564098492 | AI186: 9.564098492 | AJ186: 9.564098492 | AK186: 9.564098492 | AL186: 9.564098492 | AM186: 9.564098492 | AN186: 9.564098492 | AO186: 9.564098492 | AP186: 9.564098492 | AQ186: 9.564098492 | AR186: 9.564098492 | AS186: 9.564098492 | AT186: 9.564098492
K187: Utility PV - Chicago - Low | L187: =L184 -> 14.0313794 | M187: =M184 -> 9.564098492 | N187: 8.222209051 | O187: 7.770022022 | P187: 7.201547853 | Q187: 6.762109285 | R187: 6.579652697 | S187: 6.39719611 | T187: 6.214739523 | U187: 6.032282936 | V187: 5.849826349 | W187: 5.667369762 | X187: 5.484913174 | Y187: 5.302456587 | Z187: 5.12 | AA187: 5.04 | AB187: 4.96 | AC187: 4.88 | AD187: 4.814987404 | AE187: 4.685405887 | AF187: 4.583320312 | AG187: 4.481234738 | AH187: 4.379149163 | AI187: 4.277063588 | AJ187: 4.174978013 | AK187: 4.118617828 | AL187: 4.022247192 | AM187: 3.907860969 | AN187: 3.793474746 | AO187: 3.791041098 | AP187: 3.581713022 | AQ187: 3.484337521 | AR187: 3.38696202 | AS187: 3.28958652 | AT187: 3.252465912
K188: Utility PV - Chicago - Mid | L188: =L185 -> 14.0313794 | M188: 9.564098492 | N188: 9.201855722 | O188: 8.804804563 | P188: 8.089227824 | Q188: 7.532913875 | R188: 7.451479 | S188: 7.370044125 | T188: 7.28860925 | U188: 7.207174375 | V188: 7.1257395 | W188: 7.044304625 | X188: 6.96286975 | Y188: 6.881434875 | Z188: 6.8 | AA188: 6.744 | AB188: 6.688 | AC188: 6.632 | AD188: 6.576 | AE188: 6.52 | AF188: 6.464 | AG188: 6.408 | AH188: 6.352 | AI188: 6.296 | AJ188: 6.24 | AK188: 6.176 | AL188: 6.112 | AM188: 6.048 | AN188: 5.984 | AO188: 5.92 | AP188: 5.856 | AQ188: 5.792 | AR188: 5.728 | AS188: 5.664 | AT188: 5.6
K189: Utility PV - Chicago - Constant | L189: =L186 -> 14.0313794 | M189: 9.564098492 | N189: 9.564098492 | O189: 9.564098492 | P189: 9.564098492 | Q189: 9.564098492 | R189: 9.564098492 | S189: 9.564098492 | T189: 9.564098492 | U189: 9.564098492 | V189: 9.564098492 | W189: 9.564098492 | X189: 9.564098492 | Y189: 9.564098492 | Z189: 9.564098492 | AA189: 9.564098492 | AB189: 9.564098492 | AC189: 9.564098492 | AD189: 9.564098492 | AE189: 9.564098492 | AF189: 9.564098492 | AG189: 9.564098492 | AH189: 9.564098492 | AI189: 9.564098492 | AJ189: 9.564098492 | AK189: 9.564098492 | AL189: 9.564098492 | AM189: 9.564098492 | AN189: 9.564098492 | AO189: 9.564098492 | AP189: 9.564098492 | AQ189: 9.564098492 | AR189: 9.564098492 | AS189: 9.564098492 | AT189: 9.564098492
K190: Utility PV - Kansas City - Low | L190: =L187 -> 14.0313794 | M190: 9.564098492 | N190: 8.222209051 | O190: 7.770022022 | P190: 7.201547853 | Q190: 6.762109285 | R190: 6.579652697 | S190: 6.39719611 | T190: 6.214739523 | U190: 6.032282936 | V190: 5.849826349 | W190: 5.667369762 | X190: 5.484913174 | Y190: 5.302456587 | Z190: 5.12 | AA190: 5.04 | AB190: 4.96 | AC190: 4.88 | AD190: 4.814987404 | AE190: 4.685405887 | AF190: 4.583320312 | AG190: 4.481234738 | AH190: 4.379149163 | AI190: 4.277063588 | AJ190: 4.174978013 | AK190: 4.118617828 | AL190: 4.022247192 | AM190: 3.907860969 | AN190: 3.793474746 | AO190: 3.791041098 | AP190: 3.581713022 | AQ190: 3.484337521 | AR190: 3.38696202 | AS190: 3.28958652 | AT190: 3.252465912
K191: Utility PV - Kansas City - Mid | L191: =L188 -> 14.0313794 | M191: 9.564098492 | N191: 9.201855722 | O191: 8.804804563 | P191: 8.089227824 | Q191: 7.532913875 | R191: 7.451479 | S191: 7.370044125 | T191: 7.28860925 | U191: 7.207174375 | V191: 7.1257395 | W191: 7.044304625 | X191: 6.96286975 | Y191: 6.881434875 | Z191: 6.8 | AA191: 6.744 | AB191: 6.688 | AC191: 6.632 | AD191: 6.576 | AE191: 6.52 | AF191: 6.464 | AG191: 6.408 | AH191: 6.352 | AI191: 6.296 | AJ191: 6.24 | AK191: 6.176 | AL191: 6.112 | AM191: 6.048 | AN191: 5.984 | AO191: 5.92 | AP191: 5.856 | AQ191: 5.792 | AR191: 5.728 | AS191: 5.664 | AT191: 5.6
K192: Utility PV - Kansas City - Constant | L192: =L189 -> 14.0313794 | M192: 9.564098492 | N192: 9.564098492 | O192: 9.564098492 | P192: 9.564098492 | Q192: 9.564098492 | R192: 9.564098492 | S192: 9.564098492 | T192: 9.564098492 | U192: 9.564098492 | V192: 9.564098492 | W192: 9.564098492 | X192: 9.564098492 | Y192: 9.564098492 | Z192: 9.564098492 | AA192: 9.564098492 | AB192: 9.564098492 | AC192: 9.564098492 | AD192: 9.564098492 | AE192: 9.564098492 | AF192: 9.564098492 | AG192: 9.564098492 | AH192: 9.564098492 | AI192: 9.564098492 | AJ192: 9.564098492 | AK192: 9.564098492 | AL192: 9.564098492 | AM192: 9.564098492 | AN192: 9.564098492 | AO192: 9.564098492 | AP192: 9.564098492 | AQ192: 9.564098492 | AR192: 9.564098492 | AS192: 9.564098492 | AT192: 9.564098492
A193: hi | K193: Utility PV - Los Angeles - Low | L193: =L190 -> 14.0313794 | M193: 9.564098492 | N193: 8.222209051 | O193: 7.770022022 | P193: 7.201547853 | Q193: 6.762109285 | R193: 6.579652697 | S193: 6.39719611 | T193: 6.214739523 | U193: 6.032282936 | V193: 5.849826349 | W193: 5.667369762 | X193: 5.484913174 | Y193: 5.302456587 | Z193: 5.12 | AA193: 5.04 | AB193: 4.96 | AC193: 4.88 | AD193: 4.814987404 | AE193: 4.685405887 | AF193: 4.583320312 | AG193: 4.481234738 | AH193: 4.379149163 | AI193: 4.277063588 | AJ193: 4.174978013 | AK193: 4.118617828 | AL193: 4.022247192 | AM193: 3.907860969 | AN193: 3.793474746 | AO193: 3.791041098 | AP193: 3.581713022 | AQ193: 3.484337521 | AR193: 3.38696202 | AS193: 3.28958652 | AT193: 3.252465912
K194: Utility PV - Los Angeles - Mid | L194: =L191 -> 14.0313794 | M194: 9.564098492 | N194: 9.201855722 | O194: 8.804804563 | P194: 8.089227824 | Q194: 7.532913875 | R194: 7.451479 | S194: 7.370044125 | T194: 7.28860925 | U194: 7.207174375 | V194: 7.1257395 | W194: 7.044304625 | X194: 6.96286975 | Y194: 6.881434875 | Z194: 6.8 | AA194: 6.744 | AB194: 6.688 | AC194: 6.632 | AD194: 6.576 | AE194: 6.52 | AF194: 6.464 | AG194: 6.408 | AH194: 6.352 | AI194: 6.296 | AJ194: 6.24 | AK194: 6.176 | AL194: 6.112 | AM194: 6.048 | AN194: 5.984 | AO194: 5.92 | AP194: 5.856 | AQ194: 5.792 | AR194: 5.728 | AS194: 5.664 | AT194: 5.6
K195: Utility PV - Los Angeles - Constant | L195: =L192 -> 14.0313794 | M195: 9.564098492 | N195: 9.564098492 | O195: 9.564098492 | P195: 9.564098492 | Q195: 9.564098492 | R195: 9.564098492 | S195: 9.564098492 | T195: 9.564098492 | U195: 9.564098492 | V195: 9.564098492 | W195: 9.564098492 | X195: 9.564098492 | Y195: 9.564098492 | Z195: 9.564098492 | AA195: 9.564098492 | AB195: 9.564098492 | AC195: 9.564098492 | AD195: 9.564098492 | AE195: 9.564098492 | AF195: 9.564098492 | AG195: 9.564098492 | AH195: 9.564098492 | AI195: 9.564098492 | AJ195: 9.564098492 | AK195: 9.564098492 | AL195: 9.564098492 | AM195: 9.564098492 | AN195: 9.564098492 | AO195: 9.564098492 | AP195: 9.564098492 | AQ195: 9.564098492 | AR195: 9.564098492 | AS195: 9.564098492 | AT195: 9.564098492
K196: Utility PV - Daggett, CA - Low | L196: =L193 -> 14.0313794 | M196: 9.564098492 | N196: 8.222209051 | O196: 7.770022022 | P196: 7.201547853 | Q196: 6.762109285 | R196: 6.579652697 | S196: 6.39719611 | T196: 6.214739523 | U196: 6.032282936 | V196: 5.849826349 | W196: 5.667369762 | X196: 5.484913174 | Y196: 5.302456587 | Z196: 5.12 | AA196: 5.04 | AB196: 4.96 | AC196: 4.88 | AD196: 4.814987404 | AE196: 4.685405887 | AF196: 4.583320312 | AG196: 4.481234738 | AH196: 4.379149163 | AI196: 4.277063588 | AJ196: 4.174978013 | AK196: 4.118617828 | AL196: 4.022247192 | AM196: 3.907860969 | AN196: 3.793474746 | AO196: 3.791041098 | AP196: 3.581713022 | AQ196: 3.484337521 | AR196: 3.38696202 | AS196: 3.28958652 | AT196: 3.252465912
K197: Utility PV - Daggett, CA - Mid | L197: =L194 -> 14.0313794 | M197: 9.564098492 | N197: 9.201855722 | O197: 8.804804563 | P197: 8.089227824 | Q197: 7.532913875 | R197: 7.451479 | S197: 7.370044125 | T197: 7.28860925 | U197: 7.207174375 | V197: 7.1257395 | W197: 7.044304625 | X197: 6.96286975 | Y197: 6.881434875 | Z197: 6.8 | AA197: 6.744 | AB197: 6.688 | AC197: 6.632 | AD197: 6.576 | AE197: 6.52 | AF197: 6.464 | AG197: 6.408 | AH197: 6.352 | AI197: 6.296 | AJ197: 6.24 | AK197: 6.176 | AL197: 6.112 | AM197: 6.048 | AN197: 5.984 | AO197: 5.92 | AP197: 5.856 | AQ197: 5.792 | AR197: 5.728 | AS197: 5.664 | AT197: 5.6
K198: Utility PV - Daggett, CA - Constant | L198: =L195 -> 14.0313794 | M198: 9.564098492 | N198: 9.564098492 | O198: 9.564098492 | P198: 9.564098492 | Q198: 9.564098492 | R198: 9.564098492 | S198: 9.564098492 | T198: 9.564098492 | U198: 9.564098492 | V198: 9.564098492 | W198: 9.564098492 | X198: 9.564098492 | Y198: 9.564098492 | Z198: 9.564098492 | AA198: 9.564098492 | AB198: 9.564098492 | AC198: 9.564098492 | AD198: 9.564098492 | AE198: 9.564098492 | AF198: 9.564098492 | AG198: 9.564098492 | AH198: 9.564098492 | AI198: 9.564098492 | AJ198: 9.564098492 | AK198: 9.564098492 | AL198: 9.564098492 | AM198: 9.564098492 | AN198: 9.564098492 | AO198: 9.564098492 | AP198: 9.564098492 | AQ198: 9.564098492 | AR198: 9.564098492 | AS198: 9.564098492 | AT198: 9.564098492
L200: 2016 | M200: 2017 | N200: 2018 | O200: 2019 | P200: 2020 | Q200: 2021 | R200: 2022 | S200: 2023 | T200: 2024 | U200: 2025 | V200: 2026 | W200: 2027 | X200: 2028 | Y200: 2029 | Z200: 2030 | AA200: 2031 | AB200: 2032 | AC200: 2033 | AD200: 2034 | AE200: 2035 | AF200: 2036 | AG200: 2037 | AH200: 2038 | AI200: 2039 | AJ200: 2040 | AK200: 2041 | AL200: 2042 | AM200: 2043 | AN200: 2044 | AO200: 2045 | AP200: 2046 | AQ200: 2047 | AR200: 2048 | AS200: 2049 | AT200: 2050
J201: Variable Operation and Maintenance Expenses ($/MWh) | K201: Utility PV - Seattle - Low | L201: 0 | M201: 0 | N201: 0 | O201: 0 | P201: 0 | Q201: 0 | R201: 0 | S201: 0 | T201: 0 | U201: 0 | V201: 0 | W201: 0 | X201: 0 | Y201: 0 | Z201: 0 | AA201: 0 | AB201: 0 | AC201: 0 | AD201: 0 | AE201: 0 | AF201: 0 | AG201: 0 | AH201: 0 | AI201: 0 | AJ201: 0 | AK201: 0 | AL201: 0 | AM201: 0 | AN201: 0 | AO201: 0 | AP201: 0 | AQ201: 0 | AR201: 0 | AS201: 0 | AT201: 0
K202: Utility PV - Seattle - Mid | L202: 0 | M202: 0 | N202: 0 | O202: 0 | P202: 0 | Q202: 0 | R202: 0 | S202: 0 | T202: 0 | U202: 0 | V202: 0 | W202: 0 | X202: 0 | Y202: 0 | Z202: 0 | AA202: 0 | AB202: 0 | AC202: 0 | AD202: 0 | AE202: 0 | AF202: 0 | AG202: 0 | AH202: 0 | AI202: 0 | AJ202: 0 | AK202: 0 | AL202: 0 | AM202: 0 | AN202: 0 | AO202: 0 | AP202: 0 | AQ202: 0 | AR202: 0 | AS202: 0 | AT202: 0
K203: Utility PV - Seattle - Constant | L203: 0 | M203: 0 | N203: 0 | O203: 0 | P203: 0 | Q203: 0 | R203: 0 | S203: 0 | T203: 0 | U203: 0 | V203: 0 | W203: 0 | X203: 0 | Y203: 0 | Z203: 0 | AA203: 0 | AB203: 0 | AC203: 0 | AD203: 0 | AE203: 0 | AF203: 0 | AG203: 0 | AH203: 0 | AI203: 0 | AJ203: 0 | AK203: 0 | AL203: 0 | AM203: 0 | AN203: 0 | AO203: 0 | AP203: 0 | AQ203: 0 | AR203: 0 | AS203: 0 | AT203: 0
K204: Utility PV - Chicago - Low | L204: 0 | M204: 0 | N204: 0 | O204: 0 | P204: 0 | Q204: 0 | R204: 0 | S204: 0 | T204: 0 | U204: 0 | V204: 0 | W204: 0 | X204: 0 | Y204: 0 | Z204: 0 | AA204: 0 | AB204: 0 | AC204: 0 | AD204: 0 | AE204: 0 | AF204: 0 | AG204: 0 | AH204: 0 | AI204: 0 | AJ204: 0 | AK204: 0 | AL204: 0 | AM204: 0 | AN204: 0 | AO204: 0 | AP204: 0 | AQ204: 0 | AR204: 0 | AS204: 0 | AT204: 0
K205: Utility PV - Chicago - Mid | L205: 0 | M205: 0 | N205: 0 | O205: 0 | P205: 0 | Q205: 0 | R205: 0 | S205: 0 | T205: 0 | U205: 0 | V205: 0 | W205: 0 | X205: 0 | Y205: 0 | Z205: 0 | AA205: 0 | AB205: 0 | AC205: 0 | AD205: 0 | AE205: 0 | AF205: 0 | AG205: 0 | AH205: 0 | AI205: 0 | AJ205: 0 | AK205: 0 | AL205: 0 | AM205: 0 | AN205: 0 | AO205: 0 | AP205: 0 | AQ205: 0 | AR205: 0 | AS205: 0 | AT205: 0
K206: Utility PV - Chicago - Constant | L206: 0 | M206: 0 | N206: 0 | O206: 0 | P206: 0 | Q206: 0 | R206: 0 | S206: 0 | T206: 0 | U206: 0 | V206: 0 | W206: 0 | X206: 0 | Y206: 0 | Z206: 0 | AA206: 0 | AB206: 0 | AC206: 0 | AD206: 0 | AE206: 0 | AF206: 0 | AG206: 0 | AH206: 0 | AI206: 0 | AJ206: 0 | AK206: 0 | AL206: 0 | AM206: 0 | AN206: 0 | AO206: 0 | AP206: 0 | AQ206: 0 | AR206: 0 | AS206: 0 | AT206: 0
K207: Utility PV - Kansas City - Low | L207: 0 | M207: 0 | N207: 0 | O207: 0 | P207: 0 | Q207: 0 | R207: 0 | S207: 0 | T207: 0 | U207: 0 | V207: 0 | W207: 0 | X207: 0 | Y207: 0 | Z207: 0 | AA207: 0 | AB207: 0 | AC207: 0 | AD207: 0 | AE207: 0 | AF207: 0 | AG207: 0 | AH207: 0 | AI207: 0 | AJ207: 0 | AK207: 0 | AL207: 0 | AM207: 0 | AN207: 0 | AO207: 0 | AP207: 0 | AQ207: 0 | AR207: 0 | AS207: 0 | AT207: 0
K208: Utility PV - Kansas City - Mid | L208: 0 | M208: 0 | N208: 0 | O208: 0 | P208: 0 | Q208: 0 | R208: 0 | S208: 0 | T208: 0 | U208: 0 | V208: 0 | W208: 0 | X208: 0 | Y208: 0 | Z208: 0 | AA208: 0 | AB208: 0 | AC208: 0 | AD208: 0 | AE208: 0 | AF208: 0 | AG208: 0 | AH208: 0 | AI208: 0 | AJ208: 0 | AK208: 0 | AL208: 0 | AM208: 0 | AN208: 0 | AO208: 0 | AP208: 0 | AQ208: 0 | AR208: 0 | AS208: 0 | AT208: 0
K209: Utility PV - Kansas City - Constant | L209: 0 | M209: 0 | N209: 0 | O209: 0 | P209: 0 | Q209: 0 | R209: 0 | S209: 0 | T209: 0 | U209: 0 | V209: 0 | W209: 0 | X209: 0 | Y209: 0 | Z209: 0 | AA209: 0 | AB209: 0 | AC209: 0 | AD209: 0 | AE209: 0 | AF209: 0 | AG209: 0 | AH209: 0 | AI209: 0 | AJ209: 0 | AK209: 0 | AL209: 0 | AM209: 0 | AN209: 0 | AO209: 0 | AP209: 0 | AQ209: 0 | AR209: 0 | AS209: 0 | AT209: 0
K210: Utility PV - Los Angeles - Low | L210: 0 | M210: 0 | N210: 0 | O210: 0 | P210: 0 | Q210: 0 | R210: 0 | S210: 0 | T210: 0 | U210: 0 | V210: 0 | W210: 0 | X210: 0 | Y210: 0 | Z210: 0 | AA210: 0 | AB210: 0 | AC210: 0 | AD210: 0 | AE210: 0 | AF210: 0 | AG210: 0 | AH210: 0 | AI210: 0 | AJ210: 0 | AK210: 0 | AL210: 0 | AM210: 0 | AN210: 0 | AO210: 0 | AP210: 0 | AQ210: 0 | AR210: 0 | AS210: 0 | AT210: 0
K211: Utility PV - Los Angeles - Mid | L211: 0 | M211: 0 | N211: 0 | O211: 0 | P211: 0 | Q211: 0 | R211: 0 | S211: 0 | T211: 0 | U211: 0 | V211: 0 | W211: 0 | X211: 0 | Y211: 0 | Z211: 0 | AA211: 0 | AB211: 0 | AC211: 0 | AD211: 0 | AE211: 0 | AF211: 0 | AG211: 0 | AH211: 0 | AI211: 0 | AJ211: 0 | AK211: 0 | AL211: 0 | AM211: 0 | AN211: 0 | AO211: 0 | AP211: 0 | AQ211: 0 | AR211: 0 | AS211: 0 | AT211: 0
K212: Utility PV - Los Angeles - Constant | L212: 0 | M212: 0 | N212: 0 | O212: 0 | P212: 0 | Q212: 0 | R212: 0 | S212: 0 | T212: 0 | U212: 0 | V212: 0 | W212: 0 | X212: 0 | Y212: 0 | Z212: 0 | AA212: 0 | AB212: 0 | AC212: 0 | AD212: 0 | AE212: 0 | AF212: 0 | AG212: 0 | AH212: 0 | AI212: 0 | AJ212: 0 | AK212: 0 | AL212: 0 | AM212: 0 | AN212: 0 | AO212: 0 | AP212: 0 | AQ212: 0 | AR212: 0 | AS212: 0 | AT212: 0
K213: Utility PV - Daggett, CA - Low | L213: 0 | M213: 0 | N213: 0 | O213: 0 | P213: 0 | Q213: 0 | R213: 0 | S213: 0 | T213: 0 | U213: 0 | V213: 0 | W213: 0 | X213: 0 | Y213: 0 | Z213: 0 | AA213: 0 | AB213: 0 | AC213: 0 | AD213: 0 | AE213: 0 | AF213: 0 | AG213: 0 | AH213: 0 | AI213: 0 | AJ213: 0 | AK213: 0 | AL213: 0 | AM213: 0 | AN213: 0 | AO213: 0 | AP213: 0 | AQ213: 0 | AR213: 0 | AS213: 0 | AT213: 0
K214: Utility PV - Daggett, CA - Mid | L214: 0 | M214: 0 | N214: 0 | O214: 0 | P214: 0 | Q214: 0 | R214: 0 | S214: 0 | T214: 0 | U214: 0 | V214: 0 | W214: 0 | X214: 0 | Y214: 0 | Z214: 0 | AA214: 0 | AB214: 0 | AC214: 0 | AD214: 0 | AE214: 0 | AF214: 0 | AG214: 0 | AH214: 0 | AI214: 0 | AJ214: 0 | AK214: 0 | AL214: 0 | AM214: 0 | AN214: 0 | AO214: 0 | AP214: 0 | AQ214: 0 | AR214: 0 | AS214: 0 | AT214: 0
K215: Utility PV - Daggett, CA - Constant | L215: 0 | M215: 0 | N215: 0 | O215: 0 | P215: 0 | Q215: 0 | R215: 0 | S215: 0 | T215: 0 | U215: 0 | V215: 0 | W215: 0 | X215: 0 | Y215: 0 | Z215: 0 | AA215: 0 | AB215: 0 | AC215: 0 | AD215: 0 | AE215: 0 | AF215: 0 | AG215: 0 | AH215: 0 | AI215: 0 | AJ215: 0 | AK215: 0 | AL215: 0 | AM215: 0 | AN215: 0 | AO215: 0 | AP215: 0 | AQ215: 0 | AR215: 0 | AS215: 0 | AT215: 0
H218: Finance | L218: 2016 | M218: 2017 | N218: 2018 | O218: 2019 | P218: 2020 | Q218: 2021 | R218: 2022 | S218: 2023 | T218: 2024 | U218: 2025 | V218: 2026 | W218: 2027 | X218: 2028 | Y218: 2029 | Z218: 2030 | AA218: 2031 | AB218: 2032 | AC218: 2033 | AD218: 2034 | AE218: 2035 | AF218: 2036 | AG218: 2037 | AH218: 2038 | AI218: 2039 | AJ218: 2040 | AK218: 2041 | AL218: 2042 | AM218: 2043 | AN218: 2044 | AO218: 2045 | AP218: 2046 | AQ218: 2047 | AR218: 2048 | AS218: 2049 | AT218: 2050
J219: Assumptions | K219: Inflation Rate | L219: ='WACC Calc'!F394 -> 0.025 | M219: ='WACC Calc'!G394 -> 0.025 | N219: ='WACC Calc'!H394 -> 0.025 | O219: ='WACC Calc'!I394 -> 0.025 | P219: ='WACC Calc'!J394 -> 0.025 | Q219: ='WACC Calc'!K394 -> 0.025 | R219: ='WACC Calc'!L394 -> 0.025 | S219: ='WACC Calc'!M394 -> 0.025 | T219: ='WACC Calc'!N394 -> 0.025 | U219: ='WACC Calc'!O394 -> 0.025 | V219: ='WACC Calc'!P394 -> 0.025 | W219: ='WACC Calc'!Q394 -> 0.025 | X219: ='WACC Calc'!R394 -> 0.025 | Y219: ='WACC Calc'!S394 -> 0.025 | Z219: ='WACC Calc'!T394 -> 0.025 | AA219: ='WACC Calc'!U394 -> 0.025 | AB219: ='WACC Calc'!V394 -> 0.025 | AC219: ='WACC Calc'!W394 -> 0.025 | AD219: ='WACC Calc'!X394 -> 0.025 | AE219: ='WACC Calc'!Y394 -> 0.025 | AF219: ='WACC Calc'!Z394 -> 0.025 | AG219: ='WACC Calc'!AA394 -> 0.025 | AH219: ='WACC Calc'!AB394 -> 0.025 | AI219: ='WACC Calc'!AC394 -> 0.025 | AJ219: ='WACC Calc'!AD394 -> 0.025 | AK219: ='WACC Calc'!AE394 -> 0.025 | AL219: ='WACC Calc'!AF394 -> 0.025 | AM219: ='WACC Calc'!AG394 -> 0.025 | AN219: ='WACC Calc'!AH394 -> 0.025 | AO219: ='WACC Calc'!AI394 -> 0.025 | AP219: ='WACC Calc'!AJ394 -> 0.025 | AQ219: ='WACC Calc'!AK394 -> 0.025 | AR219: ='WACC Calc'!AL394 -> 0.025 | AS219: ='WACC Calc'!AM394 -> 0.025 | AT219: ='WACC Calc'!AN394 -> 0.025
K220: Interest Rate Nominal - Low | L220: ='WACC Calc'!F395 -> 0.0373 | M220: ='WACC Calc'!G395 -> 0.0373 | N220: ='WACC Calc'!H395 -> 0.0373 | O220: ='WACC Calc'!I395 -> 0.0373 | P220: ='WACC Calc'!J395 -> 0.0373 | Q220: ='WACC Calc'!K395 -> 0.0373 | R220: ='WACC Calc'!L395 -> 0.0373 | S220: ='WACC Calc'!M395 -> 0.0373 | T220: ='WACC Calc'!N395 -> 0.0373 | U220: ='WACC Calc'!O395 -> 0.0373 | V220: ='WACC Calc'!P395 -> 0.0373 | W220: ='WACC Calc'!Q395 -> 0.0373 | X220: ='WACC Calc'!R395 -> 0.0373 | Y220: ='WACC Calc'!S395 -> 0.0373 | Z220: ='WACC Calc'!T395 -> 0.0373 | AA220: ='WACC Calc'!U395 -> 0.0373 | AB220: ='WACC Calc'!V395 -> 0.0373 | AC220: ='WACC Calc'!W395 -> 0.0373 | AD220: ='WACC Calc'!X395 -> 0.0373 | AE220: ='WACC Calc'!Y395 -> 0.0373 | AF220: ='WACC Calc'!Z395 -> 0.0373 | AG220: ='WACC Calc'!AA395 -> 0.0373 | AH220: ='WACC Calc'!AB395 -> 0.0373 | AI220: ='WACC Calc'!AC395 -> 0.0373 | AJ220: ='WACC Calc'!AD395 -> 0.0373 | AK220: ='WACC Calc'!AE395 -> 0.0373 | AL220: ='WACC Calc'!AF395 -> 0.0373 | AM220: ='WACC Calc'!AG395 -> 0.0373 | AN220: ='WACC Calc'!AH395 -> 0.0373 | AO220: ='WACC Calc'!AI395 -> 0.0373 | AP220: ='WACC Calc'!AJ395 -> 0.0373 | AQ220: ='WACC Calc'!AK395 -> 0.0373 | AR220: ='WACC Calc'!AL395 -> 0.0373 | AS220: ='WACC Calc'!AM395 -> 0.0373 | AT220: ='WACC Calc'!AN395 -> 0.0373
K221: Interest Rate Nominal - Mid | L221: ='WACC Calc'!F396 -> 0.0373 | M221: ='WACC Calc'!G396 -> 0.0373 | N221: ='WACC Calc'!H396 -> 0.0373 | O221: ='WACC Calc'!I396 -> 0.0373 | P221: ='WACC Calc'!J396 -> 0.0373 | Q221: ='WACC Calc'!K396 -> 0.0373 | R221: ='WACC Calc'!L396 -> 0.0373 | S221: ='WACC Calc'!M396 -> 0.0373 | T221: ='WACC Calc'!N396 -> 0.0373 | U221: ='WACC Calc'!O396 -> 0.0373 | V221: ='WACC Calc'!P396 -> 0.0373 | W221: ='WACC Calc'!Q396 -> 0.0373 | X221: ='WACC Calc'!R396 -> 0.0373 | Y221: ='WACC Calc'!S396 -> 0.0373 | Z221: ='WACC Calc'!T396 -> 0.0373 | AA221: ='WACC Calc'!U396 -> 0.0373 | AB221: ='WACC Calc'!V396 -> 0.0373 | AC221: ='WACC Calc'!W396 -> 0.0373 | AD221: ='WACC Calc'!X396 -> 0.0373 | AE221: ='WACC Calc'!Y396 -> 0.0373 | AF221: ='WACC Calc'!Z396 -> 0.0373 | AG221: ='WACC Calc'!AA396 -> 0.0373 | AH221: ='WACC Calc'!AB396 -> 0.0373 | AI221: ='WACC Calc'!AC396 -> 0.0373 | AJ221: ='WACC Calc'!AD396 -> 0.0373 | AK221: ='WACC Calc'!AE396 -> 0.0373 | AL221: ='WACC Calc'!AF396 -> 0.0373 | AM221: ='WACC Calc'!AG396 -> 0.0373 | AN221: ='WACC Calc'!AH396 -> 0.0373 | AO221: ='WACC Calc'!AI396 -> 0.0373 | AP221: ='WACC Calc'!AJ396 -> 0.0373 | AQ221: ='WACC Calc'!AK396 -> 0.0373 | AR221: ='WACC Calc'!AL396 -> 0.0373 | AS221: ='WACC Calc'!AM396 -> 0.0373 | AT221: ='WACC Calc'!AN396 -> 0.0373
K222: Interest Rate Nominal - Constant | L222: ='WACC Calc'!F397 -> 0.0373 | M222: ='WACC Calc'!G397 -> 0.0373 | N222: ='WACC Calc'!H397 -> 0.0373 | O222: ='WACC Calc'!I397 -> 0.0373 | P222: ='WACC Calc'!J397 -> 0.0373 | Q222: ='WACC Calc'!K397 -> 0.0373 | R222: ='WACC Calc'!L397 -> 0.0373 | S222: ='WACC Calc'!M397 -> 0.0373 | T222: ='WACC Calc'!N397 -> 0.0373 | U222: ='WACC Calc'!O397 -> 0.0373 | V222: ='WACC Calc'!P397 -> 0.0373 | W222: ='WACC Calc'!Q397 -> 0.0373 | X222: ='WACC Calc'!R397 -> 0.0373 | Y222: ='WACC Calc'!S397 -> 0.0373 | Z222: ='WACC Calc'!T397 -> 0.0373 | AA222: ='WACC Calc'!U397 -> 0.0373 | AB222: ='WACC Calc'!V397 -> 0.0373 | AC222: ='WACC Calc'!W397 -> 0.0373 | AD222: ='WACC Calc'!X397 -> 0.0373 | AE222: ='WACC Calc'!Y397 -> 0.0373 | AF222: ='WACC Calc'!Z397 -> 0.0373 | AG222: ='WACC Calc'!AA397 -> 0.0373 | AH222: ='WACC Calc'!AB397 -> 0.0373 | AI222: ='WACC Calc'!AC397 -> 0.0373 | AJ222: ='WACC Calc'!AD397 -> 0.0373 | AK222: ='WACC Calc'!AE397 -> 0.0373 | AL222: ='WACC Calc'!AF397 -> 0.0373 | AM222: ='WACC Calc'!AG397 -> 0.0373 | AN222: ='WACC Calc'!AH397 -> 0.0373 | AO222: ='WACC Calc'!AI397 -> 0.0373 | AP222: ='WACC Calc'!AJ397 -> 0.0373 | AQ222: ='WACC Calc'!AK397 -> 0.0373 | AR222: ='WACC Calc'!AL397 -> 0.0373 | AS222: ='WACC Calc'!AM397 -> 0.0373 | AT222: ='WACC Calc'!AN397 -> 0.0373
K223: Calculated Interest Rate Real - Low | L223: ='WACC Calc'!F398 -> 0.012 | M223: ='WACC Calc'!G398 -> 0.012 | N223: ='WACC Calc'!H398 -> 0.012 | O223: ='WACC Calc'!I398 -> 0.012 | P223: ='WACC Calc'!J398 -> 0.012 | Q223: ='WACC Calc'!K398 -> 0.012 | R223: ='WACC Calc'!L398 -> 0.012 | S223: ='WACC Calc'!M398 -> 0.012 | T223: ='WACC Calc'!N398 -> 0.012 | U223: ='WACC Calc'!O398 -> 0.012 | V223: ='WACC Calc'!P398 -> 0.012 | W223: ='WACC Calc'!Q398 -> 0.012 | X223: ='WACC Calc'!R398 -> 0.012 | Y223: ='WACC Calc'!S398 -> 0.012 | Z223: ='WACC Calc'!T398 -> 0.012 | AA223: ='WACC Calc'!U398 -> 0.012 | AB223: ='WACC Calc'!V398 -> 0.012 | AC223: ='WACC Calc'!W398 -> 0.012 | AD223: ='WACC Calc'!X398 -> 0.012 | AE223: ='WACC Calc'!Y398 -> 0.012 | AF223: ='WACC Calc'!Z398 -> 0.012 | AG223: ='WACC Calc'!AA398 -> 0.012 | AH223: ='WACC Calc'!AB398 -> 0.012 | AI223: ='WACC Calc'!AC398 -> 0.012 | AJ223: ='WACC Calc'!AD398 -> 0.012 | AK223: ='WACC Calc'!AE398 -> 0.012 | AL223: ='WACC Calc'!AF398 -> 0.012 | AM223: ='WACC Calc'!AG398 -> 0.012 | AN223: ='WACC Calc'!AH398 -> 0.012 | AO223: ='WACC Calc'!AI398 -> 0.012 | AP223: ='WACC Calc'!AJ398 -> 0.012 | AQ223: ='WACC Calc'!AK398 -> 0.012 | AR223: ='WACC Calc'!AL398 -> 0.012 | AS223: ='WACC Calc'!AM398 -> 0.012 | AT223: ='WACC Calc'!AN398 -> 0.012
K224: Calculated Interest Rate Real - Mid | L224: ='WACC Calc'!F399 -> 0.012 | M224: ='WACC Calc'!G399 -> 0.012 | N224: ='WACC Calc'!H399 -> 0.012 | O224: ='WACC Calc'!I399 -> 0.012 | P224: ='WACC Calc'!J399 -> 0.012 | Q224: ='WACC Calc'!K399 -> 0.012 | R224: ='WACC Calc'!L399 -> 0.012 | S224: ='WACC Calc'!M399 -> 0.012 | T224: ='WACC Calc'!N399 -> 0.012 | U224: ='WACC Calc'!O399 -> 0.012 | V224: ='WACC Calc'!P399 -> 0.012 | W224: ='WACC Calc'!Q399 -> 0.012 | X224: ='WACC Calc'!R399 -> 0.012 | Y224: ='WACC Calc'!S399 -> 0.012 | Z224: ='WACC Calc'!T399 -> 0.012 | AA224: ='WACC Calc'!U399 -> 0.012 | AB224: ='WACC Calc'!V399 -> 0.012 | AC224: ='WACC Calc'!W399 -> 0.012 | AD224: ='WACC Calc'!X399 -> 0.012 | AE224: ='WACC Calc'!Y399 -> 0.012 | AF224: ='WACC Calc'!Z399 -> 0.012 | AG224: ='WACC Calc'!AA399 -> 0.012 | AH224: ='WACC Calc'!AB399 -> 0.012 | AI224: ='WACC Calc'!AC399 -> 0.012 | AJ224: ='WACC Calc'!AD399 -> 0.012 | AK224: ='WACC Calc'!AE399 -> 0.012 | AL224: ='WACC Calc'!AF399 -> 0.012 | AM224: ='WACC Calc'!AG399 -> 0.012 | AN224: ='WACC Calc'!AH399 -> 0.012 | AO224: ='WACC Calc'!AI399 -> 0.012 | AP224: ='WACC Calc'!AJ399 -> 0.012 | AQ224: ='WACC Calc'!AK399 -> 0.012 | AR224: ='WACC Calc'!AL399 -> 0.012 | AS224: ='WACC Calc'!AM399 -> 0.012 | AT224: ='WACC Calc'!AN399 -> 0.012
... 125 more rows

Sheet Solar - PV Dist. Comm
A1: Solar Distributed Commercial PV Inputs | L1: https://atb.nrel.gov/electricity/2017/index.html?t=sd
T3: Inputs
J4: Take me to: | T4: Calculated
B10: X | G10: Current Costs
H12: Techno-Economic Cost and Performance Parameters | J12: Net Capacity Factor (%) | K12: Comm PV - Seattle | L12: 0.1188759366 | O12: Basis Year: | Q12: 2016
K13: Comm PV - Chicago | L13: 0.1397632495
K14: Comm PV - Kansas City | L14: 0.1520361058 | O14: Commercial Solar Photovoltaic
K15: Comm PV - Los Angeles | L15: 0.1729299868
K16: Comm PV - Daggett, CA | L16: 0.1955371885
O17: Representative Dist. Commercial system is fixed-tilt roof mounted with capacity of 300 kW
J18: Annual Energy Production (kWh/kW) | K18: Comm PV - Seattle | L18: =L12*8760 -> 1041.353205 | O18: Overnight Capital Cost, Fixed O&M, and Variable O&M costs represent $/kW DC;
K19: Comm PV - Chicago | L19: =L13*8760 -> 1224.326066 | O19: Capacity factor includes a conversion to AC. Therefore LCOE reflects $/MWh AC.
K20: Comm PV - Kansas City | L20: =L14*8760 -> 1331.836287 | O20: Capacity factors chosen here to reflect range across the continental U.S. using NREL PVWATTS
K21: Comm PV - Los Angeles | L21: =L15*8760 -> 1514.866684
K22: Comm PV - Daggett, CA | L22: =L16*8760 -> 1712.905771
S23: Available | T23: Available
J24: CAPEX ($/kW) | K24: Comm PV - Seattle | L24: =$S$54 * (L36 + L62) -> 2597.351055 | S24: Capacity | T24: Generation
K25: Comm PV - Chicago | L25: =$S$54 * (L37 + L63) -> 2597.351055 | S25: (GW) | T25: (GWh)
K26: Comm PV - Kansas City | L26: =$S$54 * (L38 + L64) -> 2597.351055 | S26: 386 | T26: 506000
K27: Comm PV - Los Angeles | L27: =$S$54 * (L39 + L65) -> 2597.351055
K28: Comm PV - Daggett, CA | L28: =$S$54 * (L40 + L66) -> 2597.351055
O29: Commercial PV - 11.4% | Q29: Capacity factor labels based on dSolar minimum, average and maximum first year energy production. ATB values reflect annual average capacity factor over life of plant including estimated degradation of 0.5% per year.
J30: Construction Financing Cost ($/kW) | K30: Comm PV - Seattle | L30: =(L36+L62)*($S$54-1) -> 35.16017011 | O30: Commercial PV - 14.5%
K31: Comm PV - Chicago | L31: =(L37+L63)*($S$54-1) -> 35.16017011 | O31: Commercial PV - 18.7%
K32: Comm PV - Kansas City | L32: =(L38+L64)*($S$54-1) -> 35.16017011
K33: Comm PV - Los Angeles | L33: =(L39+L65)*($S$54-1) -> 35.16017011
K34: Comm PV - Daggett, CA | L34: =(L40+L66)*($S$54-1) -> 35.16017011
O35: Financial Assumptions:
J36: Overnight Capital Cost ($/kW) | K36: Comm PV - Seattle | L36: =$L$152 -> 2562.190885 | O36: Inflation Rate | S36: =L203 -> 0.025
K37: Comm PV - Chicago | L37: =$L$155 -> 2562.190885 | O37: Capital Recovery Period (Years) | S37: 30
K38: Comm PV - Kansas City | L38: =$L$164 -> 2562.190885 | O38: Interest Rate Nominal - Mid | S38: =L205 -> 0.0373
K39: Comm PV - Los Angeles | L39: =$L$164 -> 2562.190885
K40: Comm PV - Daggett, CA | L40: =$L$164 -> 2562.190885
O41: Calculated Interest Rate Real - Mid | S41: =L208 -> 0.012
J42: Fixed Operation and Maintenance Expenses ($/kW/yr) | K42: Comm PV - Seattle | L42: =15+PMT(0.08,30,PV(0.08,15,0,0.12*1000)) -> 18.36025339 | O42: Interest During Construction - Nominal | S42: =L210 -> 0.0373
K43: Comm PV - Chicago | L43: =15+PMT(0.08,30,PV(0.08,15,0,0.12*1000)) -> 18.36025339 | O43: Rate of Return on Equity Nominal - Mid | S43: =L212 -> 0.0903
K44: Comm PV - Kansas City | L44: =15+PMT(0.08,30,PV(0.08,15,0,0.12*1000)) -> 18.36025339 | O44: Calculated Rate of Return on Equity Real - Mid | S44: =L215 -> 0.06370731707
K45: Comm PV - Los Angeles | L45: =15+PMT(0.08,30,PV(0.08,15,0,0.12*1000)) -> 18.36025339
K46: Comm PV - Daggett, CA | L46: =15+PMT(0.08,30,PV(0.08,15,0,0.12*1000)) -> 18.36025339
O47: Debt Fraction - Mid | S47: =L218 -> 0.6
J48: Variable Operation and Maintenance Expenses ($/MWh) | K48: Comm PV - Seattle | L48: 0 | O48: Tax Rate (Federal and State) | S48: =L220 -> 0.2574
K49: Comm PV - Chicago | L49: 0 | O49: WACC Nominal - Mid | S49: =L222 -> 0.052739388
K50: Comm PV - Kansas City | L50: 0 | O50: WACC Real - Mid | S50: =L225 -> 0.02706281756
K51: Comm PV - Los Angeles | L51: 0
K52: Comm PV - Daggett, CA | L52: 0
O53: Depreciation Period | S53: 5
O54: Construction Finance Factor | S54: =SUMPRODUCT(P67:P69,Q67:Q69) -> 1.013722697
H55: Finance | J55: Weighted Average Cost of Capital (WACC) (Nominal) (%) | K55: Comm PV - Seattle | L55: =$S$49 -> 0.052739388 | O55: Present Value of Depreciation | S55: =SUMPRODUCT(O74:T74,O76:T76) -> 0.8684887286
K56: Comm PV - Chicago | L56: =$S$49 -> 0.052739388 | O56: Project Finance Factor | S56: =(1 - S48 * S55) / (1 - S48) -> 1.045584435
K57: Comm PV - Kansas City | L57: =$S$49 -> 0.052739388 | O57: Capital Recovery Factor (CRF) Nominal - Mid | S57: =L228 -> 0.06709677801
K58: Comm PV - Los Angeles | L58: =$S$49 -> 0.052739388
K59: Comm PV - Daggett, CA | L59: =$S$49 -> 0.052739388
O60: Capital Recovery Factor (CRF) Real - Mid | S60: =L231 -> 0.04910140114
H62: Grid Connection Costs | J62: Grid Connection Costs (GCC) ($/kW) | K62: Comm PV - Seattle | L62: =L68+L74 -> 0 | O62: Construction Duration yrs | Q62: 1
K63: Comm PV - Chicago | L63: =L69+L75 -> 0 | O63: Year | P63: Capital | Q63: Accumulated
K64: Comm PV - Kansas City | L64: =L70+L76 -> 0 | O64: Index | P64: Fraction | Q64: Interest
K65: Comm PV - Los Angeles | L65: =L71+L77 -> 0
K66: Comm PV - Daggett, CA | L66: =L72+L78 -> 0
O67: 0 | P67: 1 | Q67: =1+(1-S48)*((1+S42)^(O67+0.5)-1) -> 1.013722697
J68: Grid Feature Costs ($/kW) | K68: Comm PV - Seattle | L68: 0 | O68: 1 | P68: 0 | Q68: =1+(1-S48)*((1+S42)^(O68+0.5)-1) -> 1.041933534
K69: Comm PV - Chicago | L69: 0 | O69: 2 | P69: 0 | Q69: =1+(1-S48)*((1+S42)^(O69+0.5)-1) -> 1.071196635
K70: Comm PV - Kansas City | L70: 0
K71: Comm PV - Los Angeles | L71: 0
K72: Comm PV - Daggett, CA | L72: 0
N73: MACRS yr | O73: 1 | P73: 2 | Q73: 3 | R73: 4 | S73: 5 | T73: 6
J74: Onshore Spur Line Costs ($/kW) | K74: Comm PV - Seattle | L74: 0 | N74: Depreciation | O74: 0.2 | P74: 0.32 | Q74: 0.192 | R74: 0.1152 | S74: 0.1152 | T74: 0.0576
K75: Comm PV - Chicago | L75: 0 | N75: Fraction
K76: Comm PV - Kansas City | L76: 0 | N76: Depreciation | O76: =1/((1+$S$50)*(1+$S$36))^O73 -> 0.9499027123 | P76: 0.9023151628 | Q76: 0.8571116205 | R76: 0.8141726531 | S76: 0.7733848114 | T76: 0.73464033
K77: Comm PV - Los Angeles | L77: 0
K78: Comm PV - Daggett, CA | L78: 0
N79: Factor
H81: LCOE | J81: Levelized Cost of Energy ($/MWh) | K81: Comm PV - Seattle | L81: =(($S$60 * $S$56 * $S$54 * (L36 * 1 + L62) +L42) * 1000 / (L12 * 8760)) + L48 + 0 -> 145.6829199
K82: Comm PV - Chicago | L82: =(($S$60 * $S$56 * $S$54 * (L37 * 1 + L63) +L43) * 1000 / (L13 * 8760)) + L49 + 0 -> 123.9109251
K83: Comm PV - Kansas City | L83: =(($S$60 * $S$56 * $S$54 * (L38 * 1 + L64) +L44) * 1000 / (L14 * 8760)) + L50 + 0 -> 113.9084263
K84: Comm PV - Los Angeles | L84: =(($S$60 * $S$56 * $S$54 * (L39 * 1 + L65) +L45) * 1000 / (L15 * 8760)) + L51 + 0 -> 100.145694
K85: Comm PV - Daggett, CA | L85: =(($S$60 * $S$56 * $S$54 * (L40 * 1 + L66) +L46) * 1000 / (L16 * 8760)) + L52 + 0 -> 88.56726271
J87: Overnight Levelized Cost of Energy ($/MWh) | K87: Comm PV - Seattle | L87: =(((L36*$S$60*(1-$S$48*$S$55))/(8760*L12*(1-$S$48))+L42/(8760*L12))*1000)+L48 -> 143.9494915
K88: Comm PV - Chicago | L88: =(((L37*$S$60*(1-$S$48*$S$55))/(8760*L13*(1-$S$48))+L43/(8760*L13))*1000)+L49 -> 122.4365538
K89: Comm PV - Kansas City | L89: =(((L38*$S$60*(1-$S$48*$S$55))/(8760*L14*(1-$S$48))+L44/(8760*L14))*1000)+L50 -> 112.5530711
K90: Comm PV - Los Angeles | L90: =(((L39*$S$60*(1-$S$48*$S$55))/(8760*L15*(1-$S$48))+L45/(8760*L15))*1000)+L51 -> 98.95409663
K91: Comm PV - Daggett, CA | L91: =(((L40*$S$60*(1-$S$48*$S$55))/(8760*L16*(1-$S$48))+L46/(8760*L16))*1000)+L52 -> 87.51343288
H94: ***Note: For future projections, low, mid, and high refer to the resulting low, mid, and high LCOE projections.
D97: X | G97: Future Projections
L98: Basis Year
L99: 2016 | M99: 2017 | N99: 2018 | O99: 2019 | P99: 2020 | Q99: 2021 | R99: 2022 | S99: 2023 | T99: 2024 | U99: 2025 | V99: 2026 | W99: 2027 | X99: 2028 | Y99: 2029 | Z99: 2030 | AA99: 2031 | AB99: 2032 | AC99: 2033 | AD99: 2034 | AE99: 2035 | AF99: 2036 | AG99: 2037 | AH99: 2038 | AI99: 2039 | AJ99: 2040 | AK99: 2041 | AL99: 2042 | AM99: 2043 | AN99: 2044 | AO99: 2045 | AP99: 2046 | AQ99: 2047 | AR99: 2048 | AS99: 2049 | AT99: 2050
H100: Techno-Economic Cost and Performance Parameters | J100: Net Capacity Factor (%) | K100: Comm PV - Seattle - Low | L100: 0.1188759366 | M100: 0.1190115453 | N100: 0.1191471539 | O100: 0.1192827626 | P100: 0.1194183713 | Q100: 0.11955398 | R100: 0.1196895887 | S100: 0.1198251973 | T100: 0.119960806 | U100: 0.1200964147 | V100: 0.1202320234 | W100: 0.1203676321 | X100: 0.1205032407 | Y100: 0.1206388494 | Z100: 0.1207744581 | AA100: 0.1209100668 | AB100: 0.1210456755 | AC100: 0.1211812841 | AD100: 0.1213168928 | AE100: 0.1214525015 | AF100: 0.1215881102 | AG100: 0.1217237189 | AH100: 0.1218593275 | AI100: 0.1219949362 | AJ100: 0.1221305449 | AK100: 0.1222661536 | AL100: 0.1224017623 | AM100: 0.1225373709 | AN100: 0.1226729796 | AO100: 0.1228085883 | AP100: 0.122944197 | AQ100: 0.1230798057 | AR100: 0.1232154143 | AS100: 0.123351023 | AT100: 0.1234866317
K101: Comm PV - Seattle - Mid | L101: 0.1188759366 | M101: 0.1189504196 | N101: 0.1190249026 | O101: 0.1190993857 | P101: 0.1191738687 | Q101: 0.1192483517 | R101: 0.1193228348 | S101: 0.1193973178 | T101: 0.1194718008 | U101: 0.1195462839 | V101: 0.1196207669 | W101: 0.1196952499 | X101: 0.1197697329 | Y101: 0.119844216 | Z101: 0.119918699 | AA101: 0.119993182 | AB101: 0.1200676651 | AC101: 0.1201421481 | AD101: 0.1202166311 | AE101: 0.1202911142 | AF101: 0.1203655972 | AG101: 0.1204400802 | AH101: 0.1205145632 | AI101: 0.1205890463 | AJ101: 0.1206635293 | AK101: 0.1207380123 | AL101: 0.1208124954 | AM101: 0.1208869784 | AN101: 0.1209614614 | AO101: 0.1210359445 | AP101: 0.1211104275 | AQ101: 0.1211849105 | AR101: 0.1212593935 | AS101: 0.1213338766 | AT101: 0.1214083596
K102: Comm PV - Seattle - Constant | L102: 0.1188759366 | M102: 0.1188759366 | N102: 0.1188759366 | O102: 0.1188759366 | P102: 0.1188759366 | Q102: 0.1188759366 | R102: 0.1188759366 | S102: 0.1188759366 | T102: 0.1188759366 | U102: 0.1188759366 | V102: 0.1188759366 | W102: 0.1188759366 | X102: 0.1188759366 | Y102: 0.1188759366 | Z102: 0.1188759366 | AA102: 0.1188759366 | AB102: 0.1188759366 | AC102: 0.1188759366 | AD102: 0.1188759366 | AE102: 0.1188759366 | AF102: 0.1188759366 | AG102: 0.1188759366 | AH102: 0.1188759366 | AI102: 0.1188759366 | AJ102: 0.1188759366 | AK102: 0.1188759366 | AL102: 0.1188759366 | AM102: 0.1188759366 | AN102: 0.1188759366 | AO102: 0.1188759366 | AP102: 0.1188759366 | AQ102: 0.1188759366 | AR102: 0.1188759366 | AS102: 0.1188759366 | AT102: 0.1188759366
K103: Comm PV - Chicago - Low | L103: 0.1397632495 | M103: 0.1399226856 | N103: 0.1400821216 | O103: 0.1402415577 | P103: 0.1404009937 | Q103: 0.1405604298 | R103: 0.1407198658 | S103: 0.1408793019 | T103: 0.1410387379 | U103: 0.141198174 | V103: 0.14135761 | W103: 0.1415170461 | X103: 0.1416764821 | Y103: 0.1418359182 | Z103: 0.1419953542 | AA103: 0.1421547903 | AB103: 0.1423142263 | AC103: 0.1424736624 | AD103: 0.1426330984 | AE103: 0.1427925345 | AF103: 0.1429519705 | AG103: 0.1431114066 | AH103: 0.1432708426 | AI103: 0.1434302787 | AJ103: 0.1435897147 | AK103: 0.1437491508 | AL103: 0.1439085868 | AM103: 0.1440680229 | AN103: 0.1442274589 | AO103: 0.144386895 | AP103: 0.144546331 | AQ103: 0.1447057671 | AR103: 0.1448652031 | AS103: 0.1450246392 | AT103: 0.1451840752
K104: Comm PV - Chicago - Mid | L104: 0.1397632495 | M104: 0.1398508197 | N104: 0.1399383899 | O104: 0.1400259601 | P104: 0.1401135303 | Q104: 0.1402011006 | R104: 0.1402886708 | S104: 0.140376241 | T104: 0.1404638112 | U104: 0.1405513814 | V104: 0.1406389516 | W104: 0.1407265218 | X104: 0.140814092 | Y104: 0.1409016622 | Z104: 0.1409892324 | AA104: 0.1410768026 | AB104: 0.1411643728 | AC104: 0.141251943 | AD104: 0.1413395132 | AE104: 0.1414270834 | AF104: 0.1415146536 | AG104: 0.1416022239 | AH104: 0.1416897941 | AI104: 0.1417773643 | AJ104: 0.1418649345 | AK104: 0.1419525047 | AL104: 0.1420400749 | AM104: 0.1421276451 | AN104: 0.1422152153 | AO104: 0.1423027855 | AP104: 0.1423903557 | AQ104: 0.1424779259 | AR104: 0.1425654961 | AS104: 0.1426530663 | AT104: 0.1427406365
K105: Comm PV - Chicago - Constant | L105: 0.1397632495 | M105: 0.1397632495 | N105: 0.1397632495 | O105: 0.1397632495 | P105: 0.1397632495 | Q105: 0.1397632495 | R105: 0.1397632495 | S105: 0.1397632495 | T105: 0.1397632495 | U105: 0.1397632495 | V105: 0.1397632495 | W105: 0.1397632495 | X105: 0.1397632495 | Y105: 0.1397632495 | Z105: 0.1397632495 | AA105: 0.1397632495 | AB105: 0.1397632495 | AC105: 0.1397632495 | AD105: 0.1397632495 | AE105: 0.1397632495 | AF105: 0.1397632495 | AG105: 0.1397632495 | AH105: 0.1397632495 | AI105: 0.1397632495 | AJ105: 0.1397632495 | AK105: 0.1397632495 | AL105: 0.1397632495 | AM105: 0.1397632495 | AN105: 0.1397632495 | AO105: 0.1397632495 | AP105: 0.1397632495 | AQ105: 0.1397632495 | AR105: 0.1397632495 | AS105: 0.1397632495 | AT105: 0.1397632495
K106: Comm PV - Kansas City - Low | L106: 0.1520361058 | M106: 0.1522095422 | N106: 0.1523829786 | O106: 0.152556415 | P106: 0.1527298514 | Q106: 0.1529032878 | R106: 0.1530767242 | S106: 0.1532501606 | T106: 0.1534235971 | U106: 0.1535970335 | V106: 0.1537704699 | W106: 0.1539439063 | X106: 0.1541173427 | Y106: 0.1542907791 | Z106: 0.1544642155 | AA106: 0.1546376519 | AB106: 0.1548110883 | AC106: 0.1549845247 | AD106: 0.1551579611 | AE106: 0.1553313976 | AF106: 0.155504834 | AG106: 0.1556782704 | AH106: 0.1558517068 | AI106: 0.1560251432 | AJ106: 0.1561985796 | AK106: 0.156372016 | AL106: 0.1565454524 | AM106: 0.1567188888 | AN106: 0.1568923252 | AO106: 0.1570657617 | AP106: 0.1572391981 | AQ106: 0.1574126345 | AR106: 0.1575860709 | AS106: 0.1577595073 | AT106: 0.1579329437
K107: Comm PV - Kansas City - Mid | L107: 0.1520361058 | M107: 0.1521313657 | N107: 0.1522266256 | O107: 0.1523218855 | P107: 0.1524171454 | Q107: 0.1525124053 | R107: 0.1526076652 | S107: 0.1527029251 | T107: 0.152798185 | U107: 0.1528934449 | V107: 0.1529887048 | W107: 0.1530839647 | X107: 0.1531792246 | Y107: 0.1532744845 | Z107: 0.1533697444 | AA107: 0.1534650043 | AB107: 0.1535602642 | AC107: 0.1536555241 | AD107: 0.153750784 | AE107: 0.1538460439 | AF107: 0.1539413038 | AG107: 0.1540365637 | AH107: 0.1541318236 | AI107: 0.1542270835 | AJ107: 0.1543223434 | AK107: 0.1544176033 | AL107: 0.1545128632 | AM107: 0.1546081231 | AN107: 0.154703383 | AO107: 0.1547986429 | AP107: 0.1548939028 | AQ107: 0.1549891627 | AR107: 0.1550844226 | AS107: 0.1551796825 | AT107: 0.1552749424
K108: Comm PV - Kansas City - Constant | L108: 0.1520361058 | M108: 0.1520361058 | N108: 0.1520361058 | O108: 0.1520361058 | P108: 0.1520361058 | Q108: 0.1520361058 | R108: 0.1520361058 | S108: 0.1520361058 | T108: 0.1520361058 | U108: 0.1520361058 | V108: 0.1520361058 | W108: 0.1520361058 | X108: 0.1520361058 | Y108: 0.1520361058 | Z108: 0.1520361058 | AA108: 0.1520361058 | AB108: 0.1520361058 | AC108: 0.1520361058 | AD108: 0.1520361058 | AE108: 0.1520361058 | AF108: 0.1520361058 | AG108: 0.1520361058 | AH108: 0.1520361058 | AI108: 0.1520361058 | AJ108: 0.1520361058 | AK108: 0.1520361058 | AL108: 0.1520361058 | AM108: 0.1520361058 | AN108: 0.1520361058 | AO108: 0.1520361058 | AP108: 0.1520361058 | AQ108: 0.1520361058 | AR108: 0.1520361058 | AS108: 0.1520361058 | AT108: 0.1520361058
K109: Comm PV - Los Angeles - Low | L109: 0.1729299868 | M109: 0.173127258 | N109: 0.1733245293 | O109: 0.1735218006 | P109: 0.1737190718 | Q109: 0.1739163431 | R109: 0.1741136144 | S109: 0.1743108857 | T109: 0.1745081569 | U109: 0.1747054282 | V109: 0.1749026995 | W109: 0.1750999707 | X109: 0.175297242 | Y109: 0.1754945133 | Z109: 0.1756917846 | AA109: 0.1758890558 | AB109: 0.1760863271 | AC109: 0.1762835984 | AD109: 0.1764808696 | AE109: 0.1766781409 | AF109: 0.1768754122 | AG109: 0.1770726835 | AH109: 0.1772699547 | AI109: 0.177467226 | AJ109: 0.1776644973 | AK109: 0.1778617686 | AL109: 0.1780590398 | AM109: 0.1782563111 | AN109: 0.1784535824 | AO109: 0.1786508536 | AP109: 0.1788481249 | AQ109: 0.1790453962 | AR109: 0.1792426675 | AS109: 0.1794399387 | AT109: 0.17963721
K110: Comm PV - Los Angeles - Mid | L110: 0.1729299868 | M110: 0.1730383379 | N110: 0.1731466891 | O110: 0.1732550403 | P110: 0.1733633915 | Q110: 0.1734717427 | R110: 0.1735800939 | S110: 0.1736884451 | T110: 0.1737967963 | U110: 0.1739051475 | V110: 0.1740134987 | W110: 0.1741218499 | X110: 0.174230201 | Y110: 0.1743385522 | Z110: 0.1744469034 | AA110: 0.1745552546 | AB110: 0.1746636058 | AC110: 0.174771957 | AD110: 0.1748803082 | AE110: 0.1749886594 | AF110: 0.1750970106 | AG110: 0.1752053618 | AH110: 0.175313713 | AI110: 0.1754220642 | AJ110: 0.1755304153 | AK110: 0.1756387665 | AL110: 0.1757471177 | AM110: 0.1758554689 | AN110: 0.1759638201 | AO110: 0.1760721713 | AP110: 0.1761805225 | AQ110: 0.1762888737 | AR110: 0.1763972249 | AS110: 0.1765055761 | AT110: 0.1766139273
K111: Comm PV - Los Angeles - Constant | L111: 0.1729299868 | M111: 0.1729299868 | N111: 0.1729299868 | O111: 0.1729299868 | P111: 0.1729299868 | Q111: 0.1729299868 | R111: 0.1729299868 | S111: 0.1729299868 | T111: 0.1729299868 | U111: 0.1729299868 | V111: 0.1729299868 | W111: 0.1729299868 | X111: 0.1729299868 | Y111: 0.1729299868 | Z111: 0.1729299868 | AA111: 0.1729299868 | AB111: 0.1729299868 | AC111: 0.1729299868 | AD111: 0.1729299868 | AE111: 0.1729299868 | AF111: 0.1729299868 | AG111: 0.1729299868 | AH111: 0.1729299868 | AI111: 0.1729299868 | AJ111: 0.1729299868 | AK111: 0.1729299868 | AL111: 0.1729299868 | AM111: 0.1729299868 | AN111: 0.1729299868 | AO111: 0.1729299868 | AP111: 0.1729299868 | AQ111: 0.1729299868 | AR111: 0.1729299868 | AS111: 0.1729299868 | AT111: 0.1729299868
K112: Comm PV - Daggett, CA - Low | L112: 0.1955371885 | M112: 0.1957602491 | N112: 0.1959833097 | O112: 0.1962063703 | P112: 0.196429431 | Q112: 0.1966524916 | R112: 0.1968755522 | S112: 0.1970986128 | T112: 0.1973216734 | U112: 0.1975447341 | V112: 0.1977677947 | W112: 0.1979908553 | X112: 0.1982139159 | Y112: 0.1984369765 | Z112: 0.1986600371 | AA112: 0.1988830978 | AB112: 0.1991061584 | AC112: 0.199329219 | AD112: 0.1995522796 | AE112: 0.1997753402 | AF112: 0.1999984009 | AG112: 0.2002214615 | AH112: 0.2004445221 | AI112: 0.2006675827 | AJ112: 0.2008906433 | AK112: 0.201113704 | AL112: 0.2013367646 | AM112: 0.2015598252 | AN112: 0.2017828858 | AO112: 0.2020059464 | AP112: 0.2022290071 | AQ112: 0.2024520677 | AR112: 0.2026751283 | AS112: 0.2028981889 | AT112: 0.2031212495
K113: Comm PV - Daggett, CA - Mid | L113: 0.1955371885 | M113: 0.1956597045 | N113: 0.1957822204 | O113: 0.1959047364 | P113: 0.1960272524 | Q113: 0.1961497684 | R113: 0.1962722844 | S113: 0.1963948004 | T113: 0.1965173163 | U113: 0.1966398323 | V113: 0.1967623483 | W113: 0.1968848643 | X113: 0.1970073803 | Y113: 0.1971298963 | Z113: 0.1972524122 | AA113: 0.1973749282 | AB113: 0.1974974442 | AC113: 0.1976199602 | AD113: 0.1977424762 | AE113: 0.1978649922 | AF113: 0.1979875081 | AG113: 0.1981100241 | AH113: 0.1982325401 | AI113: 0.1983550561 | AJ113: 0.1984775721 | AK113: 0.1986000881 | AL113: 0.198722604 | AM113: 0.19884512 | AN113: 0.198967636 | AO113: 0.199090152 | AP113: 0.199212668 | AQ113: 0.199335184 | AR113: 0.1994576999 | AS113: 0.1995802159 | AT113: 0.1997027319
K114: Comm PV - Daggett, CA - Constant | L114: 0.1955371885 | M114: 0.1955371885 | N114: 0.1955371885 | O114: 0.1955371885 | P114: 0.1955371885 | Q114: 0.1955371885 | R114: 0.1955371885 | S114: 0.1955371885 | T114: 0.1955371885 | U114: 0.1955371885 | V114: 0.1955371885 | W114: 0.1955371885 | X114: 0.1955371885 | Y114: 0.1955371885 | Z114: 0.1955371885 | AA114: 0.1955371885 | AB114: 0.1955371885 | AC114: 0.1955371885 | AD114: 0.1955371885 | AE114: 0.1955371885 | AF114: 0.1955371885 | AG114: 0.1955371885 | AH114: 0.1955371885 | AI114: 0.1955371885 | AJ114: 0.1955371885 | AK114: 0.1955371885 | AL114: 0.1955371885 | AM114: 0.1955371885 | AN114: 0.1955371885 | AO114: 0.1955371885 | AP114: 0.1955371885 | AQ114: 0.1955371885 | AR114: 0.1955371885 | AS114: 0.1955371885 | AT114: 0.1955371885
L116: 2016 | M116: 2017 | N116: 2018 | O116: 2019 | P116: 2020 | Q116: 2021 | R116: 2022 | S116: 2023 | T116: 2024 | U116: 2025 | V116: 2026 | W116: 2027 | X116: 2028 | Y116: 2029 | Z116: 2030 | AA116: 2031 | AB116: 2032 | AC116: 2033 | AD116: 2034 | AE116: 2035 | AF116: 2036 | AG116: 2037 | AH116: 2038 | AI116: 2039 | AJ116: 2040 | AK116: 2041 | AL116: 2042 | AM116: 2043 | AN116: 2044 | AO116: 2045 | AP116: 2046 | AQ116: 2047 | AR116: 2048 | AS116: 2049 | AT116: 2050
J117: Annual Energy Production (kWh/kW) | K117: Comm PV - Seattle - Low | L117: =L100*8760 -> 1041.353205 | M117: =M100*8760 -> 1042.541137 | N117: 1043.729069 | O117: 1044.917001 | P117: 1046.104933 | Q117: 1047.292865 | R117: 1048.480797 | S117: 1049.668729 | T117: 1050.856661 | U117: 1052.044593 | V117: 1053.232525 | W117: 1054.420457 | X117: 1055.608389 | Y117: 1056.796321 | Z117: 1057.984253 | AA117: 1059.172185 | AB117: 1060.360117 | AC117: 1061.548049 | AD117: 1062.735981 | AE117: 1063.923913 | AF117: 1065.111845 | AG117: 1066.299777 | AH117: 1067.487709 | AI117: 1068.675641 | AJ117: 1069.863573 | AK117: 1071.051505 | AL117: 1072.239437 | AM117: 1073.42737 | AN117: 1074.615302 | AO117: 1075.803234 | AP117: 1076.991166 | AQ117: 1078.179098 | AR117: 1079.36703 | AS117: 1080.554962 | AT117: 1081.742894
K118: Comm PV - Seattle - Mid | L118: =L101*8760 -> 1041.353205 | M118: 1042.005676 | N118: 1042.658147 | O118: 1043.310619 | P118: 1043.96309 | Q118: 1044.615561 | R118: 1045.268033 | S118: 1045.920504 | T118: 1046.572975 | U118: 1047.225447 | V118: 1047.877918 | W118: 1048.530389 | X118: 1049.182861 | Y118: 1049.835332 | Z118: 1050.487803 | AA118: 1051.140275 | AB118: 1051.792746 | AC118: 1052.445217 | AD118: 1053.097689 | AE118: 1053.75016 | AF118: 1054.402631 | AG118: 1055.055103 | AH118: 1055.707574 | AI118: 1056.360045 | AJ118: 1057.012517 | AK118: 1057.664988 | AL118: 1058.317459 | AM118: 1058.969931 | AN118: 1059.622402 | AO118: 1060.274873 | AP118: 1060.927345 | AQ118: 1061.579816 | AR118: 1062.232287 | AS118: 1062.884759 | AT118: 1063.53723
K119: Comm PV - Seattle - Constant | L119: =L102*8760 -> 1041.353205 | M119: 1041.353205 | N119: 1041.353205 | O119: 1041.353205 | P119: 1041.353205 | Q119: 1041.353205 | R119: 1041.353205 | S119: 1041.353205 | T119: 1041.353205 | U119: 1041.353205 | V119: 1041.353205 | W119: 1041.353205 | X119: 1041.353205 | Y119: 1041.353205 | Z119: 1041.353205 | AA119: 1041.353205 | AB119: 1041.353205 | AC119: 1041.353205 | AD119: 1041.353205 | AE119: 1041.353205 | AF119: 1041.353205 | AG119: 1041.353205 | AH119: 1041.353205 | AI119: 1041.353205 | AJ119: 1041.353205 | AK119: 1041.353205 | AL119: 1041.353205 | AM119: 1041.353205 | AN119: 1041.353205 | AO119: 1041.353205 | AP119: 1041.353205 | AQ119: 1041.353205 | AR119: 1041.353205 | AS119: 1041.353205 | AT119: 1041.353205
K120: Comm PV - Chicago - Low | L120: =L103*8760 -> 1224.326066 | M120: 1225.722726 | N120: 1227.119385 | O120: 1228.516045 | P120: 1229.912705 | Q120: 1231.309365 | R120: 1232.706025 | S120: 1234.102684 | T120: 1235.499344 | U120: 1236.896004 | V120: 1238.292664 | W120: 1239.689324 | X120: 1241.085983 | Y120: 1242.482643 | Z120: 1243.879303 | AA120: 1245.275963 | AB120: 1246.672623 | AC120: 1248.069282 | AD120: 1249.465942 | AE120: 1250.862602 | AF120: 1252.259262 | AG120: 1253.655922 | AH120: 1255.052581 | AI120: 1256.449241 | AJ120: 1257.845901 | AK120: 1259.242561 | AL120: 1260.639221 | AM120: 1262.03588 | AN120: 1263.43254 | AO120: 1264.8292 | AP120: 1266.22586 | AQ120: 1267.62252 | AR120: 1269.019179 | AS120: 1270.415839 | AT120: 1271.812499
K121: Comm PV - Chicago - Mid | L121: =L104*8760 -> 1224.326066 | M121: 1225.093181 | N121: 1225.860296 | O121: 1226.627411 | P121: 1227.394526 | Q121: 1228.161641 | R121: 1228.928756 | S121: 1229.695871 | T121: 1230.462986 | U121: 1231.230101 | V121: 1231.997216 | W121: 1232.764331 | X121: 1233.531446 | Y121: 1234.298561 | Z121: 1235.065676 | AA121: 1235.832791 | AB121: 1236.599906 | AC121: 1237.367021 | AD121: 1238.134136 | AE121: 1238.901251 | AF121: 1239.668366 | AG121: 1240.435481 | AH121: 1241.202596 | AI121: 1241.969711 | AJ121: 1242.736826 | AK121: 1243.503941 | AL121: 1244.271056 | AM121: 1245.038171 | AN121: 1245.805286 | AO121: 1246.572401 | AP121: 1247.339516 | AQ121: 1248.106631 | AR121: 1248.873746 | AS121: 1249.640861 | AT121: 1250.407976
K122: Comm PV - Chicago - Constant | L122: =L105*8760 -> 1224.326066 | M122: 1224.326066 | N122: 1224.326066 | O122: 1224.326066 | P122: 1224.326066 | Q122: 1224.326066 | R122: 1224.326066 | S122: 1224.326066 | T122: 1224.326066 | U122: 1224.326066 | V122: 1224.326066 | W122: 1224.326066 | X122: 1224.326066 | Y122: 1224.326066 | Z122: 1224.326066 | AA122: 1224.326066 | AB122: 1224.326066 | AC122: 1224.326066 | AD122: 1224.326066 | AE122: 1224.326066 | AF122: 1224.326066 | AG122: 1224.326066 | AH122: 1224.326066 | AI122: 1224.326066 | AJ122: 1224.326066 | AK122: 1224.326066 | AL122: 1224.326066 | AM122: 1224.326066 | AN122: 1224.326066 | AO122: 1224.326066 | AP122: 1224.326066 | AQ122: 1224.326066 | AR122: 1224.326066 | AS122: 1224.326066 | AT122: 1224.326066
K123: Comm PV - Kansas City - Low | L123: =L106*8760 -> 1331.836287 | M123: 1333.35559 | N123: 1334.874893 | O123: 1336.394195 | P123: 1337.913498 | Q123: 1339.432801 | R123: 1340.952104 | S123: 1342.471407 | T123: 1343.99071 | U123: 1345.510013 | V123: 1347.029316 | W123: 1348.548619 | X123: 1350.067922 | Y123: 1351.587225 | Z123: 1353.106528 | AA123: 1354.625831 | AB123: 1356.145134 | AC123: 1357.664437 | AD123: 1359.18374 | AE123: 1360.703043 | AF123: 1362.222346 | AG123: 1363.741648 | AH123: 1365.260951 | AI123: 1366.780254 | AJ123: 1368.299557 | AK123: 1369.81886 | AL123: 1371.338163 | AM123: 1372.857466 | AN123: 1374.376769 | AO123: 1375.896072 | AP123: 1377.415375 | AQ123: 1378.934678 | AR123: 1380.453981 | AS123: 1381.973284 | AT123: 1383.492587
K124: Comm PV - Kansas City - Mid | L124: =L107*8760 -> 1331.836287 | M124: 1332.670763 | N124: 1333.50524 | O124: 1334.339717 | P124: 1335.174193 | Q124: 1336.00867 | R124: 1336.843147 | S124: 1337.677624 | T124: 1338.5121 | U124: 1339.346577 | V124: 1340.181054 | W124: 1341.015531 | X124: 1341.850007 | Y124: 1342.684484 | Z124: 1343.518961 | AA124: 1344.353437 | AB124: 1345.187914 | AC124: 1346.022391 | AD124: 1346.856868 | AE124: 1347.691344 | AF124: 1348.525821 | AG124: 1349.360298 | AH124: 1350.194774 | AI124: 1351.029251 | AJ124: 1351.863728 | AK124: 1352.698205 | AL124: 1353.532681 | AM124: 1354.367158 | AN124: 1355.201635 | AO124: 1356.036112 | AP124: 1356.870588 | AQ124: 1357.705065 | AR124: 1358.539542 | AS124: 1359.374018 | AT124: 1360.208495
K125: Comm PV - Kansas City - Constant | L125: =L108*8760 -> 1331.836287 | M125: 1331.836287 | N125: 1331.836287 | O125: 1331.836287 | P125: 1331.836287 | Q125: 1331.836287 | R125: 1331.836287 | S125: 1331.836287 | T125: 1331.836287 | U125: 1331.836287 | V125: 1331.836287 | W125: 1331.836287 | X125: 1331.836287 | Y125: 1331.836287 | Z125: 1331.836287 | AA125: 1331.836287 | AB125: 1331.836287 | AC125: 1331.836287 | AD125: 1331.836287 | AE125: 1331.836287 | AF125: 1331.836287 | AG125: 1331.836287 | AH125: 1331.836287 | AI125: 1331.836287 | AJ125: 1331.836287 | AK125: 1331.836287 | AL125: 1331.836287 | AM125: 1331.836287 | AN125: 1331.836287 | AO125: 1331.836287 | AP125: 1331.836287 | AQ125: 1331.836287 | AR125: 1331.836287 | AS125: 1331.836287 | AT125: 1331.836287
K126: Comm PV - Los Angeles - Low | L126: =L109*8760 -> 1514.866684 | M126: 1516.59478 | N126: 1518.322877 | O126: 1520.050973 | P126: 1521.779069 | Q126: 1523.507166 | R126: 1525.235262 | S126: 1526.963358 | T126: 1528.691455 | U126: 1530.419551 | V126: 1532.147647 | W126: 1533.875744 | X126: 1535.60384 | Y126: 1537.331936 | Z126: 1539.060033 | AA126: 1540.788129 | AB126: 1542.516225 | AC126: 1544.244322 | AD126: 1545.972418 | AE126: 1547.700514 | AF126: 1549.428611 | AG126: 1551.156707 | AH126: 1552.884803 | AI126: 1554.6129 | AJ126: 1556.340996 | AK126: 1558.069093 | AL126: 1559.797189 | AM126: 1561.525285 | AN126: 1563.253382 | AO126: 1564.981478 | AP126: 1566.709574 | AQ126: 1568.437671 | AR126: 1570.165767 | AS126: 1571.893863 | AT126: 1573.62196
K127: Comm PV - Los Angeles - Mid | L127: =L110*8760 -> 1514.866684 | M127: 1515.81584 | N127: 1516.764997 | O127: 1517.714153 | P127: 1518.66331 | Q127: 1519.612466 | R127: 1520.561623 | S127: 1521.510779 | T127: 1522.459935 | U127: 1523.409092 | V127: 1524.358248 | W127: 1525.307405 | X127: 1526.256561 | Y127: 1527.205718 | Z127: 1528.154874 | AA127: 1529.10403 | AB127: 1530.053187 | AC127: 1531.002343 | AD127: 1531.9515 | AE127: 1532.900656 | AF127: 1533.849813 | AG127: 1534.798969 | AH127: 1535.748126 | AI127: 1536.697282 | AJ127: 1537.646438 | AK127: 1538.595595 | AL127: 1539.544751 | AM127: 1540.493908 | AN127: 1541.443064 | AO127: 1542.392221 | AP127: 1543.341377 | AQ127: 1544.290533 | AR127: 1545.23969 | AS127: 1546.188846 | AT127: 1547.138003
K128: Comm PV - Los Angeles - Constant | L128: =L111*8760 -> 1514.866684 | M128: 1514.866684 | N128: 1514.866684 | O128: 1514.866684 | P128: 1514.866684 | Q128: 1514.866684 | R128: 1514.866684 | S128: 1514.866684 | T128: 1514.866684 | U128: 1514.866684 | V128: 1514.866684 | W128: 1514.866684 | X128: 1514.866684 | Y128: 1514.866684 | Z128: 1514.866684 | AA128: 1514.866684 | AB128: 1514.866684 | AC128: 1514.866684 | AD128: 1514.866684 | AE128: 1514.866684 | AF128: 1514.866684 | AG128: 1514.866684 | AH128: 1514.866684 | AI128: 1514.866684 | AJ128: 1514.866684 | AK128: 1514.866684 | AL128: 1514.866684 | AM128: 1514.866684 | AN128: 1514.866684 | AO128: 1514.866684 | AP128: 1514.866684 | AQ128: 1514.866684 | AR128: 1514.866684 | AS128: 1514.866684 | AT128: 1514.866684
K129: Comm PV - Daggett, CA - Low | L129: =L112*8760 -> 1712.905771 | M129: 1714.859782 | N129: 1716.813793 | O129: 1718.767804 | P129: 1720.721815 | Q129: 1722.675826 | R129: 1724.629837 | S129: 1726.583848 | T129: 1728.537859 | U129: 1730.49187 | V129: 1732.445881 | W129: 1734.399892 | X129: 1736.353903 | Y129: 1738.307914 | Z129: 1740.261925 | AA129: 1742.215936 | AB129: 1744.169947 | AC129: 1746.123959 | AD129: 1748.07797 | AE129: 1750.031981 | AF129: 1751.985992 | AG129: 1753.940003 | AH129: 1755.894014 | AI129: 1757.848025 | AJ129: 1759.802036 | AK129: 1761.756047 | AL129: 1763.710058 | AM129: 1765.664069 | AN129: 1767.61808 | AO129: 1769.572091 | AP129: 1771.526102 | AQ129: 1773.480113 | AR129: 1775.434124 | AS129: 1777.388135 | AT129: 1779.342146
K130: Comm PV - Daggett, CA - Mid | L130: =L113*8760 -> 1712.905771 | M130: 1713.979011 | N130: 1715.052251 | O130: 1716.125491 | P130: 1717.198731 | Q130: 1718.271971 | R130: 1719.345211 | S130: 1720.418451 | T130: 1721.491691 | U130: 1722.564931 | V130: 1723.638171 | W130: 1724.711411 | X130: 1725.784651 | Y130: 1726.857891 | Z130: 1727.931131 | AA130: 1729.004371 | AB130: 1730.077611 | AC130: 1731.150851 | AD130: 1732.224091 | AE130: 1733.297331 | AF130: 1734.370571 | AG130: 1735.443811 | AH130: 1736.517051 | AI130: 1737.590291 | AJ130: 1738.663531 | AK130: 1739.736771 | AL130: 1740.810011 | AM130: 1741.883251 | AN130: 1742.956491 | AO130: 1744.029731 | AP130: 1745.102971 | AQ130: 1746.176211 | AR130: 1747.249452 | AS130: 1748.322692 | AT130: 1749.395932
K131: Comm PV - Daggett, CA - Constant | L131: =L114*8760 -> 1712.905771 | M131: 1712.905771 | N131: 1712.905771 | O131: 1712.905771 | P131: 1712.905771 | Q131: 1712.905771 | R131: 1712.905771 | S131: 1712.905771 | T131: 1712.905771 | U131: 1712.905771 | V131: 1712.905771 | W131: 1712.905771 | X131: 1712.905771 | Y131: 1712.905771 | Z131: 1712.905771 | AA131: 1712.905771 | AB131: 1712.905771 | AC131: 1712.905771 | AD131: 1712.905771 | AE131: 1712.905771 | AF131: 1712.905771 | AG131: 1712.905771 | AH131: 1712.905771 | AI131: 1712.905771 | AJ131: 1712.905771 | AK131: 1712.905771 | AL131: 1712.905771 | AM131: 1712.905771 | AN131: 1712.905771 | AO131: 1712.905771 | AP131: 1712.905771 | AQ131: 1712.905771 | AR131: 1712.905771 | AS131: 1712.905771 | AT131: 1712.905771
L133: 2016 | M133: 2017 | N133: 2018 | O133: 2019 | P133: 2020 | Q133: 2021 | R133: 2022 | S133: 2023 | T133: 2024 | U133: 2025 | V133: 2026 | W133: 2027 | X133: 2028 | Y133: 2029 | Z133: 2030 | AA133: 2031 | AB133: 2032 | AC133: 2033 | AD133: 2034 | AE133: 2035 | AF133: 2036 | AG133: 2037 | AH133: 2038 | AI133: 2039 | AJ133: 2040 | AK133: 2041 | AL133: 2042 | AM133: 2043 | AN133: 2044 | AO133: 2045 | AP133: 2046 | AQ133: 2047 | AR133: 2048 | AS133: 2049 | AT133: 2050
J134: CAPEX ($/kW) | K134: Comm PV - Seattle - Low | L134: =$S$54*(L151+L252) -> 2597.351055 | M134: =$S$54*(M151+M252) -> 1976.909125 | N134: 1441.011494 | O134: 1332.695325 | P134: 1247.906714 | Q134: 1122.810649 | R134: 1079.399435 | S134: 1035.988221 | T134: 992.5770075 | U134: 949.1657938 | V134: 905.7545802 | W134: 862.3433665 | X134: 818.9321528 | Y134: 775.5209391 | Z134: 732.1097255 | AA134: 713.2041171 | AB134: 694.2985087 | AC134: 675.3929004 | AD134: 656.487292 | AE134: 637.5816837 | AF134: 618.6760753 | AG134: 599.770467 | AH134: 580.8648586 | AI134: 561.9592503 | AJ134: 543.0536419 | AK134: 540.4481353 | AL134: 537.8426287 | AM134: 535.237122 | AN134: 532.6316154 | AO134: 530.0261088 | AP134: 527.4206022 | AQ134: 524.8150955 | AR134: 522.2095889 | AS134: 519.6040823 | AT134: 516.9985757
K135: Comm PV - Seattle - Mid | L135: =$S$54*(L152+L253) -> 2597.351055 | M135: 1976.909125 | N135: 1822.951722 | O135: 1722.51361 | P135: 1612.031688 | Q135: 1541.72501 | R135: 1493.881515 | S135: 1446.038021 | T135: 1398.194526 | U135: 1350.351032 | V135: 1302.507537 | W135: 1254.664043 | X135: 1206.820548 | Y135: 1158.977054 | Z135: 1111.133559 | AA135: 1100.663719 | AB135: 1090.193878 | AC135: 1079.724037 | AD135: 1069.254197 | AE135: 1058.784356 | AF135: 1048.314516 | AG135: 1037.844675 | AH135: 1027.374834 | AI135: 1016.904994 | AJ135: 1006.435153 | AK135: 1001.200233 | AL135: 995.9653125 | AM135: 990.7303922 | AN135: 985.4954719 | AO135: 980.2605516 | AP135: 975.0256313 | AQ135: 969.790711 | AR135: 964.5557907 | AS135: 959.3208704 | AT135: 954.0859501
K136: Comm PV - Seattle - Constant | L136: =$S$54*(L153+L254) -> 2597.351055 | M136: 1976.909125 | N136: 1875.536855 | O136: 1885.674082 | P136: 1916.085763 | Q136: 1936.360217 | R136: 1936.360217 | S136: 1936.360217 | T136: 1936.360217 | U136: 1936.360217 | V136: 1936.360217 | W136: 1936.360217 | X136: 1936.360217 | Y136: 1936.360217 | Z136: 1936.360217 | AA136: 1936.360217 | AB136: 1936.360217 | AC136: 1936.360217 | AD136: 1936.360217 | AE136: 1936.360217 | AF136: 1936.360217 | AG136: 1936.360217 | AH136: 1936.360217 | AI136: 1936.360217 | AJ136: 1936.360217 | AK136: 1936.360217 | AL136: 1936.360217 | AM136: 1936.360217 | AN136: 1936.360217 | AO136: 1936.360217 | AP136: 1936.360217 | AQ136: 1936.360217 | AR136: 1936.360217 | AS136: 1936.360217 | AT136: 1936.360217
K137: Comm PV - Chicago - Low | L137: =$S$54*(L154+L255) -> 2597.351055 | M137: 1976.909125 | N137: 1441.011494 | O137: 1332.695325 | P137: 1247.906714 | Q137: 1122.810649 | R137: 1079.399435 | S137: 1035.988221 | T137: 992.5770075 | U137: 949.1657938 | V137: 905.7545802 | W137: 862.3433665 | X137: 818.9321528 | Y137: 775.5209391 | Z137: 732.1097255 | AA137: 713.2041171 | AB137: 694.2985087 | AC137: 675.3929004 | AD137: 656.487292 | AE137: 637.5816837 | AF137: 618.6760753 | AG137: 599.770467 | AH137: 580.8648586 | AI137: 561.9592503 | AJ137: 543.0536419 | AK137: 540.4481353 | AL137: 537.8426287 | AM137: 535.237122 | AN137: 532.6316154 | AO137: 530.0261088 | AP137: 527.4206022 | AQ137: 524.8150955 | AR137: 522.2095889 | AS137: 519.6040823 | AT137: 516.9985757
K138: Comm PV - Chicago - Mid | L138: =$S$54*(L155+L256) -> 2597.351055 | M138: 1976.909125 | N138: 1822.951722 | O138: 1722.51361 | P138: 1612.031688 | Q138: 1541.72501 | R138: 1493.881515 | S138: 1446.038021 | T138: 1398.194526 | U138: 1350.351032 | V138: 1302.507537 | W138: 1254.664043 | X138: 1206.820548 | Y138: 1158.977054 | Z138: 1111.133559 | AA138: 1100.663719 | AB138: 1090.193878 | AC138: 1079.724037 | AD138: 1069.254197 | AE138: 1058.784356 | AF138: 1048.314516 | AG138: 1037.844675 | AH138: 1027.374834 | AI138: 1016.904994 | AJ138: 1006.435153 | AK138: 1001.200233 | AL138: 995.9653125 | AM138: 990.7303922 | AN138: 985.4954719 | AO138: 980.2605516 | AP138: 975.0256313 | AQ138: 969.790711 | AR138: 964.5557907 | AS138: 959.3208704 | AT138: 954.0859501
K139: Comm PV - Chicago - Constant | L139: =$S$54*(L156+L257) -> 2597.351055 | M139: 1976.909125 | N139: 1875.536855 | O139: 1885.674082 | P139: 1916.085763 | Q139: 1936.360217 | R139: 1936.360217 | S139: 1936.360217 | T139: 1936.360217 | U139: 1936.360217 | V139: 1936.360217 | W139: 1936.360217 | X139: 1936.360217 | Y139: 1936.360217 | Z139: 1936.360217 | AA139: 1936.360217 | AB139: 1936.360217 | AC139: 1936.360217 | AD139: 1936.360217 | AE139: 1936.360217 | AF139: 1936.360217 | AG139: 1936.360217 | AH139: 1936.360217 | AI139: 1936.360217 | AJ139: 1936.360217 | AK139: 1936.360217 | AL139: 1936.360217 | AM139: 1936.360217 | AN139: 1936.360217 | AO139: 1936.360217 | AP139: 1936.360217 | AQ139: 1936.360217 | AR139: 1936.360217 | AS139: 1936.360217 | AT139: 1936.360217
K140: Comm PV - Kansas City - Low | L140: =$S$54*(L157+L258) -> 2597.351055 | M140: 1976.909125 | N140: 1441.011494 | O140: 1332.695325 | P140: 1247.906714 | Q140: 1122.810649 | R140: 1079.399435 | S140: 1035.988221 | T140: 992.5770075 | U140: 949.1657938 | V140: 905.7545802 | W140: 862.3433665 | X140: 818.9321528 | Y140: 775.5209391 | Z140: 732.1097255 | AA140: 713.2041171 | AB140: 694.2985087 | AC140: 675.3929004 | AD140: 656.487292 | AE140: 637.5816837 | AF140: 618.6760753 | AG140: 599.770467 | AH140: 580.8648586 | AI140: 561.9592503 | AJ140: 543.0536419 | AK140: 540.4481353 | AL140: 537.8426287 | AM140: 535.237122 | AN140: 532.6316154 | AO140: 530.0261088 | AP140: 527.4206022 | AQ140: 524.8150955 | AR140: 522.2095889 | AS140: 519.6040823 | AT140: 516.9985757
K141: Comm PV - Kansas City - Mid | L141: =$S$54*(L158+L259) -> 2597.351055 | M141: 1976.909125 | N141: 1822.951722 | O141: 1722.51361 | P141: 1612.031688 | Q141: 1541.72501 | R141: 1493.881515 | S141: 1446.038021 | T141: 1398.194526 | U141: 1350.351032 | V141: 1302.507537 | W141: 1254.664043 | X141: 1206.820548 | Y141: 1158.977054 | Z141: 1111.133559 | AA141: 1100.663719 | AB141: 1090.193878 | AC141: 1079.724037 | AD141: 1069.254197 | AE141: 1058.784356 | AF141: 1048.314516 | AG141: 1037.844675 | AH141: 1027.374834 | AI141: 1016.904994 | AJ141: 1006.435153 | AK141: 1001.200233 | AL141: 995.9653125 | AM141: 990.7303922 | AN141: 985.4954719 | AO141: 980.2605516 | AP141: 975.0256313 | AQ141: 969.790711 | AR141: 964.5557907 | AS141: 959.3208704 | AT141: 954.0859501
K142: Comm PV - Kansas City - Constant | L142: =$S$54*(L159+L260) -> 2597.351055 | M142: 1976.909125 | N142: 1875.536855 | O142: 1885.674082 | P142: 1916.085763 | Q142: 1936.360217 | R142: 1936.360217 | S142: 1936.360217 | T142: 1936.360217 | U142: 1936.360217 | V142: 1936.360217 | W142: 1936.360217 | X142: 1936.360217 | Y142: 1936.360217 | Z142: 1936.360217 | AA142: 1936.360217 | AB142: 1936.360217 | AC142: 1936.360217 | AD142: 1936.360217 | AE142: 1936.360217 | AF142: 1936.360217 | AG142: 1936.360217 | AH142: 1936.360217 | AI142: 1936.360217 | AJ142: 1936.360217 | AK142: 1936.360217 | AL142: 1936.360217 | AM142: 1936.360217 | AN142: 1936.360217 | AO142: 1936.360217 | AP142: 1936.360217 | AQ142: 1936.360217 | AR142: 1936.360217 | AS142: 1936.360217 | AT142: 1936.360217
K143: Comm PV - Los Angeles - Low | L143: =$S$54*(L160+L261) -> 2597.351055 | M143: 1976.909125 | N143: 1441.011494 | O143: 1332.695325 | P143: 1247.906714 | Q143: 1122.810649 | R143: 1079.399435 | S143: 1035.988221 | T143: 992.5770075 | U143: 949.1657938 | V143: 905.7545802 | W143: 862.3433665 | X143: 818.9321528 | Y143: 775.5209391 | Z143: 732.1097255 | AA143: 713.2041171 | AB143: 694.2985087 | AC143: 675.3929004 | AD143: 656.487292 | AE143: 637.5816837 | AF143: 618.6760753 | AG143: 599.770467 | AH143: 580.8648586 | AI143: 561.9592503 | AJ143: 543.0536419 | AK143: 540.4481353 | AL143: 537.8426287 | AM143: 535.237122 | AN143: 532.6316154 | AO143: 530.0261088 | AP143: 527.4206022 | AQ143: 524.8150955 | AR143: 522.2095889 | AS143: 519.6040823 | AT143: 516.9985757
K144: Comm PV - Los Angeles - Mid | L144: =$S$54*(L161+L262) -> 2597.351055 | M144: 1976.909125 | N144: 1822.951722 | O144: 1722.51361 | P144: 1612.031688 | Q144: 1541.72501 | R144: 1493.881515 | S144: 1446.038021 | T144: 1398.194526 | U144: 1350.351032 | V144: 1302.507537 | W144: 1254.664043 | X144: 1206.820548 | Y144: 1158.977054 | Z144: 1111.133559 | AA144: 1100.663719 | AB144: 1090.193878 | AC144: 1079.724037 | AD144: 1069.254197 | AE144: 1058.784356 | AF144: 1048.314516 | AG144: 1037.844675 | AH144: 1027.374834 | AI144: 1016.904994 | AJ144: 1006.435153 | AK144: 1001.200233 | AL144: 995.9653125 | AM144: 990.7303922 | AN144: 985.4954719 | AO144: 980.2605516 | AP144: 975.0256313 | AQ144: 969.790711 | AR144: 964.5557907 | AS144: 959.3208704 | AT144: 954.0859501
K145: Comm PV - Los Angeles - Constant | L145: =$S$54*(L162+L263) -> 2597.351055 | M145: 1976.909125 | N145: 1875.536855 | O145: 1885.674082 | P145: 1916.085763 | Q145: 1936.360217 | R145: 1936.360217 | S145: 1936.360217 | T145: 1936.360217 | U145: 1936.360217 | V145: 1936.360217 | W145: 1936.360217 | X145: 1936.360217 | Y145: 1936.360217 | Z145: 1936.360217 | AA145: 1936.360217 | AB145: 1936.360217 | AC145: 1936.360217 | AD145: 1936.360217 | AE145: 1936.360217 | AF145: 1936.360217 | AG145: 1936.360217 | AH145: 1936.360217 | AI145: 1936.360217 | AJ145: 1936.360217 | AK145: 1936.360217 | AL145: 1936.360217 | AM145: 1936.360217 | AN145: 1936.360217 | AO145: 1936.360217 | AP145: 1936.360217 | AQ145: 1936.360217 | AR145: 1936.360217 | AS145: 1936.360217 | AT145: 1936.360217
K146: Comm PV - Daggett, CA - Low | L146: =$S$54*(L163+L264) -> 2597.351055 | M146: 1976.909125 | N146: 1441.011494 | O146: 1332.695325 | P146: 1247.906714 | Q146: 1122.810649 | R146: 1079.399435 | S146: 1035.988221 | T146: 992.5770075 | U146: 949.1657938 | V146: 905.7545802 | W146: 862.3433665 | X146: 818.9321528 | Y146: 775.5209391 | Z146: 732.1097255 | AA146: 713.2041171 | AB146: 694.2985087 | AC146: 675.3929004 | AD146: 656.487292 | AE146: 637.5816837 | AF146: 618.6760753 | AG146: 599.770467 | AH146: 580.8648586 | AI146: 561.9592503 | AJ146: 543.0536419 | AK146: 540.4481353 | AL146: 537.8426287 | AM146: 535.237122 | AN146: 532.6316154 | AO146: 530.0261088 | AP146: 527.4206022 | AQ146: 524.8150955 | AR146: 522.2095889 | AS146: 519.6040823 | AT146: 516.9985757
K147: Comm PV - Daggett, CA - Mid | L147: =$S$54*(L164+L265) -> 2597.351055 | M147: 1976.909125 | N147: 1822.951722 | O147: 1722.51361 | P147: 1612.031688 | Q147: 1541.72501 | R147: 1493.881515 | S147: 1446.038021 | T147: 1398.194526 | U147: 1350.351032 | V147: 1302.507537 | W147: 1254.664043 | X147: 1206.820548 | Y147: 1158.977054 | Z147: 1111.133559 | AA147: 1100.663719 | AB147: 1090.193878 | AC147: 1079.724037 | AD147: 1069.254197 | AE147: 1058.784356 | AF147: 1048.314516 | AG147: 1037.844675 | AH147: 1027.374834 | AI147: 1016.904994 | AJ147: 1006.435153 | AK147: 1001.200233 | AL147: 995.9653125 | AM147: 990.7303922 | AN147: 985.4954719 | AO147: 980.2605516 | AP147: 975.0256313 | AQ147: 969.790711 | AR147: 964.5557907 | AS147: 959.3208704 | AT147: 954.0859501
K148: Comm PV - Daggett, CA - Constant | L148: =$S$54*(L165+L266) -> 2597.351055 | M148: 1976.909125 | N148: 1875.536855 | O148: 1885.674082 | P148: 1916.085763 | Q148: 1936.360217 | R148: 1936.360217 | S148: 1936.360217 | T148: 1936.360217 | U148: 1936.360217 | V148: 1936.360217 | W148: 1936.360217 | X148: 1936.360217 | Y148: 1936.360217 | Z148: 1936.360217 | AA148: 1936.360217 | AB148: 1936.360217 | AC148: 1936.360217 | AD148: 1936.360217 | AE148: 1936.360217 | AF148: 1936.360217 | AG148: 1936.360217 | AH148: 1936.360217 | AI148: 1936.360217 | AJ148: 1936.360217 | AK148: 1936.360217 | AL148: 1936.360217 | AM148: 1936.360217 | AN148: 1936.360217 | AO148: 1936.360217 | AP148: 1936.360217 | AQ148: 1936.360217 | AR148: 1936.360217 | AS148: 1936.360217 | AT148: 1936.360217
L150: 2016 | M150: 2017 | N150: 2018 | O150: 2019 | P150: 2020 | Q150: 2021 | R150: 2022 | S150: 2023 | T150: 2024 | U150: 2025 | V150: 2026 | W150: 2027 | X150: 2028 | Y150: 2029 | Z150: 2030 | AA150: 2031 | AB150: 2032 | AC150: 2033 | AD150: 2034 | AE150: 2035 | AF150: 2036 | AG150: 2037 | AH150: 2038 | AI150: 2039 | AJ150: 2040 | AK150: 2041 | AL150: 2042 | AM150: 2043 | AN150: 2044 | AO150: 2045 | AP150: 2046 | AQ150: 2047 | AR150: 2048 | AS150: 2049 | AT150: 2050
J151: Overnight Capital Cost ($/kW) | K151: Comm PV - Seattle - Low | L151: ='PV OCC'!C53+1000*'Solar - PV Dist. Comm'!L$318 -> 2562.190885 | M151: ='PV OCC'!D53+1000*'Solar - PV Dist. Comm'!M$318 -> 1950.147837 | N151: ='PV OCC'!E53+1000*'Solar - PV Dist. Comm'!N$318 -> 1421.504617 | O151: ='PV OCC'!F53+1000*'Solar - PV Dist. Comm'!O$318 -> 1314.654716 | P151: ='PV OCC'!G53+1000*'Solar - PV Dist. Comm'!P$318 -> 1231.013883 | Q151: ='PV OCC'!H53+1000*'Solar - PV Dist. Comm'!Q$318 -> 1107.611235 | R151: ='PV OCC'!I53+1000*'Solar - PV Dist. Comm'!R$318 -> 1064.787676 | S151: ='PV OCC'!J53+1000*'Solar - PV Dist. Comm'!S$318 -> 1021.964117 | T151: ='PV OCC'!K53+1000*'Solar - PV Dist. Comm'!T$318 -> 979.140558 | U151: ='PV OCC'!L53+1000*'Solar - PV Dist. Comm'!U$318 -> 936.316999 | V151: ='PV OCC'!M53+1000*'Solar - PV Dist. Comm'!V$318 -> 893.4934401 | W151: ='PV OCC'!N53+1000*'Solar - PV Dist. Comm'!W$318 -> 850.6698811 | X151: ='PV OCC'!O53+1000*'Solar - PV Dist. Comm'!X$318 -> 807.8463222 | Y151: ='PV OCC'!P53+1000*'Solar - PV Dist. Comm'!Y$318 -> 765.0227633 | Z151: ='PV OCC'!Q53+1000*'Solar - PV Dist. Comm'!Z$318 -> 722.1992043 | AA151: ='PV OCC'!R53+1000*'Solar - PV Dist. Comm'!AA$318 -> 703.54952 | AB151: ='PV OCC'!S53+1000*'Solar - PV Dist. Comm'!AB$318 -> 684.8998356 | AC151: ='PV OCC'!T53+1000*'Solar - PV Dist. Comm'!AC$318 -> 666.2501512 | AD151: ='PV OCC'!U53+1000*'Solar - PV Dist. Comm'!AD$318 -> 647.6004668 | AE151: ='PV OCC'!V53+1000*'Solar - PV Dist. Comm'!AE$318 -> 628.9507824 | AF151: ='PV OCC'!W53+1000*'Solar - PV Dist. Comm'!AF$318 -> 610.3010981 | AG151: ='PV OCC'!X53+1000*'Solar - PV Dist. Comm'!AG$318 -> 591.6514137 | AH151: ='PV OCC'!Y53+1000*'Solar - PV Dist. Comm'!AH$318 -> 573.0017293 | AI151: ='PV OCC'!Z53+1000*'Solar - PV Dist. Comm'!AI$318 -> 554.3520449 | AJ151: ='PV OCC'!AA53+1000*'Solar - PV Dist. Comm'!AJ$318 -> 535.7023605 | AK151: ='PV OCC'!AB53+1000*'Solar - PV Dist. Comm'!AK$318 -> 533.1321245 | AL151: ='PV OCC'!AC53+1000*'Solar - PV Dist. Comm'!AL$318 -> 530.5618884 | AM151: ='PV OCC'!AD53+1000*'Solar - PV Dist. Comm'!AM$318 -> 527.9916524 | AN151: ='PV OCC'!AE53+1000*'Solar - PV Dist. Comm'!AN$318 -> 525.4214163 | AO151: ='PV OCC'!AF53+1000*'Solar - PV Dist. Comm'!AO$318 -> 522.8511803 | AP151: ='PV OCC'!AG53+1000*'Solar - PV Dist. Comm'!AP$318 -> 520.2809442 | AQ151: ='PV OCC'!AH53+1000*'Solar - PV Dist. Comm'!AQ$318 -> 517.7107082 | AR151: ='PV OCC'!AI53+1000*'Solar - PV Dist. Comm'!AR$318 -> 515.1404721 | AS151: ='PV OCC'!AJ53+1000*'Solar - PV Dist. Comm'!AS$318 -> 512.5702361 | AT151: ='PV OCC'!AK53+1000*'Solar - PV Dist. Comm'!AT$318 -> 510
K152: Comm PV - Seattle - Mid | L152: ='PV OCC'!C54+1000*'Solar - PV Dist. Comm'!L$318 -> 2562.190885 | M152: ='PV OCC'!D54+1000*'Solar - PV Dist. Comm'!M$318 -> 1950.147837 | N152: ='PV OCC'!E54+1000*'Solar - PV Dist. Comm'!N$318 -> 1798.274544 | O152: ='PV OCC'!F54+1000*'Solar - PV Dist. Comm'!O$318 -> 1699.196057 | P152: ='PV OCC'!G54+1000*'Solar - PV Dist. Comm'!P$318 -> 1590.209721 | Q152: ='PV OCC'!H54+1000*'Solar - PV Dist. Comm'!Q$318 -> 1520.85478 | R152: ='PV OCC'!I54+1000*'Solar - PV Dist. Comm'!R$318 -> 1473.65894 | S152: ='PV OCC'!J54+1000*'Solar - PV Dist. Comm'!S$318 -> 1426.463099 | T152: ='PV OCC'!K54+1000*'Solar - PV Dist. Comm'!T$318 -> 1379.267259 | U152: ='PV OCC'!L54+1000*'Solar - PV Dist. Comm'!U$318 -> 1332.071419 | V152: ='PV OCC'!M54+1000*'Solar - PV Dist. Comm'!V$318 -> 1284.875579 | W152: ='PV OCC'!N54+1000*'Solar - PV Dist. Comm'!W$318 -> 1237.679738 | X152: ='PV OCC'!O54+1000*'Solar - PV Dist. Comm'!X$318 -> 1190.483898 | Y152: ='PV OCC'!P54+1000*'Solar - PV Dist. Comm'!Y$318 -> 1143.288058 | Z152: ='PV OCC'!Q54+1000*'Solar - PV Dist. Comm'!Z$318 -> 1096.092217 | AA152: ='PV OCC'!R54+1000*'Solar - PV Dist. Comm'!AA$318 -> 1085.764106 | AB152: ='PV OCC'!S54+1000*'Solar - PV Dist. Comm'!AB$318 -> 1075.435995 | AC152: ='PV OCC'!T54+1000*'Solar - PV Dist. Comm'!AC$318 -> 1065.107884 | AD152: ='PV OCC'!U54+1000*'Solar - PV Dist. Comm'!AD$318 -> 1054.779773 | AE152: ='PV OCC'!V54+1000*'Solar - PV Dist. Comm'!AE$318 -> 1044.451662 | AF152: ='PV OCC'!W54+1000*'Solar - PV Dist. Comm'!AF$318 -> 1034.123551 | AG152: ='PV OCC'!X54+1000*'Solar - PV Dist. Comm'!AG$318 -> 1023.79544 | AH152: ='PV OCC'!Y54+1000*'Solar - PV Dist. Comm'!AH$318 -> 1013.467329 | AI152: ='PV OCC'!Z54+1000*'Solar - PV Dist. Comm'!AI$318 -> 1003.139218 | AJ152: ='PV OCC'!AA54+1000*'Solar - PV Dist. Comm'!AJ$318 -> 992.8111068 | AK152: ='PV OCC'!AB54+1000*'Solar - PV Dist. Comm'!AK$318 -> 987.6470513 | AL152: ='PV OCC'!AC54+1000*'Solar - PV Dist. Comm'!AL$318 -> 982.4829957 | AM152: ='PV OCC'!AD54+1000*'Solar - PV Dist. Comm'!AM$318 -> 977.3189402 | AN152: ='PV OCC'!AE54+1000*'Solar - PV Dist. Comm'!AN$318 -> 972.1548847 | AO152: ='PV OCC'!AF54+1000*'Solar - PV Dist. Comm'!AO$318 -> 966.9908291 | AP152: ='PV OCC'!AG54+1000*'Solar - PV Dist. Comm'!AP$318 -> 961.8267736 | AQ152: ='PV OCC'!AH54+1000*'Solar - PV Dist. Comm'!AQ$318 -> 956.6627181 | AR152: ='PV OCC'!AI54+1000*'Solar - PV Dist. Comm'!AR$318 -> 951.4986625 | AS152: ='PV OCC'!AJ54+1000*'Solar - PV Dist. Comm'!AS$318 -> 946.334607 | AT152: ='PV OCC'!AK54+1000*'Solar - PV Dist. Comm'!AT$318 -> 941.1705515
K153: Comm PV - Seattle - Constant | L153: ='PV OCC'!C55+1000*'Solar - PV Dist. Comm'!L$318 -> 2562.190885 | M153: ='PV OCC'!D55+1000*'Solar - PV Dist. Comm'!M$318 -> 1950.147837 | N153: ='PV OCC'!E55+1000*'Solar - PV Dist. Comm'!N$318 -> 1850.147837 | O153: ='PV OCC'!F55+1000*'Solar - PV Dist. Comm'!O$318 -> 1860.147837 | P153: ='PV OCC'!G55+1000*'Solar - PV Dist. Comm'!P$318 -> 1890.147837 | Q153: ='PV OCC'!H55+1000*'Solar - PV Dist. Comm'!Q$318 -> 1910.147837 | R153: ='PV OCC'!I55+1000*'Solar - PV Dist. Comm'!R$318 -> 1910.147837 | S153: ='PV OCC'!J55+1000*'Solar - PV Dist. Comm'!S$318 -> 1910.147837 | T153: ='PV OCC'!K55+1000*'Solar - PV Dist. Comm'!T$318 -> 1910.147837 | U153: ='PV OCC'!L55+1000*'Solar - PV Dist. Comm'!U$318 -> 1910.147837 | V153: ='PV OCC'!M55+1000*'Solar - PV Dist. Comm'!V$318 -> 1910.147837 | W153: ='PV OCC'!N55+1000*'Solar - PV Dist. Comm'!W$318 -> 1910.147837 | X153: ='PV OCC'!O55+1000*'Solar - PV Dist. Comm'!X$318 -> 1910.147837 | Y153: ='PV OCC'!P55+1000*'Solar - PV Dist. Comm'!Y$318 -> 1910.147837 | Z153: ='PV OCC'!Q55+1000*'Solar - PV Dist. Comm'!Z$318 -> 1910.147837 | AA153: ='PV OCC'!R55+1000*'Solar - PV Dist. Comm'!AA$318 -> 1910.147837 | AB153: ='PV OCC'!S55+1000*'Solar - PV Dist. Comm'!AB$318 -> 1910.147837 | AC153: ='PV OCC'!T55+1000*'Solar - PV Dist. Comm'!AC$318 -> 1910.147837 | AD153: ='PV OCC'!U55+1000*'Solar - PV Dist. Comm'!AD$318 -> 1910.147837 | AE153: ='PV OCC'!V55+1000*'Solar - PV Dist. Comm'!AE$318 -> 1910.147837 | AF153: ='PV OCC'!W55+1000*'Solar - PV Dist. Comm'!AF$318 -> 1910.147837 | AG153: ='PV OCC'!X55+1000*'Solar - PV Dist. Comm'!AG$318 -> 1910.147837 | AH153: ='PV OCC'!Y55+1000*'Solar - PV Dist. Comm'!AH$318 -> 1910.147837 | AI153: ='PV OCC'!Z55+1000*'Solar - PV Dist. Comm'!AI$318 -> 1910.147837 | AJ153: ='PV OCC'!AA55+1000*'Solar - PV Dist. Comm'!AJ$318 -> 1910.147837 | AK153: ='PV OCC'!AB55+1000*'Solar - PV Dist. Comm'!AK$318 -> 1910.147837 | AL153: ='PV OCC'!AC55+1000*'Solar - PV Dist. Comm'!AL$318 -> 1910.147837 | AM153: ='PV OCC'!AD55+1000*'Solar - PV Dist. Comm'!AM$318 -> 1910.147837 | AN153: ='PV OCC'!AE55+1000*'Solar - PV Dist. Comm'!AN$318 -> 1910.147837 | AO153: ='PV OCC'!AF55+1000*'Solar - PV Dist. Comm'!AO$318 -> 1910.147837 | AP153: ='PV OCC'!AG55+1000*'Solar - PV Dist. Comm'!AP$318 -> 1910.147837 | AQ153: ='PV OCC'!AH55+1000*'Solar - PV Dist. Comm'!AQ$318 -> 1910.147837 | AR153: ='PV OCC'!AI55+1000*'Solar - PV Dist. Comm'!AR$318 -> 1910.147837 | AS153: ='PV OCC'!AJ55+1000*'Solar - PV Dist. Comm'!AS$318 -> 1910.147837 | AT153: ='PV OCC'!AK55+1000*'Solar - PV Dist. Comm'!AT$318 -> 1910.147837
K154: Comm PV - Chicago - Low | L154: ='PV OCC'!C56+1000*'Solar - PV Dist. Comm'!L$318 -> 2562.190885 | M154: ='PV OCC'!D56+1000*'Solar - PV Dist. Comm'!M$318 -> 1950.147837 | N154: ='PV OCC'!E56+1000*'Solar - PV Dist. Comm'!N$318 -> 1421.504617 | O154: ='PV OCC'!F56+1000*'Solar - PV Dist. Comm'!O$318 -> 1314.654716 | P154: ='PV OCC'!G56+1000*'Solar - PV Dist. Comm'!P$318 -> 1231.013883 | Q154: ='PV OCC'!H56+1000*'Solar - PV Dist. Comm'!Q$318 -> 1107.611235 | R154: ='PV OCC'!I56+1000*'Solar - PV Dist. Comm'!R$318 -> 1064.787676 | S154: ='PV OCC'!J56+1000*'Solar - PV Dist. Comm'!S$318 -> 1021.964117 | T154: ='PV OCC'!K56+1000*'Solar - PV Dist. Comm'!T$318 -> 979.140558 | U154: ='PV OCC'!L56+1000*'Solar - PV Dist. Comm'!U$318 -> 936.316999 | V154: ='PV OCC'!M56+1000*'Solar - PV Dist. Comm'!V$318 -> 893.4934401 | W154: ='PV OCC'!N56+1000*'Solar - PV Dist. Comm'!W$318 -> 850.6698811 | X154: ='PV OCC'!O56+1000*'Solar - PV Dist. Comm'!X$318 -> 807.8463222 | Y154: ='PV OCC'!P56+1000*'Solar - PV Dist. Comm'!Y$318 -> 765.0227633 | Z154: ='PV OCC'!Q56+1000*'Solar - PV Dist. Comm'!Z$318 -> 722.1992043 | AA154: ='PV OCC'!R56+1000*'Solar - PV Dist. Comm'!AA$318 -> 703.54952 | AB154: ='PV OCC'!S56+1000*'Solar - PV Dist. Comm'!AB$318 -> 684.8998356 | AC154: ='PV OCC'!T56+1000*'Solar - PV Dist. Comm'!AC$318 -> 666.2501512 | AD154: ='PV OCC'!U56+1000*'Solar - PV Dist. Comm'!AD$318 -> 647.6004668 | AE154: ='PV OCC'!V56+1000*'Solar - PV Dist. Comm'!AE$318 -> 628.9507824 | AF154: ='PV OCC'!W56+1000*'Solar - PV Dist. Comm'!AF$318 -> 610.3010981 | AG154: ='PV OCC'!X56+1000*'Solar - PV Dist. Comm'!AG$318 -> 591.6514137 | AH154: ='PV OCC'!Y56+1000*'Solar - PV Dist. Comm'!AH$318 -> 573.0017293 | AI154: ='PV OCC'!Z56+1000*'Solar - PV Dist. Comm'!AI$318 -> 554.3520449 | AJ154: ='PV OCC'!AA56+1000*'Solar - PV Dist. Comm'!AJ$318 -> 535.7023605 | AK154: ='PV OCC'!AB56+1000*'Solar - PV Dist. Comm'!AK$318 -> 533.1321245 | AL154: ='PV OCC'!AC56+1000*'Solar - PV Dist. Comm'!AL$318 -> 530.5618884 | AM154: ='PV OCC'!AD56+1000*'Solar - PV Dist. Comm'!AM$318 -> 527.9916524 | AN154: ='PV OCC'!AE56+1000*'Solar - PV Dist. Comm'!AN$318 -> 525.4214163 | AO154: ='PV OCC'!AF56+1000*'Solar - PV Dist. Comm'!AO$318 -> 522.8511803 | AP154: ='PV OCC'!AG56+1000*'Solar - PV Dist. Comm'!AP$318 -> 520.2809442 | AQ154: ='PV OCC'!AH56+1000*'Solar - PV Dist. Comm'!AQ$318 -> 517.7107082 | AR154: ='PV OCC'!AI56+1000*'Solar - PV Dist. Comm'!AR$318 -> 515.1404721 | AS154: ='PV OCC'!AJ56+1000*'Solar - PV Dist. Comm'!AS$318 -> 512.5702361 | AT154: ='PV OCC'!AK56+1000*'Solar - PV Dist. Comm'!AT$318 -> 510
K155: Comm PV - Chicago - Mid | L155: ='PV OCC'!C57+1000*'Solar - PV Dist. Comm'!L$318 -> 2562.190885 | M155: ='PV OCC'!D57+1000*'Solar - PV Dist. Comm'!M$318 -> 1950.147837 | N155: ='PV OCC'!E57+1000*'Solar - PV Dist. Comm'!N$318 -> 1798.274544 | O155: ='PV OCC'!F57+1000*'Solar - PV Dist. Comm'!O$318 -> 1699.196057 | P155: ='PV OCC'!G57+1000*'Solar - PV Dist. Comm'!P$318 -> 1590.209721 | Q155: ='PV OCC'!H57+1000*'Solar - PV Dist. Comm'!Q$318 -> 1520.85478 | R155: ='PV OCC'!I57+1000*'Solar - PV Dist. Comm'!R$318 -> 1473.65894 | S155: ='PV OCC'!J57+1000*'Solar - PV Dist. Comm'!S$318 -> 1426.463099 | T155: ='PV OCC'!K57+1000*'Solar - PV Dist. Comm'!T$318 -> 1379.267259 | U155: ='PV OCC'!L57+1000*'Solar - PV Dist. Comm'!U$318 -> 1332.071419 | V155: ='PV OCC'!M57+1000*'Solar - PV Dist. Comm'!V$318 -> 1284.875579 | W155: ='PV OCC'!N57+1000*'Solar - PV Dist. Comm'!W$318 -> 1237.679738 | X155: ='PV OCC'!O57+1000*'Solar - PV Dist. Comm'!X$318 -> 1190.483898 | Y155: ='PV OCC'!P57+1000*'Solar - PV Dist. Comm'!Y$318 -> 1143.288058 | Z155: ='PV OCC'!Q57+1000*'Solar - PV Dist. Comm'!Z$318 -> 1096.092217 | AA155: ='PV OCC'!R57+1000*'Solar - PV Dist. Comm'!AA$318 -> 1085.764106 | AB155: ='PV OCC'!S57+1000*'Solar - PV Dist. Comm'!AB$318 -> 1075.435995 | AC155: ='PV OCC'!T57+1000*'Solar - PV Dist. Comm'!AC$318 -> 1065.107884 | AD155: ='PV OCC'!U57+1000*'Solar - PV Dist. Comm'!AD$318 -> 1054.779773 | AE155: ='PV OCC'!V57+1000*'Solar - PV Dist. Comm'!AE$318 -> 1044.451662 | AF155: ='PV OCC'!W57+1000*'Solar - PV Dist. Comm'!AF$318 -> 1034.123551 | AG155: ='PV OCC'!X57+1000*'Solar - PV Dist. Comm'!AG$318 -> 1023.79544 | AH155: ='PV OCC'!Y57+1000*'Solar - PV Dist. Comm'!AH$318 -> 1013.467329 | AI155: ='PV OCC'!Z57+1000*'Solar - PV Dist. Comm'!AI$318 -> 1003.139218 | AJ155: ='PV OCC'!AA57+1000*'Solar - PV Dist. Comm'!AJ$318 -> 992.8111068 | AK155: ='PV OCC'!AB57+1000*'Solar - PV Dist. Comm'!AK$318 -> 987.6470513 | AL155: ='PV OCC'!AC57+1000*'Solar - PV Dist. Comm'!AL$318 -> 982.4829957 | AM155: ='PV OCC'!AD57+1000*'Solar - PV Dist. Comm'!AM$318 -> 977.3189402 | AN155: ='PV OCC'!AE57+1000*'Solar - PV Dist. Comm'!AN$318 -> 972.1548847 | AO155: ='PV OCC'!AF57+1000*'Solar - PV Dist. Comm'!AO$318 -> 966.9908291 | AP155: ='PV OCC'!AG57+1000*'Solar - PV Dist. Comm'!AP$318 -> 961.8267736 | AQ155: ='PV OCC'!AH57+1000*'Solar - PV Dist. Comm'!AQ$318 -> 956.6627181 | AR155: ='PV OCC'!AI57+1000*'Solar - PV Dist. Comm'!AR$318 -> 951.4986625 | AS155: ='PV OCC'!AJ57+1000*'Solar - PV Dist. Comm'!AS$318 -> 946.334607 | AT155: ='PV OCC'!AK57+1000*'Solar - PV Dist. Comm'!AT$318 -> 941.1705515
K156: Comm PV - Chicago - Constant | L156: ='PV OCC'!C58+1000*'Solar - PV Dist. Comm'!L$318 -> 2562.190885 | M156: ='PV OCC'!D58+1000*'Solar - PV Dist. Comm'!M$318 -> 1950.147837 | N156: ='PV OCC'!E58+1000*'Solar - PV Dist. Comm'!N$318 -> 1850.147837 | O156: ='PV OCC'!F58+1000*'Solar - PV Dist. Comm'!O$318 -> 1860.147837 | P156: ='PV OCC'!G58+1000*'Solar - PV Dist. Comm'!P$318 -> 1890.147837 | Q156: ='PV OCC'!H58+1000*'Solar - PV Dist. Comm'!Q$318 -> 1910.147837 | R156: ='PV OCC'!I58+1000*'Solar - PV Dist. Comm'!R$318 -> 1910.147837 | S156: ='PV OCC'!J58+1000*'Solar - PV Dist. Comm'!S$318 -> 1910.147837 | T156: ='PV OCC'!K58+1000*'Solar - PV Dist. Comm'!T$318 -> 1910.147837 | U156: ='PV OCC'!L58+1000*'Solar - PV Dist. Comm'!U$318 -> 1910.147837 | V156: ='PV OCC'!M58+1000*'Solar - PV Dist. Comm'!V$318 -> 1910.147837 | W156: ='PV OCC'!N58+1000*'Solar - PV Dist. Comm'!W$318 -> 1910.147837 | X156: ='PV OCC'!O58+1000*'Solar - PV Dist. Comm'!X$318 -> 1910.147837 | Y156: ='PV OCC'!P58+1000*'Solar - PV Dist. Comm'!Y$318 -> 1910.147837 | Z156: ='PV OCC'!Q58+1000*'Solar - PV Dist. Comm'!Z$318 -> 1910.147837 | AA156: ='PV OCC'!R58+1000*'Solar - PV Dist. Comm'!AA$318 -> 1910.147837 | AB156: ='PV OCC'!S58+1000*'Solar - PV Dist. Comm'!AB$318 -> 1910.147837 | AC156: ='PV OCC'!T58+1000*'Solar - PV Dist. Comm'!AC$318 -> 1910.147837 | AD156: ='PV OCC'!U58+1000*'Solar - PV Dist. Comm'!AD$318 -> 1910.147837 | AE156: ='PV OCC'!V58+1000*'Solar - PV Dist. Comm'!AE$318 -> 1910.147837 | AF156: ='PV OCC'!W58+1000*'Solar - PV Dist. Comm'!AF$318 -> 1910.147837 | AG156: ='PV OCC'!X58+1000*'Solar - PV Dist. Comm'!AG$318 -> 1910.147837 | AH156: ='PV OCC'!Y58+1000*'Solar - PV Dist. Comm'!AH$318 -> 1910.147837 | AI156: ='PV OCC'!Z58+1000*'Solar - PV Dist. Comm'!AI$318 -> 1910.147837 | AJ156: ='PV OCC'!AA58+1000*'Solar - PV Dist. Comm'!AJ$318 -> 1910.147837 | AK156: ='PV OCC'!AB58+1000*'Solar - PV Dist. Comm'!AK$318 -> 1910.147837 | AL156: ='PV OCC'!AC58+1000*'Solar - PV Dist. Comm'!AL$318 -> 1910.147837 | AM156: ='PV OCC'!AD58+1000*'Solar - PV Dist. Comm'!AM$318 -> 1910.147837 | AN156: ='PV OCC'!AE58+1000*'Solar - PV Dist. Comm'!AN$318 -> 1910.147837 | AO156: ='PV OCC'!AF58+1000*'Solar - PV Dist. Comm'!AO$318 -> 1910.147837 | AP156: ='PV OCC'!AG58+1000*'Solar - PV Dist. Comm'!AP$318 -> 1910.147837 | AQ156: ='PV OCC'!AH58+1000*'Solar - PV Dist. Comm'!AQ$318 -> 1910.147837 | AR156: ='PV OCC'!AI58+1000*'Solar - PV Dist. Comm'!AR$318 -> 1910.147837 | AS156: ='PV OCC'!AJ58+1000*'Solar - PV Dist. Comm'!AS$318 -> 1910.147837 | AT156: ='PV OCC'!AK58+1000*'Solar - PV Dist. Comm'!AT$318 -> 1910.147837
K157: Comm PV - Kansas City - Low | L157: ='PV OCC'!C59+1000*'Solar - PV Dist. Comm'!L$318 -> 2562.190885 | M157: ='PV OCC'!D59+1000*'Solar - PV Dist. Comm'!M$318 -> 1950.147837 | N157: ='PV OCC'!E59+1000*'Solar - PV Dist. Comm'!N$318 -> 1421.504617 | O157: ='PV OCC'!F59+1000*'Solar - PV Dist. Comm'!O$318 -> 1314.654716 | P157: ='PV OCC'!G59+1000*'Solar - PV Dist. Comm'!P$318 -> 1231.013883 | Q157: ='PV OCC'!H59+1000*'Solar - PV Dist. Comm'!Q$318 -> 1107.611235 | R157: ='PV OCC'!I59+1000*'Solar - PV Dist. Comm'!R$318 -> 1064.787676 | S157: ='PV OCC'!J59+1000*'Solar - PV Dist. Comm'!S$318 -> 1021.964117 | T157: ='PV OCC'!K59+1000*'Solar - PV Dist. Comm'!T$318 -> 979.140558 | U157: ='PV OCC'!L59+1000*'Solar - PV Dist. Comm'!U$318 -> 936.316999 | V157: ='PV OCC'!M59+1000*'Solar - PV Dist. Comm'!V$318 -> 893.4934401 | W157: ='PV OCC'!N59+1000*'Solar - PV Dist. Comm'!W$318 -> 850.6698811 | X157: ='PV OCC'!O59+1000*'Solar - PV Dist. Comm'!X$318 -> 807.8463222 | Y157: ='PV OCC'!P59+1000*'Solar - PV Dist. Comm'!Y$318 -> 765.0227633 | Z157: ='PV OCC'!Q59+1000*'Solar - PV Dist. Comm'!Z$318 -> 722.1992043 | AA157: ='PV OCC'!R59+1000*'Solar - PV Dist. Comm'!AA$318 -> 703.54952 | AB157: ='PV OCC'!S59+1000*'Solar - PV Dist. Comm'!AB$318 -> 684.8998356 | AC157: ='PV OCC'!T59+1000*'Solar - PV Dist. Comm'!AC$318 -> 666.2501512 | AD157: ='PV OCC'!U59+1000*'Solar - PV Dist. Comm'!AD$318 -> 647.6004668 | AE157: ='PV OCC'!V59+1000*'Solar - PV Dist. Comm'!AE$318 -> 628.9507824 | AF157: ='PV OCC'!W59+1000*'Solar - PV Dist. Comm'!AF$318 -> 610.3010981 | AG157: ='PV OCC'!X59+1000*'Solar - PV Dist. Comm'!AG$318 -> 591.6514137 | AH157: ='PV OCC'!Y59+1000*'Solar - PV Dist. Comm'!AH$318 -> 573.0017293 | AI157: ='PV OCC'!Z59+1000*'Solar - PV Dist. Comm'!AI$318 -> 554.3520449 | AJ157: ='PV OCC'!AA59+1000*'Solar - PV Dist. Comm'!AJ$318 -> 535.7023605 | AK157: ='PV OCC'!AB59+1000*'Solar - PV Dist. Comm'!AK$318 -> 533.1321245 | AL157: ='PV OCC'!AC59+1000*'Solar - PV Dist. Comm'!AL$318 -> 530.5618884 | AM157: ='PV OCC'!AD59+1000*'Solar - PV Dist. Comm'!AM$318 -> 527.9916524 | AN157: ='PV OCC'!AE59+1000*'Solar - PV Dist. Comm'!AN$318 -> 525.4214163 | AO157: ='PV OCC'!AF59+1000*'Solar - PV Dist. Comm'!AO$318 -> 522.8511803 | AP157: ='PV OCC'!AG59+1000*'Solar - PV Dist. Comm'!AP$318 -> 520.2809442 | AQ157: ='PV OCC'!AH59+1000*'Solar - PV Dist. Comm'!AQ$318 -> 517.7107082 | AR157: ='PV OCC'!AI59+1000*'Solar - PV Dist. Comm'!AR$318 -> 515.1404721 | AS157: ='PV OCC'!AJ59+1000*'Solar - PV Dist. Comm'!AS$318 -> 512.5702361 | AT157: ='PV OCC'!AK59+1000*'Solar - PV Dist. Comm'!AT$318 -> 510
K158: Comm PV - Kansas City - Mid | L158: ='PV OCC'!C60+1000*'Solar - PV Dist. Comm'!L$318 -> 2562.190885 | M158: ='PV OCC'!D60+1000*'Solar - PV Dist. Comm'!M$318 -> 1950.147837 | N158: ='PV OCC'!E60+1000*'Solar - PV Dist. Comm'!N$318 -> 1798.274544 | O158: ='PV OCC'!F60+1000*'Solar - PV Dist. Comm'!O$318 -> 1699.196057 | P158: ='PV OCC'!G60+1000*'Solar - PV Dist. Comm'!P$318 -> 1590.209721 | Q158: ='PV OCC'!H60+1000*'Solar - PV Dist. Comm'!Q$318 -> 1520.85478 | R158: ='PV OCC'!I60+1000*'Solar - PV Dist. Comm'!R$318 -> 1473.65894 | S158: ='PV OCC'!J60+1000*'Solar - PV Dist. Comm'!S$318 -> 1426.463099 | T158: ='PV OCC'!K60+1000*'Solar - PV Dist. Comm'!T$318 -> 1379.267259 | U158: ='PV OCC'!L60+1000*'Solar - PV Dist. Comm'!U$318 -> 1332.071419 | V158: ='PV OCC'!M60+1000*'Solar - PV Dist. Comm'!V$318 -> 1284.875579 | W158: ='PV OCC'!N60+1000*'Solar - PV Dist. Comm'!W$318 -> 1237.679738 | X158: ='PV OCC'!O60+1000*'Solar - PV Dist. Comm'!X$318 -> 1190.483898 | Y158: ='PV OCC'!P60+1000*'Solar - PV Dist. Comm'!Y$318 -> 1143.288058 | Z158: ='PV OCC'!Q60+1000*'Solar - PV Dist. Comm'!Z$318 -> 1096.092217 | AA158: ='PV OCC'!R60+1000*'Solar - PV Dist. Comm'!AA$318 -> 1085.764106 | AB158: ='PV OCC'!S60+1000*'Solar - PV Dist. Comm'!AB$318 -> 1075.435995 | AC158: ='PV OCC'!T60+1000*'Solar - PV Dist. Comm'!AC$318 -> 1065.107884 | AD158: ='PV OCC'!U60+1000*'Solar - PV Dist. Comm'!AD$318 -> 1054.779773 | AE158: ='PV OCC'!V60+1000*'Solar - PV Dist. Comm'!AE$318 -> 1044.451662 | AF158: ='PV OCC'!W60+1000*'Solar - PV Dist. Comm'!AF$318 -> 1034.123551 | AG158: ='PV OCC'!X60+1000*'Solar - PV Dist. Comm'!AG$318 -> 1023.79544 | AH158: ='PV OCC'!Y60+1000*'Solar - PV Dist. Comm'!AH$318 -> 1013.467329 | AI158: ='PV OCC'!Z60+1000*'Solar - PV Dist. Comm'!AI$318 -> 1003.139218 | AJ158: ='PV OCC'!AA60+1000*'Solar - PV Dist. Comm'!AJ$318 -> 992.8111068 | AK158: ='PV OCC'!AB60+1000*'Solar - PV Dist. Comm'!AK$318 -> 987.6470513 | AL158: ='PV OCC'!AC60+1000*'Solar - PV Dist. Comm'!AL$318 -> 982.4829957 | AM158: ='PV OCC'!AD60+1000*'Solar - PV Dist. Comm'!AM$318 -> 977.3189402 | AN158: ='PV OCC'!AE60+1000*'Solar - PV Dist. Comm'!AN$318 -> 972.1548847 | AO158: ='PV OCC'!AF60+1000*'Solar - PV Dist. Comm'!AO$318 -> 966.9908291 | AP158: ='PV OCC'!AG60+1000*'Solar - PV Dist. Comm'!AP$318 -> 961.8267736 | AQ158: ='PV OCC'!AH60+1000*'Solar - PV Dist. Comm'!AQ$318 -> 956.6627181 | AR158: ='PV OCC'!AI60+1000*'Solar - PV Dist. Comm'!AR$318 -> 951.4986625 | AS158: ='PV OCC'!AJ60+1000*'Solar - PV Dist. Comm'!AS$318 -> 946.334607 | AT158: ='PV OCC'!AK60+1000*'Solar - PV Dist. Comm'!AT$318 -> 941.1705515
K159: Comm PV - Kansas City - Constant | L159: ='PV OCC'!C61+1000*'Solar - PV Dist. Comm'!L$318 -> 2562.190885 | M159: ='PV OCC'!D61+1000*'Solar - PV Dist. Comm'!M$318 -> 1950.147837 | N159: ='PV OCC'!E61+1000*'Solar - PV Dist. Comm'!N$318 -> 1850.147837 | O159: ='PV OCC'!F61+1000*'Solar - PV Dist. Comm'!O$318 -> 1860.147837 | P159: ='PV OCC'!G61+1000*'Solar - PV Dist. Comm'!P$318 -> 1890.147837 | Q159: ='PV OCC'!H61+1000*'Solar - PV Dist. Comm'!Q$318 -> 1910.147837 | R159: ='PV OCC'!I61+1000*'Solar - PV Dist. Comm'!R$318 -> 1910.147837 | S159: ='PV OCC'!J61+1000*'Solar - PV Dist. Comm'!S$318 -> 1910.147837 | T159: ='PV OCC'!K61+1000*'Solar - PV Dist. Comm'!T$318 -> 1910.147837 | U159: ='PV OCC'!L61+1000*'Solar - PV Dist. Comm'!U$318 -> 1910.147837 | V159: ='PV OCC'!M61+1000*'Solar - PV Dist. Comm'!V$318 -> 1910.147837 | W159: ='PV OCC'!N61+1000*'Solar - PV Dist. Comm'!W$318 -> 1910.147837 | X159: ='PV OCC'!O61+1000*'Solar - PV Dist. Comm'!X$318 -> 1910.147837 | Y159: ='PV OCC'!P61+1000*'Solar - PV Dist. Comm'!Y$318 -> 1910.147837 | Z159: ='PV OCC'!Q61+1000*'Solar - PV Dist. Comm'!Z$318 -> 1910.147837 | AA159: ='PV OCC'!R61+1000*'Solar - PV Dist. Comm'!AA$318 -> 1910.147837 | AB159: ='PV OCC'!S61+1000*'Solar - PV Dist. Comm'!AB$318 -> 1910.147837 | AC159: ='PV OCC'!T61+1000*'Solar - PV Dist. Comm'!AC$318 -> 1910.147837 | AD159: ='PV OCC'!U61+1000*'Solar - PV Dist. Comm'!AD$318 -> 1910.147837 | AE159: ='PV OCC'!V61+1000*'Solar - PV Dist. Comm'!AE$318 -> 1910.147837 | AF159: ='PV OCC'!W61+1000*'Solar - PV Dist. Comm'!AF$318 -> 1910.147837 | AG159: ='PV OCC'!X61+1000*'Solar - PV Dist. Comm'!AG$318 -> 1910.147837 | AH159: ='PV OCC'!Y61+1000*'Solar - PV Dist. Comm'!AH$318 -> 1910.147837 | AI159: ='PV OCC'!Z61+1000*'Solar - PV Dist. Comm'!AI$318 -> 1910.147837 | AJ159: ='PV OCC'!AA61+1000*'Solar - PV Dist. Comm'!AJ$318 -> 1910.147837 | AK159: ='PV OCC'!AB61+1000*'Solar - PV Dist. Comm'!AK$318 -> 1910.147837 | AL159: ='PV OCC'!AC61+1000*'Solar - PV Dist. Comm'!AL$318 -> 1910.147837 | AM159: ='PV OCC'!AD61+1000*'Solar - PV Dist. Comm'!AM$318 -> 1910.147837 | AN159: ='PV OCC'!AE61+1000*'Solar - PV Dist. Comm'!AN$318 -> 1910.147837 | AO159: ='PV OCC'!AF61+1000*'Solar - PV Dist. Comm'!AO$318 -> 1910.147837 | AP159: ='PV OCC'!AG61+1000*'Solar - PV Dist. Comm'!AP$318 -> 1910.147837 | AQ159: ='PV OCC'!AH61+1000*'Solar - PV Dist. Comm'!AQ$318 -> 1910.147837 | AR159: ='PV OCC'!AI61+1000*'Solar - PV Dist. Comm'!AR$318 -> 1910.147837 | AS159: ='PV OCC'!AJ61+1000*'Solar - PV Dist. Comm'!AS$318 -> 1910.147837 | AT159: ='PV OCC'!AK61+1000*'Solar - PV Dist. Comm'!AT$318 -> 1910.147837
K160: Comm PV - Los Angeles - Low | L160: ='PV OCC'!C62+1000*'Solar - PV Dist. Comm'!L$318 -> 2562.190885 | M160: ='PV OCC'!D62+1000*'Solar - PV Dist. Comm'!M$318 -> 1950.147837 | N160: ='PV OCC'!E62+1000*'Solar - PV Dist. Comm'!N$318 -> 1421.504617 | O160: ='PV OCC'!F62+1000*'Solar - PV Dist. Comm'!O$318 -> 1314.654716 | P160: ='PV OCC'!G62+1000*'Solar - PV Dist. Comm'!P$318 -> 1231.013883 | Q160: ='PV OCC'!H62+1000*'Solar - PV Dist. Comm'!Q$318 -> 1107.611235 | R160: ='PV OCC'!I62+1000*'Solar - PV Dist. Comm'!R$318 -> 1064.787676 | S160: ='PV OCC'!J62+1000*'Solar - PV Dist. Comm'!S$318 -> 1021.964117 | T160: ='PV OCC'!K62+1000*'Solar - PV Dist. Comm'!T$318 -> 979.140558 | U160: ='PV OCC'!L62+1000*'Solar - PV Dist. Comm'!U$318 -> 936.316999 | V160: ='PV OCC'!M62+1000*'Solar - PV Dist. Comm'!V$318 -> 893.4934401 | W160: ='PV OCC'!N62+1000*'Solar - PV Dist. Comm'!W$318 -> 850.6698811 | X160: ='PV OCC'!O62+1000*'Solar - PV Dist. Comm'!X$318 -> 807.8463222 | Y160: ='PV OCC'!P62+1000*'Solar - PV Dist. Comm'!Y$318 -> 765.0227633 | Z160: ='PV OCC'!Q62+1000*'Solar - PV Dist. Comm'!Z$318 -> 722.1992043 | AA160: ='PV OCC'!R62+1000*'Solar - PV Dist. Comm'!AA$318 -> 703.54952 | AB160: ='PV OCC'!S62+1000*'Solar - PV Dist. Comm'!AB$318 -> 684.8998356 | AC160: ='PV OCC'!T62+1000*'Solar - PV Dist. Comm'!AC$318 -> 666.2501512 | AD160: ='PV OCC'!U62+1000*'Solar - PV Dist. Comm'!AD$318 -> 647.6004668 | AE160: ='PV OCC'!V62+1000*'Solar - PV Dist. Comm'!AE$318 -> 628.9507824 | AF160: ='PV OCC'!W62+1000*'Solar - PV Dist. Comm'!AF$318 -> 610.3010981 | AG160: ='PV OCC'!X62+1000*'Solar - PV Dist. Comm'!AG$318 -> 591.6514137 | AH160: ='PV OCC'!Y62+1000*'Solar - PV Dist. Comm'!AH$318 -> 573.0017293 | AI160: ='PV OCC'!Z62+1000*'Solar - PV Dist. Comm'!AI$318 -> 554.3520449 | AJ160: ='PV OCC'!AA62+1000*'Solar - PV Dist. Comm'!AJ$318 -> 535.7023605 | AK160: ='PV OCC'!AB62+1000*'Solar - PV Dist. Comm'!AK$318 -> 533.1321245 | AL160: ='PV OCC'!AC62+1000*'Solar - PV Dist. Comm'!AL$318 -> 530.5618884 | AM160: ='PV OCC'!AD62+1000*'Solar - PV Dist. Comm'!AM$318 -> 527.9916524 | AN160: ='PV OCC'!AE62+1000*'Solar - PV Dist. Comm'!AN$318 -> 525.4214163 | AO160: ='PV OCC'!AF62+1000*'Solar - PV Dist. Comm'!AO$318 -> 522.8511803 | AP160: ='PV OCC'!AG62+1000*'Solar - PV Dist. Comm'!AP$318 -> 520.2809442 | AQ160: ='PV OCC'!AH62+1000*'Solar - PV Dist. Comm'!AQ$318 -> 517.7107082 | AR160: ='PV OCC'!AI62+1000*'Solar - PV Dist. Comm'!AR$318 -> 515.1404721 | AS160: ='PV OCC'!AJ62+1000*'Solar - PV Dist. Comm'!AS$318 -> 512.5702361 | AT160: ='PV OCC'!AK62+1000*'Solar - PV Dist. Comm'!AT$318 -> 510
K161: Comm PV - Los Angeles - Mid | L161: ='PV OCC'!C63+1000*'Solar - PV Dist. Comm'!L$318 -> 2562.190885 | M161: ='PV OCC'!D63+1000*'Solar - PV Dist. Comm'!M$318 -> 1950.147837 | N161: ='PV OCC'!E63+1000*'Solar - PV Dist. Comm'!N$318 -> 1798.274544 | O161: ='PV OCC'!F63+1000*'Solar - PV Dist. Comm'!O$318 -> 1699.196057 | P161: ='PV OCC'!G63+1000*'Solar - PV Dist. Comm'!P$318 -> 1590.209721 | Q161: ='PV OCC'!H63+1000*'Solar - PV Dist. Comm'!Q$318 -> 1520.85478 | R161: ='PV OCC'!I63+1000*'Solar - PV Dist. Comm'!R$318 -> 1473.65894 | S161: ='PV OCC'!J63+1000*'Solar - PV Dist. Comm'!S$318 -> 1426.463099 | T161: ='PV OCC'!K63+1000*'Solar - PV Dist. Comm'!T$318 -> 1379.267259 | U161: ='PV OCC'!L63+1000*'Solar - PV Dist. Comm'!U$318 -> 1332.071419 | V161: ='PV OCC'!M63+1000*'Solar - PV Dist. Comm'!V$318 -> 1284.875579 | W161: ='PV OCC'!N63+1000*'Solar - PV Dist. Comm'!W$318 -> 1237.679738 | X161: ='PV OCC'!O63+1000*'Solar - PV Dist. Comm'!X$318 -> 1190.483898 | Y161: ='PV OCC'!P63+1000*'Solar - PV Dist. Comm'!Y$318 -> 1143.288058 | Z161: ='PV OCC'!Q63+1000*'Solar - PV Dist. Comm'!Z$318 -> 1096.092217 | AA161: ='PV OCC'!R63+1000*'Solar - PV Dist. Comm'!AA$318 -> 1085.764106 | AB161: ='PV OCC'!S63+1000*'Solar - PV Dist. Comm'!AB$318 -> 1075.435995 | AC161: ='PV OCC'!T63+1000*'Solar - PV Dist. Comm'!AC$318 -> 1065.107884 | AD161: ='PV OCC'!U63+1000*'Solar - PV Dist. Comm'!AD$318 -> 1054.779773 | AE161: ='PV OCC'!V63+1000*'Solar - PV Dist. Comm'!AE$318 -> 1044.451662 | AF161: ='PV OCC'!W63+1000*'Solar - PV Dist. Comm'!AF$318 -> 1034.123551 | AG161: ='PV OCC'!X63+1000*'Solar - PV Dist. Comm'!AG$318 -> 1023.79544 | AH161: ='PV OCC'!Y63+1000*'Solar - PV Dist. Comm'!AH$318 -> 1013.467329 | AI161: ='PV OCC'!Z63+1000*'Solar - PV Dist. Comm'!AI$318 -> 1003.139218 | AJ161: ='PV OCC'!AA63+1000*'Solar - PV Dist. Comm'!AJ$318 -> 992.8111068 | AK161: ='PV OCC'!AB63+1000*'Solar - PV Dist. Comm'!AK$318 -> 987.6470513 | AL161: ='PV OCC'!AC63+1000*'Solar - PV Dist. Comm'!AL$318 -> 982.4829957 | AM161: ='PV OCC'!AD63+1000*'Solar - PV Dist. Comm'!AM$318 -> 977.3189402 | AN161: ='PV OCC'!AE63+1000*'Solar - PV Dist. Comm'!AN$318 -> 972.1548847 | AO161: ='PV OCC'!AF63+1000*'Solar - PV Dist. Comm'!AO$318 -> 966.9908291 | AP161: ='PV OCC'!AG63+1000*'Solar - PV Dist. Comm'!AP$318 -> 961.8267736 | AQ161: ='PV OCC'!AH63+1000*'Solar - PV Dist. Comm'!AQ$318 -> 956.6627181 | AR161: ='PV OCC'!AI63+1000*'Solar - PV Dist. Comm'!AR$318 -> 951.4986625 | AS161: ='PV OCC'!AJ63+1000*'Solar - PV Dist. Comm'!AS$318 -> 946.334607 | AT161: ='PV OCC'!AK63+1000*'Solar - PV Dist. Comm'!AT$318 -> 941.1705515
K162: Comm PV - Los Angeles - Constant | L162: ='PV OCC'!C64+1000*'Solar - PV Dist. Comm'!L$318 -> 2562.190885 | M162: ='PV OCC'!D64+1000*'Solar - PV Dist. Comm'!M$318 -> 1950.147837 | N162: ='PV OCC'!E64+1000*'Solar - PV Dist. Comm'!N$318 -> 1850.147837 | O162: ='PV OCC'!F64+1000*'Solar - PV Dist. Comm'!O$318 -> 1860.147837 | P162: ='PV OCC'!G64+1000*'Solar - PV Dist. Comm'!P$318 -> 1890.147837 | Q162: ='PV OCC'!H64+1000*'Solar - PV Dist. Comm'!Q$318 -> 1910.147837 | R162: ='PV OCC'!I64+1000*'Solar - PV Dist. Comm'!R$318 -> 1910.147837 | S162: ='PV OCC'!J64+1000*'Solar - PV Dist. Comm'!S$318 -> 1910.147837 | T162: ='PV OCC'!K64+1000*'Solar - PV Dist. Comm'!T$318 -> 1910.147837 | U162: ='PV OCC'!L64+1000*'Solar - PV Dist. Comm'!U$318 -> 1910.147837 | V162: ='PV OCC'!M64+1000*'Solar - PV Dist. Comm'!V$318 -> 1910.147837 | W162: ='PV OCC'!N64+1000*'Solar - PV Dist. Comm'!W$318 -> 1910.147837 | X162: ='PV OCC'!O64+1000*'Solar - PV Dist. Comm'!X$318 -> 1910.147837 | Y162: ='PV OCC'!P64+1000*'Solar - PV Dist. Comm'!Y$318 -> 1910.147837 | Z162: ='PV OCC'!Q64+1000*'Solar - PV Dist. Comm'!Z$318 -> 1910.147837 | AA162: ='PV OCC'!R64+1000*'Solar - PV Dist. Comm'!AA$318 -> 1910.147837 | AB162: ='PV OCC'!S64+1000*'Solar - PV Dist. Comm'!AB$318 -> 1910.147837 | AC162: ='PV OCC'!T64+1000*'Solar - PV Dist. Comm'!AC$318 -> 1910.147837 | AD162: ='PV OCC'!U64+1000*'Solar - PV Dist. Comm'!AD$318 -> 1910.147837 | AE162: ='PV OCC'!V64+1000*'Solar - PV Dist. Comm'!AE$318 -> 1910.147837 | AF162: ='PV OCC'!W64+1000*'Solar - PV Dist. Comm'!AF$318 -> 1910.147837 | AG162: ='PV OCC'!X64+1000*'Solar - PV Dist. Comm'!AG$318 -> 1910.147837 | AH162: ='PV OCC'!Y64+1000*'Solar - PV Dist. Comm'!AH$318 -> 1910.147837 | AI162: ='PV OCC'!Z64+1000*'Solar - PV Dist. Comm'!AI$318 -> 1910.147837 | AJ162: ='PV OCC'!AA64+1000*'Solar - PV Dist. Comm'!AJ$318 -> 1910.147837 | AK162: ='PV OCC'!AB64+1000*'Solar - PV Dist. Comm'!AK$318 -> 1910.147837 | AL162: ='PV OCC'!AC64+1000*'Solar - PV Dist. Comm'!AL$318 -> 1910.147837 | AM162: ='PV OCC'!AD64+1000*'Solar - PV Dist. Comm'!AM$318 -> 1910.147837 | AN162: ='PV OCC'!AE64+1000*'Solar - PV Dist. Comm'!AN$318 -> 1910.147837 | AO162: ='PV OCC'!AF64+1000*'Solar - PV Dist. Comm'!AO$318 -> 1910.147837 | AP162: ='PV OCC'!AG64+1000*'Solar - PV Dist. Comm'!AP$318 -> 1910.147837 | AQ162: ='PV OCC'!AH64+1000*'Solar - PV Dist. Comm'!AQ$318 -> 1910.147837 | AR162: ='PV OCC'!AI64+1000*'Solar - PV Dist. Comm'!AR$318 -> 1910.147837 | AS162: ='PV OCC'!AJ64+1000*'Solar - PV Dist. Comm'!AS$318 -> 1910.147837 | AT162: ='PV OCC'!AK64+1000*'Solar - PV Dist. Comm'!AT$318 -> 1910.147837
K163: Comm PV - Daggett, CA - Low | L163: ='PV OCC'!C65+1000*'Solar - PV Dist. Comm'!L$318 -> 2562.190885 | M163: ='PV OCC'!D65+1000*'Solar - PV Dist. Comm'!M$318 -> 1950.147837 | N163: ='PV OCC'!E65+1000*'Solar - PV Dist. Comm'!N$318 -> 1421.504617 | O163: ='PV OCC'!F65+1000*'Solar - PV Dist. Comm'!O$318 -> 1314.654716 | P163: ='PV OCC'!G65+1000*'Solar - PV Dist. Comm'!P$318 -> 1231.013883 | Q163: ='PV OCC'!H65+1000*'Solar - PV Dist. Comm'!Q$318 -> 1107.611235 | R163: ='PV OCC'!I65+1000*'Solar - PV Dist. Comm'!R$318 -> 1064.787676 | S163: ='PV OCC'!J65+1000*'Solar - PV Dist. Comm'!S$318 -> 1021.964117 | T163: ='PV OCC'!K65+1000*'Solar - PV Dist. Comm'!T$318 -> 979.140558 | U163: ='PV OCC'!L65+1000*'Solar - PV Dist. Comm'!U$318 -> 936.316999 | V163: ='PV OCC'!M65+1000*'Solar - PV Dist. Comm'!V$318 -> 893.4934401 | W163: ='PV OCC'!N65+1000*'Solar - PV Dist. Comm'!W$318 -> 850.6698811 | X163: ='PV OCC'!O65+1000*'Solar - PV Dist. Comm'!X$318 -> 807.8463222 | Y163: ='PV OCC'!P65+1000*'Solar - PV Dist. Comm'!Y$318 -> 765.0227633 | Z163: ='PV OCC'!Q65+1000*'Solar - PV Dist. Comm'!Z$318 -> 722.1992043 | AA163: ='PV OCC'!R65+1000*'Solar - PV Dist. Comm'!AA$318 -> 703.54952 | AB163: ='PV OCC'!S65+1000*'Solar - PV Dist. Comm'!AB$318 -> 684.8998356 | AC163: ='PV OCC'!T65+1000*'Solar - PV Dist. Comm'!AC$318 -> 666.2501512 | AD163: ='PV OCC'!U65+1000*'Solar - PV Dist. Comm'!AD$318 -> 647.6004668 | AE163: ='PV OCC'!V65+1000*'Solar - PV Dist. Comm'!AE$318 -> 628.9507824 | AF163: ='PV OCC'!W65+1000*'Solar - PV Dist. Comm'!AF$318 -> 610.3010981 | AG163: ='PV OCC'!X65+1000*'Solar - PV Dist. Comm'!AG$318 -> 591.6514137 | AH163: ='PV OCC'!Y65+1000*'Solar - PV Dist. Comm'!AH$318 -> 573.0017293 | AI163: ='PV OCC'!Z65+1000*'Solar - PV Dist. Comm'!AI$318 -> 554.3520449 | AJ163: ='PV OCC'!AA65+1000*'Solar - PV Dist. Comm'!AJ$318 -> 535.7023605 | AK163: ='PV OCC'!AB65+1000*'Solar - PV Dist. Comm'!AK$318 -> 533.1321245 | AL163: ='PV OCC'!AC65+1000*'Solar - PV Dist. Comm'!AL$318 -> 530.5618884 | AM163: ='PV OCC'!AD65+1000*'Solar - PV Dist. Comm'!AM$318 -> 527.9916524 | AN163: ='PV OCC'!AE65+1000*'Solar - PV Dist. Comm'!AN$318 -> 525.4214163 | AO163: ='PV OCC'!AF65+1000*'Solar - PV Dist. Comm'!AO$318 -> 522.8511803 | AP163: ='PV OCC'!AG65+1000*'Solar - PV Dist. Comm'!AP$318 -> 520.2809442 | AQ163: ='PV OCC'!AH65+1000*'Solar - PV Dist. Comm'!AQ$318 -> 517.7107082 | AR163: ='PV OCC'!AI65+1000*'Solar - PV Dist. Comm'!AR$318 -> 515.1404721 | AS163: ='PV OCC'!AJ65+1000*'Solar - PV Dist. Comm'!AS$318 -> 512.5702361 | AT163: ='PV OCC'!AK65+1000*'Solar - PV Dist. Comm'!AT$318 -> 510
K164: Comm PV - Daggett, CA - Mid | L164: ='PV OCC'!C66+1000*'Solar - PV Dist. Comm'!L$318 -> 2562.190885 | M164: ='PV OCC'!D66+1000*'Solar - PV Dist. Comm'!M$318 -> 1950.147837 | N164: ='PV OCC'!E66+1000*'Solar - PV Dist. Comm'!N$318 -> 1798.274544 | O164: ='PV OCC'!F66+1000*'Solar - PV Dist. Comm'!O$318 -> 1699.196057 | P164: ='PV OCC'!G66+1000*'Solar - PV Dist. Comm'!P$318 -> 1590.209721 | Q164: ='PV OCC'!H66+1000*'Solar - PV Dist. Comm'!Q$318 -> 1520.85478 | R164: ='PV OCC'!I66+1000*'Solar - PV Dist. Comm'!R$318 -> 1473.65894 | S164: ='PV OCC'!J66+1000*'Solar - PV Dist. Comm'!S$318 -> 1426.463099 | T164: ='PV OCC'!K66+1000*'Solar - PV Dist. Comm'!T$318 -> 1379.267259 | U164: ='PV OCC'!L66+1000*'Solar - PV Dist. Comm'!U$318 -> 1332.071419 | V164: ='PV OCC'!M66+1000*'Solar - PV Dist. Comm'!V$318 -> 1284.875579 | W164: ='PV OCC'!N66+1000*'Solar - PV Dist. Comm'!W$318 -> 1237.679738 | X164: ='PV OCC'!O66+1000*'Solar - PV Dist. Comm'!X$318 -> 1190.483898 | Y164: ='PV OCC'!P66+1000*'Solar - PV Dist. Comm'!Y$318 -> 1143.288058 | Z164: ='PV OCC'!Q66+1000*'Solar - PV Dist. Comm'!Z$318 -> 1096.092217 | AA164: ='PV OCC'!R66+1000*'Solar - PV Dist. Comm'!AA$318 -> 1085.764106 | AB164: ='PV OCC'!S66+1000*'Solar - PV Dist. Comm'!AB$318 -> 1075.435995 | AC164: ='PV OCC'!T66+1000*'Solar - PV Dist. Comm'!AC$318 -> 1065.107884 | AD164: ='PV OCC'!U66+1000*'Solar - PV Dist. Comm'!AD$318 -> 1054.779773 | AE164: ='PV OCC'!V66+1000*'Solar - PV Dist. Comm'!AE$318 -> 1044.451662 | AF164: ='PV OCC'!W66+1000*'Solar - PV Dist. Comm'!AF$318 -> 1034.123551 | AG164: ='PV OCC'!X66+1000*'Solar - PV Dist. Comm'!AG$318 -> 1023.79544 | AH164: ='PV OCC'!Y66+1000*'Solar - PV Dist. Comm'!AH$318 -> 1013.467329 | AI164: ='PV OCC'!Z66+1000*'Solar - PV Dist. Comm'!AI$318 -> 1003.139218 | AJ164: ='PV OCC'!AA66+1000*'Solar - PV Dist. Comm'!AJ$318 -> 992.8111068 | AK164: ='PV OCC'!AB66+1000*'Solar - PV Dist. Comm'!AK$318 -> 987.6470513 | AL164: ='PV OCC'!AC66+1000*'Solar - PV Dist. Comm'!AL$318 -> 982.4829957 | AM164: ='PV OCC'!AD66+1000*'Solar - PV Dist. Comm'!AM$318 -> 977.3189402 | AN164: ='PV OCC'!AE66+1000*'Solar - PV Dist. Comm'!AN$318 -> 972.1548847 | AO164: ='PV OCC'!AF66+1000*'Solar - PV Dist. Comm'!AO$318 -> 966.9908291 | AP164: ='PV OCC'!AG66+1000*'Solar - PV Dist. Comm'!AP$318 -> 961.8267736 | AQ164: ='PV OCC'!AH66+1000*'Solar - PV Dist. Comm'!AQ$318 -> 956.6627181 | AR164: ='PV OCC'!AI66+1000*'Solar - PV Dist. Comm'!AR$318 -> 951.4986625 | AS164: ='PV OCC'!AJ66+1000*'Solar - PV Dist. Comm'!AS$318 -> 946.334607 | AT164: ='PV OCC'!AK66+1000*'Solar - PV Dist. Comm'!AT$318 -> 941.1705515
K165: Comm PV - Daggett, CA - Constant | L165: ='PV OCC'!C67+1000*'Solar - PV Dist. Comm'!L$318 -> 2562.190885 | M165: ='PV OCC'!D67+1000*'Solar - PV Dist. Comm'!M$318 -> 1950.147837 | N165: ='PV OCC'!E67+1000*'Solar - PV Dist. Comm'!N$318 -> 1850.147837 | O165: ='PV OCC'!F67+1000*'Solar - PV Dist. Comm'!O$318 -> 1860.147837 | P165: ='PV OCC'!G67+1000*'Solar - PV Dist. Comm'!P$318 -> 1890.147837 | Q165: ='PV OCC'!H67+1000*'Solar - PV Dist. Comm'!Q$318 -> 1910.147837 | R165: ='PV OCC'!I67+1000*'Solar - PV Dist. Comm'!R$318 -> 1910.147837 | S165: ='PV OCC'!J67+1000*'Solar - PV Dist. Comm'!S$318 -> 1910.147837 | T165: ='PV OCC'!K67+1000*'Solar - PV Dist. Comm'!T$318 -> 1910.147837 | U165: ='PV OCC'!L67+1000*'Solar - PV Dist. Comm'!U$318 -> 1910.147837 | V165: ='PV OCC'!M67+1000*'Solar - PV Dist. Comm'!V$318 -> 1910.147837 | W165: ='PV OCC'!N67+1000*'Solar - PV Dist. Comm'!W$318 -> 1910.147837 | X165: ='PV OCC'!O67+1000*'Solar - PV Dist. Comm'!X$318 -> 1910.147837 | Y165: ='PV OCC'!P67+1000*'Solar - PV Dist. Comm'!Y$318 -> 1910.147837 | Z165: ='PV OCC'!Q67+1000*'Solar - PV Dist. Comm'!Z$318 -> 1910.147837 | AA165: ='PV OCC'!R67+1000*'Solar - PV Dist. Comm'!AA$318 -> 1910.147837 | AB165: ='PV OCC'!S67+1000*'Solar - PV Dist. Comm'!AB$318 -> 1910.147837 | AC165: ='PV OCC'!T67+1000*'Solar - PV Dist. Comm'!AC$318 -> 1910.147837 | AD165: ='PV OCC'!U67+1000*'Solar - PV Dist. Comm'!AD$318 -> 1910.147837 | AE165: ='PV OCC'!V67+1000*'Solar - PV Dist. Comm'!AE$318 -> 1910.147837 | AF165: ='PV OCC'!W67+1000*'Solar - PV Dist. Comm'!AF$318 -> 1910.147837 | AG165: ='PV OCC'!X67+1000*'Solar - PV Dist. Comm'!AG$318 -> 1910.147837 | AH165: ='PV OCC'!Y67+1000*'Solar - PV Dist. Comm'!AH$318 -> 1910.147837 | AI165: ='PV OCC'!Z67+1000*'Solar - PV Dist. Comm'!AI$318 -> 1910.147837 | AJ165: ='PV OCC'!AA67+1000*'Solar - PV Dist. Comm'!AJ$318 -> 1910.147837 | AK165: ='PV OCC'!AB67+1000*'Solar - PV Dist. Comm'!AK$318 -> 1910.147837 | AL165: ='PV OCC'!AC67+1000*'Solar - PV Dist. Comm'!AL$318 -> 1910.147837 | AM165: ='PV OCC'!AD67+1000*'Solar - PV Dist. Comm'!AM$318 -> 1910.147837 | AN165: ='PV OCC'!AE67+1000*'Solar - PV Dist. Comm'!AN$318 -> 1910.147837 | AO165: ='PV OCC'!AF67+1000*'Solar - PV Dist. Comm'!AO$318 -> 1910.147837 | AP165: ='PV OCC'!AG67+1000*'Solar - PV Dist. Comm'!AP$318 -> 1910.147837 | AQ165: ='PV OCC'!AH67+1000*'Solar - PV Dist. Comm'!AQ$318 -> 1910.147837 | AR165: ='PV OCC'!AI67+1000*'Solar - PV Dist. Comm'!AR$318 -> 1910.147837 | AS165: ='PV OCC'!AJ67+1000*'Solar - PV Dist. Comm'!AS$318 -> 1910.147837 | AT165: ='PV OCC'!AK67+1000*'Solar - PV Dist. Comm'!AT$318 -> 1910.147837
L167: 2016 | M167: 2017 | N167: 2018 | O167: 2019 | P167: 2020 | Q167: 2021 | R167: 2022 | S167: 2023 | T167: 2024 | U167: 2025 | V167: 2026 | W167: 2027 | X167: 2028 | Y167: 2029 | Z167: 2030 | AA167: 2031 | AB167: 2032 | AC167: 2033 | AD167: 2034 | AE167: 2035 | AF167: 2036 | AG167: 2037 | AH167: 2038 | AI167: 2039 | AJ167: 2040 | AK167: 2041 | AL167: 2042 | AM167: 2043 | AN167: 2044 | AO167: 2045 | AP167: 2046 | AQ167: 2047 | AR167: 2048 | AS167: 2049 | AT167: 2050
J168: Fixed Operation and Maintenance Expenses ($/kW-yr) | K168: Comm PV - Seattle - Low | L168: 17.9353362 | M168: 13.65103486 | N168: 10.65053232 | O168: 9.832583014 | P168: 9.037097184 | Q168: 8.033278643 | R168: 7.733513731 | S168: 7.433748818 | T168: 7.133983906 | U168: 6.834218993 | V168: 6.534454081 | W168: 6.234689168 | X168: 5.934924255 | Y168: 5.635159343 | Z168: 5.33539443 | AA168: 5.20484664 | AB168: 5.074298849 | AC168: 4.943751058 | AD168: 4.813203268 | AE168: 4.682655477 | AF168: 4.552107686 | AG168: 4.421559896 | AH168: 4.291012105 | AI168: 4.160464314 | AJ168: 4.029916524 | AK168: 4.011924871 | AL168: 3.993933219 | AM168: 3.975941567 | AN168: 3.957949914 | AO168: 3.939958262 | AP168: 3.92196661 | AQ168: 3.903974957 | AR168: 3.885983305 | AS168: 3.867991652 | AT168: 3.85
K169: Comm PV - Seattle - Mid | L169: 17.9353362 | M169: 13.65103486 | N169: 13.28792181 | O169: 12.5243724 | P169: 11.55146805 | Q169: 10.92598346 | R169: 10.59561258 | S169: 10.2652417 | T169: 9.934870813 | U169: 9.604499932 | V169: 9.27412905 | W169: 8.943758168 | X169: 8.613387286 | Y169: 8.283016404 | Z169: 7.952645522 | AA169: 7.880348745 | AB169: 7.808051967 | AC169: 7.73575519 | AD169: 7.663458412 | AE169: 7.591161635 | AF169: 7.518864857 | AG169: 7.44656808 | AH169: 7.374271303 | AI169: 7.301974525 | AJ169: 7.229677748 | AK169: 7.193529359 | AL169: 7.15738097 | AM169: 7.121232581 | AN169: 7.085084193 | AO169: 7.048935804 | AP169: 7.012787415 | AQ169: 6.976639026 | AR169: 6.940490638 | AS169: 6.904342249 | AT169: 6.86819386
K170: Comm PV - Seattle - Constant | L170: 17.9353362 | M170: 13.65103486 | N170: 13.65103486 | O170: 13.65103486 | P170: 13.65103486 | Q170: 13.65103486 | R170: 13.65103486 | S170: 13.65103486 | T170: 13.65103486 | U170: 13.65103486 | V170: 13.65103486 | W170: 13.65103486 | X170: 13.65103486 | Y170: 13.65103486 | Z170: 13.65103486 | AA170: 13.65103486 | AB170: 13.65103486 | AC170: 13.65103486 | AD170: 13.65103486 | AE170: 13.65103486 | AF170: 13.65103486 | AG170: 13.65103486 | AH170: 13.65103486 | AI170: 13.65103486 | AJ170: 13.65103486 | AK170: 13.65103486 | AL170: 13.65103486 | AM170: 13.65103486 | AN170: 13.65103486 | AO170: 13.65103486 | AP170: 13.65103486 | AQ170: 13.65103486 | AR170: 13.65103486 | AS170: 13.65103486 | AT170: 13.65103486
K171: Comm PV - Chicago - Low | L171: =L168 -> 17.9353362 | M171: =M168 -> 13.65103486 | N171: 10.65053232 | O171: 9.832583014 | P171: 9.037097184 | Q171: 8.033278643 | R171: 7.733513731 | S171: 7.433748818 | T171: 7.133983906 | U171: 6.834218993 | V171: 6.534454081 | W171: 6.234689168 | X171: 5.934924255 | Y171: 5.635159343 | Z171: 5.33539443 | AA171: 5.20484664 | AB171: 5.074298849 | AC171: 4.943751058 | AD171: 4.813203268 | AE171: 4.682655477 | AF171: 4.552107686 | AG171: 4.421559896 | AH171: 4.291012105 | AI171: 4.160464314 | AJ171: 4.029916524 | AK171: 4.011924871 | AL171: 3.993933219 | AM171: 3.975941567 | AN171: 3.957949914 | AO171: 3.939958262 | AP171: 3.92196661 | AQ171: 3.903974957 | AR171: 3.885983305 | AS171: 3.867991652 | AT171: 3.85
K172: Comm PV - Chicago - Mid | L172: =L169 -> 17.9353362 | M172: 13.65103486 | N172: 13.28792181 | O172: 12.5243724 | P172: 11.55146805 | Q172: 10.92598346 | R172: 10.59561258 | S172: 10.2652417 | T172: 9.934870813 | U172: 9.604499932 | V172: 9.27412905 | W172: 8.943758168 | X172: 8.613387286 | Y172: 8.283016404 | Z172: 7.952645522 | AA172: 7.880348745 | AB172: 7.808051967 | AC172: 7.73575519 | AD172: 7.663458412 | AE172: 7.591161635 | AF172: 7.518864857 | AG172: 7.44656808 | AH172: 7.374271303 | AI172: 7.301974525 | AJ172: 7.229677748 | AK172: 7.193529359 | AL172: 7.15738097 | AM172: 7.121232581 | AN172: 7.085084193 | AO172: 7.048935804 | AP172: 7.012787415 | AQ172: 6.976639026 | AR172: 6.940490638 | AS172: 6.904342249 | AT172: 6.86819386
K173: Comm PV - Chicago - Constant | L173: =L170 -> 17.9353362 | M173: 13.65103486 | N173: 13.65103486 | O173: 13.65103486 | P173: 13.65103486 | Q173: 13.65103486 | R173: 13.65103486 | S173: 13.65103486 | T173: 13.65103486 | U173: 13.65103486 | V173: 13.65103486 | W173: 13.65103486 | X173: 13.65103486 | Y173: 13.65103486 | Z173: 13.65103486 | AA173: 13.65103486 | AB173: 13.65103486 | AC173: 13.65103486 | AD173: 13.65103486 | AE173: 13.65103486 | AF173: 13.65103486 | AG173: 13.65103486 | AH173: 13.65103486 | AI173: 13.65103486 | AJ173: 13.65103486 | AK173: 13.65103486 | AL173: 13.65103486 | AM173: 13.65103486 | AN173: 13.65103486 | AO173: 13.65103486 | AP173: 13.65103486 | AQ173: 13.65103486 | AR173: 13.65103486 | AS173: 13.65103486 | AT173: 13.65103486
K174: Comm PV - Kansas City - Low | L174: =L171 -> 17.9353362 | M174: 13.65103486 | N174: 10.65053232 | O174: 9.832583014 | P174: 9.037097184 | Q174: 8.033278643 | R174: 7.733513731 | S174: 7.433748818 | T174: 7.133983906 | U174: 6.834218993 | V174: 6.534454081 | W174: 6.234689168 | X174: 5.934924255 | Y174: 5.635159343 | Z174: 5.33539443 | AA174: 5.20484664 | AB174: 5.074298849 | AC174: 4.943751058 | AD174: 4.813203268 | AE174: 4.682655477 | AF174: 4.552107686 | AG174: 4.421559896 | AH174: 4.291012105 | AI174: 4.160464314 | AJ174: 4.029916524 | AK174: 4.011924871 | AL174: 3.993933219 | AM174: 3.975941567 | AN174: 3.957949914 | AO174: 3.939958262 | AP174: 3.92196661 | AQ174: 3.903974957 | AR174: 3.885983305 | AS174: 3.867991652 | AT174: 3.85
K175: Comm PV - Kansas City - Mid | L175: =L172 -> 17.9353362 | M175: 13.65103486 | N175: 13.28792181 | O175: 12.5243724 | P175: 11.55146805 | Q175: 10.92598346 | R175: 10.59561258 | S175: 10.2652417 | T175: 9.934870813 | U175: 9.604499932 | V175: 9.27412905 | W175: 8.943758168 | X175: 8.613387286 | Y175: 8.283016404 | Z175: 7.952645522 | AA175: 7.880348745 | AB175: 7.808051967 | AC175: 7.73575519 | AD175: 7.663458412 | AE175: 7.591161635 | AF175: 7.518864857 | AG175: 7.44656808 | AH175: 7.374271303 | AI175: 7.301974525 | AJ175: 7.229677748 | AK175: 7.193529359 | AL175: 7.15738097 | AM175: 7.121232581 | AN175: 7.085084193 | AO175: 7.048935804 | AP175: 7.012787415 | AQ175: 6.976639026 | AR175: 6.940490638 | AS175: 6.904342249 | AT175: 6.86819386
K176: Comm PV - Kansas City - Constant | L176: =L173 -> 17.9353362 | M176: 13.65103486 | N176: 13.65103486 | O176: 13.65103486 | P176: 13.65103486 | Q176: 13.65103486 | R176: 13.65103486 | S176: 13.65103486 | T176: 13.65103486 | U176: 13.65103486 | V176: 13.65103486 | W176: 13.65103486 | X176: 13.65103486 | Y176: 13.65103486 | Z176: 13.65103486 | AA176: 13.65103486 | AB176: 13.65103486 | AC176: 13.65103486 | AD176: 13.65103486 | AE176: 13.65103486 | AF176: 13.65103486 | AG176: 13.65103486 | AH176: 13.65103486 | AI176: 13.65103486 | AJ176: 13.65103486 | AK176: 13.65103486 | AL176: 13.65103486 | AM176: 13.65103486 | AN176: 13.65103486 | AO176: 13.65103486 | AP176: 13.65103486 | AQ176: 13.65103486 | AR176: 13.65103486 | AS176: 13.65103486 | AT176: 13.65103486
K177: Comm PV - Los Angeles - Low | L177: =L174 -> 17.9353362 | M177: 13.65103486 | N177: 10.65053232 | O177: 9.832583014 | P177: 9.037097184 | Q177: 8.033278643 | R177: 7.733513731 | S177: 7.433748818 | T177: 7.133983906 | U177: 6.834218993 | V177: 6.534454081 | W177: 6.234689168 | X177: 5.934924255 | Y177: 5.635159343 | Z177: 5.33539443 | AA177: 5.20484664 | AB177: 5.074298849 | AC177: 4.943751058 | AD177: 4.813203268 | AE177: 4.682655477 | AF177: 4.552107686 | AG177: 4.421559896 | AH177: 4.291012105 | AI177: 4.160464314 | AJ177: 4.029916524 | AK177: 4.011924871 | AL177: 3.993933219 | AM177: 3.975941567 | AN177: 3.957949914 | AO177: 3.939958262 | AP177: 3.92196661 | AQ177: 3.903974957 | AR177: 3.885983305 | AS177: 3.867991652 | AT177: 3.85
K178: Comm PV - Los Angeles - Mid | L178: =L175 -> 17.9353362 | M178: 13.65103486 | N178: 13.28792181 | O178: 12.5243724 | P178: 11.55146805 | Q178: 10.92598346 | R178: 10.59561258 | S178: 10.2652417 | T178: 9.934870813 | U178: 9.604499932 | V178: 9.27412905 | W178: 8.943758168 | X178: 8.613387286 | Y178: 8.283016404 | Z178: 7.952645522 | AA178: 7.880348745 | AB178: 7.808051967 | AC178: 7.73575519 | AD178: 7.663458412 | AE178: 7.591161635 | AF178: 7.518864857 | AG178: 7.44656808 | AH178: 7.374271303 | AI178: 7.301974525 | AJ178: 7.229677748 | AK178: 7.193529359 | AL178: 7.15738097 | AM178: 7.121232581 | AN178: 7.085084193 | AO178: 7.048935804 | AP178: 7.012787415 | AQ178: 6.976639026 | AR178: 6.940490638 | AS178: 6.904342249 | AT178: 6.86819386
K179: Comm PV - Los Angeles - Constant | L179: =L176 -> 17.9353362 | M179: 13.65103486 | N179: 13.65103486 | O179: 13.65103486 | P179: 13.65103486 | Q179: 13.65103486 | R179: 13.65103486 | S179: 13.65103486 | T179: 13.65103486 | U179: 13.65103486 | V179: 13.65103486 | W179: 13.65103486 | X179: 13.65103486 | Y179: 13.65103486 | Z179: 13.65103486 | AA179: 13.65103486 | AB179: 13.65103486 | AC179: 13.65103486 | AD179: 13.65103486 | AE179: 13.65103486 | AF179: 13.65103486 | AG179: 13.65103486 | AH179: 13.65103486 | AI179: 13.65103486 | AJ179: 13.65103486 | AK179: 13.65103486 | AL179: 13.65103486 | AM179: 13.65103486 | AN179: 13.65103486 | AO179: 13.65103486 | AP179: 13.65103486 | AQ179: 13.65103486 | AR179: 13.65103486 | AS179: 13.65103486 | AT179: 13.65103486
K180: Comm PV - Daggett, CA - Low | L180: =L177 -> 17.9353362 | M180: 13.65103486 | N180: 10.65053232 | O180: 9.832583014 | P180: 9.037097184 | Q180: 8.033278643 | R180: 7.733513731 | S180: 7.433748818 | T180: 7.133983906 | U180: 6.834218993 | V180: 6.534454081 | W180: 6.234689168 | X180: 5.934924255 | Y180: 5.635159343 | Z180: 5.33539443 | AA180: 5.20484664 | AB180: 5.074298849 | AC180: 4.943751058 | AD180: 4.813203268 | AE180: 4.682655477 | AF180: 4.552107686 | AG180: 4.421559896 | AH180: 4.291012105 | AI180: 4.160464314 | AJ180: 4.029916524 | AK180: 4.011924871 | AL180: 3.993933219 | AM180: 3.975941567 | AN180: 3.957949914 | AO180: 3.939958262 | AP180: 3.92196661 | AQ180: 3.903974957 | AR180: 3.885983305 | AS180: 3.867991652 | AT180: 3.85
K181: Comm PV - Daggett, CA - Mid | L181: =L178 -> 17.9353362 | M181: 13.65103486 | N181: 13.28792181 | O181: 12.5243724 | P181: 11.55146805 | Q181: 10.92598346 | R181: 10.59561258 | S181: 10.2652417 | T181: 9.934870813 | U181: 9.604499932 | V181: 9.27412905 | W181: 8.943758168 | X181: 8.613387286 | Y181: 8.283016404 | Z181: 7.952645522 | AA181: 7.880348745 | AB181: 7.808051967 | AC181: 7.73575519 | AD181: 7.663458412 | AE181: 7.591161635 | AF181: 7.518864857 | AG181: 7.44656808 | AH181: 7.374271303 | AI181: 7.301974525 | AJ181: 7.229677748 | AK181: 7.193529359 | AL181: 7.15738097 | AM181: 7.121232581 | AN181: 7.085084193 | AO181: 7.048935804 | AP181: 7.012787415 | AQ181: 6.976639026 | AR181: 6.940490638 | AS181: 6.904342249 | AT181: 6.86819386
